Workbook

Sheet ÍNDICE DE CONTENIDOS
B2: HERRAMIENTA DE EVALUACIÓN CES
B3: Versión: 1.3.beta_2014.12.22
B5: La herramienta de Evaluación es una planilla creada con el software Microsoft® Excel, la cual permite realizar la evaluación de cumplimiento de los requerimientos del sistema de certificación. La evaluación se realiza en base a los valores de los indicadores ingresados por el usuario para los distintos parámetros del edificio y/o de los grupos de recintos. Para descargar el manual de uso, ir a:
B6: http://www.certificacionsustentable.cl/descarga-de-documentos
B8: INDICE
B9: Datos Generales Edificio | D9: Nota 1: Debe ser consistente con el documento de solicitud del cliente | E9: pag. 2
B10: Resumen Recintos | D10: Nota 2: Completar datos solo en el caso de haber utilizado la Herramienta de Cálculo CES para evaluación de Energía, Iluminación y Ventilación natural | E10: pag. 3
B11: Ingreso de resultados previos | E11: pag. 4
B13: Requerimientos Obligatorios | C13: Evaluación Requerimientos ARQ.CAI | D13: requerimientos 2R, 3R y 4R...……………………………………………………………….. | E13: pag. 5
C14: Evaluación Requerimientos ARQ.Energia | D14: requerimientos 5R y 6R….…………………………………………………………………….. | E14: pag. 6
C15: Evaluación Requerimientos ARQ.Agua | D15: requerimiento 8R..………………………………………………………………………………… | E15: pag. 7
C16: Evaluación Requerimientos INST.CAI | D16: requerimientos 11R1, 11R2, 11R3, 13R y 14R…..………………………………… | E16: pag. 8
C17: Evaluación Requerimientos INST.Energia | D17: requerimiento 16R…………….………………………………………………………………….. | E17: pag. 9
C18: Evaluación Requerimientos INST.AGUA | D18: requerimientos 19R y 20R…………………………………………………………………….. | E18: pag. 10
C19: Evaluación Requerimientos CONST.Residuos | D19: requerimiento 21R……..…………………………………………………………………………. | E19: pag. 11
C21: Evaluación Requerimientos ARQ.CAI | D21: requerimientos 1, 2.1, 2.2, 3.1, 3.2, 4.1 y 4.2……………………………………….. | E21: pag. 12
C22: Evaluación Requerimientos ARQ.Energia | D22: requerimientos 5, 6 y 7……………………………….………………………………………… | E22: pag. 13
C23: Evaluación Requerimientos ARQ.Agua | D23: requerimientos 8 y 9…………..…………………………………………………………………. | E23: pag. 14
B24: Requerimientos Voluntarios | C24: Evaluación Requerimientos ARQ.Residuos | D24: requerimiento 10………….……………………………………………………………………….. | E24: pag. 15
C25: Evaluación Requerimientos INST.CAI | D25: requerimientos 11.1, 11.2, 11.3, 12, 13 y 14…….………………………………….. | E25: pag. 16
C26: Evaluación Requerimientos INST.Energia | D26: requerimientos 15.1, 15.2, 16.1, 16.2, 17 y 18……………………………………… | E26: pag. 17
C27: Evaluación Requerimientos INST.AGUA | D27: requerimientos 19.1, 19.2 y 20…………...……………………………………………….. | E27: pag. 18
C28: Evaluación Requerimientos CONST.Residuos | D28: requerimiento 21……………………..……………………………………………………………. | E28: pag. 19
C29: Evaluación Requerimientos GESTION | D29: requerimientos 22 y 23.………………………………………………………………………… | E29: pag. 20
C31: RESUMEN GENERAL | D31: ……………………………………………………………………………………………………… | E31: pag. 21
C32: Checklist de Documentos | D32: ……………………………………………………………………………………………………… | E32: pag. 22
C33: Informe de Evaluación | D33: ……………………………………………………………………………………………………… | E33: pag. 23

Sheet Datos Generales Edificio
B1: Volver al índice
B2: Identificación del Proyecto
B3: Nombre del proyecto | C3: Escuela Proceres del Bío Bío | G3: Especialista | I3: Nombre del especialista | L3: R.U.T
B4: Destino | C4: Oficinas | G4: Arquitecto | I4: arq | L4: 15.339.379-6
B5: Región | C5: RM - Región Metropolitana de Santiago | G5: EE o Sustentabilidad | I5: asesor | L5: rut asesor
B6: Comuna | C6: San José de Maipo | G6: Clima y ventilación | I6: clima | L6: rut clima
B7: Calle | C7: El río | E7: N° | F7: 2050 | G7: Electricidad | I7: elec | L7: rut elec
B8: Permiso de edificación N° | E8: Fecha | G8: Iluminación | I8: ilumin | L8: rut ilumin
B9: Recepción municipal | E9: Fecha | G9: Sanitario | I9: sanit | L9: rut sanit
B10: Propietario | G10: Acústico | I10: acústico | L10: rut acústico | O10: se eliminó al encargado del proyecto
B11: Mandante | G11: Residuos | I11: Residuos | L11: rut residuos
B12: Evaluador CES | G12: Paisajismo y riego | I12: paisajismo | L12: rut paisaj
B13: Rut Evaluador CES | G13: Otro (anotar) | I13: otro 1 | L13: rut otro 1
B14: Versión de la certificación | G14: Otro (anotar) | I14: otro 2 | L14: rut otro 2
B16: Descripción de estrategia y recursos utilizados (redactar):
B20: Identificación de software utilizados (nombre y versión)
B26: Caracterización general del Proyecto
B27: Características Generales | F27: Información | H27: Unidad | I27: Ubicación de la información | O27: Se reordenaron todos estos recuadros
B28: Zona climática | F28: CI - Central Interior | H28: NCh 1079 | I28: NCh 1079 of2008
B29: Superficie construida sin estacionamientos | F29: 25000 | H29: [m²] | I29: Proyecto / Formulario INE
B30: Superficie útil sin estacionamientos | F30: 24000 | H30: [m²] | I30: Cuadro de superficies
B31: Superficie de estacionamientos | F31: 2000 | H31: [m²] | I31: Cuadro de superficies | O31: se agregó superficie estacionamientos
B32: Altura útil | F32: 2.5 | H32: [m] | O32: se eliminó uso principal ya que está en sección Destino en Identificación
B33: Pisos sobre nivel 0 | F33: 2 | H33: Pisos | I33: Planos de arquitectura
B34: Es un edificio nuevo? | F34: Si | H34: si/no
B35: Características de la Ventilación | F35: Información | H35: Unidad | I35: Ubicación de la información
B36: ¿El edificio posee ventilación mecánica? | F36: No | H36: si/no
B37: ¿El edificio posee ventilación natural? | F37: No | H37: si/no
B38: Metodología de cálculo para las RAH por ventilación natural (Variable ARQ.CAI.3.1) | F38: TDR MOP (opción 1) | H38: Opción | O38: se eliminan daos de ventilación natural
B39: Especifique criterio de Caudal de Aire Mínimo (CAM) (Variable ARQ.CAI.3.1) | F39: ASHRAE 62.1 - 2007 | H39: Criterio de cálculo
B40: ¿Se especifica extracción forzada para recintos con fuentes contaminantes? (Variable INST.CAI.11.1) | F40: No hay recintos contaminantes en el edificio | H40: si/no/ no hay RC | O40: verificar si opción "No hay recintos contaminantes en el edificio" otorga máximo puntaje o no
B41: El edificio posee lucernarios en cubierta (variable ARQ.Energia 5) | F41: No | H41: si/no
B42: Cantidad de materiales estructurales del edificio (variable ARQ.ENERGIA 7 y ARQ.AGUA 9) | F42: 2 | H42: Cantidad materiales
B43: Características acústicas | F43: Información | H43: Unidad | I43: Ubicación de la información
B44: Nivel Equivalente Diurno (NED) (Variable ARQ.CAI 4.1) | F44: 60 | H44: [dB(A)]
B45: Características de los equipos de climatización | F45: Información | H45: Unidad | I45: Ubicación de la información
B46: Espesor aislación de cañerías de conducción de LÍQUIDO para CLIMATIZACION (requerimiento obligatorio INST. Energía 16R) | F46: 20 | H46: [mm] | I46: Memoria técnica - Si el proyecto no considera este ítem, deje el campo en blanco
B47: Espesor aislación de cañerías de AGUA CALIENTE SANITARIA (requerimiento obligatorio INST. Energía 16R) | F47: 10 | H47: [mm] | I47: Memoria técnica - Si el proyecto no considera este ítem, deje el campo en blanco
B48: Espesor de aislación de ductos de AIRE para CLIMATIZACIÓN en el INTERIOR de la envolvente (requerimiento obligatorio INST. Energía 16R) | F48: 20 | H48: [mm] | I48: Memoria técnica - Si el proyecto no considera este ítem, deje el campo en blanco
B49: Espesor de aislación de ductos de AIRE para CLIMATIZACIÓN en el EXTERIOR de la envolvente (requerimiento obligatorio INST. Energía 16R) | F49: 20 | H49: [mm] | I49: Memoria técnica - Si el proyecto no considera este ítem, deje el campo en blanco
B50: Sistema calefacción (Variable INST. Energía 16.2 - Opción 2) | F50: Calefacción por combustión | H50: [-] | I50: Proyecto | O50: arreglar opciones
B51: Seleccione sistema de calefacción (Variable INST.ENERGIA 15 a 18 - Opción 1) | F51: Caldera Petróleo | H51: Sistema de calefacción | I51: Tabla 28 del apéndice 9 , del Manual de Evaluación y Calificación
B52: Seleccione sistema de refrigeración (Variable INST.ENERGIA 15 a 18 - Opción 1) | F52: Compresor - centrífugo | H52: Sistema de refrigeración | I52: Tabla 28 del apéndice 9 , del Manual de Evaluación y Calificación
B53: Característica consumo de agua y riego | F53: Información | H53: Unidad | I53: Ubicación de la información
B54: Indique el nivel de precipitaciones de la zona donde se encuentra el edificio (Requisito INST.Agua 20R) | F54: menor a 500 mm | H54: [mm]

Sheet Resumen requerimientos (hidden)
E1: o | F1: o | J1: o | K1: o | O1: o | P1: o | T1: o | U1: Disminución demanda de energía [%] | V1: 0.18 | W1: 0.18 | X1: 1 | Z1: No | AB1: No
A3: 1 | B3: 2 | C3: 3 | D3: 4 | E3: 5 | F3: 6 | G3: 7 | H3: 8 | I3: 9 | J3: 10 | K3: 11 | L3: 12 | M3: 13 | N3: 14 | O3: 15 | P3: 16 | Q3: 17 | R3: 18 | S3: 19 | T3: 20 | U3: 21 | V3: 22 | W3: 23 | X3: 24 | Y3: 25 | Z3: 26 | AA3: 27 | AB3: 28 | AC3: 27 | AD3: 28 | AE3: 29 | AF3: 30 | AG3: 31 | AH3: 32 | AI3: 33 | AJ3: 34
A4: Correlativo | B4: Código metodología | C4: Código Referencia | D4: Crédito / Requisito | E4: N categoria | F4: Categoría todos | G4: Categoría | H4: % categoría | I4: % categoría educ. y salud | J4: N variable | K4: Variable todas | L4: Variable | M4: % Variable | N4: % Variable educ. y salud | O4: N subvariable | P4: Sub Variable todas | Q4: Sub Variable | R4: % sub variable | S4: % educación y salud | T4: N requerimienti | U4: Indicador / requerimiento | V4: Puntaje Requerimiento Oficinas y Servicios | W4: Puntaje Educación y Salud | X4: Opción | Y4: Total opciones | Z4: Simultáneo | AA4: Total simultáneo | AB4: Adicional | AC4: Prescriptiva | AD4: Prestacional Estática | AE4: Prestacional Dinámica | AF4: Análisis realizado | AG4: Puntaje obtenido | AH4: Cumplimiento RequisitoMinimo | AI4: Cómo se puede resolver | AJ4: va a ir siempre?
A5: 1 | B5: ARQ.CAI.1 | C5: =+CONCATENATE(E5,".",J5,".",O5) -> 1.1.1 | D5: C | E5: 1 | F5: Arquitectura - CAI | G5: Arquitectura - CAI | H5: =+SUM(M5:M25) -> 4.365 | I5: =+SUM(N5:N25) -> 4.355 | J5: 1 | K5: Confort térmico pasivo | L5: Confort térmico pasivo | M5: =+SUM(R5:R6) -> 0.16 | N5: =+SUM(S5:S6) -> 0.1 | O5: 1 | P5: Confort térmico pasivo | Q5: Confort térmico pasivo | R5: =+MAX(V5:V6) -> 0.16 | S5: =+MAX(W5:W6) -> 0.1 | T5: 1 | U5: Reducción % horas de disconfort Taire | V5: 0.08 | W5: 0.05 | X5: 1 | Y5: 2 | Z5: 0 | AA5: 0 | AB5: No | AD5: x | AF5: =+IFERROR(VLOOKUP(C5,#REF!,13,0),"") ->  | AG5: =+IFERROR(INDIRECT(CONCATENATE("Puntaje!O",MATCH(C5,#REF!,0)+4)),"") ->  | AH5: =+IF(IFERROR(VLOOKUP(C5,#REF!,1,0),"-")="-","-",IF(VLOOKUP(C5,#REF!,21,0)>0,"NO","SI")) -> - | AI5: 1.1.1 | AJ5: 1
A6: =1+A5 -> 2 | B6: ARQ.CAI.1 | C6: 1.1.1 | D6: C | E6: =+IF(F6=F5,E5,E5+1) -> 1 | F6: Arquitectura - CAI | G6: =+IF(F6=F5,"",F6) ->  | J6: =+IF(K6=K5,J5,J5+1) -> 1 | K6: Confort térmico pasivo | L6: =+IF(K6=K5,"",K6) ->  | O6: =+IF(P6=P5,O5,O5+1) -> 1 | P6: Confort térmico pasivo | Q6: =+IF(P6=P5,"",P6) ->  | T6: 2 | U6: Reducción % horas de disconfort Top y HR | V6: 0.16 | W6: 0.1 | X6: 2 | Y6: 2 | Z6: 0 | AA6: 0 | AB6: No | AE6: x | AF6: =+IFERROR(VLOOKUP(C6,#REF!,13,0),"") ->  | AG6: =+IFERROR(INDIRECT(CONCATENATE("Puntaje!O",MATCH(C6,#REF!,0)+4)),"") -> 
A7: 3 | B7: ARQ.CAI.2.1 | C7: 1.2.2 | D7: C | E7: =+IF(F7=F6,E6,E6+1) -> 1 | F7: Arquitectura - CAI | G7: =+IF(F7=F6,"",F7) ->  | J7: =+IF(K7=K6,J6,J6+1) -> 2 | K7: Confort visual pasivo | L7: =+IF(K7=K6,"",K7) -> Confort visual pasivo | M7: =+SUM(R7:R13) -> 1.08 | N7: =+SUM(S7:S13) -> 1.1 | O7: =+IF(P7=P6,O6,O6+1) -> 2 | P7: Aporte luz natural | Q7: =+IF(P7=P6,"",P7) -> Aporte luz natural | R7: =+MAX(V7:V9)+MAX(V10) -> 0.07 | S7: =+MAX(W7:W9)+MAX(W10) -> 0.085 | T7: 3 | U7: FLD | V7: 0.06 | W7: 0.075 | X7: 1 | Y7: 3 | Z7: 0 | AA7: 0 | AB7: No | AF7: =+IFERROR(VLOOKUP(C7,#REF!,13,0),"") ->  | AG7: =+IFERROR(INDIRECT(CONCATENATE("Puntaje!O",MATCH(C7,#REF!,0)+4)),"") ->  | AH7: =+IF(IFERROR(VLOOKUP(C7,#REF!,1,0),"-")="-","-",IF(VLOOKUP(C7,#REF!,21,0)>0,"NO","SI")) -> - | AI7: 0.1.1 | AJ7: 1
A8: 4 | B8: ARQ.CAI.2.1 | C8: 1.2.2 | D8: C | E8: 1 | F8: Arquitectura - CAI | J8: 2 | K8: Confort visual pasivo | O8: 2 | P8: Aporte luz natural | T8: 4 | U8: Iluminancia útil | V8: 0.06 | W8: 0.075 | X8: 2 | Y8: 3 | Z8: 0 | AA8: 0 | AB8: No | AF8: =+IFERROR(VLOOKUP(C8,#REF!,13,0),"") ->  | AG8: =+IFERROR(INDIRECT(CONCATENATE("Puntaje!O",MATCH(C8,#REF!,0)+4)),"") -> 
A9: 5 | B9: ARQ.CAI.2.1 | C9: 1.2.2 | D9: C | E9: 1 | F9: Arquitectura - CAI | J9: 2 | K9: Confort visual pasivo | O9: 2 | P9: Aporte luz natural | T9: 5 | U9: Spatial Daylight Autonomy | V9: 0.06 | W9: 0.075 | X9: 3 | Y9: 3 | Z9: 0 | AA9: 0 | AB9: No | AF9: =+IFERROR(VLOOKUP(C9,#REF!,13,0),"") ->  | AG9: =+IFERROR(INDIRECT(CONCATENATE("Puntaje!O",MATCH(C9,#REF!,0)+4)),"") ->  | AH9: =+IF(IFERROR(VLOOKUP(C9,#REF!,1,0),"-")="-","-",IF(VLOOKUP(C9,#REF!,21,0)>0,"NO","SI")) -> - | AI9: 1.0.0 | AJ9: 1
A10: 6 | B10: ARQ.CAI.2.1 | C10: 1.2.2 | D10: C | E10: 1 | F10: Arquitectura - CAI | J10: 2 | K10: Confort visual pasivo | O10: 2 | P10: Aporte luz natural | T10: 6 | U10: Índice de probabilidad de deslumbramiento | V10: 0.01 | W10: 0.01 | X10: 1 | Y10: 1 | Z10: 0 | AA10: 0 | AB10: Si | AF10: =+IFERROR(VLOOKUP(C10,#REF!,13,0),"") ->  | AG10: =+IFERROR(INDIRECT(CONCATENATE("Puntaje!O",MATCH(C10,#REF!,0)+4)),"") ->  | AH10: =+IF(IFERROR(VLOOKUP(C10,#REF!,1,0),"-")="-","-",IF(VLOOKUP(C10,#REF!,21,0)>0,"NO","SI")) -> - | AI10: 0.1.1 | AJ10: 0
A11: 7 | B11: ARQ.CAI.2.2 | C11: 1.2.3 | D11: C | E11: 1 | F11: Arquitectura - CAI | J11: 2 | K11: Confort visual pasivo | O11: 3 | P11: Acceso visual al exterior | Q11: Acceso visual al exterior | R11: =+MAX(V11) -> 0.01 | S11: =+MAX(W11) -> 0.015 | T11: 7 | U11: % de áreas con acceso visual al exterior | V11: 0.01 | W11: 0.015 | X11: 1 | Y11: 1 | Z11: 0 | AA11: 0 | AB11: No | AF11: =+IFERROR(VLOOKUP(C11,#REF!,13,0),"") ->  | AG11: =+IFERROR(INDIRECT(CONCATENATE("Puntaje!O",MATCH(C11,#REF!,0)+4)),"") ->  | AH11: =+IF(IFERROR(VLOOKUP(C11,#REF!,1,0),"-")="-","-",IF(VLOOKUP(C11,#REF!,21,0)>0,"NO","SI")) -> - | AI11: 1.0.0 | AJ11: 0
A12: 8 | B12: 2R | C12: 1.2.4 | D12: R | E12: 1 | F12: Arquitectura - CAI | J12: 2 | K12: Confort visual pasivo | O12: 4 | P12: Factor luz día o iluminancia útil mínimos | Q12: Factor luz día o iluminancia útil mínimos | R12: =+MAX(V12:V13) -> 1 | S12: =+MAX(W12:W13) -> 1 | T12: 8 | U12: Factor Luz Día [FLD] | V12: 1 | W12: 1 | X12: 1 | Y12: 2 | Z12: 0 | AA12: 0 | AB12: No
A13: 9 | B13: 2R | C13: 1.2.4 | D13: R | E13: 1 | F13: Arquitectura - CAI | J13: 2 | K13: Confort visual pasivo | O13: 4 | P13: Factor luz día o iluminancia útil mínimos | T13: 9 | U13: Iluminancia útil [%] | V13: 1 | W13: 1 | X13: 2 | Y13: 2 | Z13: 0 | AA13: 0 | AB13: No
A14: 10 | B14: ARQ.CAI.3.1 | C14: 1.3.5 | D14: C | E14: 1 | F14: Arquitectura - CAI | J14: 3 | K14: Calidad del aire interior | L14: Calidad del aire interior | M14: =+SUM(R14:R19) -> 1.085 | N14: =+SUM(S14:S19) -> 1.105 | O14: 5 | P14: Cobertura de las tasas de renovación | Q14: Cobertura de las tasas de renovación | R14: =+MAX(V14) -> 0.06 | S14: =+MAX(W14) -> 0.075 | T14: 10 | U14: Cobertura de tasas de renovaciones de aire hora [RAH] | V14: 0.06 | W14: 0.075 | X14: 1 | Y14: 1 | Z14: 0 | AA14: 0 | AB14: No | AF14: =+IFERROR(VLOOKUP(C14,#REF!,13,0),"") ->  | AG14: =+IFERROR(INDIRECT(CONCATENATE("Puntaje!O",MATCH(C14,#REF!,0)+4)),"") ->  | AH14: =+IF(IFERROR(VLOOKUP(C14,#REF!,1,0),"-")="-","-",IF(VLOOKUP(C14,#REF!,21,0)>0,"NO","SI")) -> - | AI14: 0.1.1 | AJ14: 1
A15: 11 | B15: ARQ.CAI.3.2 | C15: 1.3.6 | D15: C | E15: 1 | F15: Arquitectura - CAI | J15: 3 | K15: Calidad del aire interior | O15: 6 | P15: Concentraciones de compuestos orgánicos volátiles | Q15: Concentraciones de compuestos orgánicos volátiles | R15: =+MAX(V15:V17) -> 0.025 | S15: =+MAX(W15:W17) -> 0.03 | T15: 11 | U15: Nº de grupos que cumplen con las características Opción 1 | V15: 0.025 | W15: 0.03 | X15: 1 | Y15: 3 | Z15: 0 | AA15: 0 | AB15: No | AF15: =+IFERROR(VLOOKUP(C15,#REF!,13,0),"") ->  | AG15: =+IFERROR(INDIRECT(CONCATENATE("Puntaje!O",MATCH(C15,#REF!,0)+4)),"") ->  | AH15: =+IF(IFERROR(VLOOKUP(C15,#REF!,1,0),"-")="-","-",IF(VLOOKUP(C15,#REF!,21,0)>0,"NO","SI")) -> - | AI15: 1.1.0 | AJ15: 1
A16: 12 | B16: ARQ.CAI.3.2 | C16: 1.3.6 | D16: C | E16: 1 | F16: Arquitectura - CAI | J16: 3 | K16: Calidad del aire interior | O16: 6 | P16: Concentraciones de compuestos orgánicos volátiles | T16: 12 | U16: Nº de grupos que cumplen con la concentración límite de COV de Opción 2 | V16: 0.025 | W16: 0.03 | X16: 2 | Y16: 3 | Z16: 0 | AA16: 0 | AB16: No | AF16: =+IFERROR(VLOOKUP(C16,#REF!,13,0),"") ->  | AG16: =+IFERROR(INDIRECT(CONCATENATE("Puntaje!O",MATCH(C16,#REF!,0)+4)),"") ->  | AH16: =+IF(IFERROR(VLOOKUP(C16,#REF!,1,0),"-")="-","-",IF(VLOOKUP(C16,#REF!,21,0)>0,"NO","SI")) -> - | AI16: 1.0.0 | AJ16: 1
A17: 13 | B17: ARQ.CAI.3.2 | C17: 1.3.6 | D17: C | E17: 1 | F17: Arquitectura - CAI | J17: 3 | K17: Calidad del aire interior | O17: 6 | P17: Concentraciones de compuestos orgánicos volátiles | T17: 13 | U17: Reducción de la concentración ponderada de COV | V17: 0.025 | W17: 0.03 | X17: 3 | Y17: 3 | Z17: 0 | AA17: 0 | AB17: No | AF17: =+IFERROR(VLOOKUP(C17,#REF!,13,0),"") ->  | AG17: =+IFERROR(INDIRECT(CONCATENATE("Puntaje!O",MATCH(C17,#REF!,0)+4)),"") ->  | AH17: =+IF(IFERROR(VLOOKUP(C17,#REF!,1,0),"-")="-","-",IF(VLOOKUP(C17,#REF!,21,0)>0,"NO","SI")) -> - | AI17: 1.0.0 | AJ17: 1
A18: 14 | B18: 3R | C18: =+CONCATENATE(E18,".",J18,".",O18) -> 1.3.7 | D18: R | E18: =+IF(F18=F17,E17,E17+1) -> 1 | F18: Arquitectura - CAI | G18: =+IF(F18=F17,"",F18) ->  | J18: =+IF(K18=K17,J17,J17+1) -> 3 | K18: Calidad del aire interior | L18: =+IF(K18=K17,"",K18) ->  | O18: =+IF(P18=P17,O17,O17+1) -> 7 | P18: Superficie mínima de ventana o caudal mínimo de aire | Q18: =+IF(P18=P17,"",P18) -> Superficie mínima de ventana o caudal mínimo de aire | R18: 1 | S18: 1 | T18: 14 | U18: Superficie practicable de las ventanas | V18: 1 | W18: 1 | X18: 1 | Y18: 2 | Z18: 0 | AA18: 0 | AB18: No
A19: 15 | B19: 3R | C19: =+CONCATENATE(E19,".",J19,".",O19) -> 1.3.7 | D19: R | E19: =+IF(F19=F18,E18,E18+1) -> 1 | F19: Arquitectura - CAI | G19: =+IF(F19=F18,"",F19) ->  | J19: =+IF(K19=K18,J18,J18+1) -> 3 | K19: Calidad del aire interior | L19: =+IF(K19=K18,"",K19) ->  | O19: =+IF(P19=P18,O18,O18+1) -> 7 | P19: Superficie mínima de ventana o caudal mínimo de aire | Q19: =+IF(P19=P18,"",P19) ->  | T19: 15 | U19: Renovaciones de aire hora [RAH] | V19: 1 | W19: 1 | X19: 2 | Y19: 2 | Z19: 0 | AA19: 0 | AB19: No
A20: 16 | B20: ARQ.CAI.4.1 | C20: 1.4.8 | D20: C | E20: 1 | F20: Arquitectura - CAI | J20: 4 | K20: Confort Acústico | L20: Confort Acústico | M20: =+SUM(R20:R25) -> 2.04 | N20: =+SUM(S20:S25) -> 2.05 | O20: 8 | P20: Aislamiento acústico | Q20: Aislamiento acústico | R20: =+MAX(V20:V21) -> 0.02 | S20: =+MAX(W20:W21) -> 0.03 | T20: 16 | U20: Aislamiento acústico de fachada [dB(A)] | V20: 0.02 | W20: 0.03 | X20: 1 | Y20: 1 | Z20: 1 | AA20: 1 | AB20: No | AF20: =+IFERROR(VLOOKUP(C20,#REF!,13,0),"") ->  | AG20: =+IFERROR(INDIRECT(CONCATENATE("Puntaje!O",MATCH(C20,#REF!,0)+4)),"") ->  | AH20: =+IF(IFERROR(VLOOKUP(C20,#REF!,1,0),"-")="-","-",IF(VLOOKUP(C20,#REF!,21,0)>0,"NO","SI")) -> - | AI20: 1.0.0 | AJ20: 1
A21: 17 | B21: ARQ.CAI.4.1 | C21: 1.4.8 | D21: C | E21: 1 | F21: Arquitectura - CAI | J21: 4 | K21: Confort Acústico | O21: 8 | P21: Aislamiento acústico | T21: 17 | U21: Aislamiento acústico entre recintos [dB(A)] | V21: 0.01 | W21: 0.02 | X21: 1 | Y21: 1 | Z21: 1 | AA21: 1 | AB21: si | AF21: =+IFERROR(VLOOKUP(C21,#REF!,13,0),"") ->  | AG21: =+IFERROR(INDIRECT(CONCATENATE("Puntaje!O",MATCH(C21,#REF!,0)+4)),"") ->  | AH21: =+IF(IFERROR(VLOOKUP(C21,#REF!,1,0),"-")="-","-",IF(VLOOKUP(C21,#REF!,21,0)>0,"NO","SI")) -> - | AI21: 1.0.0 | AJ21: 0
A22: 18 | B22: ARQ.CAI.4.2 | C22: 1.4.9 | D22: C | E22: 1 | F22: Arquitectura - CAI | J22: 4 | K22: Confort Acústico | O22: 9 | P22: Acondicionamiento acústico | Q22: Acondicionamiento acústico | R22: =+MAX(V22:V23)+MAX(V24)+MAX(V25) -> 1.02 | S22: =+MAX(W22:W23)+MAX(W24)+MAX(W25) -> 1.02 | T22: 18 | U22: Tiempo de reverberación [s] | V22: 0.015 | W22: 0.015 | X22: 1 | Y22: 2 | Z22: 0 | AA22: 0 | AB22: No | AF22: =+IFERROR(VLOOKUP(C22,#REF!,13,0),"") ->  | AG22: =+IFERROR(INDIRECT(CONCATENATE("Puntaje!O",MATCH(C22,#REF!,0)+4)),"") ->  | AH22: =+IF(IFERROR(VLOOKUP(C22,#REF!,1,0),"-")="-","-",IF(VLOOKUP(C22,#REF!,21,0)>0,"NO","SI")) -> - | AI22: 1.0.0 | AJ22: 0
A23: 19 | B23: ARQ.CAI.4.2 | C23: 1.4.9 | D23: C | E23: 1 | F23: Arquitectura - CAI | J23: 4 | K23: Confort Acústico | O23: 9 | P23: Acondicionamiento acústico | T23: 19 | U23: Inteligibidad de la palabra | V23: 0.005 | W23: 0.005 | X23: 1 | Y23: 2 | Z23: 0 | AA23: 0 | AB23: si | AF23: =+IFERROR(VLOOKUP(C23,#REF!,13,0),"") ->  | AG23: =+IFERROR(INDIRECT(CONCATENATE("Puntaje!O",MATCH(C23,#REF!,0)+4)),"") ->  | AH23: =+IF(IFERROR(VLOOKUP(C23,#REF!,1,0),"-")="-","-",IF(VLOOKUP(C23,#REF!,21,0)>0,"NO","SI")) -> - | AI23: 1.0.0 | AJ23: 0
A24: 20 | B24: ARQ.CAI.4.2 | C24: 1.4.9 | D24: C | E24: 1 | F24: Arquitectura - CAI | J24: 4 | K24: Confort Acústico | O24: 9 | P24: Acondicionamiento acústico | T24: 20 | U24: Material absorbente para Aulas y Auditorios | V24: 0.005 | W24: 0.005 | X24: 2 | Y24: 2 | Z24: 0 | AA24: 0 | AB24: Si
A25: 21 | B25: 4R | C25: 1.4.10 | D25: R | E25: 1 | F25: Arquitectura - CAI | J25: 4 | K25: Confort Acústico | O25: 10 | P25: Aislación acústica mínima de fachadas exteriores | Q25: Aislación acústica mínima de fachadas exteriores | R25: =+MAX(V25) -> 1 | S25: =+MAX(W25) -> 1 | T25: 21 | U25: Aislamiento acústico de fachada [dB(A)] | V25: 1 | W25: 1 | X25: 1 | Y25: 1 | Z25: 0 | AA25: 0 | AB25: No | AC25: x | AE25: x
A26: 22 | B26: ARQ.ENERGIA.5 | C26: 2.5.11 | D26: C | E26: 2 | F26: Arquitectura - Energía | G26: Arquitectura - Energía | H26: =+SUM(M26:M43) -> 6.25 | I26: =+SUM(N26:N43) -> 6.25 | J26: 5 | K26: Demanda de energía | L26: Demanda de energía | M26: =+SUM(R26:R33) -> 5.18 | N26: =+SUM(S26:S33) -> 5.18 | O26: 11 | P26: Demanda de energía | Q26: Demanda de energía | R26: =+MAX(V26:V31) -> 0.18 | S26: =+MAX(W26:W31) -> 0.18 | T26: 22 | U26: Mejora de U en cubierta [W/m2K] | V26: 0.03 | W26: 0.03 | X26: 2 | Y26: 2 | Z26: 1 | AA26: 2 | AB26: si | AF26: =+IFERROR(VLOOKUP(C26,#REF!,13,0),"") ->  | AG26: =+IFERROR(INDIRECT(CONCATENATE("Puntaje!O",MATCH(C26,#REF!,0)+4)),"") -> 
A27: 23 | B27: ARQ.ENERGIA.5 | C27: 2.5.11 | D27: C | E27: 2 | F27: Arquitectura - Energía | J27: 5 | K27: Demanda de energía | O27: 11 | P27: Demanda de energía | T27: 23 | U27: Mejora de U [W/m2K] en muros | V27: 0.06 | W27: 0.06 | X27: 2 | Y27: 2 | Z27: 1 | AA27: 8 | AB27: si | AF27: =+IFERROR(VLOOKUP(C27,#REF!,13,0),"") ->  | AG27: =+IFERROR(INDIRECT(CONCATENATE("Puntaje!O",MATCH(C27,#REF!,0)+4)),"") -> 
A28: 24 | B28: ARQ.ENERGIA.5 | C28: =+CONCATENATE(E28,".",J28,".",O28) -> 2.5.11 | D28: C | E28: 2 | F28: Arquitectura - Energía | J28: 5 | K28: Demanda de energía | O28: 11 | P28: Demanda de energía | T28: 24 | U28: Mejora de U [W/m2K] en ventanas | V28: 0.06 | W28: 0.06 | X28: 2 | Y28: 2 | Z28: 2 | AA28: 8 | AB28: si
A29: 25 | B29: ARQ.ENERGIA.5 | C29: =+CONCATENATE(E29,".",J29,".",O29) -> 2.5.11 | D29: C | E29: 2 | F29: Arquitectura - Energía | J29: 5 | K29: Demanda de energía | O29: 11 | P29: Demanda de energía | T29: 25 | U29: Mejora FSM - Norte | V29: 0.06 | W29: 0.06 | X29: 2 | Y29: 2 | Z29: 3 | AA29: 8 | AB29: si
A30: 26 | B30: ARQ.ENERGIA.5 | C30: =+CONCATENATE(E30,".",J30,".",O30) -> 2.5.11 | D30: C | E30: 2 | F30: Arquitectura - Energía | J30: 5 | K30: Demanda de energía | O30: 11 | P30: Demanda de energía | T30: 26 | U30: Mejora FSM - Este | V30: 0.06 | W30: 0.06 | X30: 2 | Y30: 2 | Z30: 6 | AA30: 8 | AB30: si
A31: 27 | B31: ARQ.ENERGIA.5 | C31: =+CONCATENATE(E31,".",J31,".",O31) -> 2.5.11 | D31: C | E31: 2 | F31: Arquitectura - Energía | J31: 5 | K31: Demanda de energía | O31: 11 | P31: Demanda de energía | T31: 27 | U31: Disminución demanda de energía [%] | V31: 0.18 | W31: 0.18 | X31: 1 | Y31: 2 | Z31: 0 | AA31: 0 | AB31: No
A32: 28 | B32: 5R | C32: 2.5.12 | D32: R | E32: 2 | F32: Arquitectura - Energía | J32: 5 | K32: Demanda de energía | O32: 12 | P32: Transmitancia térmica de la envolvente y Factor Solar Modificado | Q32: Transmitancia térmica de la envolvente y Factor Solar Modificado | R32: =+MAX(V32:V32)+MAX(V33:V33)+MAX(V34:V34)+MAX(V35:V35)+MAX(V36:V36) -> 5 | S32: =+MAX(W32:W32)+MAX(W33:W33)+MAX(W34:W34)+MAX(W35:W35)+MAX(W36:W36) -> 5 | T32: 28 | U32: Transmitancia Térmica Cubierta [W/m2K] | V32: 1 | W32: 1 | X32: 1 | Y32: 1 | Z32: 1 | AA32: 9 | AB32: No | AC32: x
A33: 29 | B33: 5R | C33: 2.5.12 | D33: R | E33: 2 | F33: Arquitectura - Energía | J33: 5 | K33: Demanda de energía | O33: 12 | P33: Transmitancia térmica de la envolvente y Factor Solar Modificado | T33: 29 | U33: Transmitancia Térmica Muro [W/m2K] | V33: 1 | W33: 1 | X33: 1 | Y33: 1 | Z33: 3 | AA33: 9 | AB33: No | AC33: x
A34: 30 | B34: 5R | C34: 2.5.12 | D34: R | E34: 2 | F34: Arquitectura - Energía | J34: 5 | K34: Demanda de energía | O34: 12 | P34: Transmitancia térmica de la envolvente y Factor Solar Modificado | T34: 30 | U34: Transmitancia Térmica Ventana [W/m2K] | V34: 1 | W34: 1 | X34: 1 | Y34: 1 | Z34: 4 | AA34: 9 | AB34: No
A35: 31 | B35: 5R | C35: 2.5.12 | D35: R | E35: 2 | F35: Arquitectura - Energía | J35: 5 | K35: Demanda de energía | O35: 12 | P35: Transmitancia térmica de la envolvente y Factor Solar Modificado | T35: 31 | U35: FSM - Norte | V35: 1 | W35: 1 | X35: 1 | Y35: 1 | Z35: 5 | AA35: 9 | AB35: No
A36: 32 | B36: 5R | C36: 2.5.12 | D36: R | E36: 2 | F36: Arquitectura - Energía | J36: 5 | K36: Demanda de energía | O36: 12 | P36: Transmitancia térmica de la envolvente y Factor Solar Modificado | T36: 32 | U36: FSM - Este | V36: 1 | W36: 1 | X36: 1 | Y36: 1 | Z36: 8 | AA36: 9 | AB36: No
A37: 33 | B37: ARQ.ENERGIA.6 | C37: 2.6.13 | D37: C | E37: 2 | F37: Arquitectura - Energía | J37: 6 | K37: Hermeticidad de la envolvente | L37: Hermeticidad de la envolvente | M37: =+SUM(R37:R39) -> 0.03 | N37: =+SUM(S37:S39) -> 0.03 | O37: 13 | P37: Hermeticidad de la envolvente | Q37: Hermeticidad de la envolvente | R37: =+MAX(V37:V39) -> 0.03 | S37: =+MAX(W37:W39) -> 0.03 | T37: 33 | U37: Infiltración de aire por la envolvente [RAH] | V37: 0.03 | W37: 0.03 | X37: 1 | Y37: 2 | Z37: 0 | AA37: 0 | AB37: No | AF37: =+IFERROR(VLOOKUP(C37,#REF!,13,0),"") ->  | AG37: =+IFERROR(INDIRECT(CONCATENATE("Puntaje!O",MATCH(C37,#REF!,0)+4)),"") -> 
A38: 34 | B38: ARQ.ENERGIA.6 | C38: 2.6.13 | D38: C | E38: 2 | F38: Arquitectura - Energía | J38: 6 | K38: Hermeticidad de la envolvente | O38: 13 | P38: Hermeticidad de la envolvente | T38: 34 | U38: Permeabilidad al aire de carpintería de ventanas | V38: 0.03 | W38: 0.03 | X38: 2 | Y38: 2 | Z38: 0 | AA38: 0 | AB38: No | AF38: =+IFERROR(VLOOKUP(C38,#REF!,13,0),"") ->  | AG38: =+IFERROR(INDIRECT(CONCATENATE("Puntaje!O",MATCH(C38,#REF!,0)+4)),"") -> 
A39: 35 | B39: ARQ.ENERGIA.6 | C39: 2.6.13 | D39: C | E39: 2 | F39: Arquitectura - Energía | J39: 6 | K39: Hermeticidad de la envolvente | O39: 13 | P39: Hermeticidad de la envolvente | T39: 35 | U39: Tipo de abertura de la ventana | V39: 0.01 | W39: 0.01 | Z39: 0 | AA39: 0 | AB39: No | AF39: =+IFERROR(VLOOKUP(C39,#REF!,13,0),"") ->  | AG39: =+IFERROR(INDIRECT(CONCATENATE("Puntaje!O",MATCH(C39,#REF!,0)+4)),"") ->  | AH39: =+IF(IFERROR(VLOOKUP(C39,#REF!,1,0),"-")="-","-",IF(VLOOKUP(C39,#REF!,21,0)>0,"NO","SI")) -> - | AI39: 1.1.1 | AJ39: 1
A40: 36 | B40: 6R | C40: 2.7.14 | D40: R | E40: 2 | F40: Arquitectura - Energía | J40: 7 | K40: Hermeticidad de la envolvente mínima | L40: Hermeticidad de la envolvente mínima | M40: =+SUM(R40) -> 1 | N40: =+SUM(S40) -> 1 | O40: 14 | P40: Sellos exteriores para carpintería y paso de instalaciones | Q40: Sellos exteriores para carpintería y paso de instalaciones | R40: =+MAX(V40) -> 1 | S40: =+MAX(W40) -> 1 | T40: 36 | U40: Especificación de sellos | V40: 1 | W40: 1 | X40: 1 | Y40: 1 | Z40: 0 | AA40: 0 | AB40: No | AC40: x
A41: 37 | B41: ARQ.ENERGIA.7 | C41: 2.8.15 | D41: C | E41: 2 | F41: Arquitectura - Energía | J41: 8 | K41: Energía incorporada en los materiales estructurales del edificio | L41: Energía incorporada en los materiales estructurales del edificio | M41: =+SUM(R41:R43) -> 0.04 | N41: =+SUM(S41:S43) -> 0.04 | O41: 15 | P41: Energía incorporada en los materiales estructurales del edificio | Q41: Energía incorporada en los materiales estructurales del edificio | R41: =+MAX(V41:V43) -> 0.04 | S41: =+MAX(W41:W43) -> 0.04 | T41: 37 | U41: Energía incorporada en base a UNE-EN-ISO 14.024 | V41: 0.04 | W41: 0.04 | X41: 1 | Y41: 3 | Z41: 0 | AA41: 0 | AB41: No | AF41: =+IFERROR(VLOOKUP(C41,#REF!,13,0),"") ->  | AG41: =+IFERROR(INDIRECT(CONCATENATE("Puntaje!O",MATCH(C41,#REF!,0)+4)),"") ->  | AH41: =+IF(IFERROR(VLOOKUP(C41,#REF!,1,0),"-")="-","-",IF(VLOOKUP(C41,#REF!,21,0)>0,"NO","SI")) -> - | AI41: 1.1.1 | AJ41: 1
A42: 38 | B42: ARQ.ENERGIA.7 | C42: 2.8.15 | D42: C | E42: 2 | F42: Arquitectura - Energía | J42: 8 | K42: Energía incorporada en los materiales estructurales del edificio | O42: 15 | P42: Energía incorporada en los materiales estructurales del edificio | T42: 38 | U42: Energía incorporada en base a UNE-EN-ISO 14.025 | V42: 0.04 | W42: 0.04 | X42: 2 | Y42: 3 | Z42: 0 | AA42: 0 | AB42: No | AF42: =+IFERROR(VLOOKUP(C42,#REF!,13,0),"") ->  | AG42: =+IFERROR(INDIRECT(CONCATENATE("Puntaje!O",MATCH(C42,#REF!,0)+4)),"") ->  | AH42: =+IF(IFERROR(VLOOKUP(C42,#REF!,1,0),"-")="-","-",IF(VLOOKUP(C42,#REF!,21,0)>0,"NO","SI")) -> - | AI42: 1.1.0 | AJ42: 1
A43: 39 | B43: ARQ.ENERGIA.7 | C43: 2.8.15 | D43: C | E43: 2 | F43: Arquitectura - Energía | J43: 8 | K43: Energía incorporada en los materiales estructurales del edificio | O43: 15 | P43: Energía incorporada en los materiales estructurales del edificio | T43: 39 | U43: % de superficie de elementos estructurales mantenidos de edificios existentes | V43: 0.04 | W43: 0.04 | X43: 3 | Y43: 3 | Z43: 0 | AA43: 0 | AB43: No | AF43: =+IFERROR(VLOOKUP(C43,#REF!,13,0),"") ->  | AG43: =+IFERROR(INDIRECT(CONCATENATE("Puntaje!O",MATCH(C43,#REF!,0)+4)),"") ->  | AH43: =+IF(IFERROR(VLOOKUP(C43,#REF!,1,0),"-")="-","-",IF(VLOOKUP(C43,#REF!,21,0)>0,"NO","SI")) -> - | AI43: 0.1.0 | AJ43: 1
A44: 40 | B44: ARQ.AGUA.8 | C44: =+CONCATENATE(E44,".",J44,".",O44) -> 3.9.16 | D44: C | E44: 3 | F44: Arquitectura - Agua | G44: Arquitectura - Agua | H44: =+SUM(M44:M46) -> 1.03 | I44: =+SUM(N44:N46) -> 1.03 | J44: 9 | K44: Paisajismo | L44: Paisajismo | M44: =+SUM(R44) -> 0.02 | N44: 0.02 | O44: 16 | P44: Disminución de la demanda de agua | Q44: Disminución de la demanda de agua | R44: =+MAX(V44) -> 0.02 | S44: 0.02 | T44: 40 | U44: Porcentaje de disminución de la evapotranspiración | V44: 0.02 | W44: 0.02 | X44: 1 | Y44: 1 | Z44: 0 | AA44: 0 | AB44: No | AF44: =+IFERROR(VLOOKUP(C44,#REF!,13,0),"") ->  | AG44: =+IFERROR(INDIRECT(CONCATENATE("Puntaje!O",MATCH(C44,#REF!,0)+4)),"") ->  | AH44: =+IF(IFERROR(VLOOKUP(C44,#REF!,1,0),"-")="-","-",IF(VLOOKUP(C44,#REF!,21,0)>0,"NO","SI")) -> - | AI44: 0.1.0 | AJ44: 1
A45: 41 | B45: 8R | C45: 3.9.17 | D45: R | E45: 3 | F45: Arquitectura - Agua | J45: 9 | K45: Paisajismo | M45: 1 | N45: 1 | O45: 17 | P45: Reducir 20% evapotransiración de proyecto de paisajismo | Q45: Reducir 20% evapotransiración de proyecto de paisajismo | R45: 1 | S45: 1 | T45: 41 | U45: Disminución de la evapotranspiración [%] | V45: 1 | W45: 1 | X45: 1 | Y45: 1 | Z45: 0 | AA45: 0 | AB45: No | AD45: x
A46: 42 | B46: ARQ.AGUA.9 | C46: 3.10.18 | D46: C | E46: 3 | F46: Arquitectura - Agua | J46: 10 | K46: Agua incorporada en los materiales estructurales del edificio | L46: Agua incorporada en los materiales estructurales del edificio | M46: 0.01 | N46: 0.01 | O46: 18 | P46: Agua incorporada en los materiales estructurales del edificio [%] | Q46: Agua incorporada en los materiales estructurales del edificio [%] | R46: 0.01 | S46: 0.01 | T46: 42 | U46: Cantidad de categorías de materiales en que se declara la información de agua incorporada según UNE-14024 | V46: 0.01 | W46: 0.01 | X46: 1 | Y46: 3 | Z46: 0 | AA46: 0 | AB46: No | AF46: =+IFERROR(VLOOKUP(C46,#REF!,13,0),"") ->  | AG46: =+IFERROR(INDIRECT(CONCATENATE("Puntaje!O",MATCH(C46,#REF!,0)+4)),"") ->  | AH46: =+IF(IFERROR(VLOOKUP(C46,#REF!,1,0),"-")="-","-",IF(VLOOKUP(C46,#REF!,21,0)>0,"NO","SI")) -> - | AI46: 1.0.0 | AJ46: 1
A47: 43 | B47: ARQ.RESIDUOS.10 | C47: 4.11.19 | D47: C | E47: 4 | F47: Arquitectura - Residuos | G47: Arquitectura - Residuos | H47: =+SUM(M47) -> 0.01 | I47: =+SUM(N47) -> 0.015 | J47: 11 | K47: Equipamiento para el Manejo de Residuos durante la operación del edificio | L47: Equipamiento para el Manejo de Residuos durante la operación del edificio | M47: 0.01 | N47: 0.015 | O47: 19 | P47: Equipamiento para el Manejo de Residuos durante la operación del edificio | Q47: Equipamiento para el Manejo de Residuos durante la operación del edificio | R47: 0.01 | S47: 0.015 | T47: 43 | U47: Equipamiento para el manejo de residuos durante la operación del edificio | V47: 0.01 | W47: 0.015 | X47: 1 | Y47: 1 | Z47: 0 | AA47: 0 | AB47: No | AF47: =+IFERROR(VLOOKUP(C47,#REF!,13,0),"") ->  | AG47: =+IFERROR(INDIRECT(CONCATENATE("Puntaje!O",MATCH(C47,#REF!,0)+4)),"") ->  | AH47: =+IF(IFERROR(VLOOKUP(C47,#REF!,1,0),"-")="-","-",IF(VLOOKUP(C47,#REF!,21,0)>0,"NO","SI")) -> - | AI47: 1.1.1 | AJ47: 0
A48: 44 | B48: INST.CAI.11.1 | C48: 5.12.20 | D48: C | E48: 5 | F48: Instalaciones - CAI | G48: Instalaciones - CAI | H48: =+SUM(M48:M65) -> 7.21 | I48: =+SUM(N48:N65) -> 7.21 | J48: 12 | K48: Ventilación mecánica | L48: Ventilación mecánica | M48: =+SUM(R48:R49) -> 0.08 | N48: =+SUM(S48:S49) -> 0.08 | O48: 20 | P48: Caudal | Q48: Caudal | R48: 0.06 | S48: 0.06 | T48: 44 | U48: Aumento del caudal de ventilación [litros/seg] | V48: 0.06 | W48: 0.06 | X48: 1 | Y48: 1 | Z48: 0 | AA48: 0 | AB48: No | AF48: =+IFERROR(VLOOKUP(C48,#REF!,13,0),"") ->  | AG48: =+IFERROR(INDIRECT(CONCATENATE("Puntaje!O",MATCH(C48,#REF!,0)+4)),"") ->  | AH48: =+IF(IFERROR(VLOOKUP(C48,#REF!,1,0),"-")="-","-",IF(VLOOKUP(C48,#REF!,21,0)>0,"NO","SI")) -> -
A49: 45 | B49: INST.CAI.11.2 | C49: 5.12.21 | D49: C | E49: 5 | F49: Instalaciones - CAI | J49: 12 | K49: Ventilación mecánica | O49: 21 | P49: Filtraje | Q49: Filtraje | R49: =+MAX(V49:V49) -> 0.02 | S49: =+MAX(W49:W49) -> 0.02 | T49: 45 | U49: Eficiencia promedio filtraje [% ] | V49: 0.02 | W49: 0.02 | X49: 1 | Y49: 1 | Z49: 0 | AA49: 0 | AB49: No | AF49: =+IFERROR(VLOOKUP(C49,#REF!,13,0),"") ->  | AG49: =+IFERROR(INDIRECT(CONCATENATE("Puntaje!O",MATCH(C49,#REF!,0)+4)),"") ->  | AH49: =+IF(IFERROR(VLOOKUP(C49,#REF!,1,0),"-")="-","-",IF(VLOOKUP(C49,#REF!,21,0)>0,"NO","SI")) -> - | AI49: 1.0.0 | AJ49: 0
A50: 46 | B50: INST.CAI.11.3 | C50: 5.13.22 | D50: C | E50: 5 | F50: Instalaciones - CAI | J50: 13 | K50: Monitoreo Calidad del aire | L50: Monitoreo Calidad del aire | M50: =+SUM(R50) -> 0.01 | N50: =+SUM(S50) -> 0.01 | O50: 22 | P50: Monitoreo Calidad del aire | Q50: Monitoreo Calidad del aire | R50: =+MAX(V50) -> 0.01 | S50: 0.01 | T50: 46 | U50: Sistema de monitoreo de concentración de CO2 | V50: 0.01 | W50: 0.01 | X50: 1 | Y50: 1 | Z50: 0 | AA50: 0 | AB50: No | AF50: =+IFERROR(VLOOKUP(C50,#REF!,13,0),"") ->  | AG50: =+IFERROR(INDIRECT(CONCATENATE("Puntaje!O",MATCH(C50,#REF!,0)+4)),"") ->  | AH50: =+IF(IFERROR(VLOOKUP(C50,#REF!,1,0),"-")="-","-",IF(VLOOKUP(C50,#REF!,21,0)>0,"NO","SI")) -> - | AI50: 1.0.0 | AJ50: 0
A51: 47 | B51: 11R3 | C51: 5.14.23 | D51: R | E51: 5 | F51: Instalaciones - CAI | J51: 14 | K51: Ventilación mecánica | L51: Ventilación mecánica | M51: =+SUM(R51:R54) -> 3 | N51: =+SUM(S51:S54) -> 3 | O51: 23 | P51: No utlizar sistemas de calefacción de combustión en base a llama abierta | Q51: No utlizar sistemas de calefacción de combustión en base a llama abierta | R51: 1 | S51: 1 | T51: 47 | U51: Sistemas de calefacción utilizados | V51: 1 | W51: 1 | X51: 1 | Y51: 1 | Z51: 0 | AA51: 0 | AB51: No | AC51: x
A52: 48 | B52: 11R2 | C52: 5.14.24 | D52: R | E52: 5 | F52: Instalaciones - CAI | J52: 14 | K52: Ventilación mecánica | O52: 24 | P52: Eficiencia promedio de filtraje | Q52: Eficiencia promedio de filtraje | R52: =+MAX(V52:V53) -> 1 | S52: =+MAX(W52:W53) -> 1 | T52: 48 | U52: Requisito Eficiencia promedio filtraje [% o MERV] | V52: 1 | W52: 1 | X52: 1 | Y52: 1 | Z52: 0 | AA52: 0 | AB52: No | AC52: x
A53: 49 | B53: 11R2 | C53: 5.14.24 | D53: R | E53: 5 | F53: Instalaciones - CAI | J53: 14 | K53: Ventilación mecánica | O53: 24 | P53: Eficiencia promedio de filtraje | T53: 49 | U53: Requisito Eficiencia promedio filtraje [MERV] | V53: 1 | W53: 1 | X53: 2 | Y53: 2 | Z53: 0 | AA53: 0 | AB53: No
A54: 50 | B54: 11R1 | C54: 5.14.25 | D54: R | E54: 5 | F54: Instalaciones - CAI | J54: 14 | K54: Ventilación mecánica | O54: 25 | P54: Cumplir con las tasas mínimas de ventilación indicadas | Q54: Cumplir con las tasas mínimas de ventilación indicadas | R54: 1 | S54: 1 | T54: 50 | U54: Caudal de diseño del sistema de ventilación mecánica | V54: 1 | W54: 1 | X54: 1 | Y54: 1 | Z54: 0 | AA54: 0 | AB54: No | AC54: x
A55: 51 | B55: INST.CAI.12.1 | C55: 5.15.26 | D55: C | E55: 5 | F55: Instalaciones - CAI | J55: 15 | K55: Control del ruido y vibraciones provenientes de equipos | L55: Control del ruido y vibraciones provenientes de equipos | M55: =+SUM(R55:R56) -> 0.02 | N55: =+SUM(S55:S56) -> 0.02 | O55: 26 | P55: Control del ruido y vibraciones provenientes de equipos | Q55: Control del ruido y vibraciones provenientes de equipos | R55: =+MAX(V56:V57) -> 0.02 | S55: =+MAX(W56:W57) -> 0.02 | T55: 51 | U55: Valores máximos del nivel sonoro | V55: 0.01 | W55: 0.005 | X55: 1 | Y55: 2 | Z55: 0 | AA55: 0 | AB55: No | AF55: =+IFERROR(VLOOKUP(C55,#REF!,13,0),"") ->  | AG55: =+IFERROR(INDIRECT(CONCATENATE("Puntaje!O",MATCH(C55,#REF!,0)+4)),"") ->  | AH55: =+IF(IFERROR(VLOOKUP(C55,#REF!,1,0),"-")="-","-",IF(VLOOKUP(C55,#REF!,21,0)>0,"NO","SI")) -> -
A56: 52 | B56: INST.CAI.12.1 | C56: 5.15.26 | D56: C | E56: 5 | F56: Instalaciones - CAI | J56: 15 | K56: Control del ruido y vibraciones provenientes de equipos | O56: 26 | P56: Control del ruido y vibraciones provenientes de equipos | T56: 52 | U56: Elección de equipos y diseño | V56: 0.005 | W56: 0.005 | X56: 2 | Y56: 2 | Z56: 0 | AA56: 0 | AB56: No | AF56: =+IFERROR(VLOOKUP(C56,#REF!,13,0),"") ->  | AG56: =+IFERROR(INDIRECT(CONCATENATE("Puntaje!O",MATCH(C56,#REF!,0)+4)),"") ->  | AH56: =+IF(IFERROR(VLOOKUP(C56,#REF!,1,0),"-")="-","-",IF(VLOOKUP(C56,#REF!,21,0)>0,"NO","SI")) -> - | AI56: 1.0.0 | AJ56: 1
A57: 53 | B57: INST.CAI.13 | C57: 5.16.27 | D57: C | E57: 5 | F57: Instalaciones - CAI | J57: 16 | K57: Confort visual activo | L57: Confort visual activo | M57: =+SUM(R57:R63) -> 3.08 | N57: =+SUM(S57:S63) -> 3.08 | O57: 27 | P57: Confort visual activo | Q57: Confort visual activo | R57: =+MAX(V57)+MAX(V58)+MAX(V59)+MAX(V60) -> 0.08 | S57: =+MAX(W57)+MAX(W58)+MAX(W59)+MAX(W60) -> 0.08 | T57: 53 | U57: Iluminancia mínima | V57: 0.02 | W57: 0.02 | X57: 1 | Y57: 1 | Z57: 1 | AA57: 4 | AB57: No | AF57: =+IFERROR(VLOOKUP(C57,#REF!,13,0),"") ->  | AG57: =+IFERROR(INDIRECT(CONCATENATE("Puntaje!O",MATCH(C57,#REF!,0)+4)),"") ->  | AH57: =+IF(IFERROR(VLOOKUP(C57,#REF!,1,0),"-")="-","-",IF(VLOOKUP(C57,#REF!,21,0)>0,"NO","SI")) -> - | AI57: 0.1.0 | AJ57: 0
A58: 54 | B58: INST.CAI.13 | C58: 5.16.27 | D58: C | E58: 5 | F58: Instalaciones - CAI | J58: 16 | K58: Confort visual activo | O58: 27 | P58: Confort visual activo | T58: 54 | U58: Uniformidad media | V58: 0.02 | W58: 0.02 | X58: 1 | Y58: 1 | Z58: 2 | AA58: 4 | AB58: No
A59: 55 | B59: INST.CAI.13 | C59: 5.16.27 | D59: C | E59: 5 | F59: Instalaciones - CAI | J59: 16 | K59: Confort visual activo | O59: 27 | P59: Confort visual activo | T59: 55 | U59: Rendimiento Cromático | V59: 0.02 | W59: 0.02 | X59: 1 | Y59: 1 | Z59: 3 | AA59: 4 | AB59: No
A60: 56 | B60: INST.CAI.13 | C60: 5.16.27 | D60: C | E60: 5 | F60: Instalaciones - CAI | J60: 16 | K60: Confort visual activo | O60: 27 | P60: Confort visual activo | T60: 56 | U60: Deslumbramiento | V60: 0.02 | W60: 0.02 | X60: 1 | Y60: 1 | Z60: 4 | AA60: 4 | AB60: No
A61: 57 | B61: 13R | C61: 5.16.28 | D61: R | E61: 5 | F61: Instalaciones - CAI | J61: 16 | K61: Confort visual activo | O61: 28 | P61: Nivel mínimo de Iluminancia, rendimiento cromático y deslumbramiento | Q61: Nivel mínimo de Iluminancia, rendimiento cromático y deslumbramiento | R61: =+MAX(V61)+MAX(V62)+MAX(V63) -> 3 | S61: =+MAX(W61)+MAX(W62)+MAX(W63) -> 3 | T61: 57 | U61: Iluminancia mínima [lux] | V61: 1 | W61: 1 | X61: 1 | Y61: 1 | Z61: 1 | AA61: 3 | AB61: No | AC61: x
A62: 58 | B62: 13R | C62: 5.16.28 | D62: R | E62: 5 | F62: Instalaciones - CAI | J62: 16 | K62: Confort visual activo | O62: 28 | P62: Nivel mínimo de Iluminancia, rendimiento cromático y deslumbramiento | T62: 58 | U62: Índice de rendimiento cromático [IRC] | V62: 1 | W62: 1 | X62: 1 | Y62: 1 | Z62: 2 | AA62: 3 | AB62: No | AC62: x
A63: 59 | B63: 13R | C63: 5.16.28 | D63: R | E63: 5 | F63: Instalaciones - CAI | J63: 16 | K63: Confort visual activo | O63: 28 | P63: Nivel mínimo de Iluminancia, rendimiento cromático y deslumbramiento | T63: 59 | U63: Índice de deslumbramiento unificado [UGR] | V63: 1 | W63: 1 | X63: 1 | Y63: 1 | Z63: 3 | AA63: 3 | AB63: No | AC63: x
A64: 60 | B64: INST.CAI.14 | C64: 5.17.29 | D64: C | E64: 5 | F64: Instalaciones - CAI | J64: 17 | K64: Confort térmico activo | L64: Confort térmico activo | M64: =+SUM(R64:R65) -> 1.02 | N64: =+SUM(S64:S65) -> 1.02 | O64: 29 | P64: Diseño y control del sistema | Q64: Diseño y control del sistema | R64: =+MAX(V64) -> 0.02 | S64: =+MAX(W64) -> 0.02 | T64: 60 | U64: Cantidad y distribución de los controles del sistema de climatización | V64: 0.02 | W64: 0.02 | X64: 1 | Y64: 1 | Z64: 0 | AA64: 0 | AB64: No | AF64: =+IFERROR(VLOOKUP(C64,#REF!,13,0),"") ->  | AG64: =+IFERROR(INDIRECT(CONCATENATE("Puntaje!O",MATCH(C64,#REF!,0)+4)),"") ->  | AH64: =+IF(IFERROR(VLOOKUP(C64,#REF!,1,0),"-")="-","-",IF(VLOOKUP(C64,#REF!,21,0)>0,"NO","SI")) -> - | AI64: 0.1.0 | AJ64: 1
A65: 61 | B65: 14R | C65: 5.17.30 | D65: R | E65: 5 | F65: Instalaciones - CAI | J65: 17 | K65: Confort térmico activo | O65: 30 | P65: Definir condiciones de diseño del proyecto de climatización | Q65: Definir condiciones de diseño del proyecto de climatización | R65: =+MAX(V65) -> 1 | S65: =+MAX(W65) -> 1 | T65: 61 | U65: Declaración de condiciones de diseño del proyeto de climatización | V65: 1 | W65: 1 | X65: 1 | Y65: 1 | Z65: 0 | AA65: 0 | AB65: No | AC65: x
A66: 62 | B66: INST.ENERGIA.15.1 | C66: 6.18.31 | D66: C | E66: 6 | F66: Instalaciones - Energía | G66: Instalaciones - Energía | H66: =+SUM(M66:M82) -> 4.185 | I66: =+SUM(N66:N82) -> 4.185 | J66: 18 | K66: Iluminación artificial | L66: Iluminación artificial | M66: =+SUM(R66:R69) -> 0.05 | N66: =+SUM(S66:S69) -> 0.05 | O66: 31 | P66: Potencia Instalada | Q66: Potencia Instalada | R66: =+MAX(V66:V67) -> 0.03 | S66: =+MAX(W66:W67) -> 0.03 | T66: 62 | U66: Reducción de potencia instalada de iluminación artificial [%] | V66: 0.03 | W66: 0.03 | X66: 1 | Y66: 2 | Z66: 0 | AA66: 0 | AB66: No | AF66: =+IFERROR(VLOOKUP(C66,#REF!,13,0),"") ->  | AG66: =+IFERROR(INDIRECT(CONCATENATE("Puntaje!O",MATCH(C66,#REF!,0)+4)),"") ->  | AH66: =+IF(IFERROR(VLOOKUP(C66,#REF!,1,0),"-")="-","-",IF(VLOOKUP(C66,#REF!,21,0)>0,"NO","SI")) -> - | AI66: 0.1.0 | AJ66: 0
A67: 63 | B67: INST.ENERGIA.15.1 | C67: 6.18.31 | D67: C | E67: 6 | F67: Instalaciones - Energía | J67: 18 | K67: Iluminación artificial | O67: 31 | P67: Potencia Instalada | T67: 63 | U67: Disminución de consumo de energía en iluminación | V67: 0.03 | W67: 0.03 | X67: 2 | Y67: 2 | Z67: 0 | AA67: 0 | AB67: No | AF67: =+IFERROR(VLOOKUP(C67,#REF!,13,0),"") ->  | AG67: =+IFERROR(INDIRECT(CONCATENATE("Puntaje!O",MATCH(C67,#REF!,0)+4)),"") -> 
A68: 64 | B68: INST.ENERGIA.15.2 | C68: 6.18.32 | D68: C | E68: 6 | F68: Instalaciones - Energía | J68: 18 | K68: Iluminación artificial | O68: 32 | P68: Sistemas de control | Q68: Sistemas de control | R68: =+MAX(V68:V69) -> 0.02 | S68: =+MAX(W68:W69) -> 0.02 | T68: 64 | U68: Incorporación de sistemas de control | V68: 0.02 | W68: 0.02 | X68: 1 | Y68: 2 | Z68: 0 | AA68: 0 | AB68: No | AF68: =+IFERROR(VLOOKUP(C68,#REF!,13,0),"") ->  | AG68: =+IFERROR(INDIRECT(CONCATENATE("Puntaje!O",MATCH(C68,#REF!,0)+4)),"") -> 
A69: 65 | B69: INST.ENERGIA.15.2 | C69: 6.18.32 | D69: C | E69: 6 | F69: Instalaciones - Energía | J69: 18 | K69: Iluminación artificial | O69: 32 | P69: Sistemas de control | T69: 65 | U69: Disminución de consumo de energía en iluminación | V69: 0.02 | W69: 0.02 | X69: 2 | Y69: 2 | Z69: 0 | AA69: 0 | AB69: No | AF69: =+IFERROR(VLOOKUP(C69,#REF!,13,0),"") ->  | AG69: =+IFERROR(INDIRECT(CONCATENATE("Puntaje!O",MATCH(C69,#REF!,0)+4)),"") -> 
A70: 66 | B70: INST.ENERGIA.16.1 | C70: 6.19.33 | D70: C | E70: 6 | F70: Instalaciones - Energía | J70: 19 | K70: Climatización y ACS | L70: Climatización y ACS | M70: =+SUM(R70:R76) -> 4.105 | N70: =+SUM(S70:S76) -> 4.105 | O70: 33 | P70: Relación de la potencia requerida e instalada | Q70: Relación de la potencia requerida e instalada | R70: =+MAX(V70)+MAX(V71)+MAX(V72) -> 0.025 | S70: =+MAX(W70)+MAX(W71)+MAX(W72) -> 0.025 | T70: 66 | U70: Cobertura de Potencia requerida en climatización y ACS | V70: 0.015 | W70: 0.015 | X70: 1 | Y70: 2 | Z70: 0 | AA70: 0 | AB70: No | AF70: =+IFERROR(VLOOKUP(C70,#REF!,13,0),"") ->  | AG70: =+IFERROR(INDIRECT(CONCATENATE("Puntaje!O",MATCH(C70,#REF!,0)+4)),"") -> 
A71: 67 | B71: INST.ENERGIA.16.1 | C71: 6.19.33 | D71: C | E71: 6 | F71: Instalaciones - Energía | J71: 19 | K71: Climatización y ACS | O71: 33 | P71: Relación de la potencia requerida e instalada | T71: 67 | U71: Sobredimensionamiento de Potencia requerida en calefacción | V71: 0.005 | W71: 0.005 | X71: 2 | Y71: 2 | Z71: 1 | AA71: 2 | AB71: Si
A72: 68 | B72: INST.ENERGIA.16.1 | C72: 6.19.33 | D72: C | E72: 6 | F72: Instalaciones - Energía | J72: 19 | K72: Climatización y ACS | L72: =+IF(K72=K71,"",K72) ->  | O72: 33 | P72: Relación de la potencia requerida e instalada | T72: 68 | U72: Sobredimensionamiento de Potencia requerida en refrigeración | V72: 0.005 | W72: 0.005 | X72: 2 | Y72: 2 | Z72: 2 | AA72: 2 | AB72: Si
A73: 69 | B73: INST.ENERGIA.16.2 | C73: 6.19.34 | D73: C | E73: 6 | F73: Instalaciones - Energía | J73: 19 | K73: Climatización y ACS | O73: 34 | P73: Rendimiento Nominal | Q73: Rendimiento Nominal | R73: =+MAX(V73:V75) -> 0.08 | S73: =+MAX(W73:W75) -> 0.08 | T73: 69 | U73: Rendimiento nominal del sistema de calefacción por combustión | V73: 0.08 | W73: 0.08 | X73: 2 | Y73: 3 | Z73: 0 | AA73: 0 | AB73: No | AF73: =+IFERROR(VLOOKUP(C73,#REF!,13,0),"") ->  | AG73: =+IFERROR(INDIRECT(CONCATENATE("Puntaje!O",MATCH(C73,#REF!,0)+4)),"") -> 
A74: 70 | B74: INST.ENERGIA.16.2 | C74: 6.19.34 | D74: C | E74: 6 | F74: Instalaciones - Energía | J74: 19 | K74: Climatización y ACS | O74: 34 | P74: Rendimiento Nominal | T74: 70 | U74: Rendimiento nominal del sistema de calefacción y enfriamiento por electricidad | V74: 0.08 | W74: 0.08 | X74: 3 | Y74: 3 | Z74: 0 | AA74: 0 | AB74: No
A75: 71 | B75: INST.ENERGIA.16.2 | C75: 6.19.34 | D75: C | E75: 6 | F75: Instalaciones - Energía | J75: 19 | K75: Climatización y ACS | O75: 34 | P75: Rendimiento Nominal | T75: 71 | U75: Disminución de consumo de energía en climatización y ACS | V75: 0.08 | W75: 0.08 | X75: 1 | Y75: 3 | Z75: 0 | AA75: 0 | AB75: No | AF75: =+IFERROR(VLOOKUP(C75,#REF!,13,0),"") ->  | AG75: =+IFERROR(INDIRECT(CONCATENATE("Puntaje!O",MATCH(C75,#REF!,0)+4)),"") -> 
A76: 72 | B76: 16R | C76: 6.19.35 | D76: R | E76: 6 | F76: Instalaciones - Energía | J76: 19 | K76: Climatización y ACS | O76: 35 | P76: Aislación térmica en distribución de calor y frío | Q76: Aislación térmica en distribución de calor y frío | R76: =+MAX(V76)+MAX(V77)+MAX(V78)+MAX(V79) -> 4 | S76: =+MAX(W76)+MAX(W77)+MAX(W78)+MAX(W79) -> 4 | T76: 72 | U76: Espesor de aislación térmica de cañerías para climatización/líquido [mm] | V76: 1 | W76: 1 | X76: 1 | Y76: 1 | Z76: 1 | AA76: 4 | AB76: No | AC76: x
A77: 73 | B77: 16R | C77: 6.19.35 | D77: R | E77: 6 | F77: Instalaciones - Energía | G77: =+IF(F77=F76,"",F77) ->  | J77: 19 | K77: Climatización y ACS | O77: 35 | P77: Aislación térmica en distribución de calor y frío | T77: 73 | U77: Espesor de aislación térmica de cañerías para ACS/líquido [mm] | V77: 1 | W77: 1 | X77: 1 | Y77: 1 | Z77: 2 | AA77: 4 | AB77: No
A78: 74 | B78: 16R | C78: 6.19.35 | D78: R | E78: 6 | F78: Instalaciones - Energía | J78: 19 | K78: Climatización y ACS | O78: 35 | P78: Aislación térmica en distribución de calor y frío | T78: 74 | U78: Espesor de aislación térmica de cañerías interiores de climatización/aire [mm] | V78: 1 | W78: 1 | X78: 1 | Y78: 1 | Z78: 3 | AA78: 4 | AB78: No
A79: 75 | B79: 16R | C79: 6.19.35 | D79: R | E79: 6 | F79: Instalaciones - Energía | J79: 19 | K79: Climatización y ACS | O79: 35 | P79: Aislación térmica en distribución de calor y frío | T79: 75 | U79: Espesor de aislación térmica de cañerías exteriores de climatización/aire [mm] | V79: 1 | W79: 1 | X79: 1 | Y79: 1 | Z79: 4 | AA79: 4 | AB79: No
A80: 76 | B80: INST.ENERGIA.17 | C80: 6.20.36 | D80: C | E80: 6 | F80: Instalaciones - Energía | J80: 20 | K80: Otros consumos de energía | L80: Otros consumos de energía | M80: =+SUM(R80:R81) -> 0.01 | N80: =+SUM(S80:S81) -> 0.01 | O80: 36 | P80: Otros consumos de energía | Q80: Otros consumos de energía | R80: =+MAX(V80:V81) -> 0.01 | S80: =+MAX(W80:W81) -> 0.01 | T80: 76 | U80: % de reducción del consumo estimado de energía de equipos y artefactos | V80: 0.01 | W80: 0.01 | X80: 2 | Y80: 2 | Z80: 0 | AA80: 0 | AB80: No | AF80: =+IFERROR(VLOOKUP(C80,#REF!,13,0),"") ->  | AG80: =+IFERROR(INDIRECT(CONCATENATE("Puntaje!O",MATCH(C80,#REF!,0)+4)),"") -> 
A81: 77 | B81: INST.ENERGIA.17 | C81: 6.20.36 | D81: C | E81: 6 | F81: Instalaciones - Energía | J81: 20 | K81: Otros consumos de energía | O81: 36 | P81: Otros consumos de energía | T81: 77 | U81: Disminución del consumo estimado de energía en equipos y artefactos | V81: 0.01 | W81: 0.01 | X81: 1 | Y81: 2 | Z81: 0 | AA81: 0 | AB81: No | AF81: =+IFERROR(VLOOKUP(C81,#REF!,13,0),"") ->  | AG81: =+IFERROR(INDIRECT(CONCATENATE("Puntaje!O",MATCH(C81,#REF!,0)+4)),"") -> 
A82: 78 | B82: INST.ENERGIA.18 | C82: 6.21.37 | D82: C | E82: 6 | F82: Instalaciones - Energía | J82: 21 | K82: Energía renovable no convencional | L82: Energía renovable no convencional | M82: =+SUM(R82) -> 0.02 | N82: =+SUM(S82) -> 0.02 | O82: 37 | P82: Energía renovable no convencional | Q82: Energía renovable no convencional | R82: =+MAX(V82) -> 0.02 | S82: =+MAX(W82) -> 0.02 | T82: 78 | U82: Cobertura de demanda de energía primaria del edificio | V82: 0.02 | W82: 0.02 | X82: 1 | Y82: 1 | Z82: 0 | AA82: 0 | AB82: No | AF82: =+IFERROR(VLOOKUP(C82,#REF!,13,0),"") ->  | AG82: =+IFERROR(INDIRECT(CONCATENATE("Puntaje!O",MATCH(C82,#REF!,0)+4)),"") -> 
A83: =1+A82 -> 79 | B83: INST.AGUA.19.1 | C83: 7.22.38 | D83: C | E83: 7 | F83: Instalaciones - Agua | G83: Instalaciones - Agua | H83: =+SUM(M83:M87) -> 2.075 | I83: =+SUM(N83:N87) -> 2.075 | J83: 22 | K83: Instalación de agua potable | L83: Instalación de agua potable | M83: =+SUM(R83:R85) -> 1.065 | N83: =+SUM(S83:S85) -> 1.065 | O83: 38 | P83: Sistemas eficientes | Q83: Sistemas eficientes | R83: =+MAX(V83) -> 0.06 | S83: 0.06 | T83: 79 | U83: Disminución de consumo de agua potable [%] | V83: 0.06 | W83: 0.06 | X83: 1 | Y83: 1 | Z83: 0 | AA83: 0 | AB83: No | AF83: =+IFERROR(VLOOKUP(C83,#REF!,13,0),"") ->  | AG83: =+IFERROR(INDIRECT(CONCATENATE("Puntaje!O",MATCH(C83,#REF!,0)+4)),"") -> 
A84: 80 | B84: INST.AGUA.19.2 | C84: 7.22.39 | D84: C | E84: 7 | F84: Instalaciones - Agua | J84: 22 | K84: Instalación de agua potable | O84: 39 | P84: Dureza del agua | Q84: Dureza del agua | R84: 0.005 | S84: 0.005 | T84: 80 | U84: Tratamiento para la remoción de dureza de agua | V84: 0.005 | W84: 0.005 | X84: 1 | Y84: 1 | Z84: 0 | AA84: 0 | AB84: No | AF84: =+IFERROR(VLOOKUP(C84,#REF!,13,0),"") ->  | AG84: =+IFERROR(INDIRECT(CONCATENATE("Puntaje!O",MATCH(C84,#REF!,0)+4)),"") -> 
A85: 81 | B85: 19R | C85: 7.22.40 | D85: R | E85: =+IF(F85=F84,E84,E84+1) -> 7 | F85: Instalaciones - Agua | J85: =+IF(K85=K84,J84,J84+1) -> 22 | K85: Instalación de agua potable | O85: =+IF(P85=P84,O84,O84+1) -> 40 | P85: Reducir en un 20% el consumo de agua potable | Q85: =+IF(P85=P84,"",P85) -> Reducir en un 20% el consumo de agua potable | R85: 1 | S85: 1 | T85: 81 | U85: Disminución del consumo de agua potable por griferías y artefactos [%] | V85: 1 | W85: 1 | X85: 1 | Y85: 1 | Z85: 0 | AA85: 0 | AB85: No | AC85: x
A86: 82 | B86: INST.AGUA.20 | C86: 7.23.41 | D86: C | E86: 7 | F86: Instalaciones - Agua | J86: 23 | K86: Instalación de riego | L86: Instalación de riego | M86: =+SUM(R86:R87) -> 1.01 | N86: =+SUM(S86:S87) -> 1.01 | O86: 41 | P86: Sistemas eficientes | Q86: Sistemas eficientes | R86: 0.01 | S86: 0.01 | T86: 82 | U86: Disminución del consumo de agua para riego [%] | V86: 0.01 | W86: 0.01 | X86: 1 | Y86: 1 | Z86: 0 | AA86: 0 | AB86: No | AF86: =+IFERROR(VLOOKUP(C86,#REF!,13,0),"") ->  | AG86: =+IFERROR(INDIRECT(CONCATENATE("Puntaje!O",MATCH(C86,#REF!,0)+4)),"") -> 
A87: 83 | B87: 20R | C87: 7.23.42 | D87: R | E87: 7 | F87: Instalaciones - Agua | J87: 23 | K87: Instalación de riego | O87: 42 | P87: Reducir en un 20% el consumo de agua para riego | Q87: Reducir en un 20% el consumo de agua para riego | R87: 1 | S87: 1 | T87: 83 | U87: Disminución del consumo de agua para riego por sistema de riego [%] | V87: 1 | W87: 1 | X87: 1 | Y87: 1 | Z87: 0 | AA87: 0 | AB87: No | AC87: x
A88: 84 | B88: CONST.RESIDUOS.21 | C88: 8.24.43 | D88: C | E88: 8 | F88: Construcción - Residuos | G88: Construcción - Residuos | H88: =+SUM(M88:M89) -> 1.01 | I88: =+SUM(N88:N89) -> 1.01 | J88: 24 | K88: Manejo de residuos durante la construcción | L88: Manejo de residuos durante la construcción | M88: =+SUM(R88:R89) -> 1.01 | N88: =+SUM(S88:S89) -> 1.01 | O88: 43 | P88: Manejo de residuos durante la construcción | Q88: Manejo de residuos durante la construcción | R88: 0.01 | S88: 0.01 | T88: 84 | U88: Separación, control y reciclaje de residuos | V88: 0.01 | W88: 0.01 | X88: 1 | Y88: 1 | Z88: 0 | AA88: 0 | AB88: No | AF88: =+IFERROR(VLOOKUP(C88,#REF!,13,0),"") ->  | AG88: =+IFERROR(INDIRECT(CONCATENATE("Puntaje!O",MATCH(C88,#REF!,0)+4)),"") -> 
A89: 85 | B89: 21R | C89: 8.24.44 | D89: R | E89: 8 | F89: Construcción - Residuos | J89: 24 | K89: Manejo de residuos durante la construcción | O89: 44 | P89: Medidas de control y mitigación durante la construcción | Q89: Medidas de control y mitigación durante la construcción | R89: 1 | S89: 1 | T89: 85 | U89: Separación, control y reciclaje de residuos | V89: 1 | W89: 1 | X89: 1 | Y89: 1 | Z89: 0 | AA89: 0 | AB89: No | AC89: x
A90: 86 | B90: GESTION.22 | C90: 9.25.45 | D90: C | E90: 9 | F90: Gestión | G90: Gestión | H90: =+SUM(M90:M91) -> 1.04 | I90: =+SUM(N90:N91) -> 1.04 | J90: 25 | K90: Proceso de diseño integrado | L90: Proceso de diseño integrado | M90: =+SUM(R90) -> 0.04 | N90: 0.04 | O90: 45 | P90: Proceso de diseño integrado | Q90: Proceso de diseño integrado | R90: 0.04 | S90: 0.04 | T90: 86 | U90: Actas de reuniones e informe | V90: 0.04 | W90: 0.04 | X90: 1 | Y90: 1 | Z90: 0 | AA90: 0 | AB90: Si | AF90: =+IFERROR(VLOOKUP(C90,#REF!,13,0),"") ->  | AG90: =+IFERROR(INDIRECT(CONCATENATE("Puntaje!O",MATCH(C90,#REF!,0)+4)),"") -> 
A91: 87 | B91: GESTION.23 | C91: 9.26.46 | D91: C | E91: 9 | F91: Gestión | J91: 26 | K91: Gestión de la operación y mantenimiento | L91: Gestión de la operación y mantenimiento | M91: 1 | N91: 1 | O91: 46 | P91: Gestión de la Operación y Mantenimiento | Q91: Gestión de la Operación y Mantenimiento | R91: 1 | S91: 1 | T91: 87 | U91: Compromiso y plan de mejora continua | V91: 1 | W91: 1 | X91: 1 | Y91: 1 | Z91: 0 | AA91: 0 | AB91: Si | AF91: =+IFERROR(VLOOKUP(C91,#REF!,13,0),"") ->  | AG91: =+IFERROR(INDIRECT(CONCATENATE("Puntaje!O",MATCH(C91,#REF!,0)+4)),"") -> 
A92: 88 | B92: INST.ENERGIA 15 A 18 | C92: =+CONCATENATE(E92,".",J92,".",O92) -> 6.27.47 | D92: C | E92: 6 | F92: Instalaciones - Energía | G92: =+IF(F92=F91,"",F92) -> Instalaciones - Energía | H92: =+SUM(M92) -> 0.18 | I92: =+SUM(N92) -> 0.18 | J92: =+IF(K92=K91,J91,J91+1) -> 27 | K92: Consumo de Energía | L92: =+IF(K92=K91,"",K92) -> Consumo de Energía | M92: 0.18 | N92: 0.18 | O92: =+IF(P92=P91,O91,O91+1) -> 47 | P92: Consumo de Energía | Q92: Reducción del consumo anual de energía de todo el edificio | R92: =+MAX(V92) -> 0.18 | S92: =+MAX(W92) -> 0.18 | T92: 88 | U92: Reducción del consumo anual de energía [kWh/m2] para todo el edificio | V92: 0.18 | W92: 0.18 | X92: 1 | Y92: 1 | Z92: 0 | AA92: 0 | AB92: no | AF92: =+IFERROR(VLOOKUP(C92,#REF!,13,0),"") ->  | AG92: =+IFERROR(INDIRECT(CONCATENATE("Puntaje!O",MATCH(C92,#REF!,0)+4)),"") -> 
A93: =1+A92 -> 89 | B93: 5R | C93: 2.5.12 | D93: R | E93: 2 | F93: Arquitectura - Energía | G93: =+IF(F93=F92,"",F93) -> Arquitectura - Energía | H93: =+SUM(M93) -> 1 | I93: =+SUM(N93) -> 1 | J93: 5 | K93: Demanda de energía | L93: Demanda de energía | M93: 1 | N93: 1 | O93: 12 | P93: Transmitancia térmica de la envolvente y Factor Solar Modificado | Q93: =+IF(P93=P92,"",P93) -> Transmitancia térmica de la envolvente y Factor Solar Modificado | R93: 1 | S93: 1 | T93: 89 | U93: Transmitancia Térmica Piso Ventilado [W/m2K] | V93: 1 | W93: 1 | X93: 1 | Y93: 1 | Z93: 2 | AA93: 9 | AB93: no
A94: 90 | B94: 5R | C94: 2.5.12 | D94: R | E94: =+IF(F94=F93,E93,E93+1) -> 2 | F94: Arquitectura - Energía | G94: =+IF(F94=F93,"",F94) ->  | J94: =+IF(K94=K93,J93,J93+1) -> 5 | K94: Demanda de energía | M94: 1 | N94: 1 | O94: =+IF(P94=P93,O93,O93+1) -> 12 | P94: Transmitancia térmica de la envolvente y Factor Solar Modificado | R94: 1 | S94: 1 | T94: 90 | U94: FSM - NorEste | V94: 1 | W94: 1 | X94: 1 | Y94: 1 | Z94: 6 | AA94: 9 | AB94: no
A95: 91 | B95: 5R | C95: 2.5.12 | D95: R | E95: 2 | F95: Arquitectura - Energía | J95: 5 | K95: Demanda de energía | M95: 1 | N95: 1 | O95: =+IF(P95=P94,O94,O94+1) -> 12 | P95: Transmitancia térmica de la envolvente y Factor Solar Modificado | R95: 1 | S95: 1 | T95: 91 | U95: FSM - Nor Oeste | V95: 1 | W95: 1 | X95: 1 | Y95: 1 | Z95: 7 | AA95: 9 | AB95: no
A96: 92 | B96: 5R | C96: 2.5.12 | D96: R | E96: 2 | F96: Arquitectura - Energía | J96: 5 | K96: Demanda de energía | M96: 1 | N96: 1 | O96: =+IF(P96=P95,O95,O95+1) -> 12 | P96: Transmitancia térmica de la envolvente y Factor Solar Modificado | R96: 1 | S96: 1 | T96: 92 | U96: FSM - Oeste | V96: 1 | W96: 1 | X96: 1 | Y96: 1 | Z96: 9 | AA96: 9 | AB96: no
A97: 93 | B97: ARQ.ENERGIA.5 | C97: 2.5.11 | D97: C | E97: 2 | F97: Arquitectura - Energía | J97: 5 | K97: Demanda de energía | M97: 0.03 | N97: 0.03 | O97: 11 | P97: Demanda de energía | Q97: Demanda de energía | R97: 0.03 | S97: 0.03 | T97: 93 | U97: Mejora de U en pisos ventilados [W/m2K] | V97: 0.03 | W97: 0.03 | X97: 2 | Y97: 2 | Z97: 2 | AA97: 2 | AB97: Si
A98: 94 | B98: ARQ.ENERGIA.5 | C98: 2.5.11 | D98: C | E98: 2 | F98: Arquitectura - Energía | J98: 5 | K98: Demanda de energía | M98: 0.06 | N98: 0.06 | O98: =+IF(P98=P97,O97,O97+1) -> 11 | P98: Demanda de energía | R98: 0.06 | S98: 0.06 | T98: 94 | U98: Mejora FSM - NorEste | V98: 0.06 | W98: 0.06 | X98: 2 | Y98: 2 | Z98: 4 | AA98: 8 | AB98: Si
A99: 95 | B99: ARQ.ENERGIA.5 | C99: 2.5.11 | D99: C | E99: 2 | F99: Arquitectura - Energía | J99: 5 | K99: Demanda de energía | M99: 0.06 | N99: 0.06 | O99: =+IF(P99=P98,O98,O98+1) -> 11 | P99: Demanda de energía | R99: 0.06 | S99: 0.06 | T99: 95 | U99: Mejora FSM - NorOeste | V99: 0.06 | W99: 0.06 | X99: 2 | Y99: 2 | Z99: 5 | AA99: 8 | AB99: Si
A100: 96 | B100: ARQ.ENERGIA.5 | C100: 2.5.11 | D100: C | E100: 2 | F100: Arquitectura - Energía | J100: 5 | K100: Demanda de energía | M100: 0.06 | N100: 0.06 | O100: =+IF(P100=P99,O99,O99+1) -> 11 | P100: Demanda de energía | R100: 0.06 | S100: 0.06 | T100: 96 | U100: Mejora FSM - Oeste | V100: 0.06 | W100: 0.06 | X100: 2 | Y100: 2 | Z100: 7 | AA100: 8 | AB100: Si
A101: 97 | B101: ARQ.ENERGIA.5 | C101: 2.5.11 | D101: C | E101: 2 | F101: Arquitectura - Energía | J101: 5 | K101: Demanda de energía | M101: 0.06 | N101: 0.06 | O101: =+IF(P101=P100,O100,O100+1) -> 11 | P101: Demanda de energía | R101: 0.06 | S101: 0.06 | T101: 97 | U101: Mejora FSM - Lucernarios | V101: 0.06 | W101: 0.06 | X101: 2 | Y101: 2 | Z101: 8 | AA101: 8 | AB101: Si
A102: 98 | B102: ARQ.ENERGIA.5 | C102: =+CONCATENATE(E102,".",J102,".",O102) -> 2.5.11 | D102: C | E102: 2 | F102: Arquitectura - Energía | J102: =+IF(K102=K101,J101,J101+1) -> 5 | K102: Demanda de energía | L102: =+IF(K102=K101,"",K102) ->  | M102: 0.01 | N102: 0.01 | O102: =+IF(P102=P101,O101,O101+1) -> 11 | P102: Demanda de energía | R102: 0.01 | S102: 0.01 | T102: 98 | U102: Mejora de U en pisos en contacto con el terreno [W/m2K] | V102: 0.01 | W102: 0.01 | X102: 2 | Y102: 2 | Z102: 0 | AA102: 0 | AB102: Si
A103: 99 | B103: ARQ.AGUA.9 | C103: =+CONCATENATE(E103,".",J103,".",O103) -> 3.10.18 | D103: C | E103: 3 | F103: Arquitectura - Agua | G103: Arquitectura - Agua | H103: =+SUM(M103) -> 0.01 | I103: =+SUM(N103) -> 0.01 | J103: 10 | K103: Agua incorporada en los materiales estructurales del edificio | L103: =+IF(K103=K102,"",K103) -> Agua incorporada en los materiales estructurales del edificio | M103: 0.01 | N103: 0.01 | O103: 18 | P103: Agua incorporada en los materiales estructurales del edificio [%] | Q103: Agua incorporada en los materiales estructurales del edificio [%] | R103: =+MAX(V103) -> 0.01 | S103: =+MAX(W103) -> 0.01 | T103: 99 | U103: Cantidad de categorías de materiales en que se declara la información de agua incorporada según UNE-14025 | V103: 0.01 | W103: 0.01 | X103: 2 | Y103: 3 | Z103: 0 | AA103: 0 | AB103: No
A104: 100 | B104: ARQ.AGUA.9 | C104: =+CONCATENATE(E104,".",J104,".",O104) -> 3.10.18 | D104: C | E104: 3 | F104: Arquitectura - Agua | J104: 10 | K104: Agua incorporada en los materiales estructurales del edificio | L104: =+IF(K104=K103,"",K104) ->  | M104: =+SUM(R104) -> 0.01 | N104: =+SUM(S104) -> 0.01 | O104: 18 | P104: Agua incorporada en los materiales estructurales del edificio [%] | R104: 0.01 | S104: 0.01 | T104: 100 | U104: Porcentaje de la superficie de el sistema estructural principal que se mantiene | V104: 0.01 | W104: 0.01 | X104: 3 | Y104: 3 | Z104: 0 | AA104: 0 | AB104: No

Sheet Tablas2 (hidden)
F1: Ashrae 62,1 tabla 6-1 | CW1: RAH límite a n50 (1/h) | CY1: Zona Presión Viento Medio
B2: Recintos | C2: Carga en [W/persona] | D2: [Lux] NCh.4Of2003 | E2: Potencia iluminación [W/m2] | F2: L/s pers | G2: L/s m2 | H2: Pers/100m2 | I2: m2/pers | J2: Acustica | N2: RITE 2007 | O2: Espesor aislación en ductos | X2: Ashrae 62,1 tabla 6-1 | AC2: NCh.4Of2003 | AF2: Función del espacio | AG2: Mínimo de recambio de aire exterior por hora | AH2: Mínimo del recambio de aire total por persona | AI2: Humedad relativa (%) | BR2: Recinto evaluado (receptor) | BS2: Uso recinto evaluado | BT2: Recinto colindante 1 (emisor) | BU2: Req. Mínimo aislación rec. Evaluado - rec. Colindante 1 | BV2: Nivel actual de aislación entre rec. Evaluado - rec. Colindante 1 | BW2: Cumplimiento rec.evaluado-rec. Colindante 1 | BX2: Recinto colindante 2 (emisor) | BY2: Req. Mínimo aislación rec. Evaluado - rec. Colindante 2 | BZ2: Nivel actual de aislación entre rec. Evaluado - rec. Colindante 2 | CA2: Cumplimiento rec.evaluado-rec. Colindante 2 | CB2: Recinto colindante 3 (emisor) | CC2: Req. Mínimo aislación rec. Evaluado - rec. Colindante 3 | CD2: Nivel actual de aislación entre rec. Evaluado - rec. Colindante 3 | CE2: Cumplimiento rec.evaluado-rec. Colindante 3 | CF2: Recinto colindante 4 (emisor) | CG2: Req. Mínimo aislación rec. Evaluado - rec. Colindante 4 | CH2: Nivel actual de aislación entre rec. Evaluado - rec. Colindante 4 | CI2: Cumplimiento rec.evaluado-rec. Colindante 4 | CJ2: Recinto colindante5 (emisor) | CK2: Req. Mínimo aislación rec. Evaluado - rec. Colindante 5 | CL2: Nivel actual de aislación entre rec. Evaluado - rec. Colindante 5 | CM2: Cumplimiento rec.evaluado-rec. Colindante 5 | CN2: Total "Muy Bueno" | CO2: Total "Bueno" | CP2: Total "No cumple" | CQ2: Clasificación Recinto
B3: ------- General: ------- | N3: Fluidos calientes por el interior | V3: Tabla 1,2,4,2,1 | X3: Categoría de ocupación | Y3: L/s pers | Z3: L/s m2 | AA3: personas/100m2 | AC3: Tipo de Local Iluminancia [Lux] | AF3: CIRUGIA Y CUIDADOS INTENSIVOS | AK3: Muchos edificios | AT3: Comuna | AU3: Región | BC3: Categoría | BD3: Indicador | BE3: Puntaje | BF3: Puntaje educación y salud | BG3: Crédito asociado | BH3: Opción indicador | BI3: Prescriptiva / Prestacional estática / Prestacional dinámica | CV3: CIUDAD | CW3: Vent. Natural | CX3: Vent Mecánica | DA3: Zona presion media | DB3: Tipo terreno | DC3: Nº Pisos | DD3: Permeabilidad de carpintería | DE3: Referencia
B4: Oficinas | C4: 82 | D4: 400 | E4: 12 | F4: 2.5 | G4: 0.3 | H4: 5 | I4: =IFERROR(100/H4,"") -> 20 | J4: Oficinas | S4: Temperatura | X4: Instalaciones Correccionales | AC4: General | AF4: Sala de operación (Sistema de aire recirculando) | AG4: 5 | AH4: 25 | AI4: 30 - 60 | AK4: Pocos edificios | AS4: I | AT4: Alto Hospicio | AU4: I - Región de Tarapacá | AW4: I - Región de Tarapacá | AX4: I | BC4: Arquitectura - CAI | BD4: Reducción % horas de disconfort Taire | BE4: 0.08 | BF4: 0.05 | BG4: ARQ.CAI.1 | BH4: 1 | BK4: Recinto Receptor | BL4: Recinto Emisor | BM4: Oficinas | BO4: General: | BP4: Categoría acústica | DA4: X | DB4: Terreno abierto | DC4: 1 | DD4: SC | DE4: =+VALUE(IF(DD4="SC",0,MID(DD4,1,2))) -> 0 | DI4: valores MERV
B5: Salones de reuniones | C5: 82 | D5: 400 | E5: 14 | F5: 2.5 | G5: 0.3 | H5: 50 | I5: =IFERROR(100/H5,"") -> 2 | J5: Oficinas | N5: Diametro exterior D | Q5: 40 | R5: 60 | S5: 60 | T5: 100 | U5: 100 | V5: 180 | X5: Celda | Y5: 2.5 | Z5: 0.6 | AA5: 25 | AC5: Auditorios | AD5: 300 | AF5: Operación/Salas de cistoscopia quirúrgica | AG5: 5 | AH5: 25 | AI5: 30 - 60 | AK5: Campo | AS5: I | AT5: Camiña | AU5: I - Región de Tarapacá | AW5: II - Región de Antofagasta | AX5: II | BC5: Arquitectura - CAI | BD5: Reducción % horas de disconfort Top y HR | BE5: 0.16 | BF5: 0.08 | BG5: ARQ.CAI.1 | BH5: 2 | BK5: Oficinas | BL5: Oficinas | BM5: 35 | BO5: Oficinas | BP5: Oficinas | CV5: Arica | CW5: 4.1 | CX5: 2.1 | CY5: Y | DA5: X | DB5: Terreno abierto | DC5: 2 | DD5: SC | DE5: =+VALUE(IF(DD5="SC",0,MID(DD5,1,2))) -> 0 | DI5: 1
B6: Bares, cafeterías, pubs | C6: 98.4 | D6: 300 | E6: 15 | F6: 3.8 | G6: 0.9 | H6: 100 | I6: 1 | J6: Áreas comunes | M6: 1 | N6: 0 | O6: <D< | P6: 35 | Q6: 25 | S6: 25 | U6: 30 | X6: Habitación diaria | Y6: 2.5 | Z6: 0.3 | AA6: 30 | AC6: Bancos | AD6: 500 | AF6: Sala de entregas | AG6: 5 | AH6: 25 | AI6: 30 - 60 | AK6: Campo abierto | AS6: I | AT6: Colchane | AU6: I - Región de Tarapacá | AW6: III - Región de Atacama | AX6: III | BC6: Arquitectura - CAI | BD6: Factor Luz Día | BE6: 0.05 | BF6: 0.075 | BG6: ARQ.CAI.2.1 | BH6: 1 | BK6: Oficinas | BL6: Salas de clase | BM6: 50 | BO6: Salones de reuniones | BP6: Oficinas | BR6: Recinto 1 | BS6: =+IFERROR(VLOOKUP('Datos Generales Edificio'!#REF!,$BO$5:$BP$32,2,FALSE),"") ->  | BT6: =+IF('Datos Generales Edificio'!#REF!<>"",'Datos Generales Edificio'!#REF!,"") ->  | BU6: =+SUMIFS($BM$5:$BM$29,$BK$5:$BK$29,VLOOKUP($BR6,$BR$6:$BS$105,2,FALSE),$BL$5:$BL$29,VLOOKUP(BT6,$BR$6:$BS$105,2,FALSE)) -> 0 | BV6: =+'Datos Generales Edificio'!#REF! ->  | BW6: =+IF(BU6>0,IF(BV6>=(BU6+5),"Muy Bueno",IF(AND(BV6>=BU6,BV6<(BU6+5)),"Bueno","No cumple")),"") ->  | BX6: =+IF('Datos Generales Edificio'!#REF!<>"",'Datos Generales Edificio'!#REF!,"") ->  | BY6: =+SUMIFS($BM$5:$BM$29,$BK$5:$BK$29,VLOOKUP($BR6,$BR$6:$BS$105,2,FALSE),$BL$5:$BL$29,VLOOKUP(BX6,$BR$6:$BS$105,2,FALSE)) -> 0 | BZ6: =+'Datos Generales Edificio'!#REF! ->  | CA6: =+IF(BY6>0,IF(BZ6>=(BY6+5),"Muy Bueno",IF(AND(BZ6>=BY6,BZ6<(BY6+5)),"Bueno","No cumple")),"") ->  | CB6: =IF('Datos Generales Edificio'!#REF!<>"",'Datos Generales Edificio'!#REF!,"") ->  | CC6: =+SUMIFS($BM$5:$BM$29,$BK$5:$BK$29,VLOOKUP($BR6,$BR$6:$BS$105,2,FALSE),$BL$5:$BL$29,VLOOKUP(CB6,$BR$6:$BS$105,2,FALSE)) -> 0 | CD6: =+'Datos Generales Edificio'!#REF! ->  | CE6: =+IF(CC6>0,IF(CD6>=(CC6+5),"Muy Bueno",IF(AND(CD6>=CC6,CD6<(CC6+5)),"Bueno","No cumple")),"") ->  | CF6: =IF('Datos Generales Edificio'!#REF!<>"",'Datos Generales Edificio'!#REF!,"") ->  | CG6: =+SUMIFS($BM$5:$BM$29,$BK$5:$BK$29,VLOOKUP($BR6,$BR$6:$BS$105,2,FALSE),$BL$5:$BL$29,VLOOKUP(CF6,$BR$6:$BS$105,2,FALSE)) -> 0 | CH6: =+'Datos Generales Edificio'!#REF! ->  | CI6: =+IF(CG6>0,IF(CH6>=(CG6+5),"Muy Bueno",IF(AND(CH6>=CG6,CH6<(CG6+5)),"Bueno","No cumple")),"") ->  | CJ6: =IF('Datos Generales Edificio'!#REF!<>"",'Datos Generales Edificio'!#REF!,"") ->  | CK6: =+SUMIFS($BM$5:$BM$29,$BK$5:$BK$29,VLOOKUP($BR6,$BR$6:$BS$105,2,FALSE),$BL$5:$BL$29,VLOOKUP(CJ6,$BR$6:$BS$105,2,FALSE)) -> 0 | CL6: =+'Datos Generales Edificio'!#REF! ->  | CM6: =+IF(CK6>0,IF(CL6>=(CK6+5),"Muy Bueno",IF(AND(CL6>=CK6,CL6<(CK6+5)),"Bueno","No cumple")),"") ->  | CN6: =+COUNTIF(BS6:CM6,"Muy Bueno") -> 0 | CO6: =+COUNTIF(BS6:CM6,"Bueno") -> 0 | CP6: =+COUNTIF(BS6:CM6,"No Cumple") -> 0 | CQ6: =+IF(SUM(CN6:CP6)>0,IF(CP6>0,"No Cumple",IF(CO6>0,"Bueno","Muy Bueno")),"") ->  | CV6: Iquique | CW6: 4.8 | CX6: 2.4 | CY6: X | DA6: X | DB6: Terreno abierto | DC6: 3 | DD6: SC | DE6: 0 | DF6: Muchos edificios | DG6: Ciudades | DI6: 2 | DN6: uso edificio | DO6: valor máximo nivel sonoro
B7: Restaurantes | C7: 82 | D7: 300 | E7: 10 | F7: 3.8 | G7: 0.9 | H7: 70 | I7: 1.428571429 | J7: Áreas comunes | M7: =+M6+1 -> 2 | N7: 35 | O7: <D< | P7: 60 | Q7: 30 | S7: 30 | U7: 40 | X7: Estación de Guardia | Y7: 2.5 | Z7: 0.3 | AA7: 15 | AC7: Bodegas | AD7: 150 | AF7: Sala de recuperación | AG7: 2 | AH7: 6 | AI7: 30 - 60 | AS7: I | AT7: Huara | AU7: I - Región de Tarapacá | AW7: IV - Región de Coquimbo | AX7: IV | BC7: Arquitectura - CAI | BD7: Iluminancia útil [%] | BE7: 0.05 | BF7: 0.075 | BG7: ARQ.CAI.2.1 | BH7: 2 | BK7: Oficinas | BL7: Pabellones | BO7: Bares, cafeterías, pubs | BP7: Áreas comunes | BR7: Recinto 2 | BS7: =+IFERROR(VLOOKUP('Datos Generales Edificio'!#REF!,$BO$5:$BP$32,2,FALSE),"") ->  | BT7: =+IF('Datos Generales Edificio'!#REF!<>"",'Datos Generales Edificio'!#REF!,"") ->  | BU7: =+SUMIFS($BM$5:$BM$29,$BK$5:$BK$29,VLOOKUP($BR7,$BR$6:$BS$105,2,FALSE),$BL$5:$BL$29,VLOOKUP(BT7,$BR$6:$BS$105,2,FALSE)) -> 0 | BV7: =+'Datos Generales Edificio'!#REF! ->  | BW7: =+IF(BU7>0,IF(BV7>=(BU7+5),"Muy Bueno",IF(AND(BV7>=BU7,BV7<(BU7+5)),"Bueno","No cumple")),"") ->  | BX7: =+IF('Datos Generales Edificio'!#REF!<>"",'Datos Generales Edificio'!#REF!,"") ->  | BY7: =+SUMIFS($BM$5:$BM$29,$BK$5:$BK$29,VLOOKUP($BR7,$BR$6:$BS$105,2,FALSE),$BL$5:$BL$29,VLOOKUP(BX7,$BR$6:$BS$105,2,FALSE)) -> 0 | BZ7: =+'Datos Generales Edificio'!#REF! ->  | CA7: =+IF(BY7>0,IF(BZ7>=(BY7+5),"Muy Bueno",IF(AND(BZ7>=BY7,BZ7<(BY7+5)),"Bueno","No cumple")),"") ->  | CB7: =IF('Datos Generales Edificio'!#REF!<>"",'Datos Generales Edificio'!#REF!,"") ->  | CC7: =+SUMIFS($BM$5:$BM$29,$BK$5:$BK$29,VLOOKUP($BR7,$BR$6:$BS$105,2,FALSE),$BL$5:$BL$29,VLOOKUP(CB7,$BR$6:$BS$105,2,FALSE)) -> 0 | CD7: =+'Datos Generales Edificio'!#REF! ->  | CE7: =+IF(CC7>0,IF(CD7>=(CC7+5),"Muy Bueno",IF(AND(CD7>=CC7,CD7<(CC7+5)),"Bueno","No cumple")),"") ->  | CF7: =IF('Datos Generales Edificio'!#REF!<>"",'Datos Generales Edificio'!#REF!,"") ->  | CG7: =+SUMIFS($BM$5:$BM$29,$BK$5:$BK$29,VLOOKUP($BR7,$BR$6:$BS$105,2,FALSE),$BL$5:$BL$29,VLOOKUP(CF7,$BR$6:$BS$105,2,FALSE)) -> 0 | CH7: =+'Datos Generales Edificio'!#REF! ->  | CI7: =+IF(CG7>0,IF(CH7>=(CG7+5),"Muy Bueno",IF(AND(CH7>=CG7,CH7<(CG7+5)),"Bueno","No cumple")),"") ->  | CJ7: =IF('Datos Generales Edificio'!#REF!<>"",'Datos Generales Edificio'!#REF!,"") ->  | CK7: =+SUMIFS($BM$5:$BM$29,$BK$5:$BK$29,VLOOKUP($BR7,$BR$6:$BS$105,2,FALSE),$BL$5:$BL$29,VLOOKUP(CJ7,$BR$6:$BS$105,2,FALSE)) -> 0 | CL7: =+'Datos Generales Edificio'!#REF! ->  | CM7: =+IF(CK7>0,IF(CL7>=(CK7+5),"Muy Bueno",IF(AND(CL7>=CK7,CL7<(CK7+5)),"Bueno","No cumple")),"") ->  | CN7: =+COUNTIF(BS7:CM7,"Muy Bueno") -> 0 | CO7: =+COUNTIF(BS7:CM7,"Bueno") -> 0 | CP7: =+COUNTIF(BS7:CM7,"No Cumple") -> 0 | CQ7: =+IF(SUM(CN7:CP7)>0,IF(CP7>0,"No Cumple",IF(CO7>0,"Bueno","Muy Bueno")),"") ->  | CV7: Antofagasta | CW7: 4.1 | CX7: 2.1 | CY7: Y | DA7: X | DB7: Terreno abierto | DC7: 4 | DD7: SC | DE7: 0 | DF7: Pocos edificios | DG7: Ciudades | DI7: 3 | DN7: Educacional | DO7: 34.999
B8: Estacionamientos | C8: 164 | D8: 150 | E8: 2 | J8: Áreas comunes | M8: =+M7+1 -> 3 | N8: 60 | O8: <D< | P8: 90 | Q8: 30 | S8: 30 | U8: 40 | X8: Reservar/Esperar | Y8: 3.8 | Z8: 0.3 | AA8: 50 | AC8: Bibliotecas públicas | AD8: 400 | AF8: Cuidados críticos e intensivos | AG8: 2 | AH8: 6 | AI8: 30 - 60 | AK8: Metal sin RPT | AL8: 5.8 | AS8: I | AT8: Iquique | AU8: I - Región de Tarapacá | AW8: V - Región de Valparaíso | AX8: V | BC8: Arquitectura - CAI | BD8: Autonomía de Iluminación del Espacio [SDA300/50%] | BE8: 0.05 | BF8: 0.075 | BG8: ARQ.CAI.2.1 | BH8: 3 | BK8: Oficinas | BL8: Áreas comunes | BM8: 35 | BO8: Restaurantes | BP8: Áreas comunes | BR8: Recinto 3 | BS8: =+IFERROR(VLOOKUP('Datos Generales Edificio'!#REF!,$BO$5:$BP$32,2,FALSE),"") ->  | BT8: =+IF('Datos Generales Edificio'!#REF!<>"",'Datos Generales Edificio'!#REF!,"") ->  | BU8: 0 | BV8: =+'Datos Generales Edificio'!#REF! ->  | BX8: =+IF('Datos Generales Edificio'!#REF!<>"",'Datos Generales Edificio'!#REF!,"") ->  | BY8: 0 | BZ8: =+'Datos Generales Edificio'!#REF! ->  | CB8: =IF('Datos Generales Edificio'!#REF!<>"",'Datos Generales Edificio'!#REF!,"") ->  | CC8: 0 | CD8: =+'Datos Generales Edificio'!#REF! ->  | CF8: =IF('Datos Generales Edificio'!#REF!<>"",'Datos Generales Edificio'!#REF!,"") ->  | CG8: 0 | CH8: =+'Datos Generales Edificio'!#REF! ->  | CJ8: =IF('Datos Generales Edificio'!#REF!<>"",'Datos Generales Edificio'!#REF!,"") ->  | CK8: 0 | CL8: =+'Datos Generales Edificio'!#REF! ->  | CN8: 0 | CO8: 0 | CP8: 0 | CS8: CRÉDITO ARQ.CAI.4.1 | CV8: Coquimbo | CW8: 5.4 | CX8: 2.7 | CY8: X | DA8: X | DB8: Terreno abierto | DC8: 5 | DD8: SC | DE8: 0 | DF8: Campo | DG8: Terreno abierto | DI8: 4 | DN8: Oficinas | DO8: 39.999
B9: Bodegas, Archivos | C9: 98.4 | D9: 150 | E9: 6 | F9: - | G9: 0.6 | H9: - | J9: Áreas comunes | M9: =+M8+1 -> 4 | N9: 90 | O9: <D< | P9: 140 | Q9: 30 | S9: 40 | U9: 50 | X9: Instalaciones Educacionales | AC9: Casinos, Restoranes, Cocina | AD9: 300 | AF9: Cuidados intensivos de recién nacidos | AG9: 2 | AH9: 6 | AI9: 30 - 60 | AK9: Al con RPT | AL9: 3.3 | AS9: I | AT9: Pica | AU9: I - Región de Tarapacá | AW9: RM - Región Metropolitana de Santiago | AX9: RM | BC9: Arquitectura - CAI | BD9: % de áreas con acceso visual al exterior | BE9: 0.01 | BF9: 0.015 | BG9: ARQ.CAI.2.2 | BH9: 1 | BK9: Oficinas | BL9: Equipamiento | BM9: 55 | BO9: Estacionamientos | BP9: Áreas comunes | BR9: Recinto 4 | BS9: =+IFERROR(VLOOKUP('Datos Generales Edificio'!#REF!,$BO$5:$BP$32,2,FALSE),"") ->  | BT9: =+IF('Datos Generales Edificio'!#REF!<>"",'Datos Generales Edificio'!#REF!,"") ->  | BU9: 0 | BV9: =+'Datos Generales Edificio'!#REF! ->  | BX9: =+IF('Datos Generales Edificio'!#REF!<>"",'Datos Generales Edificio'!#REF!,"") ->  | BY9: 0 | BZ9: =+'Datos Generales Edificio'!#REF! ->  | CB9: =IF('Datos Generales Edificio'!#REF!<>"",'Datos Generales Edificio'!#REF!,"") ->  | CC9: 0 | CD9: =+'Datos Generales Edificio'!#REF! ->  | CF9: =IF('Datos Generales Edificio'!#REF!<>"",'Datos Generales Edificio'!#REF!,"") ->  | CG9: 0 | CH9: =+'Datos Generales Edificio'!#REF! ->  | CJ9: =IF('Datos Generales Edificio'!#REF!<>"",'Datos Generales Edificio'!#REF!,"") ->  | CK9: 0 | CL9: =+'Datos Generales Edificio'!#REF! ->  | CN9: 0 | CO9: 0 | CP9: 0 | CS9: TOTAL RECINTOS | CT9: =100-COUNTBLANK(BS6:BS105) -> 0 | CV9: Calama | CW9: 3.5 | CX9: 1.8 | CY9: Z | DA9: X | DB9: Terreno abierto | DC9: 6 | DD9: SC | DE9: 0 | DF9: Campo abierto | DG9: Terreno abierto | DI9: 5 | DK9: MERV Edificio | DL9: =MERV_Edificio ->  | DN9: Salud | DO9: 29.999
B10: Bibliotecas | D10: 400 | E10: 15 | J10: Oficinas | M10: =+M9+1 -> 5 | N10: 140 | O10: <D< | Q10: 35 | S10: 40 | U10: 50 | X10: Guardería ( hasta 4 años) | Y10: 5 | Z10: 0.9 | AA10: 25 | AC10: Comedores | AD10: 150 | AF10: Sala de tratamiento | AG10: - | AH10: 6 | AI10: 30 - 60 | AK10: PVC | AL10: 2.8 | AS10: I | AT10: Pozo Almonte | AU10: I - Región de Tarapacá | AW10: VI - Región de O'Higgins | AX10: VI | BC10: Arquitectura - CAI | BD10: Renovaciones de aire hora [RAH] | BE10: 0.06 | BF10: 0.075 | BG10: ARQ.CAI.3.1 | BH10: 1 | BK10: Salas de clase | BL10: Oficinas | BM10: 50 | BO10: Bodegas, Archivos | BP10: Áreas comunes | BR10: Recinto 5 | BS10: =+IFERROR(VLOOKUP('Datos Generales Edificio'!#REF!,$BO$5:$BP$32,2,FALSE),"") ->  | BT10: =+IF('Datos Generales Edificio'!#REF!<>"",'Datos Generales Edificio'!#REF!,"") ->  | BU10: 0 | BV10: =+'Datos Generales Edificio'!#REF! ->  | BX10: =+IF('Datos Generales Edificio'!#REF!<>"",'Datos Generales Edificio'!#REF!,"") ->  | BY10: 0 | BZ10: =+'Datos Generales Edificio'!#REF! ->  | CB10: =IF('Datos Generales Edificio'!#REF!<>"",'Datos Generales Edificio'!#REF!,"") ->  | CC10: 0 | CD10: =+'Datos Generales Edificio'!#REF! ->  | CF10: =IF('Datos Generales Edificio'!#REF!<>"",'Datos Generales Edificio'!#REF!,"") ->  | CG10: 0 | CH10: =+'Datos Generales Edificio'!#REF! ->  | CJ10: =IF('Datos Generales Edificio'!#REF!<>"",'Datos Generales Edificio'!#REF!,"") ->  | CK10: 0 | CL10: =+'Datos Generales Edificio'!#REF! ->  | CN10: 0 | CO10: 0 | CP10: 0 | CV10: Copiapó | CW10: 2.8 | CX10: 1.4 | CY10: Y | DA10: X | DB10: Terreno abierto | DC10: 7 | DD10: SC | DE10: 0 | DI10: 6
B11: Pasillos | D11: 150 | E11: 5 | J11: Áreas comunes | N11: Fluidos calientes por el exterior | V11: Tabla 1,2,4,2,2 | X11: Guardería Enfermería | Y11: 5 | Z11: 0.9 | AA11: 25 | AC11: Fábricas en general | AD11: 300 | AF11: Sala de enfermería | AG11: 5 | AH11: 12 | AI11: 30 - 60 | AK11: Madera | AL11: 2.6 | AS11: II | AT11: Antofagasta | AU11: II - Región de Antofagasta | AW11: VII - Región de Maule | AX11: VII | BC11: Arquitectura - CAI | BD11: Cumplimiento de características de materiales | BE11: 0.025 | BF11: 0.03 | BG11: ARQ.CAI.3.2 | BH11: 1 | BK11: Salas de clase | BL11: Salas de clase | BM11: 50 | BO11: Bibliotecas | BP11: Salas de clase | BR11: Recinto 6 | BS11: =+IFERROR(VLOOKUP('Datos Generales Edificio'!#REF!,$BO$5:$BP$32,2,FALSE),"") ->  | BT11: =+IF('Datos Generales Edificio'!#REF!<>"",'Datos Generales Edificio'!#REF!,"") ->  | BU11: 0 | BV11: =+'Datos Generales Edificio'!#REF! ->  | BX11: =+IF('Datos Generales Edificio'!#REF!<>"",'Datos Generales Edificio'!#REF!,"") ->  | BY11: 0 | BZ11: =+'Datos Generales Edificio'!#REF! ->  | CB11: =IF('Datos Generales Edificio'!#REF!<>"",'Datos Generales Edificio'!#REF!,"") ->  | CC11: 0 | CD11: =+'Datos Generales Edificio'!#REF! ->  | CF11: =IF('Datos Generales Edificio'!#REF!<>"",'Datos Generales Edificio'!#REF!,"") ->  | CG11: 0 | CH11: =+'Datos Generales Edificio'!#REF! ->  | CJ11: =IF('Datos Generales Edificio'!#REF!<>"",'Datos Generales Edificio'!#REF!,"") ->  | CK11: 0 | CL11: =+'Datos Generales Edificio'!#REF! ->  | CN11: 0 | CO11: 0 | CP11: 0 | CV11: Vallenar | CW11: 5.3 | CX11: 2.7 | CY11: X | DA11: X | DB11: Terreno abierto | DC11: 8 | DD11: SC | DE11: 0 | DF11: Tipo terreno edificio | DG11: =+VLOOKUP('Datos Generales Edificio'!#REF!,Tablas2!$DF$6:$DG$9,2,FALSE) ->  | DI11: 7
B12: ------- Comercio: ------- | Q12: Temperatura | S12: Temperatura | U12: Temperatura | X12: Sala de clases (5 - 8 años) | Y12: 5 | Z12: 0.6 | AA12: 25 | AC12: Imprentas | AD12: 500 | AF12: Sala de trauma (Crisis o shock) | AG12: 3 | AH12: 15 | AI12: 30 - 60 | AS12: II | AT12: Calama | AU12: II - Región de Antofagasta | AW12: VIII - Región de Biobío | AX12: VIII | BC12: Arquitectura - CAI | BD12: Concentración límite de COV por tipo de producto | BE12: 0.025 | BF12: 0.03 | BG12: ARQ.CAI.3.2 | BH12: 2 | BK12: Salas de clase | BL12: Pabellones | BM12: --- | BO12: Pasillos | BP12: Áreas comunes | BR12: Recinto 7 | BS12: =+IFERROR(VLOOKUP('Datos Generales Edificio'!#REF!,$BO$5:$BP$32,2,FALSE),"") ->  | BT12: =+IF('Datos Generales Edificio'!#REF!<>"",'Datos Generales Edificio'!#REF!,"") ->  | BU12: 0 | BV12: =+'Datos Generales Edificio'!#REF! ->  | BX12: =+IF('Datos Generales Edificio'!#REF!<>"",'Datos Generales Edificio'!#REF!,"") ->  | BY12: 0 | BZ12: =+'Datos Generales Edificio'!#REF! ->  | CB12: =IF('Datos Generales Edificio'!#REF!<>"",'Datos Generales Edificio'!#REF!,"") ->  | CC12: 0 | CD12: =+'Datos Generales Edificio'!#REF! ->  | CF12: =IF('Datos Generales Edificio'!#REF!<>"",'Datos Generales Edificio'!#REF!,"") ->  | CG12: 0 | CH12: =+'Datos Generales Edificio'!#REF! ->  | CJ12: =IF('Datos Generales Edificio'!#REF!<>"",'Datos Generales Edificio'!#REF!,"") ->  | CK12: 0 | CL12: =+'Datos Generales Edificio'!#REF! ->  | CN12: 0 | CO12: 0 | CP12: 0 | CV12: Ovalle | CW12: 13.7 | CX12: 6.9 | CY12: X | DA12: X | DB12: Terreno abierto | DC12: 9 | DD12: SC | DE12: 0 | DI12: 8 | DN12: Valor Máximo Nivel sonoro Edificio | DO12: =+VLOOKUP(Uso_Edificio,$DN$7:$DO$9,2,FALSE) -> 39.999
B13: Supermercados | C13: 164 | D13: 300 | E13: 18 | F13: 3.8 | G13: 0.3 | H13: 8 | I13: 12.5 | J13: Áreas comunes | N13: Diametro exterior | Q13: 40 | R13: 60 | S13: 60 | T13: 100 | U13: 100 | V13: 180 | X13: Sala de clases (9 años o más) | Y13: 5 | Z13: 0.6 | AA13: 35 | AC13: Laboratorios | AD13: 500 | AF13: Sala de trauma (Emergencias convencionales o tratamiento) | AG13: 2 | AH13: 6 | AI13: 30 - 60 | AS13: II | AT13: María Elena | AU13: II - Región de Antofagasta | AW13: IX - Región de Araucanía | AX13: IX | BC13: Arquitectura - CAI | BD13: Concentración ponderada de COV | BE13: 0.025 | BF13: 0.03 | BG13: ARQ.CAI.3.2 | BH13: 3 | BK13: Salas de clase | BL13: Áreas comunes | BM13: 50 | BO13: Comercio: | BR13: Recinto 8 | BS13: =+IFERROR(VLOOKUP('Datos Generales Edificio'!#REF!,$BO$5:$BP$32,2,FALSE),"") ->  | BT13: =+IF('Datos Generales Edificio'!#REF!<>"",'Datos Generales Edificio'!#REF!,"") ->  | BU13: 0 | BV13: =+'Datos Generales Edificio'!#REF! ->  | BX13: =+IF('Datos Generales Edificio'!#REF!<>"",'Datos Generales Edificio'!#REF!,"") ->  | BY13: 0 | BZ13: =+'Datos Generales Edificio'!#REF! ->  | CB13: =IF('Datos Generales Edificio'!#REF!<>"",'Datos Generales Edificio'!#REF!,"") ->  | CC13: 0 | CD13: =+'Datos Generales Edificio'!#REF! ->  | CF13: =IF('Datos Generales Edificio'!#REF!<>"",'Datos Generales Edificio'!#REF!,"") ->  | CG13: 0 | CH13: =+'Datos Generales Edificio'!#REF! ->  | CJ13: =IF('Datos Generales Edificio'!#REF!<>"",'Datos Generales Edificio'!#REF!,"") ->  | CK13: 0 | CL13: =+'Datos Generales Edificio'!#REF! ->  | CN13: 0 | CO13: 0 | CP13: 0 | CS13: %MUY BUENO | CT13: =+COUNTIF($CQ$6:$CQ$105,"Muy Bueno")/$CT$9 ->  | CV13: Valparaíso | CW13: 4.9 | CX13: 2.5 | CY13: Y | DA13: X | DB13: Terreno abierto | DC13: 10 | DD13: SC | DE13: 0 | DI13: 9
B14: Locales comerciales | C14: 164 | D14: 300 | E14: 18 | F14: 3.8 | G14: 0.3 | H14: 40 | I14: 2.5 | J14: Áreas comunes | M14: 1 | N14: 0 | O14: <D< | P14: 35 | Q14: 35 | S14: 35 | U14: 40 | X14: Sala de lectura | Y14: 3.8 | Z14: 0.3 | AA14: 65 | AC14: Laboratorios de instrumentación | AD14: 700 | AF14: Almacén de gas de anestesia | AG14: - | AH14: 8 | AI14: - | AS14: II | AT14: Mejillones | AU14: II - Región de Antofagasta | AW14: X - Región de Los Lagos | AX14: X | BC14: Arquitectura - CAI | BD14: Aislamiento acústico de fachada [dB(A) | BE14: 0.02 | BF14: 0.03 | BG14: ARQ.CAI.4.1.1 | BH14: 1 | BK14: Salas de clase | BL14: Equipamiento | BM14: 50 | BO14: Supermercados | BP14: Áreas comunes | BR14: Recinto 9 | BS14: =+IFERROR(VLOOKUP('Datos Generales Edificio'!#REF!,$BO$5:$BP$32,2,FALSE),"") ->  | BT14: =+IF('Datos Generales Edificio'!#REF!<>"",'Datos Generales Edificio'!#REF!,"") ->  | BU14: 0 | BV14: =+'Datos Generales Edificio'!#REF! ->  | BX14: =+IF('Datos Generales Edificio'!#REF!<>"",'Datos Generales Edificio'!#REF!,"") ->  | BY14: 0 | BZ14: =+'Datos Generales Edificio'!#REF! ->  | CB14: =IF('Datos Generales Edificio'!#REF!<>"",'Datos Generales Edificio'!#REF!,"") ->  | CC14: 0 | CD14: =+'Datos Generales Edificio'!#REF! ->  | CF14: =IF('Datos Generales Edificio'!#REF!<>"",'Datos Generales Edificio'!#REF!,"") ->  | CG14: 0 | CH14: =+'Datos Generales Edificio'!#REF! ->  | CJ14: =IF('Datos Generales Edificio'!#REF!<>"",'Datos Generales Edificio'!#REF!,"") ->  | CK14: 0 | CL14: =+'Datos Generales Edificio'!#REF! ->  | CN14: 0 | CO14: 0 | CP14: 0 | CV14: Quilpué | CW14: 4.9 | CX14: 2.5 | CY14: Y | DA14: X | DB14: Terreno abierto | DC14: 11 | DD14: 60a | DE14: 60 | DI14: 10
B15: Patios de comida | C15: 82 | D15: 150 | E15: 18 | J15: Áreas comunes | M15: =+M14+1 -> 2 | N15: 35 | O15: <D< | P15: 60 | Q15: 40 | S15: 40 | U15: 50 | X15: Sala de conferencia (Asientos fijos) | Y15: 3.8 | Z15: 0.3 | AA15: 150 | AC15: Naves de máquinas herramientas | AD15: 300 | AF15: Endoscopia | AG15: 2 | AH15: 6 | AI15: 30 - 60 | AS15: II | AT15: Ollague | AU15: II - Región de Antofagasta | AW15: XI - Región de Aisén | AX15: XI | BC15: Arquitectura - CAI | BD15: Aislamiento acústico entre recintos [dB(A)] | BE15: 0.01 | BF15: 0.02 | BG15: ARQ.CAI.4.1.2 | BH15: 1 | BK15: Pabellones | BL15: Oficinas | BM15: 35 | BO15: Locales comerciales | BP15: Áreas comunes | BR15: Recinto 10 | BS15: =+IFERROR(VLOOKUP('Datos Generales Edificio'!#REF!,$BO$5:$BP$32,2,FALSE),"") ->  | BT15: =+IF('Datos Generales Edificio'!#REF!<>"",'Datos Generales Edificio'!#REF!,"") ->  | BU15: 0 | BV15: =+'Datos Generales Edificio'!#REF! ->  | BX15: =+IF('Datos Generales Edificio'!#REF!<>"",'Datos Generales Edificio'!#REF!,"") ->  | BY15: 0 | BZ15: =+'Datos Generales Edificio'!#REF! ->  | CB15: =IF('Datos Generales Edificio'!#REF!<>"",'Datos Generales Edificio'!#REF!,"") ->  | CC15: 0 | CD15: =+'Datos Generales Edificio'!#REF! ->  | CF15: =IF('Datos Generales Edificio'!#REF!<>"",'Datos Generales Edificio'!#REF!,"") ->  | CG15: 0 | CH15: =+'Datos Generales Edificio'!#REF! ->  | CJ15: =IF('Datos Generales Edificio'!#REF!<>"",'Datos Generales Edificio'!#REF!,"") ->  | CK15: 0 | CL15: =+'Datos Generales Edificio'!#REF! ->  | CN15: 0 | CO15: 0 | CP15: 0 | CV15: Colina | CW15: 5.4 | CX15: 2.7 | CY15: X | DA15: X | DB15: Terreno abierto | DC15: 12 | DD15: 60a | DE15: 60 | DI15: 11
B16: ------- Educación: ------- | M16: =+M15+1 -> 3 | N16: 60 | O16: <D< | P16: 90 | Q16: 40 | S16: 40 | U16: 50 | X16: Sala de arte | Y16: 5 | Z16: 0.9 | AA16: 20 | AC16: Oficinas en general | AD16: 400 | AF16: Broncoscopia | AG16: 2 | AH16: 12 | AI16: 30 - 60 | AS16: II | AT16: San Pedro de Atacama | AU16: II - Región de Antofagasta | AW16: XII - Región de Magallanes y Antártica Chilena | AX16: XII | BC16: Arquitectura - CAI | BD16: Tiempo de reverberación [s] | BE16: 0.015 | BF16: 0.015 | BG16: ARQ.CAI.4.2.1 | BH16: 1 | BK16: Pabellones | BL16: Salas de clase | BM16: --- | BO16: Patios de comida | BP16: Áreas comunes | BR16: Recinto 11 | BS16: =+IFERROR(VLOOKUP('Datos Generales Edificio'!#REF!,$BO$5:$BP$32,2,FALSE),"") ->  | BT16: =+IF('Datos Generales Edificio'!#REF!<>"",'Datos Generales Edificio'!#REF!,"") ->  | BU16: 0 | BV16: =+'Datos Generales Edificio'!#REF! ->  | BX16: =+IF('Datos Generales Edificio'!#REF!<>"",'Datos Generales Edificio'!#REF!,"") ->  | BY16: 0 | BZ16: =+'Datos Generales Edificio'!#REF! ->  | CB16: =IF('Datos Generales Edificio'!#REF!<>"",'Datos Generales Edificio'!#REF!,"") ->  | CC16: 0 | CD16: =+'Datos Generales Edificio'!#REF! ->  | CF16: =IF('Datos Generales Edificio'!#REF!<>"",'Datos Generales Edificio'!#REF!,"") ->  | CG16: 0 | CH16: =+'Datos Generales Edificio'!#REF! ->  | CJ16: =IF('Datos Generales Edificio'!#REF!<>"",'Datos Generales Edificio'!#REF!,"") ->  | CK16: 0 | CL16: =+'Datos Generales Edificio'!#REF! ->  | CN16: 0 | CO16: 0 | CP16: 0 | CV16: Santiago | CW16: 4.9 | CX16: 2.5 | CY16: X | DA16: X | DB16: Terreno abierto | DC16: 13 | DD16: 60a | DE16: 60 | DI16: 12
B17: Salas clase parvulos | C17: 82 | D17: 150 | E17: 15 | F17: 5 | G17: 0.9 | H17: 25 | I17: 4 | J17: Salas de clase | M17: =+M16+1 -> 4 | N17: 90 | O17: <D< | P17: 140 | Q17: 40 | S17: 50 | U17: 60 | X17: Laboratorio de ciencias | Y17: 5 | Z17: 0.9 | AA17: 25 | AC17: Pasillos | AD17: 50 | AF17: Sala de espera de emergencias | AG17: 2 | AH17: 12 | AI17: 30 - 60 | AS17: II | AT17: Sierra Gorda | AU17: II - Región de Antofagasta | AW17: XIV - Región de Los Ríos | AX17: XIV | BC17: Arquitectura - CAI | BD17: Inteligibidad de la palabra | BE17: 0.005 | BF17: 0.005 | BG17: ARQ.CAI.4.2.1 | BH17: 2 | BK17: Pabellones | BL17: Pabellones | BM17: 35 | BO17: Educación: | BR17: Recinto 12 | BS17: =+IFERROR(VLOOKUP('Datos Generales Edificio'!#REF!,$BO$5:$BP$32,2,FALSE),"") ->  | BT17: =+IF('Datos Generales Edificio'!#REF!<>"",'Datos Generales Edificio'!#REF!,"") ->  | BU17: 0 | BV17: =+'Datos Generales Edificio'!#REF! ->  | BX17: =+IF('Datos Generales Edificio'!#REF!<>"",'Datos Generales Edificio'!#REF!,"") ->  | BY17: 0 | BZ17: =+'Datos Generales Edificio'!#REF! ->  | CB17: =IF('Datos Generales Edificio'!#REF!<>"",'Datos Generales Edificio'!#REF!,"") ->  | CC17: 0 | CD17: =+'Datos Generales Edificio'!#REF! ->  | CF17: =IF('Datos Generales Edificio'!#REF!<>"",'Datos Generales Edificio'!#REF!,"") ->  | CG17: 0 | CH17: =+'Datos Generales Edificio'!#REF! ->  | CJ17: =IF('Datos Generales Edificio'!#REF!<>"",'Datos Generales Edificio'!#REF!,"") ->  | CK17: 0 | CL17: =+'Datos Generales Edificio'!#REF! ->  | CN17: 0 | CO17: 0 | CP17: 0 | CS17: %BUENO | CT17: =+COUNTIF($CQ$6:$CQ$105,"Bueno")/$CT$9 ->  | CV17: Puente Alto | CW17: 4.9 | CX17: 2.5 | CY17: X | DA17: X | DB17: Terreno abierto | DC17: 14 | DD17: 60a | DE17: 60 | DI17: 13
B18: Salas educación básica | D18: 200 | E18: 15 | F18: 5 | G18: 0.6 | H18: 25 | I18: 4 | J18: Salas de clase | M18: =+M17+1 -> 5 | N18: 140 | O18: <D< | Q18: 45 | S18: 50 | U18: 60 | X18: Laboratorio de colegios/Universidad | Y18: 5 | Z18: 0.9 | AA18: 25 | AC18: Salas de trabajo iluminación suplementaria en cada | AD18: 150 | AF18: Triage | AG18: 2 | AH18: 12 | AI18: - | AS18: II | AT18: Taltal | AU18: II - Región de Antofagasta | AW18: XV - Región de Arica y de Parinacota | AX18: XV | BC18: Arquitectura - Energía | BD18: Disminución demanda de energía [%] | BE18: 0.18 | BF18: 0.18 | BG18: ARQ.ENERGIA.5 | BH18: 1 | BK18: Pabellones | BL18: Áreas comunes | BM18: 45 | BO18: Salas clase parvulos | BP18: Salas de clase | BR18: Recinto 13 | BS18: =+IFERROR(VLOOKUP('Datos Generales Edificio'!#REF!,$BO$5:$BP$32,2,FALSE),"") ->  | BT18: =+IF('Datos Generales Edificio'!#REF!<>"",'Datos Generales Edificio'!#REF!,"") ->  | BU18: 0 | BV18: =+'Datos Generales Edificio'!#REF! ->  | BX18: =+IF('Datos Generales Edificio'!#REF!<>"",'Datos Generales Edificio'!#REF!,"") ->  | BY18: 0 | BZ18: =+'Datos Generales Edificio'!#REF! ->  | CB18: =IF('Datos Generales Edificio'!#REF!<>"",'Datos Generales Edificio'!#REF!,"") ->  | CC18: 0 | CD18: =+'Datos Generales Edificio'!#REF! ->  | CF18: =IF('Datos Generales Edificio'!#REF!<>"",'Datos Generales Edificio'!#REF!,"") ->  | CG18: 0 | CH18: =+'Datos Generales Edificio'!#REF! ->  | CJ18: =IF('Datos Generales Edificio'!#REF!<>"",'Datos Generales Edificio'!#REF!,"") ->  | CK18: 0 | CL18: =+'Datos Generales Edificio'!#REF! ->  | CN18: 0 | CO18: 0 | CP18: 0 | CV18: San Bernardo | CW18: 6 | CX18: 3 | CY18: X | DA18: X | DB18: Terreno abierto | DC18: 15 | DD18: 60a | DE18: 60 | DI18: 14
B19: Salas educación media | D19: 250 | E19: 15 | F19: 5 | G19: 0.6 | H19: 35 | I19: 2.857142857 | J19: Salas de clase | N19: Fluidos frios por el interior | V19: Tabla 1,2,4,2,3 | X19: Taller de Carpintería/Metales | Y19: 5 | Z19: 0.9 | AA19: 20 | AC19: Salas de dibujo profesional | AD19: 500 | AF19: Sala de espera radiológica | AG19: 2 | AH19: 12 | AI19: - | AS19: II | AT19: Tocopilla | AU19: II - Región de Antofagasta | BC19: Arquitectura - Energía | BD19: Mejora de U [W/m2K] y de FSM | BE19: 0.18 | BF19: 0.18 | BG19: ARQ.ENERGIA.5 | BH19: 2 | BK19: Pabellones | BL19: Equipamiento | BM19: 55 | BO19: Salas educación básica | BP19: Salas de clase | BR19: Recinto 14 | BS19: =+IFERROR(VLOOKUP('Datos Generales Edificio'!#REF!,$BO$5:$BP$32,2,FALSE),"") ->  | BT19: =+IF('Datos Generales Edificio'!#REF!<>"",'Datos Generales Edificio'!#REF!,"") ->  | BU19: 0 | BV19: =+'Datos Generales Edificio'!#REF! ->  | BX19: =+IF('Datos Generales Edificio'!#REF!<>"",'Datos Generales Edificio'!#REF!,"") ->  | BY19: 0 | BZ19: =+'Datos Generales Edificio'!#REF! ->  | CB19: =IF('Datos Generales Edificio'!#REF!<>"",'Datos Generales Edificio'!#REF!,"") ->  | CC19: 0 | CD19: =+'Datos Generales Edificio'!#REF! ->  | CF19: =IF('Datos Generales Edificio'!#REF!<>"",'Datos Generales Edificio'!#REF!,"") ->  | CG19: 0 | CH19: =+'Datos Generales Edificio'!#REF! ->  | CJ19: =IF('Datos Generales Edificio'!#REF!<>"",'Datos Generales Edificio'!#REF!,"") ->  | CK19: 0 | CL19: =+'Datos Generales Edificio'!#REF! ->  | CN19: 0 | CO19: 0 | CP19: 0 | CV19: Melipilla | CW19: 5.4 | CX19: 2.7 | CY19: X | DA19: X | DB19: Terreno abierto | DC19: 16 | DD19: 60a | DE19: 60 | DI19: 15 | DN19: TDR MOP (opción 1)
B20: Salas educación superior | D20: 300 | E20: 15 | F20: 5 | G20: 0.6 | H20: 35 | I20: 2.857142857 | J20: Salas de clase | S20: Temperatura | X20: Laboratorio de computación | Y20: 5 | Z20: 0.6 | AA20: 25 | AC20: Salas de tableros eléctricos | AD20: 300 | AF20: Sala de operaciones clase A (procedimientos) | AG20: 3 | AH20: 15 | AI20: 30 - 60 | AS20: III | AT20: Alto del Carmen | AU20: III - Región de Atacama | BC20: Arquitectura - Energía | BD20: Infiltración de aire por la envolvente [RAH] | BE20: 0.03 | BF20: 0.03 | BG20: ARQ.ENERGIA.6.1 | BH20: 1 | BK20: Áreas comunes | BL20: Oficinas | BM20: 35 | BO20: Salas educación media | BP20: Salas de clase | BR20: Recinto 15 | BS20: =+IFERROR(VLOOKUP('Datos Generales Edificio'!#REF!,$BO$5:$BP$32,2,FALSE),"") ->  | BT20: =+IF('Datos Generales Edificio'!#REF!<>"",'Datos Generales Edificio'!#REF!,"") ->  | BU20: 0 | BV20: =+'Datos Generales Edificio'!#REF! ->  | BX20: =+IF('Datos Generales Edificio'!#REF!<>"",'Datos Generales Edificio'!#REF!,"") ->  | BY20: 0 | BZ20: =+'Datos Generales Edificio'!#REF! ->  | CB20: =IF('Datos Generales Edificio'!#REF!<>"",'Datos Generales Edificio'!#REF!,"") ->  | CC20: 0 | CD20: =+'Datos Generales Edificio'!#REF! ->  | CF20: =IF('Datos Generales Edificio'!#REF!<>"",'Datos Generales Edificio'!#REF!,"") ->  | CG20: 0 | CH20: =+'Datos Generales Edificio'!#REF! ->  | CJ20: =IF('Datos Generales Edificio'!#REF!<>"",'Datos Generales Edificio'!#REF!,"") ->  | CK20: 0 | CL20: =+'Datos Generales Edificio'!#REF! ->  | CN20: 0 | CO20: 0 | CP20: 0 | CV20: Talagante | CW20: 5.3 | CX20: 2.7 | CY20: X | DA20: X | DB20: Terreno abierto | DC20: 17 | DD20: 60a | DE20: 60 | DI20: 16 | DN20: Bernoulli (Planilla de cálculo - Opción 2)
B21: Camarines, gimnasios | C21: 287 | D21: 200 | E21: 4 | F21: - | G21: 1.5 | H21: 30 | I21: 3.333333333 | J21: Áreas comunes | N21: Diametro exterior | Q21: -20 | R21: 0 | S21: 0 | T21: 10 | U21: 10 | V21: 100 | X21: Centro de medios | Y21: 5 | Z21: 0.6 | AA21: 25 | AC21: Subestaciones | AD21: 300 | AF21: ENFERMERÍA | AS21: III | AT21: Caldera | AU21: III - Región de Atacama | BC21: Arquitectura - Energía | BD21: Permeabilidad al aire de carpintería de ventanas | BE21: 0.03 | BF21: 0.03 | BG21: ARQ.ENERGIA.6.2 | BH21: 1 | BK21: Áreas comunes | BL21: Salas de clase | BM21: 50 | BO21: Salas educación superior | BP21: Salas de clase | BR21: Recinto 16 | BS21: =+IFERROR(VLOOKUP('Datos Generales Edificio'!#REF!,$BO$5:$BP$32,2,FALSE),"") ->  | BT21: =+IF('Datos Generales Edificio'!#REF!<>"",'Datos Generales Edificio'!#REF!,"") ->  | BU21: 0 | BV21: =+'Datos Generales Edificio'!#REF! ->  | BX21: =+IF('Datos Generales Edificio'!#REF!<>"",'Datos Generales Edificio'!#REF!,"") ->  | BY21: 0 | BZ21: =+'Datos Generales Edificio'!#REF! ->  | CB21: =IF('Datos Generales Edificio'!#REF!<>"",'Datos Generales Edificio'!#REF!,"") ->  | CC21: 0 | CD21: =+'Datos Generales Edificio'!#REF! ->  | CF21: =IF('Datos Generales Edificio'!#REF!<>"",'Datos Generales Edificio'!#REF!,"") ->  | CG21: 0 | CH21: =+'Datos Generales Edificio'!#REF! ->  | CJ21: =IF('Datos Generales Edificio'!#REF!<>"",'Datos Generales Edificio'!#REF!,"") ->  | CK21: 0 | CL21: =+'Datos Generales Edificio'!#REF! ->  | CN21: 0 | CO21: 0 | CP21: 0 | CS21: %NO CUMPLE | CT21: =+COUNTIF($CQ$6:$CQ$105,"No Cumple")/$CT$9 ->  | CV21: Rancagua | CW21: 6 | CX21: 3 | CY21: X | DA21: X | DB21: Terreno abierto | DC21: 18 | DD21: 60a | DE21: 60 | DI21: 17 | DN21: Software Especializado (Opción 3)
B22: Talleres, Laboratorios, Bibliotecas | C22: 131.2 | D22: 400 | E22: 15 | F22: 5 | G22: 0.9 | H22: 25 | I22: 4 | J22: Áreas comunes | M22: 1 | N22: 0 | O22: <D< | P22: 35 | Q22: 30 | S22: 20 | U22: 20 | X22: Música/Teatro/Danza | Y22: 5 | Z22: 0.3 | AA22: 35 | AC22: Salas de venta | AD22: 300 | AF22: Sala de pacientes | AG22: 2 | AH22: 6 | AI22: 30 - 60 | AS22: III | AT22: Chañaral | AU22: III - Región de Atacama | BC22: Arquitectura - Energía | BD22: Tipo de abertura de la ventana | BE22: 0.03 | BF22: 0.03 | BG22: ARQ.ENERGIA.6.3 | BH22: 1 | BK22: Áreas comunes | BL22: Pabellones | BM22: 45 | BO22: Camarines, gimnasios | BP22: Áreas comunes | BR22: Recinto 17 | BS22: =+IFERROR(VLOOKUP('Datos Generales Edificio'!#REF!,$BO$5:$BP$32,2,FALSE),"") ->  | BT22: =+IF('Datos Generales Edificio'!#REF!<>"",'Datos Generales Edificio'!#REF!,"") ->  | BU22: 0 | BV22: =+'Datos Generales Edificio'!#REF! ->  | BX22: =+IF('Datos Generales Edificio'!#REF!<>"",'Datos Generales Edificio'!#REF!,"") ->  | BY22: 0 | BZ22: =+'Datos Generales Edificio'!#REF! ->  | CB22: =IF('Datos Generales Edificio'!#REF!<>"",'Datos Generales Edificio'!#REF!,"") ->  | CC22: 0 | CD22: =+'Datos Generales Edificio'!#REF! ->  | CF22: =IF('Datos Generales Edificio'!#REF!<>"",'Datos Generales Edificio'!#REF!,"") ->  | CG22: 0 | CH22: =+'Datos Generales Edificio'!#REF! ->  | CJ22: =IF('Datos Generales Edificio'!#REF!<>"",'Datos Generales Edificio'!#REF!,"") ->  | CK22: 0 | CL22: =+'Datos Generales Edificio'!#REF! ->  | CN22: 0 | CO22: 0 | CP22: 0 | CV22: San Fernando | CW22: 6.3 | CX22: 3.2 | CY22: X | DA22: X | DB22: Terreno abierto | DC22: 19 | DD22: 60a | DE22: 60 | DI22: 18
B23: Cocina | C23: 147.6 | D23: 300 | E23: 13 | J23: Áreas comunes | M23: =+M22+1 -> 2 | N23: 35 | O23: <D< | P23: 60 | Q23: 40 | S23: 30 | U23: 20 | X23: Sala multi-uso | Y23: 3.8 | Z23: 0.3 | AA23: 100 | AC23: Talleres de servicio, reparaciones | AD23: 200 | AF23: Sala de baños | AG23: - | AH23: 10 | AI23: - | AS23: III | AT23: Copiapó | AU23: III - Región de Atacama | BC23: Arquitectura - Energía | BD23: Energía incorporada en base a UNE-EN-ISO 14.024 | BE23: 0.04 | BF23: 0.04 | BG23: ARQ.ENERGIA.7 | BH23: 1 | BK23: Áreas comunes | BL23: Áreas comunes | BM23: 35 | BO23: Talleres, Laboratorios, Bibliotecas | BP23: Salas de clase | BR23: Recinto 18 | BS23: =+IFERROR(VLOOKUP('Datos Generales Edificio'!#REF!,$BO$5:$BP$32,2,FALSE),"") ->  | BT23: =+IF('Datos Generales Edificio'!#REF!<>"",'Datos Generales Edificio'!#REF!,"") ->  | BU23: 0 | BV23: =+'Datos Generales Edificio'!#REF! ->  | BX23: =+IF('Datos Generales Edificio'!#REF!<>"",'Datos Generales Edificio'!#REF!,"") ->  | BY23: 0 | BZ23: =+'Datos Generales Edificio'!#REF! ->  | CB23: =IF('Datos Generales Edificio'!#REF!<>"",'Datos Generales Edificio'!#REF!,"") ->  | CC23: 0 | CD23: =+'Datos Generales Edificio'!#REF! ->  | CF23: =IF('Datos Generales Edificio'!#REF!<>"",'Datos Generales Edificio'!#REF!,"") ->  | CG23: 0 | CH23: =+'Datos Generales Edificio'!#REF! ->  | CJ23: =IF('Datos Generales Edificio'!#REF!<>"",'Datos Generales Edificio'!#REF!,"") ->  | CK23: 0 | CL23: =+'Datos Generales Edificio'!#REF! ->  | CN23: 0 | CO23: 0 | CP23: 0 | CV23: Curicó | CW23: 7.7 | CX23: 3.9 | CY23: X | DA23: X | DB23: Terreno abierto | DC23: 20 | DD23: 60a | DE23: 60 | DI23: 19 | DN23: Si
B24: ------- Salud (Hospitales y Clínicas): ------- | M24: =+M23+1 -> 3 | N24: 60 | O24: <D< | P24: 90 | Q24: 40 | S24: 30 | U24: 30 | X24: Servicio de bebidas y alimento | AC24: Vestuarios industriales | AD24: 100 | AF24: Sala de enfermería de recién nacidos | AG24: 2 | AH24: 6 | AI24: 30 - 60 | AS24: III | AT24: Diego de Almagro | AU24: III - Región de Atacama | BC24: Arquitectura - Energía | BD24: Energía incorporada en base a UNE-EN-ISO 14.025 | BE24: 0.04 | BF24: 0.04 | BG24: ARQ.ENERGIA.7 | BH24: 2 | BK24: Áreas comunes | BL24: Equipamiento | BM24: 55 | BO24: Cocina | BP24: Áreas comunes | BR24: Recinto 19 | BS24: =+IFERROR(VLOOKUP('Datos Generales Edificio'!#REF!,$BO$5:$BP$32,2,FALSE),"") ->  | BT24: =+IF('Datos Generales Edificio'!#REF!<>"",'Datos Generales Edificio'!#REF!,"") ->  | BU24: 0 | BV24: =+'Datos Generales Edificio'!#REF! ->  | BX24: =+IF('Datos Generales Edificio'!#REF!<>"",'Datos Generales Edificio'!#REF!,"") ->  | BY24: 0 | BZ24: =+'Datos Generales Edificio'!#REF! ->  | CB24: =IF('Datos Generales Edificio'!#REF!<>"",'Datos Generales Edificio'!#REF!,"") ->  | CC24: 0 | CD24: =+'Datos Generales Edificio'!#REF! ->  | CF24: =IF('Datos Generales Edificio'!#REF!<>"",'Datos Generales Edificio'!#REF!,"") ->  | CG24: 0 | CH24: =+'Datos Generales Edificio'!#REF! ->  | CJ24: =IF('Datos Generales Edificio'!#REF!<>"",'Datos Generales Edificio'!#REF!,"") ->  | CK24: 0 | CL24: =+'Datos Generales Edificio'!#REF! ->  | CN24: 0 | CO24: 0 | CP24: 0 | CV24: Linares | CW24: 5.8 | CX24: 2.9 | CY24: X | DA24: X | DB24: Ciudades | DC24: 1 | DD24: SC | DE24: 0 | DI24: 20 | DN24: No
B25: Habitaciones hospitalarias | C25: 82 | D25: 100 | E25: 9 | J25: Oficinas | M25: =+M24+1 -> 4 | N25: 90 | O25: <D< | P25: 140 | Q25: 50 | S25: 40 | U25: 30 | X25: Restaurant | Y25: 3.8 | Z25: 0.9 | AA25: 70 | AC25: Educación | AF25: Sala de protección ambiental | AG25: 2 | AH25: 12 | AI25: - | AS25: III | AT25: Freirina | AU25: III - Región de Atacama | BC25: Arquitectura - Energía | BD25: % de superficie de elementos estructurales mantenidos de edificios existentes | BE25: 0.04 | BF25: 0.04 | BG25: ARQ.ENERGIA.7 | BH25: 3 | BK25: Equipamiento | BL25: Oficinas | BM25: 50 | BO25: Salud (Hospitales y Clínicas): | BR25: Recinto 20 | BS25: =+IFERROR(VLOOKUP('Datos Generales Edificio'!#REF!,$BO$5:$BP$32,2,FALSE),"") ->  | BT25: =+IF('Datos Generales Edificio'!#REF!<>"",'Datos Generales Edificio'!#REF!,"") ->  | BU25: 0 | BV25: =+'Datos Generales Edificio'!#REF! ->  | BX25: =+IF('Datos Generales Edificio'!#REF!<>"",'Datos Generales Edificio'!#REF!,"") ->  | BY25: 0 | BZ25: =+'Datos Generales Edificio'!#REF! ->  | CB25: =IF('Datos Generales Edificio'!#REF!<>"",'Datos Generales Edificio'!#REF!,"") ->  | CC25: 0 | CD25: =+'Datos Generales Edificio'!#REF! ->  | CF25: =IF('Datos Generales Edificio'!#REF!<>"",'Datos Generales Edificio'!#REF!,"") ->  | CG25: 0 | CH25: =+'Datos Generales Edificio'!#REF! ->  | CJ25: =IF('Datos Generales Edificio'!#REF!<>"",'Datos Generales Edificio'!#REF!,"") ->  | CK25: 0 | CL25: =+'Datos Generales Edificio'!#REF! ->  | CN25: 0 | CO25: 0 | CP25: 0 | CS25: NIVEL ALCANZADO | CT25: =+IF(CT13=1,"MUY BUENO",IF(CT21>0,"NO CUMPLE","BUENO")) ->  | CV25: Chillán | CW25: 6.1 | CX25: 3.1 | CY25: X | DA25: X | DB25: Ciudades | DC25: 2 | DD25: SC | DE25: 0 | DN25: No hay recintos contaminantes en el edificio
B26: Sala cirugias | C26: 131.2 | D26: 500 | E26: 24 | J26: Oficinas | M26: =+M25+1 -> 5 | N26: 140 | O26: <D< | Q26: 50 | S26: 40 | U26: 30 | X26: Cafetería/Comida rápida | Y26: 3.8 | Z26: 0.9 | AA26: 100 | AC26: Atención | AD26: 300 | AF26: Sala de aislación por infecciones aéreas | AG26: 2 | AH26: 12 | AI26: - | AS26: III | AT26: Huasco | AU26: III - Región de Atacama | BC26: Arquitectura - Agua | BD26: Porcentaje de disminución de la evapotranspiración | BE26: 0.02 | BF26: 0.02 | BG26: ARQ.AGUA.8 | BH26: 1 | BK26: Equipamiento | BL26: Salas de clase | BM26: 50 | BO26: Habitaciones hospitalarias | BP26: Pabellones | BR26: Recinto 21 | BS26: =+IFERROR(VLOOKUP('Datos Generales Edificio'!#REF!,$BO$5:$BP$32,2,FALSE),"") ->  | BT26: =+IF('Datos Generales Edificio'!#REF!<>"",'Datos Generales Edificio'!#REF!,"") ->  | BU26: 0 | BV26: =+'Datos Generales Edificio'!#REF! ->  | BX26: =+IF('Datos Generales Edificio'!#REF!<>"",'Datos Generales Edificio'!#REF!,"") ->  | BY26: 0 | BZ26: =+'Datos Generales Edificio'!#REF! ->  | CB26: =IF('Datos Generales Edificio'!#REF!<>"",'Datos Generales Edificio'!#REF!,"") ->  | CC26: 0 | CD26: =+'Datos Generales Edificio'!#REF! ->  | CF26: =IF('Datos Generales Edificio'!#REF!<>"",'Datos Generales Edificio'!#REF!,"") ->  | CG26: 0 | CH26: =+'Datos Generales Edificio'!#REF! ->  | CJ26: =IF('Datos Generales Edificio'!#REF!<>"",'Datos Generales Edificio'!#REF!,"") ->  | CK26: 0 | CL26: =+'Datos Generales Edificio'!#REF! ->  | CN26: 0 | CO26: 0 | CP26: 0 | CV26: Concepción | CW26: 5 | CX26: 2.5 | CY26: Z | DA26: X | DB26: Ciudades | DC26: 3 | DD26: SC | DE26: 0
B27: Pabellones | J27: Pabellones | N27: Fluidos frios por el exterior | V27: Tabla 1,2,4,2,4 | X27: Bars, Salón de cocktail | Y27: 3.8 | Z27: 0.9 | AA27: 100 | AC27: Bibliotecas | AD27: 400 | AF27: Alcoba de aislación o antesala | AG27: 2 | AH27: 10 | AI27: - | AS27: III | AT27: Tierra Amarilla | AU27: III - Región de Atacama | BC27: Arquitectura - Agua | BD27: Porcentaje de materiales en que se declara la información de agua incorporada | BE27: 0.01 | BF27: 0.01 | BG27: ARQ.AGUA.9 | BH27: 1 | BK27: Equipamiento | BL27: Pabellones | BM27: 50 | BO27: Sala cirugias | BP27: Pabellones | BR27: Recinto 22 | BS27: =+IFERROR(VLOOKUP('Datos Generales Edificio'!#REF!,$BO$5:$BP$32,2,FALSE),"") ->  | BT27: =+IF('Datos Generales Edificio'!#REF!<>"",'Datos Generales Edificio'!#REF!,"") ->  | BU27: 0 | BV27: =+'Datos Generales Edificio'!#REF! ->  | BX27: =+IF('Datos Generales Edificio'!#REF!<>"",'Datos Generales Edificio'!#REF!,"") ->  | BY27: 0 | BZ27: =+'Datos Generales Edificio'!#REF! ->  | CB27: =IF('Datos Generales Edificio'!#REF!<>"",'Datos Generales Edificio'!#REF!,"") ->  | CC27: 0 | CD27: =+'Datos Generales Edificio'!#REF! ->  | CF27: =IF('Datos Generales Edificio'!#REF!<>"",'Datos Generales Edificio'!#REF!,"") ->  | CG27: 0 | CH27: =+'Datos Generales Edificio'!#REF! ->  | CJ27: =IF('Datos Generales Edificio'!#REF!<>"",'Datos Generales Edificio'!#REF!,"") ->  | CK27: 0 | CL27: =+'Datos Generales Edificio'!#REF! ->  | CN27: 0 | CO27: 0 | CP27: 0 | CV27: Valdivia | CW27: 5 | CX27: 2.5 | CY27: Y | DA27: X | DB27: Ciudades | DC27: 4 | DD27: SC | DE27: 0 | DN27: mayor o igual a 500 mm
B28: Salas de equipamiento | J28: Equipamiento | Q28: Temperatura | S28: Temperatura | U28: Temperatura | X28: General | AC28: Cocinas | AD28: 300 | AF28: Trabajo/Entrega/Recuperación/Postparto | AG28: 2 | AH28: 6 | AI28: 30 - 60 | AS28: III | AT28: Vallenar | AU28: III - Región de Atacama | BC28: Arquitectura - Residuos | BD28: Equipamiento para el manejo de residuos durante la operación del edificio | BE28: 0.005 | BF28: 0.01 | BG28: ARQ.RESIDUOS.10 | BH28: 1 | BK28: Equipamiento | BL28: Áreas comunes | BM28: 50 | BO28: Pabellones | BP28: Pabellones | BR28: Recinto 23 | BS28: =+IFERROR(VLOOKUP('Datos Generales Edificio'!#REF!,$BO$5:$BP$32,2,FALSE),"") ->  | BT28: =+IF('Datos Generales Edificio'!#REF!<>"",'Datos Generales Edificio'!#REF!,"") ->  | BU28: 0 | BV28: =+'Datos Generales Edificio'!#REF! ->  | BX28: =+IF('Datos Generales Edificio'!#REF!<>"",'Datos Generales Edificio'!#REF!,"") ->  | BY28: 0 | BZ28: =+'Datos Generales Edificio'!#REF! ->  | CB28: =IF('Datos Generales Edificio'!#REF!<>"",'Datos Generales Edificio'!#REF!,"") ->  | CC28: 0 | CD28: =+'Datos Generales Edificio'!#REF! ->  | CF28: =IF('Datos Generales Edificio'!#REF!<>"",'Datos Generales Edificio'!#REF!,"") ->  | CG28: 0 | CH28: =+'Datos Generales Edificio'!#REF! ->  | CJ28: =IF('Datos Generales Edificio'!#REF!<>"",'Datos Generales Edificio'!#REF!,"") ->  | CK28: 0 | CL28: =+'Datos Generales Edificio'!#REF! ->  | CN28: 0 | CO28: 0 | CP28: 0 | CV28: Puerto Montt | CW28: 7.6 | CX28: 3.8 | CY28: Y | DA28: X | DB28: Ciudades | DC28: 5 | DD28: SC | DE28: 0 | DN28: menor a 500 mm
B29: Salas de espera | C29: 82 | D29: 150 | E29: 8 | J29: Áreas comunes | N29: Diametro exterior | Q29: -20 | R29: 0 | S29: 0 | T29: 10 | U29: 10 | V29: 100 | X29: Sala de descanso | Y29: 2.5 | Z29: 0.3 | AA29: 25 | AC29: Gimnasios | AD29: 200 | AF29: Corredor público | AG29: 2 | AH29: 2 | AI29: - | AS29: IV | AT29: Andacollo | AU29: IV - Región de Coquimbo | BC29: Instalaciones - CAI | BD29: Caudal ventilación [litros/seg] | BE29: 0.06 | BF29: 0.06 | BG29: INST.CAI.11.1 | BH29: 1 | BK29: Equipamiento | BL29: Equipamiento | BM29: 50 | BO29: Salas de equipamiento | BP29: Equipamiento | BR29: Recinto 24 | BS29: =+IFERROR(VLOOKUP('Datos Generales Edificio'!#REF!,$BO$5:$BP$32,2,FALSE),"") ->  | BT29: =+IF('Datos Generales Edificio'!#REF!<>"",'Datos Generales Edificio'!#REF!,"") ->  | BU29: 0 | BV29: =+'Datos Generales Edificio'!#REF! ->  | BX29: =+IF('Datos Generales Edificio'!#REF!<>"",'Datos Generales Edificio'!#REF!,"") ->  | BY29: 0 | BZ29: =+'Datos Generales Edificio'!#REF! ->  | CB29: =IF('Datos Generales Edificio'!#REF!<>"",'Datos Generales Edificio'!#REF!,"") ->  | CC29: 0 | CD29: =+'Datos Generales Edificio'!#REF! ->  | CF29: =IF('Datos Generales Edificio'!#REF!<>"",'Datos Generales Edificio'!#REF!,"") ->  | CG29: 0 | CH29: =+'Datos Generales Edificio'!#REF! ->  | CJ29: =IF('Datos Generales Edificio'!#REF!<>"",'Datos Generales Edificio'!#REF!,"") ->  | CK29: 0 | CL29: =+'Datos Generales Edificio'!#REF! ->  | CN29: 0 | CO29: 0 | CP29: 0 | CV29: Angol | CW29: 12.8 | CX29: 6.4 | CY29: Y | DA29: X | DB29: Ciudades | DC29: 6 | DD29: SC | DE29: 0
B30: Baños | E30: 10 | J30: Áreas comunes | M30: 1 | N30: 0 | O30: <D< | P30: 35 | Q30: 50 | S30: 40 | U30: 40 | X30: Estación de café | Y30: 2.5 | Z30: 0.3 | AA30: 20 | AC30: Oficinas | AD30: 400 | AF30: Corredor pacientes | AG30: 2 | AH30: 4 | AI30: - | AS30: IV | AT30: Canela | AU30: IV - Región de Coquimbo | BC30: Instalaciones - CAI | BD30: Eficiencia promedio filtraje [% o MERV] | BE30: 0.02 | BF30: 0.02 | BG30: INST.CAI.11.2 | BH30: 1 | BR30: Recinto 25 | BS30: =+IFERROR(VLOOKUP('Datos Generales Edificio'!#REF!,$BO$5:$BP$32,2,FALSE),"") ->  | BT30: =+IF('Datos Generales Edificio'!#REF!<>"",'Datos Generales Edificio'!#REF!,"") ->  | BU30: 0 | BV30: =+'Datos Generales Edificio'!#REF! ->  | BX30: =+IF('Datos Generales Edificio'!#REF!<>"",'Datos Generales Edificio'!#REF!,"") ->  | BY30: 0 | BZ30: =+'Datos Generales Edificio'!#REF! ->  | CB30: =IF('Datos Generales Edificio'!#REF!<>"",'Datos Generales Edificio'!#REF!,"") ->  | CC30: 0 | CD30: =+'Datos Generales Edificio'!#REF! ->  | CF30: =IF('Datos Generales Edificio'!#REF!<>"",'Datos Generales Edificio'!#REF!,"") ->  | CG30: 0 | CH30: =+'Datos Generales Edificio'!#REF! ->  | CJ30: =IF('Datos Generales Edificio'!#REF!<>"",'Datos Generales Edificio'!#REF!,"") ->  | CK30: 0 | CL30: =+'Datos Generales Edificio'!#REF! ->  | CN30: 0 | CO30: 0 | CP30: 0 | CV30: Castro | CW30: 15.1 | CX30: 7.6 | CY30: Z | DA30: X | DB30: Ciudades | DC30: 7 | DD30: SC | DE30: 0
M31: =+M30+1 -> 2 | N31: 35 | O31: <D< | P31: 60 | Q31: 60 | S31: 50 | U31: 40 | X31: Conferencia/reuniones | Y31: 2.5 | Z31: 0.3 | AA31: 50 | AC31: Pasillos | AD31: 100 | AF31: AUXILIAR | AS31: IV | AT31: Combarbalá | AU31: IV - Región de Coquimbo | BC31: Instalaciones - CAI | BD31: Sistema de monitoreo de concentración de CO2 | BE31: 0.01 | BF31: 0.01 | BG31: INST.CAI.11.3 | BH31: 1 | BO31: Salas de espera | BP31: Áreas comunes | BR31: Recinto 26 | BS31: =+IFERROR(VLOOKUP('Datos Generales Edificio'!#REF!,$BO$5:$BP$32,2,FALSE),"") ->  | BT31: =+IF('Datos Generales Edificio'!#REF!<>"",'Datos Generales Edificio'!#REF!,"") ->  | BU31: 0 | BV31: =+'Datos Generales Edificio'!#REF! ->  | BX31: =+IF('Datos Generales Edificio'!#REF!<>"",'Datos Generales Edificio'!#REF!,"") ->  | BY31: 0 | BZ31: =+'Datos Generales Edificio'!#REF! ->  | CB31: =IF('Datos Generales Edificio'!#REF!<>"",'Datos Generales Edificio'!#REF!,"") ->  | CC31: 0 | CD31: =+'Datos Generales Edificio'!#REF! ->  | CF31: =IF('Datos Generales Edificio'!#REF!<>"",'Datos Generales Edificio'!#REF!,"") ->  | CG31: 0 | CH31: =+'Datos Generales Edificio'!#REF! ->  | CJ31: =IF('Datos Generales Edificio'!#REF!<>"",'Datos Generales Edificio'!#REF!,"") ->  | CK31: 0 | CL31: =+'Datos Generales Edificio'!#REF! ->  | CN31: 0 | CO31: 0 | CP31: 0 | CV31: Puerto Aysén | CW31: 7.1 | CX31: 3.6 | CY31: X | DA31: X | DB31: Ciudades | DC31: 8 | DD31: SC | DE31: 0
M32: =+M31+1 -> 3 | N32: 60 | O32: <D< | P32: 90 | Q32: 60 | S32: 50 | U32: 50 | X32: Corredores | Y32: - | Z32: 0.3 | AA32: - | AC32: Salas clase parvulos | AD32: 150 | AF32: Radiología - Rayos X (Diagnostico y tratamiento) | AG32: 2 | AH32: 6 | AI32: 30 - 60 | AS32: IV | AT32: Coquimbo | AU32: IV - Región de Coquimbo | BC32: Instalaciones - CAI | BD32: Valores máximos del nivel sonoro | BE32: 0.01 | BF32: 0.005 | BG32: INST.CAI.12.1 | BH32: 1 | BO32: Baños | BP32: Áreas comunes | BR32: Recinto 27 | BS32: =+IFERROR(VLOOKUP('Datos Generales Edificio'!#REF!,$BO$5:$BP$32,2,FALSE),"") ->  | BT32: =+IF('Datos Generales Edificio'!#REF!<>"",'Datos Generales Edificio'!#REF!,"") ->  | BU32: 0 | BV32: =+'Datos Generales Edificio'!#REF! ->  | BX32: =+IF('Datos Generales Edificio'!#REF!<>"",'Datos Generales Edificio'!#REF!,"") ->  | BY32: 0 | BZ32: =+'Datos Generales Edificio'!#REF! ->  | CB32: =IF('Datos Generales Edificio'!#REF!<>"",'Datos Generales Edificio'!#REF!,"") ->  | CC32: 0 | CD32: =+'Datos Generales Edificio'!#REF! ->  | CF32: =IF('Datos Generales Edificio'!#REF!<>"",'Datos Generales Edificio'!#REF!,"") ->  | CG32: 0 | CH32: =+'Datos Generales Edificio'!#REF! ->  | CJ32: =IF('Datos Generales Edificio'!#REF!<>"",'Datos Generales Edificio'!#REF!,"") ->  | CK32: 0 | CL32: =+'Datos Generales Edificio'!#REF! ->  | CN32: 0 | CO32: 0 | CP32: 0 | CV32: Punta Arenas | CW32: 3 | CX32: 1.5 | CY32: Z | DA32: X | DB32: Ciudades | DC32: 9 | DD32: SC | DE32: 0
M33: =+M32+1 -> 4 | N33: 90 | O33: <D< | P33: 140 | Q33: 70 | S33: 60 | U33: 50 | X33: Bodega | Y33: - | Z33: 0.6 | AA33: - | AC33: Salas educación básica | AD33: 200 | AF33: Radiología - Rayos X (Cirugía/Cuidados críticos y cateterización) | AG33: - | AH33: 15 | AI33: 30 - 60 | AS33: IV | AT33: Illapel | AU33: IV - Región de Coquimbo | BC33: Instalaciones - CAI | BD33: Elección de equipos y diseño | BE33: 0.01 | BF33: 0.005 | BG33: INST.CAI.12.1 | BH33: 2 | BR33: Recinto 28 | BS33: =+IFERROR(VLOOKUP('Datos Generales Edificio'!#REF!,$BO$5:$BP$32,2,FALSE),"") ->  | BT33: =+IF('Datos Generales Edificio'!#REF!<>"",'Datos Generales Edificio'!#REF!,"") ->  | BU33: 0 | BV33: =+'Datos Generales Edificio'!#REF! ->  | BX33: =+IF('Datos Generales Edificio'!#REF!<>"",'Datos Generales Edificio'!#REF!,"") ->  | BY33: 0 | BZ33: =+'Datos Generales Edificio'!#REF! ->  | CB33: =IF('Datos Generales Edificio'!#REF!<>"",'Datos Generales Edificio'!#REF!,"") ->  | CC33: 0 | CD33: =+'Datos Generales Edificio'!#REF! ->  | CF33: =IF('Datos Generales Edificio'!#REF!<>"",'Datos Generales Edificio'!#REF!,"") ->  | CG33: 0 | CH33: =+'Datos Generales Edificio'!#REF! ->  | CJ33: =IF('Datos Generales Edificio'!#REF!<>"",'Datos Generales Edificio'!#REF!,"") ->  | CK33: 0 | CL33: =+'Datos Generales Edificio'!#REF! ->  | CN33: 0 | CO33: 0 | CP33: 0 | DA33: X | DB33: Ciudades | DC33: 10 | DD33: SC | DE33: 0
M34: =+M33+1 -> 5 | N34: 140 | O34: <D< | Q34: 70 | S34: 60 | U34: 50 | X34: Hoteles, Moteles, Resort y Dormitorios | AC34: Salas educación media | AD34: 250 | AF34: Pieza oscura | AG34: 3 | AH34: 10 | AI34: - | AS34: IV | AT34: La Higuera | AU34: IV - Región de Coquimbo | BC34: Instalaciones - CAI | BD34: Iluminancia mínima + Uniformidad media + Deslumbramiento + Rendimiento Cromático | BE34: 0.01 | BF34: 0.01 | BG34: INST.CAI.13 | BH34: 1 | BR34: Recinto 29 | BS34: =+IFERROR(VLOOKUP('Datos Generales Edificio'!#REF!,$BO$5:$BP$32,2,FALSE),"") ->  | BT34: =+IF('Datos Generales Edificio'!#REF!<>"",'Datos Generales Edificio'!#REF!,"") ->  | BU34: 0 | BV34: =+'Datos Generales Edificio'!#REF! ->  | BX34: =+IF('Datos Generales Edificio'!#REF!<>"",'Datos Generales Edificio'!#REF!,"") ->  | BY34: 0 | BZ34: =+'Datos Generales Edificio'!#REF! ->  | CB34: =IF('Datos Generales Edificio'!#REF!<>"",'Datos Generales Edificio'!#REF!,"") ->  | CC34: 0 | CD34: =+'Datos Generales Edificio'!#REF! ->  | CF34: =IF('Datos Generales Edificio'!#REF!<>"",'Datos Generales Edificio'!#REF!,"") ->  | CG34: 0 | CH34: =+'Datos Generales Edificio'!#REF! ->  | CJ34: =IF('Datos Generales Edificio'!#REF!<>"",'Datos Generales Edificio'!#REF!,"") ->  | CK34: 0 | CL34: =+'Datos Generales Edificio'!#REF! ->  | CN34: 0 | CO34: 0 | CP34: 0 | DA34: X | DB34: Ciudades | DC34: 11 | DD34: SC | DE34: 0
X35: Habitaciones/Living room | Y35: 2.5 | Z35: 0.3 | AA35: 10 | AC35: Salas educación superior | AD35: 300 | AS35: IV | AT35: La Serena | AU35: IV - Región de Coquimbo | BC35: Instalaciones - CAI | BD35: Cantidad y distribución de los controles del sistema de climatización | BE35: 0.02 | BF35: 0.02 | BG35: INST.CAI.14 | BH35: 1 | BR35: Recinto 30 | BS35: =+IFERROR(VLOOKUP('Datos Generales Edificio'!#REF!,$BO$5:$BP$32,2,FALSE),"") ->  | BT35: =+IF('Datos Generales Edificio'!#REF!<>"",'Datos Generales Edificio'!#REF!,"") ->  | BU35: 0 | BV35: =+'Datos Generales Edificio'!#REF! ->  | BX35: =+IF('Datos Generales Edificio'!#REF!<>"",'Datos Generales Edificio'!#REF!,"") ->  | BY35: 0 | BZ35: =+'Datos Generales Edificio'!#REF! ->  | CB35: =IF('Datos Generales Edificio'!#REF!<>"",'Datos Generales Edificio'!#REF!,"") ->  | CC35: 0 | CD35: =+'Datos Generales Edificio'!#REF! ->  | CF35: =IF('Datos Generales Edificio'!#REF!<>"",'Datos Generales Edificio'!#REF!,"") ->  | CG35: 0 | CH35: =+'Datos Generales Edificio'!#REF! ->  | CJ35: =IF('Datos Generales Edificio'!#REF!<>"",'Datos Generales Edificio'!#REF!,"") ->  | CK35: 0 | CL35: =+'Datos Generales Edificio'!#REF! ->  | CN35: 0 | CO35: 0 | CP35: 0 | CV35: Zona presión para ciudad del edificio | CW35: =+VLOOKUP(CiudadViento,$CV$5:$CY$32,4,FALSE) ->  | DA35: X | DB35: Ciudades | DC35: 12 | DD35: SC | DE35: 0
D36: Ventilación Mecánica | E36: ASHRAE 62.1 - 2007 | N36: Tabla 1,2,4,2,5 | Q36: interior | S36: exterior | X36: Barracas | Y36: 2.5 | Z36: 0.3 | AA36: 20 | AC36: Salud | AG36: Mínimo de recambio de aire exterior por hora | AH36: Mínimo del recambio de aire total por persona | AI36: Humedad relativa (%) | AS36: IV | AT36: Los Vilos | AU36: IV - Región de Coquimbo | BC36: Instalaciones - Energía | BD36: Potencia instalada de iluminación artificial [W/m2] | BE36: 0.03 | BF36: 0.03 | BG36: INST.ENERGiA.15.1 | BH36: 1 | BR36: Recinto 31 | BS36: =+IFERROR(VLOOKUP('Datos Generales Edificio'!#REF!,$BO$5:$BP$32,2,FALSE),"") ->  | BT36: =+IF('Datos Generales Edificio'!#REF!<>"",'Datos Generales Edificio'!#REF!,"") ->  | BU36: 0 | BV36: =+'Datos Generales Edificio'!#REF! ->  | BX36: =+IF('Datos Generales Edificio'!#REF!<>"",'Datos Generales Edificio'!#REF!,"") ->  | BY36: 0 | BZ36: =+'Datos Generales Edificio'!#REF! ->  | CB36: =IF('Datos Generales Edificio'!#REF!<>"",'Datos Generales Edificio'!#REF!,"") ->  | CC36: 0 | CD36: =+'Datos Generales Edificio'!#REF! ->  | CF36: =IF('Datos Generales Edificio'!#REF!<>"",'Datos Generales Edificio'!#REF!,"") ->  | CG36: 0 | CH36: =+'Datos Generales Edificio'!#REF! ->  | CJ36: =IF('Datos Generales Edificio'!#REF!<>"",'Datos Generales Edificio'!#REF!,"") ->  | CK36: 0 | CL36: =+'Datos Generales Edificio'!#REF! ->  | CN36: 0 | CO36: 0 | CP36: 0 | DA36: X | DB36: Ciudades | DC36: 13 | DD36: SC | DE36: 0
B37: Si | C37: Líquido | D37: Ventilación Natural | E37: UNE 13779/2008 | N37: Aire caliente | Q37: 20 | S37: 30 | X37: Lavandería central | Y37: 2.5 | Z37: 0.6 | AA37: 10 | AC37: Atención | AD37: 300 | AF37: (Continuación) | AS37: IV | AT37: Monte Patria | AU37: IV - Región de Coquimbo | BC37: Instalaciones - Energía | BD37: Disminución de consumo de energía en iluminación | BE37: 0.03 | BF37: 0.03 | BG37: INST.ENERGiA.15.1 | BH37: 2 | BR37: Recinto 32 | BS37: =+IFERROR(VLOOKUP('Datos Generales Edificio'!#REF!,$BO$5:$BP$32,2,FALSE),"") ->  | BT37: =+IF('Datos Generales Edificio'!#REF!<>"",'Datos Generales Edificio'!#REF!,"") ->  | BU37: 0 | BV37: =+'Datos Generales Edificio'!#REF! ->  | BX37: =+IF('Datos Generales Edificio'!#REF!<>"",'Datos Generales Edificio'!#REF!,"") ->  | BY37: 0 | BZ37: =+'Datos Generales Edificio'!#REF! ->  | CB37: =IF('Datos Generales Edificio'!#REF!<>"",'Datos Generales Edificio'!#REF!,"") ->  | CC37: 0 | CD37: =+'Datos Generales Edificio'!#REF! ->  | CF37: =IF('Datos Generales Edificio'!#REF!<>"",'Datos Generales Edificio'!#REF!,"") ->  | CG37: 0 | CH37: =+'Datos Generales Edificio'!#REF! ->  | CJ37: =IF('Datos Generales Edificio'!#REF!<>"",'Datos Generales Edificio'!#REF!,"") ->  | CK37: 0 | CL37: =+'Datos Generales Edificio'!#REF! ->  | CN37: 0 | CO37: 0 | CP37: 0 | DA37: X | DB37: Ciudades | DC37: 14 | DD37: SC | DE37: 0
B38: No | C38: Aire | D38: Ventilación Mixta | N38: Aire frio | Q38: 30 | S38: 50 | X38: Salas de lavandería en viviendas | Y38: 2.5 | Z38: 0.6 | AA38: 10 | AC38: Bibliotecas | AD38: 400 | AS38: IV | AT38: Ovalle | AU38: IV - Región de Coquimbo | BC38: Instalaciones - Energía | BD38: Incorporación de sistemas de control | BE38: 0.02 | BF38: 0.02 | BG38: INST.ENERGIA.15.2 | BH38: 1 | BR38: Recinto 33 | BS38: =+IFERROR(VLOOKUP('Datos Generales Edificio'!#REF!,$BO$5:$BP$32,2,FALSE),"") ->  | BT38: =+IF('Datos Generales Edificio'!#REF!<>"",'Datos Generales Edificio'!#REF!,"") ->  | BU38: 0 | BV38: =+'Datos Generales Edificio'!#REF! ->  | BX38: =+IF('Datos Generales Edificio'!#REF!<>"",'Datos Generales Edificio'!#REF!,"") ->  | BY38: 0 | BZ38: =+'Datos Generales Edificio'!#REF! ->  | CB38: =IF('Datos Generales Edificio'!#REF!<>"",'Datos Generales Edificio'!#REF!,"") ->  | CC38: 0 | CD38: =+'Datos Generales Edificio'!#REF! ->  | CF38: =IF('Datos Generales Edificio'!#REF!<>"",'Datos Generales Edificio'!#REF!,"") ->  | CG38: 0 | CH38: =+'Datos Generales Edificio'!#REF! ->  | CJ38: =IF('Datos Generales Edificio'!#REF!<>"",'Datos Generales Edificio'!#REF!,"") ->  | CK38: 0 | CL38: =+'Datos Generales Edificio'!#REF! ->  | CN38: 0 | CO38: 0 | CP38: 0 | DA38: X | DB38: Ciudades | DC38: 15 | DD38: SC | DE38: 0
X39: Lobbies | Y39: 3.8 | Z39: 0.3 | AA39: 30 | AC39: Cocinas | AD39: 300 | AF39: Función del espacio | AS39: IV | AT39: Paihuano | AU39: IV - Región de Coquimbo | BC39: Instalaciones - Energía | BD39: Disminución de consumo de energía en iluminación | BE39: 0.02 | BF39: 0.02 | BG39: INST.ENERGIA.15.2 | BH39: 2 | BR39: Recinto 34 | BS39: =+IFERROR(VLOOKUP('Datos Generales Edificio'!#REF!,$BO$5:$BP$32,2,FALSE),"") ->  | BT39: =+IF('Datos Generales Edificio'!#REF!<>"",'Datos Generales Edificio'!#REF!,"") ->  | BU39: 0 | BV39: =+'Datos Generales Edificio'!#REF! ->  | BX39: =+IF('Datos Generales Edificio'!#REF!<>"",'Datos Generales Edificio'!#REF!,"") ->  | BY39: 0 | BZ39: =+'Datos Generales Edificio'!#REF! ->  | CB39: =IF('Datos Generales Edificio'!#REF!<>"",'Datos Generales Edificio'!#REF!,"") ->  | CC39: 0 | CD39: =+'Datos Generales Edificio'!#REF! ->  | CF39: =IF('Datos Generales Edificio'!#REF!<>"",'Datos Generales Edificio'!#REF!,"") ->  | CG39: 0 | CH39: =+'Datos Generales Edificio'!#REF! ->  | CJ39: =IF('Datos Generales Edificio'!#REF!<>"",'Datos Generales Edificio'!#REF!,"") ->  | CK39: 0 | CL39: =+'Datos Generales Edificio'!#REF! ->  | CN39: 0 | CO39: 0 | CP39: 0 | DA39: X | DB39: Ciudades | DC39: 16 | DD39: SC | DE39: 0
C40: Frio | X40: Sala de reuniones multipropósito | Y40: 2.5 | Z40: 0.3 | AA40: 120 | AC40: Oficinas | AD40: 400 | AF40: Laboratorio general | AG40: 2 | AH40: 6 | AI40: 30 - 60 | AS40: IV | AT40: Punitaqui | AU40: IV - Región de Coquimbo | BC40: Instalaciones - Energía | BD40: Potencia requerida en climatización y ACS [kW] | BE40: 0.02 | BF40: 0.02 | BG40: INST.ENERGIA.16.1 | BH40: 1 | BR40: Recinto 35 | BS40: =+IFERROR(VLOOKUP('Datos Generales Edificio'!#REF!,$BO$5:$BP$32,2,FALSE),"") ->  | BT40: =+IF('Datos Generales Edificio'!#REF!<>"",'Datos Generales Edificio'!#REF!,"") ->  | BU40: 0 | BV40: =+'Datos Generales Edificio'!#REF! ->  | BX40: =+IF('Datos Generales Edificio'!#REF!<>"",'Datos Generales Edificio'!#REF!,"") ->  | BY40: 0 | BZ40: =+'Datos Generales Edificio'!#REF! ->  | CB40: =IF('Datos Generales Edificio'!#REF!<>"",'Datos Generales Edificio'!#REF!,"") ->  | CC40: 0 | CD40: =+'Datos Generales Edificio'!#REF! ->  | CF40: =IF('Datos Generales Edificio'!#REF!<>"",'Datos Generales Edificio'!#REF!,"") ->  | CG40: 0 | CH40: =+'Datos Generales Edificio'!#REF! ->  | CJ40: =IF('Datos Generales Edificio'!#REF!<>"",'Datos Generales Edificio'!#REF!,"") ->  | CK40: 0 | CL40: =+'Datos Generales Edificio'!#REF! ->  | CN40: 0 | CO40: 0 | CP40: 0 | DA40: X | DB40: Ciudades | DC40: 17 | DD40: SC | DE40: 0
B41: NL - Norte Litoral | C41: Sistema unitario o partido de aire acondicionado enfriado por aire | X41: Edificios de oficina | AC41: Pasillos | AD41: 100 | AF41: Laboratorio bacteriológico | AG41: 2 | AH41: 6 | AI41: 30 - 60 | AS41: IV | AT41: Río Hurtado | AU41: IV - Región de Coquimbo | BC41: Instalaciones - Energía | BD41: Rendimiento nominal del sistema de climatización | BE41: 0.08 | BF41: 0.08 | BG41: INST.ENERGIA.16.2 | BH41: 1 | BR41: Recinto 36 | BS41: =+IFERROR(VLOOKUP('Datos Generales Edificio'!#REF!,$BO$5:$BP$32,2,FALSE),"") ->  | BT41: =+IF('Datos Generales Edificio'!#REF!<>"",'Datos Generales Edificio'!#REF!,"") ->  | BU41: 0 | BV41: =+'Datos Generales Edificio'!#REF! ->  | BX41: =+IF('Datos Generales Edificio'!#REF!<>"",'Datos Generales Edificio'!#REF!,"") ->  | BY41: 0 | BZ41: =+'Datos Generales Edificio'!#REF! ->  | CB41: =IF('Datos Generales Edificio'!#REF!<>"",'Datos Generales Edificio'!#REF!,"") ->  | CC41: 0 | CD41: =+'Datos Generales Edificio'!#REF! ->  | CF41: =IF('Datos Generales Edificio'!#REF!<>"",'Datos Generales Edificio'!#REF!,"") ->  | CG41: 0 | CH41: =+'Datos Generales Edificio'!#REF! ->  | CJ41: =IF('Datos Generales Edificio'!#REF!<>"",'Datos Generales Edificio'!#REF!,"") ->  | CK41: 0 | CL41: =+'Datos Generales Edificio'!#REF! ->  | CN41: 0 | CO41: 0 | CP41: 0 | DA41: X | DB41: Ciudades | DC41: 18 | DD41: SC | DE41: 0
B42: ND - Norte Desértico | C42: Sistema unitario o partido de aire acondicionado enfriado por agua | X42: Espacio de oficina | Y42: 2.5 | Z42: 0.3 | AA42: 5 | AC42: Policlínicos | AD42: 300 | AF42: Laboratorio bioquímico | AG42: 2 | AH42: 6 | AI42: 30 - 60 | AS42: IV | AT42: Salamanca | AU42: IV - Región de Coquimbo | BC42: Instalaciones - Energía | BD42: Disminución de consumo de energía en climatización y ACS | BE42: 0.08 | BF42: 0.08 | BG42: INST.ENERGIA.16.2 | BH42: 2 | BR42: Recinto 37 | BS42: =+IFERROR(VLOOKUP('Datos Generales Edificio'!#REF!,$BO$5:$BP$32,2,FALSE),"") ->  | BT42: =+IF('Datos Generales Edificio'!#REF!<>"",'Datos Generales Edificio'!#REF!,"") ->  | BU42: 0 | BV42: =+'Datos Generales Edificio'!#REF! ->  | BX42: =+IF('Datos Generales Edificio'!#REF!<>"",'Datos Generales Edificio'!#REF!,"") ->  | BY42: 0 | BZ42: =+'Datos Generales Edificio'!#REF! ->  | CB42: =IF('Datos Generales Edificio'!#REF!<>"",'Datos Generales Edificio'!#REF!,"") ->  | CC42: 0 | CD42: =+'Datos Generales Edificio'!#REF! ->  | CF42: =IF('Datos Generales Edificio'!#REF!<>"",'Datos Generales Edificio'!#REF!,"") ->  | CG42: 0 | CH42: =+'Datos Generales Edificio'!#REF! ->  | CJ42: =IF('Datos Generales Edificio'!#REF!<>"",'Datos Generales Edificio'!#REF!,"") ->  | CK42: 0 | CL42: =+'Datos Generales Edificio'!#REF! ->  | CN42: 0 | CO42: 0 | CP42: 0 | DA42: X | DB42: Ciudades | DC42: 19 | DD42: SC | DE42: 0
B43: NVT - Norte Valle Transversal | C43: Chiller enfriado por aire condensador remoto | N43: =+IF('Datos Generales Edificio'!#REF!<Tablas2!$P$6,1,IF('Datos Generales Edificio'!#REF!<Tablas2!$P$7,2,IF('Datos Generales Edificio'!#REF!<Tablas2!$P$8,3,IF('Datos Generales Edificio'!#REF!<Tablas2!$P$9,4,5)))) ->  | O43: =+IF('Datos Generales Edificio'!#REF!>Tablas2!$U$21,5,IF('Datos Generales Edificio'!#REF!>Tablas2!$S$21,3,1)) ->  | X43: Áreas de recepción | Y43: 2.5 | Z43: 0.3 | AA43: 30 | AC43: Salas cirugía | AD43: 500 | AF43: Laboratorio citológico | AG43: 2 | AH43: 6 | AI43: 30 - 60 | AS43: IV | AT43: Vicuña | AU43: IV - Región de Coquimbo | BC43: Instalaciones - Energía | BD43: % de reducción del consumo estimado de energía de equipos y artefactos | BE43: 0.01 | BF43: 0.01 | BG43: INST.ENERGIA.17 | BH43: 1 | BR43: Recinto 38 | BS43: =+IFERROR(VLOOKUP('Datos Generales Edificio'!#REF!,$BO$5:$BP$32,2,FALSE),"") ->  | BT43: =+IF('Datos Generales Edificio'!#REF!<>"",'Datos Generales Edificio'!#REF!,"") ->  | BU43: 0 | BV43: =+'Datos Generales Edificio'!#REF! ->  | BX43: =+IF('Datos Generales Edificio'!#REF!<>"",'Datos Generales Edificio'!#REF!,"") ->  | BY43: 0 | BZ43: =+'Datos Generales Edificio'!#REF! ->  | CB43: =IF('Datos Generales Edificio'!#REF!<>"",'Datos Generales Edificio'!#REF!,"") ->  | CC43: 0 | CD43: =+'Datos Generales Edificio'!#REF! ->  | CF43: =IF('Datos Generales Edificio'!#REF!<>"",'Datos Generales Edificio'!#REF!,"") ->  | CG43: 0 | CH43: =+'Datos Generales Edificio'!#REF! ->  | CJ43: =IF('Datos Generales Edificio'!#REF!<>"",'Datos Generales Edificio'!#REF!,"") ->  | CK43: 0 | CL43: =+'Datos Generales Edificio'!#REF! ->  | CN43: 0 | CO43: 0 | CP43: 0 | DA43: X | DB43: Ciudades | DC43: 20 | DD43: SC | DE43: 0
B44: CL - Central Litoral | C44: Compresor alternativo, enfriado por aire | X44: Telefonía/Data entry | Y44: 2.5 | Z44: 0.3 | AA44: 60 | AC44: Salas pacientes | AD44: 100 | AF44: Laboratorio de lavado de vidrio | AG44: - | AH44: 10 | AI44: - | AS44: IX | AT44: Angol | AU44: IX - Región de Araucanía | BC44: Instalaciones - Energía | BD44: Disminución de consumo de energía en equipos y artefactos | BE44: 0.01 | BF44: 0.01 | BG44: INST.ENERGIA.17 | BH44: 2 | BR44: Recinto 39 | BS44: =+IFERROR(VLOOKUP('Datos Generales Edificio'!#REF!,$BO$5:$BP$32,2,FALSE),"") ->  | BT44: =+IF('Datos Generales Edificio'!#REF!<>"",'Datos Generales Edificio'!#REF!,"") ->  | BU44: 0 | BV44: =+'Datos Generales Edificio'!#REF! ->  | BX44: =+IF('Datos Generales Edificio'!#REF!<>"",'Datos Generales Edificio'!#REF!,"") ->  | BY44: 0 | BZ44: =+'Datos Generales Edificio'!#REF! ->  | CB44: =IF('Datos Generales Edificio'!#REF!<>"",'Datos Generales Edificio'!#REF!,"") ->  | CC44: 0 | CD44: =+'Datos Generales Edificio'!#REF! ->  | CF44: =IF('Datos Generales Edificio'!#REF!<>"",'Datos Generales Edificio'!#REF!,"") ->  | CG44: 0 | CH44: =+'Datos Generales Edificio'!#REF! ->  | CJ44: =IF('Datos Generales Edificio'!#REF!<>"",'Datos Generales Edificio'!#REF!,"") ->  | CK44: 0 | CL44: =+'Datos Generales Edificio'!#REF! ->  | CN44: 0 | CO44: 0 | CP44: 0 | DA44: Y | DB44: Terreno abierto | DC44: 1 | DD44: 60a | DE44: 60
B45: CI - Central Interior | C45: Compresor de tornillo, enfriado por agua | X45: Sala principal (Lobbies) | Y45: 2.5 | Z45: 0.3 | AA45: 10 | AF45: Laboratorio de histología | AG45: 2 | AH45: 6 | AI45: 30 - 60 | AS45: IX | AT45: Carahue | AU45: IX - Región de Araucanía | BC45: Instalaciones - Energía | BD45: Cobertura de demanda de energía primaria del edificio | BE45: 0.02 | BF45: 0.02 | BG45: INST.ENERGIA.18 | BH45: 1 | BR45: Recinto 40 | BS45: =+IFERROR(VLOOKUP('Datos Generales Edificio'!#REF!,$BO$5:$BP$32,2,FALSE),"") ->  | BT45: =+IF('Datos Generales Edificio'!#REF!<>"",'Datos Generales Edificio'!#REF!,"") ->  | BU45: 0 | BV45: =+'Datos Generales Edificio'!#REF! ->  | BX45: =+IF('Datos Generales Edificio'!#REF!<>"",'Datos Generales Edificio'!#REF!,"") ->  | BY45: 0 | BZ45: =+'Datos Generales Edificio'!#REF! ->  | CB45: =IF('Datos Generales Edificio'!#REF!<>"",'Datos Generales Edificio'!#REF!,"") ->  | CC45: 0 | CD45: =+'Datos Generales Edificio'!#REF! ->  | CF45: =IF('Datos Generales Edificio'!#REF!<>"",'Datos Generales Edificio'!#REF!,"") ->  | CG45: 0 | CH45: =+'Datos Generales Edificio'!#REF! ->  | CJ45: =IF('Datos Generales Edificio'!#REF!<>"",'Datos Generales Edificio'!#REF!,"") ->  | CK45: 0 | CL45: =+'Datos Generales Edificio'!#REF! ->  | CN45: 0 | CO45: 0 | CP45: 0 | DA45: Y | DB45: Terreno abierto | DC45: 2 | DD45: 60a | DE45: 60
B46: SL - Sur Litoral | C46: Compresor centrífugo, enfriado por agua. | X46: Espacios misceláneos | AC46: Ashrae 90,1 W/m2 | AF46: Microbiología | AG46: - | AH46: 6 | AI46: 30 - 60 | AS46: IX | AT46: Cholchol | AU46: IX - Región de Araucanía | BC46: Instalaciones - Agua | BD46: Disminución de consumo de agua potable [%] | BE46: 0.06 | BF46: 0.06 | BG46: INST.AGUA.19.1 | BH46: 1 | BR46: Recinto 41 | BS46: =+IFERROR(VLOOKUP('Datos Generales Edificio'!#REF!,$BO$5:$BP$32,2,FALSE),"") ->  | BT46: =+IF('Datos Generales Edificio'!#REF!<>"",'Datos Generales Edificio'!#REF!,"") ->  | BU46: 0 | BV46: =+'Datos Generales Edificio'!#REF! ->  | BX46: =+IF('Datos Generales Edificio'!#REF!<>"",'Datos Generales Edificio'!#REF!,"") ->  | BY46: 0 | BZ46: =+'Datos Generales Edificio'!#REF! ->  | CB46: =IF('Datos Generales Edificio'!#REF!<>"",'Datos Generales Edificio'!#REF!,"") ->  | CC46: 0 | CD46: =+'Datos Generales Edificio'!#REF! ->  | CF46: =IF('Datos Generales Edificio'!#REF!<>"",'Datos Generales Edificio'!#REF!,"") ->  | CG46: 0 | CH46: =+'Datos Generales Edificio'!#REF! ->  | CJ46: =IF('Datos Generales Edificio'!#REF!<>"",'Datos Generales Edificio'!#REF!,"") ->  | CK46: 0 | CL46: =+'Datos Generales Edificio'!#REF! ->  | CN46: 0 | CO46: 0 | CP46: 0 | DA46: Y | DB46: Terreno abierto | DC46: 3 | DD46: 60a | DE46: 60
B47: SI - Sur Interior | C47: VRV | X47: Bóvedas del banco/Depósitos seguro | Y47: 2.5 | Z47: 0.3 | AA47: 5 | AC47: Office - enclosed | AD47: 12 | AF47: Laboratorio medicina nuclear | AG47: 2 | AH47: 6 | AI47: 30 - 60 | AS47: IX | AT47: Collipulli | AU47: IX - Región de Araucanía | BC47: Instalaciones - Agua | BD47: Tratamiento para la remoción de dureza de agua | BE47: 0.005 | BF47: 0.005 | BG47: INST.AGUA.19.2 | BH47: 1 | BR47: Recinto 42 | BS47: =+IFERROR(VLOOKUP('Datos Generales Edificio'!#REF!,$BO$5:$BP$32,2,FALSE),"") ->  | BT47: =+IF('Datos Generales Edificio'!#REF!<>"",'Datos Generales Edificio'!#REF!,"") ->  | BU47: 0 | BV47: =+'Datos Generales Edificio'!#REF! ->  | BX47: =+IF('Datos Generales Edificio'!#REF!<>"",'Datos Generales Edificio'!#REF!,"") ->  | BY47: 0 | BZ47: =+'Datos Generales Edificio'!#REF! ->  | CB47: =IF('Datos Generales Edificio'!#REF!<>"",'Datos Generales Edificio'!#REF!,"") ->  | CC47: 0 | CD47: =+'Datos Generales Edificio'!#REF! ->  | CF47: =IF('Datos Generales Edificio'!#REF!<>"",'Datos Generales Edificio'!#REF!,"") ->  | CG47: 0 | CH47: =+'Datos Generales Edificio'!#REF! ->  | CJ47: =IF('Datos Generales Edificio'!#REF!<>"",'Datos Generales Edificio'!#REF!,"") ->  | CK47: 0 | CL47: =+'Datos Generales Edificio'!#REF! ->  | CN47: 0 | CO47: 0 | CP47: 0 | DA47: Y | DB47: Terreno abierto | DC47: 4 | DD47: 60a | DE47: 60
B48: SE - Sur Extremo | C48: Sistema con recuperación de calor | X48: Computadores (no impresoras) | Y48: 2.5 | Z48: 0.3 | AA48: 4 | AC48: Sales area | AD48: 18 | AF48: Laboratorio patología | AG48: 2 | AH48: 6 | AI48: 30 - 60 | AS48: IX | AT48: Cunco | AU48: IX - Región de Araucanía | BC48: Instalaciones - Agua | BD48: Disminución del consumo de agua para riego [%] | BE48: 0.01 | BF48: 0.01 | BG48: INST.AGUA.20 | BH48: 1 | BR48: Recinto 43 | BS48: =+IFERROR(VLOOKUP('Datos Generales Edificio'!#REF!,$BO$5:$BP$32,2,FALSE),"") ->  | BT48: =+IF('Datos Generales Edificio'!#REF!<>"",'Datos Generales Edificio'!#REF!,"") ->  | BU48: 0 | BV48: =+'Datos Generales Edificio'!#REF! ->  | BX48: =+IF('Datos Generales Edificio'!#REF!<>"",'Datos Generales Edificio'!#REF!,"") ->  | BY48: 0 | BZ48: =+'Datos Generales Edificio'!#REF! ->  | CB48: =IF('Datos Generales Edificio'!#REF!<>"",'Datos Generales Edificio'!#REF!,"") ->  | CC48: 0 | CD48: =+'Datos Generales Edificio'!#REF! ->  | CF48: =IF('Datos Generales Edificio'!#REF!<>"",'Datos Generales Edificio'!#REF!,"") ->  | CG48: 0 | CH48: =+'Datos Generales Edificio'!#REF! ->  | CJ48: =IF('Datos Generales Edificio'!#REF!<>"",'Datos Generales Edificio'!#REF!,"") ->  | CK48: 0 | CL48: =+'Datos Generales Edificio'!#REF! ->  | CN48: 0 | CO48: 0 | CP48: 0 | DA48: Y | DB48: Terreno abierto | DC48: 5 | DD48: 60a | DE48: 60
B49: An - Andino | X49: Sala de equipos eléctricos | Y49: - | Z49: 0.3 | AA49: - | AC49: Conference/meeting/multipurpose | AD49: 14 | AF49: Laboratorio serología | AG49: 2 | AH49: 6 | AI49: 30 - 60 | AS49: IX | AT49: Curacautín | AU49: IX - Región de Araucanía | BC49: Construcción - Residuos | BD49: Separación, control y reciclaje de residuos | BE49: 0.01 | BF49: 0.01 | BG49: CONST.RESIDUOS.21 | BH49: 1 | BR49: Recinto 44 | BS49: =+IFERROR(VLOOKUP('Datos Generales Edificio'!#REF!,$BO$5:$BP$32,2,FALSE),"") ->  | BT49: =+IF('Datos Generales Edificio'!#REF!<>"",'Datos Generales Edificio'!#REF!,"") ->  | BU49: 0 | BV49: =+'Datos Generales Edificio'!#REF! ->  | BX49: =+IF('Datos Generales Edificio'!#REF!<>"",'Datos Generales Edificio'!#REF!,"") ->  | BY49: 0 | BZ49: =+'Datos Generales Edificio'!#REF! ->  | CB49: =IF('Datos Generales Edificio'!#REF!<>"",'Datos Generales Edificio'!#REF!,"") ->  | CC49: 0 | CD49: =+'Datos Generales Edificio'!#REF! ->  | CF49: =IF('Datos Generales Edificio'!#REF!<>"",'Datos Generales Edificio'!#REF!,"") ->  | CG49: 0 | CH49: =+'Datos Generales Edificio'!#REF! ->  | CJ49: =IF('Datos Generales Edificio'!#REF!<>"",'Datos Generales Edificio'!#REF!,"") ->  | CK49: 0 | CL49: =+'Datos Generales Edificio'!#REF! ->  | CN49: 0 | CO49: 0 | CP49: 0 | DA49: Y | DB49: Terreno abierto | DC49: 6 | DD49: 30a | DE49: 30
X50: Sala de máquinas de elevadores | Y50: - | Z50: 0.6 | AA50: - | AC50: Corridor/transition | AD50: 5 | AF50: Laboratorio esterilización | AG50: - | AH50: 10 | AI50: 30 - 60 | AS50: IX | AT50: Curarrehue | AU50: IX - Región de Araucanía | BC50: Gestión | BD50: Actas de reuniones e informe | BE50: 0.04 | BF50: 0.04 | BG50: GESTION.22 | BH50: 1 | BR50: Recinto 45 | BS50: =+IFERROR(VLOOKUP('Datos Generales Edificio'!#REF!,$BO$5:$BP$32,2,FALSE),"") ->  | BT50: =+IF('Datos Generales Edificio'!#REF!<>"",'Datos Generales Edificio'!#REF!,"") ->  | BU50: 0 | BV50: =+'Datos Generales Edificio'!#REF! ->  | BX50: =+IF('Datos Generales Edificio'!#REF!<>"",'Datos Generales Edificio'!#REF!,"") ->  | BY50: 0 | BZ50: =+'Datos Generales Edificio'!#REF! ->  | CB50: =IF('Datos Generales Edificio'!#REF!<>"",'Datos Generales Edificio'!#REF!,"") ->  | CC50: 0 | CD50: =+'Datos Generales Edificio'!#REF! ->  | CF50: =IF('Datos Generales Edificio'!#REF!<>"",'Datos Generales Edificio'!#REF!,"") ->  | CG50: 0 | CH50: =+'Datos Generales Edificio'!#REF! ->  | CJ50: =IF('Datos Generales Edificio'!#REF!<>"",'Datos Generales Edificio'!#REF!,"") ->  | CK50: 0 | CL50: =+'Datos Generales Edificio'!#REF! ->  | CN50: 0 | CO50: 0 | CP50: 0 | DA50: Y | DB50: Terreno abierto | DC50: 7 | DD50: 30a | DE50: 30
X51: Farmacia (Área de preparación) | Y51: 2.5 | Z51: 0.9 | AA51: 10 | AC51: Lobby | AD51: 14 | AF51: Laboratorio transferencia media | AG51: 2 | AH51: 4 | AI51: 30 - 60 | AS51: IX | AT51: Ercilla | AU51: IX - Región de Araucanía | BC51: Gestión | BD51: Compromiso y plan de mejora continua | BE51: 0 | BF51: 0 | BG51: GESTION.23 | BH51: 1 | BR51: Recinto 46 | BS51: =+IFERROR(VLOOKUP('Datos Generales Edificio'!#REF!,$BO$5:$BP$32,2,FALSE),"") ->  | BT51: =+IF('Datos Generales Edificio'!#REF!<>"",'Datos Generales Edificio'!#REF!,"") ->  | BU51: 0 | BV51: =+'Datos Generales Edificio'!#REF! ->  | BX51: =+IF('Datos Generales Edificio'!#REF!<>"",'Datos Generales Edificio'!#REF!,"") ->  | BY51: 0 | BZ51: =+'Datos Generales Edificio'!#REF! ->  | CB51: =IF('Datos Generales Edificio'!#REF!<>"",'Datos Generales Edificio'!#REF!,"") ->  | CC51: 0 | CD51: =+'Datos Generales Edificio'!#REF! ->  | CF51: =IF('Datos Generales Edificio'!#REF!<>"",'Datos Generales Edificio'!#REF!,"") ->  | CG51: 0 | CH51: =+'Datos Generales Edificio'!#REF! ->  | CJ51: =IF('Datos Generales Edificio'!#REF!<>"",'Datos Generales Edificio'!#REF!,"") ->  | CK51: 0 | CL51: =+'Datos Generales Edificio'!#REF! ->  | CN51: 0 | CO51: 0 | CP51: 0 | DA51: Y | DB51: Terreno abierto | DC51: 8 | DD51: 30a | DE51: 30
C52: Calor | X52: Estudio de fotos | Y52: 2.5 | Z52: 0.6 | AA52: 10 | AC52: Restrooms | AD52: 10 | AF52: Sala de autopsia | AG52: 2 | AH52: 12 | AI52: - | AS52: IX | AT52: Freire | AU52: IX - Región de Araucanía | BR52: Recinto 47 | BS52: =+IFERROR(VLOOKUP('Datos Generales Edificio'!#REF!,$BO$5:$BP$32,2,FALSE),"") ->  | BT52: =+IF('Datos Generales Edificio'!#REF!<>"",'Datos Generales Edificio'!#REF!,"") ->  | BU52: 0 | BV52: =+'Datos Generales Edificio'!#REF! ->  | BX52: =+IF('Datos Generales Edificio'!#REF!<>"",'Datos Generales Edificio'!#REF!,"") ->  | BY52: 0 | BZ52: =+'Datos Generales Edificio'!#REF! ->  | CB52: =IF('Datos Generales Edificio'!#REF!<>"",'Datos Generales Edificio'!#REF!,"") ->  | CC52: 0 | CD52: =+'Datos Generales Edificio'!#REF! ->  | CF52: =IF('Datos Generales Edificio'!#REF!<>"",'Datos Generales Edificio'!#REF!,"") ->  | CG52: 0 | CH52: =+'Datos Generales Edificio'!#REF! ->  | CJ52: =IF('Datos Generales Edificio'!#REF!<>"",'Datos Generales Edificio'!#REF!,"") ->  | CK52: 0 | CL52: =+'Datos Generales Edificio'!#REF! ->  | CN52: 0 | CO52: 0 | CP52: 0 | DA52: Y | DB52: Terreno abierto | DC52: 9 | DD52: 30a | DE52: 30
B53: 1 | C53: Calefacción por combustión | X53: Sala de envíos/recepción | Y53: - | Z53: 0.6 | AA53: - | AC53: Food preparation | AD53: 13 | AF53: Sala de confinamiento de cuerpos no refrigerados | AG53: - | AH53: 10 | AI53: - | AS53: IX | AT53: Galvarino | AU53: IX - Región de Araucanía | BR53: Recinto 48 | BS53: =+IFERROR(VLOOKUP('Datos Generales Edificio'!#REF!,$BO$5:$BP$32,2,FALSE),"") ->  | BT53: =+IF('Datos Generales Edificio'!#REF!<>"",'Datos Generales Edificio'!#REF!,"") ->  | BU53: 0 | BV53: =+'Datos Generales Edificio'!#REF! ->  | BX53: =+IF('Datos Generales Edificio'!#REF!<>"",'Datos Generales Edificio'!#REF!,"") ->  | BY53: 0 | BZ53: =+'Datos Generales Edificio'!#REF! ->  | CB53: =IF('Datos Generales Edificio'!#REF!<>"",'Datos Generales Edificio'!#REF!,"") ->  | CC53: 0 | CD53: =+'Datos Generales Edificio'!#REF! ->  | CF53: =IF('Datos Generales Edificio'!#REF!<>"",'Datos Generales Edificio'!#REF!,"") ->  | CG53: 0 | CH53: =+'Datos Generales Edificio'!#REF! ->  | CJ53: =IF('Datos Generales Edificio'!#REF!<>"",'Datos Generales Edificio'!#REF!,"") ->  | CK53: 0 | CL53: =+'Datos Generales Edificio'!#REF! ->  | CN53: 0 | CO53: 0 | CP53: 0 | DA53: Y | DB53: Terreno abierto | DC53: 10 | DD53: 30a | DE53: 30
B54: 2 | C54: Sistema unitario o partido de aire acondicionado enfriado por aire | X54: Closet de teléfonos | Y54: - | Z54: 0 | AA54: - | AC54: Dining area | AD54: 10 | AF54: Farmacia | AG54: 2 | AH54: 4 | AI54: 30 - 60 | AS54: IX | AT54: Gorbea | AU54: IX - Región de Araucanía | BR54: Recinto 49 | BS54: =+IFERROR(VLOOKUP('Datos Generales Edificio'!#REF!,$BO$5:$BP$32,2,FALSE),"") ->  | BT54: =+IF('Datos Generales Edificio'!#REF!<>"",'Datos Generales Edificio'!#REF!,"") ->  | BU54: 0 | BV54: =+'Datos Generales Edificio'!#REF! ->  | BX54: =+IF('Datos Generales Edificio'!#REF!<>"",'Datos Generales Edificio'!#REF!,"") ->  | BY54: 0 | BZ54: =+'Datos Generales Edificio'!#REF! ->  | CB54: =IF('Datos Generales Edificio'!#REF!<>"",'Datos Generales Edificio'!#REF!,"") ->  | CC54: 0 | CD54: =+'Datos Generales Edificio'!#REF! ->  | CF54: =IF('Datos Generales Edificio'!#REF!<>"",'Datos Generales Edificio'!#REF!,"") ->  | CG54: 0 | CH54: =+'Datos Generales Edificio'!#REF! ->  | CJ54: =IF('Datos Generales Edificio'!#REF!<>"",'Datos Generales Edificio'!#REF!,"") ->  | CK54: 0 | CL54: =+'Datos Generales Edificio'!#REF! ->  | CN54: 0 | CO54: 0 | CP54: 0 | DA54: Y | DB54: Terreno abierto | DC54: 11 | DD54: 30a | DE54: 30
B55: 3 | C55: Sistema unitario o partido de aire acondicionado enfriado por agua | X55: Sala de espera de transporte | Y55: 3.8 | Z55: 0.3 | AA55: 100 | AC55: Audience/seating area | AD55: 10 | AF55: ADMINISTRACIÓN | AS55: IX | AT55: Lautaro | AU55: IX - Región de Araucanía | BR55: Recinto 50 | BS55: =+IFERROR(VLOOKUP('Datos Generales Edificio'!#REF!,$BO$5:$BP$32,2,FALSE),"") ->  | BT55: =+IF('Datos Generales Edificio'!#REF!<>"",'Datos Generales Edificio'!#REF!,"") ->  | BU55: 0 | BV55: =+'Datos Generales Edificio'!#REF! ->  | BX55: =+IF('Datos Generales Edificio'!#REF!<>"",'Datos Generales Edificio'!#REF!,"") ->  | BY55: 0 | BZ55: =+'Datos Generales Edificio'!#REF! ->  | CB55: =IF('Datos Generales Edificio'!#REF!<>"",'Datos Generales Edificio'!#REF!,"") ->  | CC55: 0 | CD55: =+'Datos Generales Edificio'!#REF! ->  | CF55: =IF('Datos Generales Edificio'!#REF!<>"",'Datos Generales Edificio'!#REF!,"") ->  | CG55: 0 | CH55: =+'Datos Generales Edificio'!#REF! ->  | CJ55: =IF('Datos Generales Edificio'!#REF!<>"",'Datos Generales Edificio'!#REF!,"") ->  | CK55: 0 | CL55: =+'Datos Generales Edificio'!#REF! ->  | CN55: 0 | CO55: 0 | CP55: 0 | DA55: Y | DB55: Terreno abierto | DC55: 12 | DD55: 30a | DE55: 30
B56: 4 o más | C56: Chiller enfriado por aire condensador remoto | X56: Almacén | Y56: - | Z56: 0.3 | AA56: - | AC56: Stairs-active | AD56: 6 | AF56: Sala de admisión y espera | AG56: 2 | AH56: 6 | AI56: 30 - 60 | AS56: IX | AT56: Loncoche | AU56: IX - Región de Araucanía | BR56: Recinto 51 | BS56: =+IFERROR(VLOOKUP('Datos Generales Edificio'!#REF!,$BO$5:$BP$32,2,FALSE),"") ->  | BT56: =+IF('Datos Generales Edificio'!#REF!<>"",'Datos Generales Edificio'!#REF!,"") ->  | BU56: 0 | BV56: =+'Datos Generales Edificio'!#REF! ->  | BX56: =+IF('Datos Generales Edificio'!#REF!<>"",'Datos Generales Edificio'!#REF!,"") ->  | BY56: 0 | BZ56: =+'Datos Generales Edificio'!#REF! ->  | CB56: =IF('Datos Generales Edificio'!#REF!<>"",'Datos Generales Edificio'!#REF!,"") ->  | CC56: 0 | CD56: =+'Datos Generales Edificio'!#REF! ->  | CF56: =IF('Datos Generales Edificio'!#REF!<>"",'Datos Generales Edificio'!#REF!,"") ->  | CG56: 0 | CH56: =+'Datos Generales Edificio'!#REF! ->  | CJ56: =IF('Datos Generales Edificio'!#REF!<>"",'Datos Generales Edificio'!#REF!,"") ->  | CK56: 0 | CL56: =+'Datos Generales Edificio'!#REF! ->  | CN56: 0 | CO56: 0 | CP56: 0 | DA56: Y | DB56: Terreno abierto | DC56: 13 | DD56: 30a | DE56: 30
C57: Compresor alternativo, enfriado por aire | X57: Espacios públicos de reunión | AC57: Parking garage-garage area | AD57: 2 | AF57: DIAGNÓSTICO Y TRATAMIENTO | AS57: IX | AT57: Lonquimay | AU57: IX - Región de Araucanía | BR57: Recinto 52 | BS57: =+IFERROR(VLOOKUP('Datos Generales Edificio'!#REF!,$BO$5:$BP$32,2,FALSE),"") ->  | BT57: =+IF('Datos Generales Edificio'!#REF!<>"",'Datos Generales Edificio'!#REF!,"") ->  | BU57: 0 | BV57: =+'Datos Generales Edificio'!#REF! ->  | BX57: =+IF('Datos Generales Edificio'!#REF!<>"",'Datos Generales Edificio'!#REF!,"") ->  | BY57: 0 | BZ57: =+'Datos Generales Edificio'!#REF! ->  | CB57: =IF('Datos Generales Edificio'!#REF!<>"",'Datos Generales Edificio'!#REF!,"") ->  | CC57: 0 | CD57: =+'Datos Generales Edificio'!#REF! ->  | CF57: =IF('Datos Generales Edificio'!#REF!<>"",'Datos Generales Edificio'!#REF!,"") ->  | CG57: 0 | CH57: =+'Datos Generales Edificio'!#REF! ->  | CJ57: =IF('Datos Generales Edificio'!#REF!<>"",'Datos Generales Edificio'!#REF!,"") ->  | CK57: 0 | CL57: =+'Datos Generales Edificio'!#REF! ->  | CN57: 0 | CO57: 0 | CP57: 0 | DA57: Y | DB57: Terreno abierto | DC57: 14 | DD57: 30a | DE57: 30
C58: Compresor de tornillo, enfriado por agua | X58: Área de asientos de auditorio | Y58: 2.5 | Z58: 0.3 | AA58: 150 | AC58: Active storage | AD58: 9 | AF58: Broncoscopía, recolección y administración de pentamidina | AG58: 2 | AH58: 12 | AI58: 30 - 60 | AS58: IX | AT58: Los Sauces | AU58: IX - Región de Araucanía | BR58: Recinto 53 | BS58: =+IFERROR(VLOOKUP('Datos Generales Edificio'!#REF!,$BO$5:$BP$32,2,FALSE),"") ->  | BT58: =+IF('Datos Generales Edificio'!#REF!<>"",'Datos Generales Edificio'!#REF!,"") ->  | BU58: 0 | BV58: =+'Datos Generales Edificio'!#REF! ->  | BX58: =+IF('Datos Generales Edificio'!#REF!<>"",'Datos Generales Edificio'!#REF!,"") ->  | BY58: 0 | BZ58: =+'Datos Generales Edificio'!#REF! ->  | CB58: =IF('Datos Generales Edificio'!#REF!<>"",'Datos Generales Edificio'!#REF!,"") ->  | CC58: 0 | CD58: =+'Datos Generales Edificio'!#REF! ->  | CF58: =IF('Datos Generales Edificio'!#REF!<>"",'Datos Generales Edificio'!#REF!,"") ->  | CG58: 0 | CH58: =+'Datos Generales Edificio'!#REF! ->  | CJ58: =IF('Datos Generales Edificio'!#REF!<>"",'Datos Generales Edificio'!#REF!,"") ->  | CK58: 0 | CL58: =+'Datos Generales Edificio'!#REF! ->  | CN58: 0 | CO58: 0 | CP58: 0 | DA58: Y | DB58: Terreno abierto | DC58: 15 | DD58: 30a | DE58: 30
B59: Si | C59: Compresor centrífugo, enfriado por agua. | X59: Lugar de adoración religiosa | Y59: 2.5 | Z59: 0.3 | AA59: 120 | AC59: Hotel/motel guest rooms | AD59: 12 | AF59: Sala de exámenes | AG59: 2 | AH59: 6 | AI59: 30 - 60 | AS59: IX | AT59: Lumaco | AU59: IX - Región de Araucanía | BR59: Recinto 54 | BS59: =+IFERROR(VLOOKUP('Datos Generales Edificio'!#REF!,$BO$5:$BP$32,2,FALSE),"") ->  | BT59: =+IF('Datos Generales Edificio'!#REF!<>"",'Datos Generales Edificio'!#REF!,"") ->  | BU59: 0 | BV59: =+'Datos Generales Edificio'!#REF! ->  | BX59: =+IF('Datos Generales Edificio'!#REF!<>"",'Datos Generales Edificio'!#REF!,"") ->  | BY59: 0 | BZ59: =+'Datos Generales Edificio'!#REF! ->  | CB59: =IF('Datos Generales Edificio'!#REF!<>"",'Datos Generales Edificio'!#REF!,"") ->  | CC59: 0 | CD59: =+'Datos Generales Edificio'!#REF! ->  | CF59: =IF('Datos Generales Edificio'!#REF!<>"",'Datos Generales Edificio'!#REF!,"") ->  | CG59: 0 | CH59: =+'Datos Generales Edificio'!#REF! ->  | CJ59: =IF('Datos Generales Edificio'!#REF!<>"",'Datos Generales Edificio'!#REF!,"") ->  | CK59: 0 | CL59: =+'Datos Generales Edificio'!#REF! ->  | CN59: 0 | CO59: 0 | CP59: 0 | DA59: Y | DB59: Terreno abierto | DC59: 16 | DD59: 30a | DE59: 30
B60: No | C60: VRV | X60: Tribunales | Y60: 2.5 | Z60: 0.3 | AA60: 70 | AC60: Laundry-washing | AD60: 6 | AF60: Sala de medicación | AG60: 2 | AH60: 4 | AI60: 30 - 60 | AS60: IX | AT60: Melipeuco | AU60: IX - Región de Araucanía | BR60: Recinto 55 | BS60: =+IFERROR(VLOOKUP('Datos Generales Edificio'!#REF!,$BO$5:$BP$32,2,FALSE),"") ->  | BT60: =+IF('Datos Generales Edificio'!#REF!<>"",'Datos Generales Edificio'!#REF!,"") ->  | BU60: 0 | BV60: =+'Datos Generales Edificio'!#REF! ->  | BX60: =+IF('Datos Generales Edificio'!#REF!<>"",'Datos Generales Edificio'!#REF!,"") ->  | BY60: 0 | BZ60: =+'Datos Generales Edificio'!#REF! ->  | CB60: =IF('Datos Generales Edificio'!#REF!<>"",'Datos Generales Edificio'!#REF!,"") ->  | CC60: 0 | CD60: =+'Datos Generales Edificio'!#REF! ->  | CF60: =IF('Datos Generales Edificio'!#REF!<>"",'Datos Generales Edificio'!#REF!,"") ->  | CG60: 0 | CH60: =+'Datos Generales Edificio'!#REF! ->  | CJ60: =IF('Datos Generales Edificio'!#REF!<>"",'Datos Generales Edificio'!#REF!,"") ->  | CK60: 0 | CL60: =+'Datos Generales Edificio'!#REF! ->  | CN60: 0 | CO60: 0 | CP60: 0 | DA60: Y | DB60: Terreno abierto | DC60: 17 | DD60: 30a | DE60: 30
B61: No Aplica | C61: Sistema con recuperación de calor | X61: Cámaras legislativas | Y61: 2.5 | Z61: 0.3 | AA61: 50 | AC61: Exercise area | AD61: 10 | AF61: Sala de tratamiento | AG61: 2 | AH61: 6 | AI61: 30 - 60 | AS61: IX | AT61: Nueva Imperial | AU61: IX - Región de Araucanía | BR61: Recinto 56 | BS61: =+IFERROR(VLOOKUP('Datos Generales Edificio'!#REF!,$BO$5:$BP$32,2,FALSE),"") ->  | BT61: =+IF('Datos Generales Edificio'!#REF!<>"",'Datos Generales Edificio'!#REF!,"") ->  | BU61: 0 | BV61: =+'Datos Generales Edificio'!#REF! ->  | BX61: =+IF('Datos Generales Edificio'!#REF!<>"",'Datos Generales Edificio'!#REF!,"") ->  | BY61: 0 | BZ61: =+'Datos Generales Edificio'!#REF! ->  | CB61: =IF('Datos Generales Edificio'!#REF!<>"",'Datos Generales Edificio'!#REF!,"") ->  | CC61: 0 | CD61: =+'Datos Generales Edificio'!#REF! ->  | CF61: =IF('Datos Generales Edificio'!#REF!<>"",'Datos Generales Edificio'!#REF!,"") ->  | CG61: 0 | CH61: =+'Datos Generales Edificio'!#REF! ->  | CJ61: =IF('Datos Generales Edificio'!#REF!<>"",'Datos Generales Edificio'!#REF!,"") ->  | CK61: 0 | CL61: =+'Datos Generales Edificio'!#REF! ->  | CN61: 0 | CO61: 0 | CP61: 0 | DA61: Y | DB61: Terreno abierto | DC61: 18 | DD61: 30a | DE61: 30
X62: Librerías | Y62: 2.5 | Z62: 0.6 | AA62: 10 | AC62: Classroom/lecture/training | AD62: 15 | AF62: Terapia física y hidroterapia | AG62: 2 | AH62: 6 | AI62: 30 - 60 | AS62: IX | AT62: Padre Las Casas | AU62: IX - Región de Araucanía | BR62: Recinto 57 | BS62: =+IFERROR(VLOOKUP('Datos Generales Edificio'!#REF!,$BO$5:$BP$32,2,FALSE),"") ->  | BT62: =+IF('Datos Generales Edificio'!#REF!<>"",'Datos Generales Edificio'!#REF!,"") ->  | BU62: 0 | BV62: =+'Datos Generales Edificio'!#REF! ->  | BX62: =+IF('Datos Generales Edificio'!#REF!<>"",'Datos Generales Edificio'!#REF!,"") ->  | BY62: 0 | BZ62: =+'Datos Generales Edificio'!#REF! ->  | CB62: =IF('Datos Generales Edificio'!#REF!<>"",'Datos Generales Edificio'!#REF!,"") ->  | CC62: 0 | CD62: =+'Datos Generales Edificio'!#REF! ->  | CF62: =IF('Datos Generales Edificio'!#REF!<>"",'Datos Generales Edificio'!#REF!,"") ->  | CG62: 0 | CH62: =+'Datos Generales Edificio'!#REF! ->  | CJ62: =IF('Datos Generales Edificio'!#REF!<>"",'Datos Generales Edificio'!#REF!,"") ->  | CK62: 0 | CL62: =+'Datos Generales Edificio'!#REF! ->  | CN62: 0 | CO62: 0 | CP62: 0 | DA62: Y | DB62: Terreno abierto | DC62: 19 | DD62: 30a | DE62: 30
C63: Calefacción por combustión | X63: Lobbies | Y63: 2.5 | Z63: 0.3 | AA63: 150 | AC63: Laboratory | AD63: 15 | AF63: Sala de trabajo sucio y tenencia sucia | AG63: 2 | AH63: 10 | AI63: 30 - 60 | AS63: IX | AT63: Perquenco | AU63: IX - Región de Araucanía | BR63: Recinto 58 | BS63: =+IFERROR(VLOOKUP('Datos Generales Edificio'!#REF!,$BO$5:$BP$32,2,FALSE),"") ->  | BT63: =+IF('Datos Generales Edificio'!#REF!<>"",'Datos Generales Edificio'!#REF!,"") ->  | BU63: 0 | BV63: =+'Datos Generales Edificio'!#REF! ->  | BX63: =+IF('Datos Generales Edificio'!#REF!<>"",'Datos Generales Edificio'!#REF!,"") ->  | BY63: 0 | BZ63: =+'Datos Generales Edificio'!#REF! ->  | CB63: =IF('Datos Generales Edificio'!#REF!<>"",'Datos Generales Edificio'!#REF!,"") ->  | CC63: 0 | CD63: =+'Datos Generales Edificio'!#REF! ->  | CF63: =IF('Datos Generales Edificio'!#REF!<>"",'Datos Generales Edificio'!#REF!,"") ->  | CG63: 0 | CH63: =+'Datos Generales Edificio'!#REF! ->  | CJ63: =IF('Datos Generales Edificio'!#REF!<>"",'Datos Generales Edificio'!#REF!,"") ->  | CK63: 0 | CL63: =+'Datos Generales Edificio'!#REF! ->  | CN63: 0 | CO63: 0 | CP63: 0 | DA63: Y | DB63: Terreno abierto | DC63: 20 | DD63: 30a | DE63: 30
C64: Otros | X64: Museos (Niños) | Y64: 3.8 | Z64: 0.6 | AA64: 40 | AC64: Workshop | AD64: 20 | AF64: Sala de trabajo limpio y tenencia limpia | AG64: 2 | AH64: 4 | AI64: - | AS64: IX | AT64: Pitrufquén | AU64: IX - Región de Araucanía | BR64: Recinto 59 | BS64: =+IFERROR(VLOOKUP('Datos Generales Edificio'!#REF!,$BO$5:$BP$32,2,FALSE),"") ->  | BT64: =+IF('Datos Generales Edificio'!#REF!<>"",'Datos Generales Edificio'!#REF!,"") ->  | BU64: 0 | BV64: =+'Datos Generales Edificio'!#REF! ->  | BX64: =+IF('Datos Generales Edificio'!#REF!<>"",'Datos Generales Edificio'!#REF!,"") ->  | BY64: 0 | BZ64: =+'Datos Generales Edificio'!#REF! ->  | CB64: =IF('Datos Generales Edificio'!#REF!<>"",'Datos Generales Edificio'!#REF!,"") ->  | CC64: 0 | CD64: =+'Datos Generales Edificio'!#REF! ->  | CF64: =IF('Datos Generales Edificio'!#REF!<>"",'Datos Generales Edificio'!#REF!,"") ->  | CG64: 0 | CH64: =+'Datos Generales Edificio'!#REF! ->  | CJ64: =IF('Datos Generales Edificio'!#REF!<>"",'Datos Generales Edificio'!#REF!,"") ->  | CK64: 0 | CL64: =+'Datos Generales Edificio'!#REF! ->  | CN64: 0 | CO64: 0 | CP64: 0 | DA64: Y | DB64: Ciudades | DC64: 1 | DD64: SC | DE64: 0
X65: Museo (Galería) | Y65: 3.8 | Z65: 0.3 | AA65: 40 | AC65: Conference/meeting/multipurpose | AD65: 14 | AF65: ESTERILIZACIÓN Y SUMINISTRO | AS65: IX | AT65: Pucón | AU65: IX - Región de Araucanía | BR65: Recinto 60 | BS65: =+IFERROR(VLOOKUP('Datos Generales Edificio'!#REF!,$BO$5:$BP$32,2,FALSE),"") ->  | BT65: =+IF('Datos Generales Edificio'!#REF!<>"",'Datos Generales Edificio'!#REF!,"") ->  | BU65: 0 | BV65: =+'Datos Generales Edificio'!#REF! ->  | BX65: =+IF('Datos Generales Edificio'!#REF!<>"",'Datos Generales Edificio'!#REF!,"") ->  | BY65: 0 | BZ65: =+'Datos Generales Edificio'!#REF! ->  | CB65: =IF('Datos Generales Edificio'!#REF!<>"",'Datos Generales Edificio'!#REF!,"") ->  | CC65: 0 | CD65: =+'Datos Generales Edificio'!#REF! ->  | CF65: =IF('Datos Generales Edificio'!#REF!<>"",'Datos Generales Edificio'!#REF!,"") ->  | CG65: 0 | CH65: =+'Datos Generales Edificio'!#REF! ->  | CJ65: =IF('Datos Generales Edificio'!#REF!<>"",'Datos Generales Edificio'!#REF!,"") ->  | CK65: 0 | CL65: =+'Datos Generales Edificio'!#REF! ->  | CN65: 0 | CO65: 0 | CP65: 0 | DA65: Y | DB65: Ciudades | DC65: 2 | DD65: SC | DE65: 0
X66: Residencial | AC66: Confinement cells | AD66: 10 | AF66: ETO - Sala de esterilización | AG66: - | AH66: 10 | AI66: - | AS66: IX | AT66: Purén | AU66: IX - Región de Araucanía | BR66: Recinto 61 | BS66: =+IFERROR(VLOOKUP('Datos Generales Edificio'!#REF!,$BO$5:$BP$32,2,FALSE),"") ->  | BT66: =+IF('Datos Generales Edificio'!#REF!<>"",'Datos Generales Edificio'!#REF!,"") ->  | BU66: 0 | BV66: =+'Datos Generales Edificio'!#REF! ->  | BX66: =+IF('Datos Generales Edificio'!#REF!<>"",'Datos Generales Edificio'!#REF!,"") ->  | BY66: 0 | BZ66: =+'Datos Generales Edificio'!#REF! ->  | CB66: =IF('Datos Generales Edificio'!#REF!<>"",'Datos Generales Edificio'!#REF!,"") ->  | CC66: 0 | CD66: =+'Datos Generales Edificio'!#REF! ->  | CF66: =IF('Datos Generales Edificio'!#REF!<>"",'Datos Generales Edificio'!#REF!,"") ->  | CG66: 0 | CH66: =+'Datos Generales Edificio'!#REF! ->  | CJ66: =IF('Datos Generales Edificio'!#REF!<>"",'Datos Generales Edificio'!#REF!,"") ->  | CK66: 0 | CL66: =+'Datos Generales Edificio'!#REF! ->  | CN66: 0 | CO66: 0 | CP66: 0 | DA66: Y | DB66: Ciudades | DC66: 3 | DD66: SC | DE66: 0
X67: Unidad de vivienda | Y67: 2.5 | Z67: 0.3 | AA67: - | AC67: Emergency | AD67: 29 | AF67: Sala de equipamiento de esterilización | AG67: - | AH67: 10 | AI67: - | AS67: IX | AT67: Renaico | AU67: IX - Región de Araucanía | BR67: Recinto 62 | BS67: =+IFERROR(VLOOKUP('Datos Generales Edificio'!#REF!,$BO$5:$BP$32,2,FALSE),"") ->  | BT67: =+IF('Datos Generales Edificio'!#REF!<>"",'Datos Generales Edificio'!#REF!,"") ->  | BU67: 0 | BV67: =+'Datos Generales Edificio'!#REF! ->  | BX67: =+IF('Datos Generales Edificio'!#REF!<>"",'Datos Generales Edificio'!#REF!,"") ->  | BY67: 0 | BZ67: =+'Datos Generales Edificio'!#REF! ->  | CB67: =IF('Datos Generales Edificio'!#REF!<>"",'Datos Generales Edificio'!#REF!,"") ->  | CC67: 0 | CD67: =+'Datos Generales Edificio'!#REF! ->  | CF67: =IF('Datos Generales Edificio'!#REF!<>"",'Datos Generales Edificio'!#REF!,"") ->  | CG67: 0 | CH67: =+'Datos Generales Edificio'!#REF! ->  | CJ67: =IF('Datos Generales Edificio'!#REF!<>"",'Datos Generales Edificio'!#REF!,"") ->  | CK67: 0 | CL67: =+'Datos Generales Edificio'!#REF! ->  | CN67: 0 | CO67: 0 | CP67: 0 | DA67: Y | DB67: Ciudades | DC67: 4 | DD67: SC | DE67: 0
X68: Pasillos comunes | Y68: - | Z68: 0.3 | AA68: - | AC68: Conference/meeting/multipurpose | AD68: 14 | AF68: Centro médico y suministro quirúrgico | AS68: IX | AT68: Saavedra | AU68: IX - Región de Araucanía | BR68: Recinto 63 | BS68: =+IFERROR(VLOOKUP('Datos Generales Edificio'!#REF!,$BO$5:$BP$32,2,FALSE),"") ->  | BT68: =+IF('Datos Generales Edificio'!#REF!<>"",'Datos Generales Edificio'!#REF!,"") ->  | BU68: 0 | BV68: =+'Datos Generales Edificio'!#REF! ->  | BX68: =+IF('Datos Generales Edificio'!#REF!<>"",'Datos Generales Edificio'!#REF!,"") ->  | BY68: 0 | BZ68: =+'Datos Generales Edificio'!#REF! ->  | CB68: =IF('Datos Generales Edificio'!#REF!<>"",'Datos Generales Edificio'!#REF!,"") ->  | CC68: 0 | CD68: =+'Datos Generales Edificio'!#REF! ->  | CF68: =IF('Datos Generales Edificio'!#REF!<>"",'Datos Generales Edificio'!#REF!,"") ->  | CG68: 0 | CH68: =+'Datos Generales Edificio'!#REF! ->  | CJ68: =IF('Datos Generales Edificio'!#REF!<>"",'Datos Generales Edificio'!#REF!,"") ->  | CK68: 0 | CL68: =+'Datos Generales Edificio'!#REF! ->  | CN68: 0 | CO68: 0 | CP68: 0 | DA68: Y | DB68: Ciudades | DC68: 5 | DD68: SC | DE68: 0
X69: Retail | AC69: Electrical/mechanical | AD69: 16 | AF69: Sala sucia o de descontaminación | AG69: 2 | AH69: 6 | AI69: - | AS69: IX | AT69: Temuco | AU69: IX - Región de Araucanía | BR69: Recinto 64 | BS69: =+IFERROR(VLOOKUP('Datos Generales Edificio'!#REF!,$BO$5:$BP$32,2,FALSE),"") ->  | BT69: =+IF('Datos Generales Edificio'!#REF!<>"",'Datos Generales Edificio'!#REF!,"") ->  | BU69: 0 | BV69: =+'Datos Generales Edificio'!#REF! ->  | BX69: =+IF('Datos Generales Edificio'!#REF!<>"",'Datos Generales Edificio'!#REF!,"") ->  | BY69: 0 | BZ69: =+'Datos Generales Edificio'!#REF! ->  | CB69: =IF('Datos Generales Edificio'!#REF!<>"",'Datos Generales Edificio'!#REF!,"") ->  | CC69: 0 | CD69: =+'Datos Generales Edificio'!#REF! ->  | CF69: =IF('Datos Generales Edificio'!#REF!<>"",'Datos Generales Edificio'!#REF!,"") ->  | CG69: 0 | CH69: =+'Datos Generales Edificio'!#REF! ->  | CJ69: =IF('Datos Generales Edificio'!#REF!<>"",'Datos Generales Edificio'!#REF!,"") ->  | CK69: 0 | CL69: =+'Datos Generales Edificio'!#REF! ->  | CN69: 0 | CO69: 0 | CP69: 0 | DA69: Y | DB69: Ciudades | DC69: 6 | DD69: 60a | DE69: =+VALUE(IF(DD69="SC",0,MID(DD69,1,2))) -> 60
B70: Caldera estándar (encendido por piloto) | C70: 0.55 | E70: Rendimiento_Calefaccion | F70: =+VLOOKUP('Datos Generales Edificio'!$F$51,Tablas2!$B$70:$C$78,2,FALSE) -> 0.77 | X70: Sala de ventas (Excepto en subterráneo) | Y70: 3.8 | Z70: 0.6 | AA70: 15 | AC70: Exam/treatment | AD70: 16 | AF70: Sala de trabajo limpia | AG70: 2 | AH70: 4 | AI70: - | AS70: IX | AT70: Teodoro Schmidt | AU70: IX - Región de Araucanía | BR70: Recinto 65 | BS70: =+IFERROR(VLOOKUP('Datos Generales Edificio'!#REF!,$BO$5:$BP$32,2,FALSE),"") ->  | BT70: =+IF('Datos Generales Edificio'!#REF!<>"",'Datos Generales Edificio'!#REF!,"") ->  | BU70: 0 | BV70: =+'Datos Generales Edificio'!#REF! ->  | BX70: =+IF('Datos Generales Edificio'!#REF!<>"",'Datos Generales Edificio'!#REF!,"") ->  | BY70: 0 | BZ70: =+'Datos Generales Edificio'!#REF! ->  | CB70: =IF('Datos Generales Edificio'!#REF!<>"",'Datos Generales Edificio'!#REF!,"") ->  | CC70: 0 | CD70: =+'Datos Generales Edificio'!#REF! ->  | CF70: =IF('Datos Generales Edificio'!#REF!<>"",'Datos Generales Edificio'!#REF!,"") ->  | CG70: 0 | CH70: =+'Datos Generales Edificio'!#REF! ->  | CJ70: =IF('Datos Generales Edificio'!#REF!<>"",'Datos Generales Edificio'!#REF!,"") ->  | CK70: 0 | CL70: =+'Datos Generales Edificio'!#REF! ->  | CN70: 0 | CO70: 0 | CP70: 0 | DA70: Y | DB70: Ciudades | DC70: 7 | DD70: 60a | DE70: 60
B71: Caldera de eficiencia media (encendido por chispa) | C71: 0.65 | E71: Rendimiento_Refrigeracion | F71: =+VLOOKUP('Datos Generales Edificio'!$F$52,Tablas2!$B$80:$C$89,2,FALSE) -> 5 | X71: Áreas comunes de un Mall | Y71: 3.8 | Z71: 0.3 | AA71: 40 | AC71: Dormitory-living quarters | AD71: 12 | AF71: Almacenamiento estéril | AG71: 2 | AH71: 4 | AI71: - | AS71: IX | AT71: Toltén | AU71: IX - Región de Araucanía | BR71: Recinto 66 | BS71: =+IFERROR(VLOOKUP('Datos Generales Edificio'!#REF!,$BO$5:$BP$32,2,FALSE),"") ->  | BT71: =+IF('Datos Generales Edificio'!#REF!<>"",'Datos Generales Edificio'!#REF!,"") ->  | BU71: =+SUMIFS($BM$5:$BM$29,$BK$5:$BK$29,VLOOKUP($BR71,$BR$6:$BS$105,2,FALSE),$BL$5:$BL$29,VLOOKUP(BT71,$BR$6:$BS$105,2,FALSE)) -> 0 | BV71: =+'Datos Generales Edificio'!#REF! ->  | BW71: =+IF(BU71>0,IF(BV71>=(BU71+5),"Muy Bueno",IF(AND(BV71>=BU71,BV71<(BU71+5)),"Bueno","No cumple")),"") ->  | BX71: =+IF('Datos Generales Edificio'!#REF!<>"",'Datos Generales Edificio'!#REF!,"") ->  | BY71: =+SUMIFS($BM$5:$BM$29,$BK$5:$BK$29,VLOOKUP($BR71,$BR$6:$BS$105,2,FALSE),$BL$5:$BL$29,VLOOKUP(BX71,$BR$6:$BS$105,2,FALSE)) -> 0 | BZ71: =+'Datos Generales Edificio'!#REF! ->  | CA71: =+IF(BY71>0,IF(BZ71>=(BY71+5),"Muy Bueno",IF(AND(BZ71>=BY71,BZ71<(BY71+5)),"Bueno","No cumple")),"") ->  | CB71: =IF('Datos Generales Edificio'!#REF!<>"",'Datos Generales Edificio'!#REF!,"") ->  | CC71: =+SUMIFS($BM$5:$BM$29,$BK$5:$BK$29,VLOOKUP($BR71,$BR$6:$BS$105,2,FALSE),$BL$5:$BL$29,VLOOKUP(CB71,$BR$6:$BS$105,2,FALSE)) -> 0 | CD71: =+'Datos Generales Edificio'!#REF! ->  | CE71: =+IF(CC71>0,IF(CD71>=(CC71+5),"Muy Bueno",IF(AND(CD71>=CC71,CD71<(CC71+5)),"Bueno","No cumple")),"") ->  | CF71: =IF('Datos Generales Edificio'!#REF!<>"",'Datos Generales Edificio'!#REF!,"") ->  | CG71: =+SUMIFS($BM$5:$BM$29,$BK$5:$BK$29,VLOOKUP($BR71,$BR$6:$BS$105,2,FALSE),$BL$5:$BL$29,VLOOKUP(CF71,$BR$6:$BS$105,2,FALSE)) -> 0 | CH71: =+'Datos Generales Edificio'!#REF! ->  | CI71: =+IF(CG71>0,IF(CH71>=(CG71+5),"Muy Bueno",IF(AND(CH71>=CG71,CH71<(CG71+5)),"Bueno","No cumple")),"") ->  | CJ71: =IF('Datos Generales Edificio'!#REF!<>"",'Datos Generales Edificio'!#REF!,"") ->  | CK71: =+SUMIFS($BM$5:$BM$29,$BK$5:$BK$29,VLOOKUP($BR71,$BR$6:$BS$105,2,FALSE),$BL$5:$BL$29,VLOOKUP(CJ71,$BR$6:$BS$105,2,FALSE)) -> 0 | CL71: =+'Datos Generales Edificio'!#REF! ->  | CM71: =+IF(CK71>0,IF(CL71>=(CK71+5),"Muy Bueno",IF(AND(CL71>=CK71,CL71<(CK71+5)),"Bueno","No cumple")),"") ->  | CN71: =+COUNTIF(BS71:CM71,"Muy Bueno") -> 0 | CO71: =+COUNTIF(BS71:CM71,"Bueno") -> 0 | CP71: =+COUNTIF(BS71:CM71,"No Cumple") -> 0 | CQ71: =+IF(SUM(CN71:CP71)>0,IF(CP71>0,"No Cumple",IF(CO71>0,"Bueno","Muy Bueno")),"") ->  | DA71: Y | DB71: Ciudades | DC71: 8 | DD71: 60a | DE71: 60
B72: Caldera de condensación o de alta eficiencia | C72: 0.95 | X72: Barbería | Y72: 3.8 | Z72: 0.3 | AA72: 25 | AC72: Lobby | AD72: 14 | AF72: SERVICIO | AS72: IX | AT72: Traiguén | AU72: IX - Región de Araucanía | BR72: Recinto 67 | BS72: =+IFERROR(VLOOKUP('Datos Generales Edificio'!#REF!,$BO$5:$BP$32,2,FALSE),"") ->  | BT72: =+IF('Datos Generales Edificio'!#REF!<>"",'Datos Generales Edificio'!#REF!,"") ->  | BU72: 0 | BV72: =+'Datos Generales Edificio'!#REF! ->  | BX72: =+IF('Datos Generales Edificio'!#REF!<>"",'Datos Generales Edificio'!#REF!,"") ->  | BY72: 0 | BZ72: =+'Datos Generales Edificio'!#REF! ->  | CB72: =IF('Datos Generales Edificio'!#REF!<>"",'Datos Generales Edificio'!#REF!,"") ->  | CC72: 0 | CD72: =+'Datos Generales Edificio'!#REF! ->  | CF72: =IF('Datos Generales Edificio'!#REF!<>"",'Datos Generales Edificio'!#REF!,"") ->  | CG72: 0 | CH72: =+'Datos Generales Edificio'!#REF! ->  | CJ72: =IF('Datos Generales Edificio'!#REF!<>"",'Datos Generales Edificio'!#REF!,"") ->  | CK72: 0 | CL72: =+'Datos Generales Edificio'!#REF! ->  | CN72: 0 | CO72: 0 | CP72: 0 | DA72: Y | DB72: Ciudades | DC72: 9 | DD72: 60a | DE72: 60
B73: Caldera Petróleo | C73: 0.77 | X73: Salón de belleza | Y73: 10 | Z73: 0.6 | AA73: 25 | AC73: Estacionamiento | AD73: 2 | AF73: Centro de preparación de alimentos | AG73: 2 | AH73: 10 | AI73: - | AS73: IX | AT73: Victoria | AU73: IX - Región de Araucanía | BR73: Recinto 68 | BS73: =+IFERROR(VLOOKUP('Datos Generales Edificio'!#REF!,$BO$5:$BP$32,2,FALSE),"") ->  | BT73: =+IF('Datos Generales Edificio'!#REF!<>"",'Datos Generales Edificio'!#REF!,"") ->  | BU73: 0 | BV73: =+'Datos Generales Edificio'!#REF! ->  | BX73: =+IF('Datos Generales Edificio'!#REF!<>"",'Datos Generales Edificio'!#REF!,"") ->  | BY73: 0 | BZ73: =+'Datos Generales Edificio'!#REF! ->  | CB73: =IF('Datos Generales Edificio'!#REF!<>"",'Datos Generales Edificio'!#REF!,"") ->  | CC73: 0 | CD73: =+'Datos Generales Edificio'!#REF! ->  | CF73: =IF('Datos Generales Edificio'!#REF!<>"",'Datos Generales Edificio'!#REF!,"") ->  | CG73: 0 | CH73: =+'Datos Generales Edificio'!#REF! ->  | CJ73: =IF('Datos Generales Edificio'!#REF!<>"",'Datos Generales Edificio'!#REF!,"") ->  | CK73: 0 | CL73: =+'Datos Generales Edificio'!#REF! ->  | CN73: 0 | CO73: 0 | CP73: 0 | DA73: Y | DB73: Ciudades | DC73: 10 | DD73: 60a | DE73: 60
B74: Caldera a Leña | C74: 0.54 | X74: Tienda de animales (Área de animales) | Y74: 3.8 | Z74: 0.9 | AA74: 10 | AC74: Escaleras | AD74: 6 | AF74: Lavado y desinfección | AG74: - | AH74: 10 | AI74: - | AS74: IX | AT74: Vilcún | AU74: IX - Región de Araucanía | BR74: Recinto 69 | BS74: =+IFERROR(VLOOKUP('Datos Generales Edificio'!#REF!,$BO$5:$BP$32,2,FALSE),"") ->  | BT74: =+IF('Datos Generales Edificio'!#REF!<>"",'Datos Generales Edificio'!#REF!,"") ->  | BU74: 0 | BV74: =+'Datos Generales Edificio'!#REF! ->  | BX74: =+IF('Datos Generales Edificio'!#REF!<>"",'Datos Generales Edificio'!#REF!,"") ->  | BY74: 0 | BZ74: =+'Datos Generales Edificio'!#REF! ->  | CB74: =IF('Datos Generales Edificio'!#REF!<>"",'Datos Generales Edificio'!#REF!,"") ->  | CC74: 0 | CD74: =+'Datos Generales Edificio'!#REF! ->  | CF74: =IF('Datos Generales Edificio'!#REF!<>"",'Datos Generales Edificio'!#REF!,"") ->  | CG74: 0 | CH74: =+'Datos Generales Edificio'!#REF! ->  | CJ74: =IF('Datos Generales Edificio'!#REF!<>"",'Datos Generales Edificio'!#REF!,"") ->  | CK74: 0 | CL74: =+'Datos Generales Edificio'!#REF! ->  | CN74: 0 | CO74: 0 | CP74: 0 | DA74: Y | DB74: Ciudades | DC74: 11 | DD74: 60a | DE74: 60
B75: Caldera a Pellet | C75: 0.63 | X75: Supermercado | Y75: 3.8 | Z75: 0.3 | AA75: 8 | AC75: Pasillos | AD75: 5 | AG75: Mínimo de recambio de aire exterior por hora | AH75: Mínimo del recambio de aire total por persona | AI75: Humedad relativa (%) | AS75: IX | AT75: Villarrica | AU75: IX - Región de Araucanía | BR75: Recinto 70 | BS75: =+IFERROR(VLOOKUP('Datos Generales Edificio'!#REF!,$BO$5:$BP$32,2,FALSE),"") ->  | BT75: =+IF('Datos Generales Edificio'!#REF!<>"",'Datos Generales Edificio'!#REF!,"") ->  | BU75: 0 | BV75: =+'Datos Generales Edificio'!#REF! ->  | BX75: =+IF('Datos Generales Edificio'!#REF!<>"",'Datos Generales Edificio'!#REF!,"") ->  | BY75: 0 | BZ75: =+'Datos Generales Edificio'!#REF! ->  | CB75: =IF('Datos Generales Edificio'!#REF!<>"",'Datos Generales Edificio'!#REF!,"") ->  | CC75: 0 | CD75: =+'Datos Generales Edificio'!#REF! ->  | CF75: =IF('Datos Generales Edificio'!#REF!<>"",'Datos Generales Edificio'!#REF!,"") ->  | CG75: 0 | CH75: =+'Datos Generales Edificio'!#REF! ->  | CJ75: =IF('Datos Generales Edificio'!#REF!<>"",'Datos Generales Edificio'!#REF!,"") ->  | CK75: 0 | CL75: =+'Datos Generales Edificio'!#REF! ->  | CN75: 0 | CO75: 0 | CP75: 0 | DA75: Y | DB75: Ciudades | DC75: 12 | DD75: 60a | DE75: 60
B76: Resistencia Eléctrica | C76: 1 | X76: Lavandería común | Y76: 3.8 | Z76: 0.3 | AA76: 20 | AC76: Hall | AD76: 14 | AF76: (Continuación) | AS76: RM | AT76: Alhué | AU76: RM - Región Metropolitana de Santiago | BR76: Recinto 71 | BS76: =+IFERROR(VLOOKUP('Datos Generales Edificio'!#REF!,$BO$5:$BP$32,2,FALSE),"") ->  | BT76: =+IF('Datos Generales Edificio'!#REF!<>"",'Datos Generales Edificio'!#REF!,"") ->  | BU76: 0 | BV76: =+'Datos Generales Edificio'!#REF! ->  | BX76: =+IF('Datos Generales Edificio'!#REF!<>"",'Datos Generales Edificio'!#REF!,"") ->  | BY76: 0 | BZ76: =+'Datos Generales Edificio'!#REF! ->  | CB76: =IF('Datos Generales Edificio'!#REF!<>"",'Datos Generales Edificio'!#REF!,"") ->  | CC76: 0 | CD76: =+'Datos Generales Edificio'!#REF! ->  | CF76: =IF('Datos Generales Edificio'!#REF!<>"",'Datos Generales Edificio'!#REF!,"") ->  | CG76: 0 | CH76: =+'Datos Generales Edificio'!#REF! ->  | CJ76: =IF('Datos Generales Edificio'!#REF!<>"",'Datos Generales Edificio'!#REF!,"") ->  | CK76: 0 | CL76: =+'Datos Generales Edificio'!#REF! ->  | CN76: 0 | CO76: 0 | CP76: 0 | DA76: Y | DB76: Ciudades | DC76: 13 | DD76: 60a | DE76: 60
B77: Bomba Calor agua - agua | C77: 4.5 | X77: Deporte y entretenimiento | AC77: Sala Multiuso | AD77: 14 | AS77: RM | AT77: Buin | AU77: RM - Región Metropolitana de Santiago | BR77: Recinto 72 | BS77: =+IFERROR(VLOOKUP('Datos Generales Edificio'!#REF!,$BO$5:$BP$32,2,FALSE),"") ->  | BT77: =+IF('Datos Generales Edificio'!#REF!<>"",'Datos Generales Edificio'!#REF!,"") ->  | BU77: 0 | BV77: =+'Datos Generales Edificio'!#REF! ->  | BX77: =+IF('Datos Generales Edificio'!#REF!<>"",'Datos Generales Edificio'!#REF!,"") ->  | BY77: 0 | BZ77: =+'Datos Generales Edificio'!#REF! ->  | CB77: =IF('Datos Generales Edificio'!#REF!<>"",'Datos Generales Edificio'!#REF!,"") ->  | CC77: 0 | CD77: =+'Datos Generales Edificio'!#REF! ->  | CF77: =IF('Datos Generales Edificio'!#REF!<>"",'Datos Generales Edificio'!#REF!,"") ->  | CG77: 0 | CH77: =+'Datos Generales Edificio'!#REF! ->  | CJ77: =IF('Datos Generales Edificio'!#REF!<>"",'Datos Generales Edificio'!#REF!,"") ->  | CK77: 0 | CL77: =+'Datos Generales Edificio'!#REF! ->  | CN77: 0 | CO77: 0 | CP77: 0 | DA77: Y | DB77: Ciudades | DC77: 14 | DD77: 60a | DE77: 60
B78: Bomba Calor aire - agua | C78: 2.4 | X78: Zona de deporte (Área de juego) | Y78: - | Z78: 1.5 | AA78: - | AC78: Auditorio | AD78: 10 | AF78: Función del espacio | AS78: RM | AT78: Calera de Tango | AU78: RM - Región Metropolitana de Santiago | BR78: Recinto 73 | BS78: =+IFERROR(VLOOKUP('Datos Generales Edificio'!#REF!,$BO$5:$BP$32,2,FALSE),"") ->  | BT78: =+IF('Datos Generales Edificio'!#REF!<>"",'Datos Generales Edificio'!#REF!,"") ->  | BU78: 0 | BV78: =+'Datos Generales Edificio'!#REF! ->  | BX78: =+IF('Datos Generales Edificio'!#REF!<>"",'Datos Generales Edificio'!#REF!,"") ->  | BY78: 0 | BZ78: =+'Datos Generales Edificio'!#REF! ->  | CB78: =IF('Datos Generales Edificio'!#REF!<>"",'Datos Generales Edificio'!#REF!,"") ->  | CC78: 0 | CD78: =+'Datos Generales Edificio'!#REF! ->  | CF78: =IF('Datos Generales Edificio'!#REF!<>"",'Datos Generales Edificio'!#REF!,"") ->  | CG78: 0 | CH78: =+'Datos Generales Edificio'!#REF! ->  | CJ78: =IF('Datos Generales Edificio'!#REF!<>"",'Datos Generales Edificio'!#REF!,"") ->  | CK78: 0 | CL78: =+'Datos Generales Edificio'!#REF! ->  | CN78: 0 | CO78: 0 | CP78: 0 | DA78: Y | DB78: Ciudades | DC78: 15 | DD78: 60a | DE78: 60
X79: Gimnasio, estadio (Área de juego) | Y79: - | Z79: 1.5 | AA79: 30 | AC79: Equipamiento | AD79: 16 | AF79: Almacenamiento dieta diaria | AG79: - | AH79: 2 | AI79: - | AS79: RM | AT79: Cerrillos | AU79: RM - Región Metropolitana de Santiago | BR79: Recinto 74 | BS79: =+IFERROR(VLOOKUP('Datos Generales Edificio'!#REF!,$BO$5:$BP$32,2,FALSE),"") ->  | BT79: =+IF('Datos Generales Edificio'!#REF!<>"",'Datos Generales Edificio'!#REF!,"") ->  | BU79: 0 | BV79: =+'Datos Generales Edificio'!#REF! ->  | BX79: =+IF('Datos Generales Edificio'!#REF!<>"",'Datos Generales Edificio'!#REF!,"") ->  | BY79: 0 | BZ79: =+'Datos Generales Edificio'!#REF! ->  | CB79: =IF('Datos Generales Edificio'!#REF!<>"",'Datos Generales Edificio'!#REF!,"") ->  | CC79: 0 | CD79: =+'Datos Generales Edificio'!#REF! ->  | CF79: =IF('Datos Generales Edificio'!#REF!<>"",'Datos Generales Edificio'!#REF!,"") ->  | CG79: 0 | CH79: =+'Datos Generales Edificio'!#REF! ->  | CJ79: =IF('Datos Generales Edificio'!#REF!<>"",'Datos Generales Edificio'!#REF!,"") ->  | CK79: 0 | CL79: =+'Datos Generales Edificio'!#REF! ->  | CN79: 0 | CO79: 0 | CP79: 0 | DA79: Y | DB79: Ciudades | DC79: 16 | DD79: 60a | DE79: 60
B80: Compresor - centrífugo | C80: 5 | X80: Área de espectadores | Y80: 3.8 | Z80: 0.3 | AA80: 150 | AC80: Local comercial | AD80: 18 | AF80: Lavandería general | AG80: 2 | AH80: 10 | AI80: - | AS80: RM | AT80: Cerro Navia | AU80: RM - Región Metropolitana de Santiago | BR80: Recinto 75 | BS80: =+IFERROR(VLOOKUP('Datos Generales Edificio'!#REF!,$BO$5:$BP$32,2,FALSE),"") ->  | BT80: =+IF('Datos Generales Edificio'!#REF!<>"",'Datos Generales Edificio'!#REF!,"") ->  | BU80: 0 | BV80: =+'Datos Generales Edificio'!#REF! ->  | BX80: =+IF('Datos Generales Edificio'!#REF!<>"",'Datos Generales Edificio'!#REF!,"") ->  | BY80: 0 | BZ80: =+'Datos Generales Edificio'!#REF! ->  | CB80: =IF('Datos Generales Edificio'!#REF!<>"",'Datos Generales Edificio'!#REF!,"") ->  | CC80: 0 | CD80: =+'Datos Generales Edificio'!#REF! ->  | CF80: =IF('Datos Generales Edificio'!#REF!<>"",'Datos Generales Edificio'!#REF!,"") ->  | CG80: 0 | CH80: =+'Datos Generales Edificio'!#REF! ->  | CJ80: =IF('Datos Generales Edificio'!#REF!<>"",'Datos Generales Edificio'!#REF!,"") ->  | CK80: 0 | CL80: =+'Datos Generales Edificio'!#REF! ->  | CN80: 0 | CO80: 0 | CP80: 0 | DA80: Y | DB80: Ciudades | DC80: 17 | DD80: 60a | DE80: 60
B81: Compresor - alternativo | C81: 3.8 | X81: Natación (piscina y cubierta) | Y81: - | Z81: 2.4 | AA81: - | AC81: Baños | AD81: 10 | AF81: Clasificación de la ropa sucia y almacenamiento | AG81: - | AH81: 10 | AI81: - | AS81: RM | AT81: Colina | AU81: RM - Región Metropolitana de Santiago | BR81: Recinto 76 | BS81: =+IFERROR(VLOOKUP('Datos Generales Edificio'!#REF!,$BO$5:$BP$32,2,FALSE),"") ->  | BT81: =+IF('Datos Generales Edificio'!#REF!<>"",'Datos Generales Edificio'!#REF!,"") ->  | BU81: 0 | BV81: =+'Datos Generales Edificio'!#REF! ->  | BX81: =+IF('Datos Generales Edificio'!#REF!<>"",'Datos Generales Edificio'!#REF!,"") ->  | BY81: 0 | BZ81: =+'Datos Generales Edificio'!#REF! ->  | CB81: =IF('Datos Generales Edificio'!#REF!<>"",'Datos Generales Edificio'!#REF!,"") ->  | CC81: 0 | CD81: =+'Datos Generales Edificio'!#REF! ->  | CF81: =IF('Datos Generales Edificio'!#REF!<>"",'Datos Generales Edificio'!#REF!,"") ->  | CG81: 0 | CH81: =+'Datos Generales Edificio'!#REF! ->  | CJ81: =IF('Datos Generales Edificio'!#REF!<>"",'Datos Generales Edificio'!#REF!,"") ->  | CK81: 0 | CL81: =+'Datos Generales Edificio'!#REF! ->  | CN81: 0 | CO81: 0 | CP81: 0 | DA81: Y | DB81: Ciudades | DC81: 18 | DD81: 60a | DE81: 60
B82: Compresor de tornillo | C82: 4.1 | X82: Disco/piso de baile | Y82: 10 | Z82: 0.3 | AA82: 100 | AF82: Almacenamiento de ropa limpia | AG82: 2 | AH82: 2 | AI82: - | AS82: RM | AT82: Conchalí | AU82: RM - Región Metropolitana de Santiago | BR82: Recinto 77 | BS82: =+IFERROR(VLOOKUP('Datos Generales Edificio'!#REF!,$BO$5:$BP$32,2,FALSE),"") ->  | BT82: =+IF('Datos Generales Edificio'!#REF!<>"",'Datos Generales Edificio'!#REF!,"") ->  | BU82: 0 | BV82: =+'Datos Generales Edificio'!#REF! ->  | BX82: =+IF('Datos Generales Edificio'!#REF!<>"",'Datos Generales Edificio'!#REF!,"") ->  | BY82: 0 | BZ82: =+'Datos Generales Edificio'!#REF! ->  | CB82: =IF('Datos Generales Edificio'!#REF!<>"",'Datos Generales Edificio'!#REF!,"") ->  | CC82: 0 | CD82: =+'Datos Generales Edificio'!#REF! ->  | CF82: =IF('Datos Generales Edificio'!#REF!<>"",'Datos Generales Edificio'!#REF!,"") ->  | CG82: 0 | CH82: =+'Datos Generales Edificio'!#REF! ->  | CJ82: =IF('Datos Generales Edificio'!#REF!<>"",'Datos Generales Edificio'!#REF!,"") ->  | CK82: 0 | CL82: =+'Datos Generales Edificio'!#REF! ->  | CN82: 0 | CO82: 0 | CP82: 0 | DA82: Y | DB82: Ciudades | DC82: 19 | DD82: 60a | DE82: 60
B83: Compresor - scroll | C83: 4.6 | X83: Club de salud/sala de aeróbica | Y83: 10 | Z83: 0.3 | AA83: 40 | AF83: Sala del conducto de ropa de cama y basura | AG83: - | AH83: 10 | AI83: - | AS83: RM | AT83: Curacaví | AU83: RM - Región Metropolitana de Santiago | BR83: Recinto 78 | BS83: =+IFERROR(VLOOKUP('Datos Generales Edificio'!#REF!,$BO$5:$BP$32,2,FALSE),"") ->  | BT83: =+IF('Datos Generales Edificio'!#REF!<>"",'Datos Generales Edificio'!#REF!,"") ->  | BU83: 0 | BV83: =+'Datos Generales Edificio'!#REF! ->  | BX83: =+IF('Datos Generales Edificio'!#REF!<>"",'Datos Generales Edificio'!#REF!,"") ->  | BY83: 0 | BZ83: =+'Datos Generales Edificio'!#REF! ->  | CB83: =IF('Datos Generales Edificio'!#REF!<>"",'Datos Generales Edificio'!#REF!,"") ->  | CC83: 0 | CD83: =+'Datos Generales Edificio'!#REF! ->  | CF83: =IF('Datos Generales Edificio'!#REF!<>"",'Datos Generales Edificio'!#REF!,"") ->  | CG83: 0 | CH83: =+'Datos Generales Edificio'!#REF! ->  | CJ83: =IF('Datos Generales Edificio'!#REF!<>"",'Datos Generales Edificio'!#REF!,"") ->  | CK83: 0 | CL83: =+'Datos Generales Edificio'!#REF! ->  | CN83: 0 | CO83: 0 | CP83: 0 | DA83: Y | DB83: Ciudades | DC83: 20 | DD83: 60a | DE83: 60
B84: Bomba de calor - gas | C84: 1.1 | X84: Club de salud/sala de peso | Y84: 10 | Z84: 0.3 | AA84: 10 | AF84: Sala de bacinillas | AG84: - | AH84: 10 | AI84: - | AS84: RM | AT84: El Bosque | AU84: RM - Región Metropolitana de Santiago | BR84: Recinto 79 | BS84: =+IFERROR(VLOOKUP('Datos Generales Edificio'!#REF!,$BO$5:$BP$32,2,FALSE),"") ->  | BT84: =+IF('Datos Generales Edificio'!#REF!<>"",'Datos Generales Edificio'!#REF!,"") ->  | BU84: 0 | BV84: =+'Datos Generales Edificio'!#REF! ->  | BX84: =+IF('Datos Generales Edificio'!#REF!<>"",'Datos Generales Edificio'!#REF!,"") ->  | BY84: 0 | BZ84: =+'Datos Generales Edificio'!#REF! ->  | CB84: =IF('Datos Generales Edificio'!#REF!<>"",'Datos Generales Edificio'!#REF!,"") ->  | CC84: 0 | CD84: =+'Datos Generales Edificio'!#REF! ->  | CF84: =IF('Datos Generales Edificio'!#REF!<>"",'Datos Generales Edificio'!#REF!,"") ->  | CG84: 0 | CH84: =+'Datos Generales Edificio'!#REF! ->  | CJ84: =IF('Datos Generales Edificio'!#REF!<>"",'Datos Generales Edificio'!#REF!,"") ->  | CK84: 0 | CL84: =+'Datos Generales Edificio'!#REF! ->  | CN84: 0 | CO84: 0 | CP84: 0 | DA84: Z | DB84: Terreno abierto | DC84: 1 | DD84: 60a | DE84: 60
B85: Bomba de calor - aire | C85: 1.3 | X85: Pista de bowling (Asientos) | Y85: 5 | Z85: 0.6 | AA85: 40 | AF85: Baños | AG85: - | AH85: 10 | AI85: - | AS85: RM | AT85: El Monte | AU85: RM - Región Metropolitana de Santiago | BR85: Recinto 80 | BS85: =+IFERROR(VLOOKUP('Datos Generales Edificio'!#REF!,$BO$5:$BP$32,2,FALSE),"") ->  | BT85: =+IF('Datos Generales Edificio'!#REF!<>"",'Datos Generales Edificio'!#REF!,"") ->  | BU85: 0 | BV85: =+'Datos Generales Edificio'!#REF! ->  | BX85: =+IF('Datos Generales Edificio'!#REF!<>"",'Datos Generales Edificio'!#REF!,"") ->  | BY85: 0 | BZ85: =+'Datos Generales Edificio'!#REF! ->  | CB85: =IF('Datos Generales Edificio'!#REF!<>"",'Datos Generales Edificio'!#REF!,"") ->  | CC85: 0 | CD85: =+'Datos Generales Edificio'!#REF! ->  | CF85: =IF('Datos Generales Edificio'!#REF!<>"",'Datos Generales Edificio'!#REF!,"") ->  | CG85: 0 | CH85: =+'Datos Generales Edificio'!#REF! ->  | CJ85: =IF('Datos Generales Edificio'!#REF!<>"",'Datos Generales Edificio'!#REF!,"") ->  | CK85: 0 | CL85: =+'Datos Generales Edificio'!#REF! ->  | CN85: 0 | CO85: 0 | CP85: 0 | DA85: Z | DB85: Terreno abierto | DC85: 2 | DD85: 60a | DE85: 60
B86: Bomba de calor - agua | C86: 3 | X86: Casino de juegos | Y86: 3.8 | Z86: 0.9 | AA86: 120 | AF86: Armario de conserje | AG86: - | AH86: 10 | AI86: - | AS86: RM | AT86: Estación Central | AU86: RM - Región Metropolitana de Santiago | BR86: Recinto 81 | BS86: =+IFERROR(VLOOKUP('Datos Generales Edificio'!#REF!,$BO$5:$BP$32,2,FALSE),"") ->  | BT86: =+IF('Datos Generales Edificio'!#REF!<>"",'Datos Generales Edificio'!#REF!,"") ->  | BU86: 0 | BV86: =+'Datos Generales Edificio'!#REF! ->  | BX86: =+IF('Datos Generales Edificio'!#REF!<>"",'Datos Generales Edificio'!#REF!,"") ->  | BY86: 0 | BZ86: =+'Datos Generales Edificio'!#REF! ->  | CB86: =IF('Datos Generales Edificio'!#REF!<>"",'Datos Generales Edificio'!#REF!,"") ->  | CC86: 0 | CD86: =+'Datos Generales Edificio'!#REF! ->  | CF86: =IF('Datos Generales Edificio'!#REF!<>"",'Datos Generales Edificio'!#REF!,"") ->  | CG86: 0 | CH86: =+'Datos Generales Edificio'!#REF! ->  | CJ86: =IF('Datos Generales Edificio'!#REF!<>"",'Datos Generales Edificio'!#REF!,"") ->  | CK86: 0 | CL86: =+'Datos Generales Edificio'!#REF! ->  | CN86: 0 | CO86: 0 | CP86: 0 | DA86: Z | DB86: Terreno abierto | DC86: 3 | DD86: 30a | DE86: 30
B87: Absorción - un efecto | C87: 0.65 | X87: Juegos de video | Y87: 3.8 | Z87: 0.9 | AA87: 20 | AS87: RM | AT87: Huechuraba | AU87: RM - Región Metropolitana de Santiago | BR87: Recinto 82 | BS87: =+IFERROR(VLOOKUP('Datos Generales Edificio'!#REF!,$BO$5:$BP$32,2,FALSE),"") ->  | BT87: =+IF('Datos Generales Edificio'!#REF!<>"",'Datos Generales Edificio'!#REF!,"") ->  | BU87: 0 | BV87: =+'Datos Generales Edificio'!#REF! ->  | BX87: =+IF('Datos Generales Edificio'!#REF!<>"",'Datos Generales Edificio'!#REF!,"") ->  | BY87: 0 | BZ87: =+'Datos Generales Edificio'!#REF! ->  | CB87: =IF('Datos Generales Edificio'!#REF!<>"",'Datos Generales Edificio'!#REF!,"") ->  | CC87: 0 | CD87: =+'Datos Generales Edificio'!#REF! ->  | CF87: =IF('Datos Generales Edificio'!#REF!<>"",'Datos Generales Edificio'!#REF!,"") ->  | CG87: 0 | CH87: =+'Datos Generales Edificio'!#REF! ->  | CJ87: =IF('Datos Generales Edificio'!#REF!<>"",'Datos Generales Edificio'!#REF!,"") ->  | CK87: 0 | CL87: =+'Datos Generales Edificio'!#REF! ->  | CN87: 0 | CO87: 0 | CP87: 0 | DA87: Z | DB87: Terreno abierto | DC87: 4 | DD87: 30a | DE87: 30
B88: Absorción - dos efectos | C88: 1.2 | X88: Estudio | Y88: 5 | Z88: 0.3 | AA88: 70 | AS88: RM | AT88: Independencia | AU88: RM - Región Metropolitana de Santiago | BR88: Recinto 83 | BS88: =+IFERROR(VLOOKUP('Datos Generales Edificio'!#REF!,$BO$5:$BP$32,2,FALSE),"") ->  | BT88: =+IF('Datos Generales Edificio'!#REF!<>"",'Datos Generales Edificio'!#REF!,"") ->  | BU88: 0 | BV88: =+'Datos Generales Edificio'!#REF! ->  | BX88: =+IF('Datos Generales Edificio'!#REF!<>"",'Datos Generales Edificio'!#REF!,"") ->  | BY88: 0 | BZ88: =+'Datos Generales Edificio'!#REF! ->  | CB88: =IF('Datos Generales Edificio'!#REF!<>"",'Datos Generales Edificio'!#REF!,"") ->  | CC88: 0 | CD88: =+'Datos Generales Edificio'!#REF! ->  | CF88: =IF('Datos Generales Edificio'!#REF!<>"",'Datos Generales Edificio'!#REF!,"") ->  | CG88: 0 | CH88: =+'Datos Generales Edificio'!#REF! ->  | CJ88: =IF('Datos Generales Edificio'!#REF!<>"",'Datos Generales Edificio'!#REF!,"") ->  | CK88: 0 | CL88: =+'Datos Generales Edificio'!#REF! ->  | CN88: 0 | CO88: 0 | CP88: 0 | DA88: Z | DB88: Terreno abierto | DC88: 5 | DD88: 30a | DE88: 30
B89: Por corriente de vapor | C89: 0.2 | AS89: RM | AT89: Isla de Maipo | AU89: RM - Región Metropolitana de Santiago | BR89: Recinto 84 | BS89: =+IFERROR(VLOOKUP('Datos Generales Edificio'!#REF!,$BO$5:$BP$32,2,FALSE),"") ->  | BT89: =+IF('Datos Generales Edificio'!#REF!<>"",'Datos Generales Edificio'!#REF!,"") ->  | BU89: 0 | BV89: =+'Datos Generales Edificio'!#REF! ->  | BX89: =+IF('Datos Generales Edificio'!#REF!<>"",'Datos Generales Edificio'!#REF!,"") ->  | BY89: 0 | BZ89: =+'Datos Generales Edificio'!#REF! ->  | CB89: =IF('Datos Generales Edificio'!#REF!<>"",'Datos Generales Edificio'!#REF!,"") ->  | CC89: 0 | CD89: =+'Datos Generales Edificio'!#REF! ->  | CF89: =IF('Datos Generales Edificio'!#REF!<>"",'Datos Generales Edificio'!#REF!,"") ->  | CG89: 0 | CH89: =+'Datos Generales Edificio'!#REF! ->  | CJ89: =IF('Datos Generales Edificio'!#REF!<>"",'Datos Generales Edificio'!#REF!,"") ->  | CK89: 0 | CL89: =+'Datos Generales Edificio'!#REF! ->  | CN89: 0 | CO89: 0 | CP89: 0 | DA89: Z | DB89: Terreno abierto | DC89: 6 | DD89: 30a | DE89: 30
AS90: RM | AT90: La Cisterna | AU90: RM - Región Metropolitana de Santiago | BR90: Recinto 85 | BS90: =+IFERROR(VLOOKUP('Datos Generales Edificio'!#REF!,$BO$5:$BP$32,2,FALSE),"") ->  | BT90: =+IF('Datos Generales Edificio'!#REF!<>"",'Datos Generales Edificio'!#REF!,"") ->  | BU90: 0 | BV90: =+'Datos Generales Edificio'!#REF! ->  | BX90: =+IF('Datos Generales Edificio'!#REF!<>"",'Datos Generales Edificio'!#REF!,"") ->  | BY90: 0 | BZ90: =+'Datos Generales Edificio'!#REF! ->  | CB90: =IF('Datos Generales Edificio'!#REF!<>"",'Datos Generales Edificio'!#REF!,"") ->  | CC90: 0 | CD90: =+'Datos Generales Edificio'!#REF! ->  | CF90: =IF('Datos Generales Edificio'!#REF!<>"",'Datos Generales Edificio'!#REF!,"") ->  | CG90: 0 | CH90: =+'Datos Generales Edificio'!#REF! ->  | CJ90: =IF('Datos Generales Edificio'!#REF!<>"",'Datos Generales Edificio'!#REF!,"") ->  | CK90: 0 | CL90: =+'Datos Generales Edificio'!#REF! ->  | CN90: 0 | CO90: 0 | CP90: 0 | DA90: Z | DB90: Terreno abierto | DC90: 7 | DD90: 30a | DE90: 30
AS91: RM | AT91: La Florida | AU91: RM - Región Metropolitana de Santiago | BR91: Recinto 86 | BS91: =+IFERROR(VLOOKUP('Datos Generales Edificio'!#REF!,$BO$5:$BP$32,2,FALSE),"") ->  | BT91: =+IF('Datos Generales Edificio'!#REF!<>"",'Datos Generales Edificio'!#REF!,"") ->  | BU91: 0 | BV91: =+'Datos Generales Edificio'!#REF! ->  | BX91: =+IF('Datos Generales Edificio'!#REF!<>"",'Datos Generales Edificio'!#REF!,"") ->  | BY91: 0 | BZ91: =+'Datos Generales Edificio'!#REF! ->  | CB91: =IF('Datos Generales Edificio'!#REF!<>"",'Datos Generales Edificio'!#REF!,"") ->  | CC91: 0 | CD91: =+'Datos Generales Edificio'!#REF! ->  | CF91: =IF('Datos Generales Edificio'!#REF!<>"",'Datos Generales Edificio'!#REF!,"") ->  | CG91: 0 | CH91: =+'Datos Generales Edificio'!#REF! ->  | CJ91: =IF('Datos Generales Edificio'!#REF!<>"",'Datos Generales Edificio'!#REF!,"") ->  | CK91: 0 | CL91: =+'Datos Generales Edificio'!#REF! ->  | CN91: 0 | CO91: 0 | CP91: 0 | DA91: Z | DB91: Terreno abierto | DC91: 8 | DD91: 30a | DE91: 30
AS92: RM | AT92: La Granja | AU92: RM - Región Metropolitana de Santiago | BR92: Recinto 87 | BS92: =+IFERROR(VLOOKUP('Datos Generales Edificio'!#REF!,$BO$5:$BP$32,2,FALSE),"") ->  | BT92: =+IF('Datos Generales Edificio'!#REF!<>"",'Datos Generales Edificio'!#REF!,"") ->  | BU92: 0 | BV92: =+'Datos Generales Edificio'!#REF! ->  | BX92: =+IF('Datos Generales Edificio'!#REF!<>"",'Datos Generales Edificio'!#REF!,"") ->  | BY92: 0 | BZ92: =+'Datos Generales Edificio'!#REF! ->  | CB92: =IF('Datos Generales Edificio'!#REF!<>"",'Datos Generales Edificio'!#REF!,"") ->  | CC92: 0 | CD92: =+'Datos Generales Edificio'!#REF! ->  | CF92: =IF('Datos Generales Edificio'!#REF!<>"",'Datos Generales Edificio'!#REF!,"") ->  | CG92: 0 | CH92: =+'Datos Generales Edificio'!#REF! ->  | CJ92: =IF('Datos Generales Edificio'!#REF!<>"",'Datos Generales Edificio'!#REF!,"") ->  | CK92: 0 | CL92: =+'Datos Generales Edificio'!#REF! ->  | CN92: 0 | CO92: 0 | CP92: 0 | DA92: Z | DB92: Terreno abierto | DC92: 9 | DD92: 30a | DE92: 30
AS93: RM | AT93: La Pintana | AU93: RM - Región Metropolitana de Santiago | BR93: Recinto 88 | BS93: =+IFERROR(VLOOKUP('Datos Generales Edificio'!#REF!,$BO$5:$BP$32,2,FALSE),"") ->  | BT93: =+IF('Datos Generales Edificio'!#REF!<>"",'Datos Generales Edificio'!#REF!,"") ->  | BU93: 0 | BV93: =+'Datos Generales Edificio'!#REF! ->  | BX93: =+IF('Datos Generales Edificio'!#REF!<>"",'Datos Generales Edificio'!#REF!,"") ->  | BY93: 0 | BZ93: =+'Datos Generales Edificio'!#REF! ->  | CB93: =IF('Datos Generales Edificio'!#REF!<>"",'Datos Generales Edificio'!#REF!,"") ->  | CC93: 0 | CD93: =+'Datos Generales Edificio'!#REF! ->  | CF93: =IF('Datos Generales Edificio'!#REF!<>"",'Datos Generales Edificio'!#REF!,"") ->  | CG93: 0 | CH93: =+'Datos Generales Edificio'!#REF! ->  | CJ93: =IF('Datos Generales Edificio'!#REF!<>"",'Datos Generales Edificio'!#REF!,"") ->  | CK93: 0 | CL93: =+'Datos Generales Edificio'!#REF! ->  | CN93: 0 | CO93: 0 | CP93: 0 | DA93: Z | DB93: Terreno abierto | DC93: 10 | DD93: 30a | DE93: 30
AS94: RM | AT94: La Reina | AU94: RM - Región Metropolitana de Santiago | BR94: Recinto 89 | BS94: =+IFERROR(VLOOKUP('Datos Generales Edificio'!#REF!,$BO$5:$BP$32,2,FALSE),"") ->  | BT94: =+IF('Datos Generales Edificio'!#REF!<>"",'Datos Generales Edificio'!#REF!,"") ->  | BU94: 0 | BV94: =+'Datos Generales Edificio'!#REF! ->  | BX94: =+IF('Datos Generales Edificio'!#REF!<>"",'Datos Generales Edificio'!#REF!,"") ->  | BY94: 0 | BZ94: =+'Datos Generales Edificio'!#REF! ->  | CB94: =IF('Datos Generales Edificio'!#REF!<>"",'Datos Generales Edificio'!#REF!,"") ->  | CC94: 0 | CD94: =+'Datos Generales Edificio'!#REF! ->  | CF94: =IF('Datos Generales Edificio'!#REF!<>"",'Datos Generales Edificio'!#REF!,"") ->  | CG94: 0 | CH94: =+'Datos Generales Edificio'!#REF! ->  | CJ94: =IF('Datos Generales Edificio'!#REF!<>"",'Datos Generales Edificio'!#REF!,"") ->  | CK94: 0 | CL94: =+'Datos Generales Edificio'!#REF! ->  | CN94: 0 | CO94: 0 | CP94: 0 | DA94: Z | DB94: Terreno abierto | DC94: 11 | DD94: 30a | DE94: 30
AS95: RM | AT95: Lampa | AU95: RM - Región Metropolitana de Santiago | BR95: Recinto 90 | BS95: =+IFERROR(VLOOKUP('Datos Generales Edificio'!#REF!,$BO$5:$BP$32,2,FALSE),"") ->  | BT95: =+IF('Datos Generales Edificio'!#REF!<>"",'Datos Generales Edificio'!#REF!,"") ->  | BU95: 0 | BV95: =+'Datos Generales Edificio'!#REF! ->  | BX95: =+IF('Datos Generales Edificio'!#REF!<>"",'Datos Generales Edificio'!#REF!,"") ->  | BY95: 0 | BZ95: =+'Datos Generales Edificio'!#REF! ->  | CB95: =IF('Datos Generales Edificio'!#REF!<>"",'Datos Generales Edificio'!#REF!,"") ->  | CC95: 0 | CD95: =+'Datos Generales Edificio'!#REF! ->  | CF95: =IF('Datos Generales Edificio'!#REF!<>"",'Datos Generales Edificio'!#REF!,"") ->  | CG95: 0 | CH95: =+'Datos Generales Edificio'!#REF! ->  | CJ95: =IF('Datos Generales Edificio'!#REF!<>"",'Datos Generales Edificio'!#REF!,"") ->  | CK95: 0 | CL95: =+'Datos Generales Edificio'!#REF! ->  | CN95: 0 | CO95: 0 | CP95: 0 | DA95: Z | DB95: Terreno abierto | DC95: 12 | DD95: 30a | DE95: 30
AS96: RM | AT96: Las Condes | AU96: RM - Región Metropolitana de Santiago | BR96: Recinto 91 | BS96: =+IFERROR(VLOOKUP('Datos Generales Edificio'!#REF!,$BO$5:$BP$32,2,FALSE),"") ->  | BT96: =+IF('Datos Generales Edificio'!#REF!<>"",'Datos Generales Edificio'!#REF!,"") ->  | BU96: 0 | BV96: =+'Datos Generales Edificio'!#REF! ->  | BX96: =+IF('Datos Generales Edificio'!#REF!<>"",'Datos Generales Edificio'!#REF!,"") ->  | BY96: 0 | BZ96: =+'Datos Generales Edificio'!#REF! ->  | CB96: =IF('Datos Generales Edificio'!#REF!<>"",'Datos Generales Edificio'!#REF!,"") ->  | CC96: 0 | CD96: =+'Datos Generales Edificio'!#REF! ->  | CF96: =IF('Datos Generales Edificio'!#REF!<>"",'Datos Generales Edificio'!#REF!,"") ->  | CG96: 0 | CH96: =+'Datos Generales Edificio'!#REF! ->  | CJ96: =IF('Datos Generales Edificio'!#REF!<>"",'Datos Generales Edificio'!#REF!,"") ->  | CK96: 0 | CL96: =+'Datos Generales Edificio'!#REF! ->  | CN96: 0 | CO96: 0 | CP96: 0 | DA96: Z | DB96: Terreno abierto | DC96: 13 | DD96: 30a | DE96: 30
AS97: RM | AT97: Lo Barnechea | AU97: RM - Región Metropolitana de Santiago | BR97: Recinto 92 | BS97: =+IFERROR(VLOOKUP('Datos Generales Edificio'!#REF!,$BO$5:$BP$32,2,FALSE),"") ->  | BT97: =+IF('Datos Generales Edificio'!#REF!<>"",'Datos Generales Edificio'!#REF!,"") ->  | BU97: 0 | BV97: =+'Datos Generales Edificio'!#REF! ->  | BX97: =+IF('Datos Generales Edificio'!#REF!<>"",'Datos Generales Edificio'!#REF!,"") ->  | BY97: 0 | BZ97: =+'Datos Generales Edificio'!#REF! ->  | CB97: =IF('Datos Generales Edificio'!#REF!<>"",'Datos Generales Edificio'!#REF!,"") ->  | CC97: 0 | CD97: =+'Datos Generales Edificio'!#REF! ->  | CF97: =IF('Datos Generales Edificio'!#REF!<>"",'Datos Generales Edificio'!#REF!,"") ->  | CG97: 0 | CH97: =+'Datos Generales Edificio'!#REF! ->  | CJ97: =IF('Datos Generales Edificio'!#REF!<>"",'Datos Generales Edificio'!#REF!,"") ->  | CK97: 0 | CL97: =+'Datos Generales Edificio'!#REF! ->  | CN97: 0 | CO97: 0 | CP97: 0 | DA97: Z | DB97: Terreno abierto | DC97: 14 | DD97: 30a | DE97: 30
AS98: RM | AT98: Lo Espejo | AU98: RM - Región Metropolitana de Santiago | BR98: Recinto 93 | BS98: =+IFERROR(VLOOKUP('Datos Generales Edificio'!#REF!,$BO$5:$BP$32,2,FALSE),"") ->  | BT98: =+IF('Datos Generales Edificio'!#REF!<>"",'Datos Generales Edificio'!#REF!,"") ->  | BU98: 0 | BV98: =+'Datos Generales Edificio'!#REF! ->  | BX98: =+IF('Datos Generales Edificio'!#REF!<>"",'Datos Generales Edificio'!#REF!,"") ->  | BY98: 0 | BZ98: =+'Datos Generales Edificio'!#REF! ->  | CB98: =IF('Datos Generales Edificio'!#REF!<>"",'Datos Generales Edificio'!#REF!,"") ->  | CC98: 0 | CD98: =+'Datos Generales Edificio'!#REF! ->  | CF98: =IF('Datos Generales Edificio'!#REF!<>"",'Datos Generales Edificio'!#REF!,"") ->  | CG98: 0 | CH98: =+'Datos Generales Edificio'!#REF! ->  | CJ98: =IF('Datos Generales Edificio'!#REF!<>"",'Datos Generales Edificio'!#REF!,"") ->  | CK98: 0 | CL98: =+'Datos Generales Edificio'!#REF! ->  | CN98: 0 | CO98: 0 | CP98: 0 | DA98: Z | DB98: Terreno abierto | DC98: 15 | DD98: 30a | DE98: 30
AS99: RM | AT99: Lo Prado | AU99: RM - Región Metropolitana de Santiago | BR99: Recinto 94 | BS99: =+IFERROR(VLOOKUP('Datos Generales Edificio'!#REF!,$BO$5:$BP$32,2,FALSE),"") ->  | BT99: =+IF('Datos Generales Edificio'!#REF!<>"",'Datos Generales Edificio'!#REF!,"") ->  | BU99: 0 | BV99: =+'Datos Generales Edificio'!#REF! ->  | BX99: =+IF('Datos Generales Edificio'!#REF!<>"",'Datos Generales Edificio'!#REF!,"") ->  | BY99: 0 | BZ99: =+'Datos Generales Edificio'!#REF! ->  | CB99: =IF('Datos Generales Edificio'!#REF!<>"",'Datos Generales Edificio'!#REF!,"") ->  | CC99: 0 | CD99: =+'Datos Generales Edificio'!#REF! ->  | CF99: =IF('Datos Generales Edificio'!#REF!<>"",'Datos Generales Edificio'!#REF!,"") ->  | CG99: 0 | CH99: =+'Datos Generales Edificio'!#REF! ->  | CJ99: =IF('Datos Generales Edificio'!#REF!<>"",'Datos Generales Edificio'!#REF!,"") ->  | CK99: 0 | CL99: =+'Datos Generales Edificio'!#REF! ->  | CN99: 0 | CO99: 0 | CP99: 0 | DA99: Z | DB99: Terreno abierto | DC99: 16 | DD99: 30a | DE99: 30
AS100: RM | AT100: Macul | AU100: RM - Región Metropolitana de Santiago | BR100: Recinto 95 | BS100: =+IFERROR(VLOOKUP('Datos Generales Edificio'!#REF!,$BO$5:$BP$32,2,FALSE),"") ->  | BT100: =+IF('Datos Generales Edificio'!#REF!<>"",'Datos Generales Edificio'!#REF!,"") ->  | BU100: 0 | BV100: =+'Datos Generales Edificio'!#REF! ->  | BX100: =+IF('Datos Generales Edificio'!#REF!<>"",'Datos Generales Edificio'!#REF!,"") ->  | BY100: 0 | BZ100: =+'Datos Generales Edificio'!#REF! ->  | CB100: =IF('Datos Generales Edificio'!#REF!<>"",'Datos Generales Edificio'!#REF!,"") ->  | CC100: 0 | CD100: =+'Datos Generales Edificio'!#REF! ->  | CF100: =IF('Datos Generales Edificio'!#REF!<>"",'Datos Generales Edificio'!#REF!,"") ->  | CG100: 0 | CH100: =+'Datos Generales Edificio'!#REF! ->  | CJ100: =IF('Datos Generales Edificio'!#REF!<>"",'Datos Generales Edificio'!#REF!,"") ->  | CK100: 0 | CL100: =+'Datos Generales Edificio'!#REF! ->  | CN100: 0 | CO100: 0 | CP100: 0 | DA100: Z | DB100: Terreno abierto | DC100: 17 | DD100: 30a | DE100: 30
AS101: RM | AT101: Maipú | AU101: RM - Región Metropolitana de Santiago | BR101: Recinto 96 | BS101: =+IFERROR(VLOOKUP('Datos Generales Edificio'!#REF!,$BO$5:$BP$32,2,FALSE),"") ->  | BT101: =+IF('Datos Generales Edificio'!#REF!<>"",'Datos Generales Edificio'!#REF!,"") ->  | BU101: 0 | BV101: =+'Datos Generales Edificio'!#REF! ->  | BX101: =+IF('Datos Generales Edificio'!#REF!<>"",'Datos Generales Edificio'!#REF!,"") ->  | BY101: 0 | BZ101: =+'Datos Generales Edificio'!#REF! ->  | CB101: =IF('Datos Generales Edificio'!#REF!<>"",'Datos Generales Edificio'!#REF!,"") ->  | CC101: 0 | CD101: =+'Datos Generales Edificio'!#REF! ->  | CF101: =IF('Datos Generales Edificio'!#REF!<>"",'Datos Generales Edificio'!#REF!,"") ->  | CG101: 0 | CH101: =+'Datos Generales Edificio'!#REF! ->  | CJ101: =IF('Datos Generales Edificio'!#REF!<>"",'Datos Generales Edificio'!#REF!,"") ->  | CK101: 0 | CL101: =+'Datos Generales Edificio'!#REF! ->  | CN101: 0 | CO101: 0 | CP101: 0 | DA101: Z | DB101: Terreno abierto | DC101: 18 | DD101: 30a | DE101: 30
AS102: RM | AT102: María Pinto | AU102: RM - Región Metropolitana de Santiago | BR102: Recinto 97 | BS102: =+IFERROR(VLOOKUP('Datos Generales Edificio'!#REF!,$BO$5:$BP$32,2,FALSE),"") ->  | BT102: =+IF('Datos Generales Edificio'!#REF!<>"",'Datos Generales Edificio'!#REF!,"") ->  | BU102: 0 | BV102: =+'Datos Generales Edificio'!#REF! ->  | BX102: =+IF('Datos Generales Edificio'!#REF!<>"",'Datos Generales Edificio'!#REF!,"") ->  | BY102: 0 | BZ102: =+'Datos Generales Edificio'!#REF! ->  | CB102: =IF('Datos Generales Edificio'!#REF!<>"",'Datos Generales Edificio'!#REF!,"") ->  | CC102: 0 | CD102: =+'Datos Generales Edificio'!#REF! ->  | CF102: =IF('Datos Generales Edificio'!#REF!<>"",'Datos Generales Edificio'!#REF!,"") ->  | CG102: 0 | CH102: =+'Datos Generales Edificio'!#REF! ->  | CJ102: =IF('Datos Generales Edificio'!#REF!<>"",'Datos Generales Edificio'!#REF!,"") ->  | CK102: 0 | CL102: =+'Datos Generales Edificio'!#REF! ->  | CN102: 0 | CO102: 0 | CP102: 0 | DA102: Z | DB102: Terreno abierto | DC102: 19 | DD102: 30a | DE102: 30
AS103: RM | AT103: Melipilla | AU103: RM - Región Metropolitana de Santiago | BR103: Recinto 98 | BS103: =+IFERROR(VLOOKUP('Datos Generales Edificio'!#REF!,$BO$5:$BP$32,2,FALSE),"") ->  | BT103: =+IF('Datos Generales Edificio'!#REF!<>"",'Datos Generales Edificio'!#REF!,"") ->  | BU103: 0 | BV103: =+'Datos Generales Edificio'!#REF! ->  | BX103: =+IF('Datos Generales Edificio'!#REF!<>"",'Datos Generales Edificio'!#REF!,"") ->  | BY103: 0 | BZ103: =+'Datos Generales Edificio'!#REF! ->  | CB103: =IF('Datos Generales Edificio'!#REF!<>"",'Datos Generales Edificio'!#REF!,"") ->  | CC103: 0 | CD103: =+'Datos Generales Edificio'!#REF! ->  | CF103: =IF('Datos Generales Edificio'!#REF!<>"",'Datos Generales Edificio'!#REF!,"") ->  | CG103: 0 | CH103: =+'Datos Generales Edificio'!#REF! ->  | CJ103: =IF('Datos Generales Edificio'!#REF!<>"",'Datos Generales Edificio'!#REF!,"") ->  | CK103: 0 | CL103: =+'Datos Generales Edificio'!#REF! ->  | CN103: 0 | CO103: 0 | CP103: 0 | DA103: Z | DB103: Terreno abierto | DC103: 20 | DD103: 30a | DE103: 30
AS104: RM | AT104: Ñuñoa | AU104: RM - Región Metropolitana de Santiago | BR104: Recinto 99 | BS104: =+IFERROR(VLOOKUP('Datos Generales Edificio'!#REF!,$BO$5:$BP$32,2,FALSE),"") ->  | BT104: =+IF('Datos Generales Edificio'!#REF!<>"",'Datos Generales Edificio'!#REF!,"") ->  | BU104: 0 | BV104: =+'Datos Generales Edificio'!#REF! ->  | BX104: =+IF('Datos Generales Edificio'!#REF!<>"",'Datos Generales Edificio'!#REF!,"") ->  | BY104: 0 | BZ104: =+'Datos Generales Edificio'!#REF! ->  | CB104: =IF('Datos Generales Edificio'!#REF!<>"",'Datos Generales Edificio'!#REF!,"") ->  | CC104: 0 | CD104: =+'Datos Generales Edificio'!#REF! ->  | CF104: =IF('Datos Generales Edificio'!#REF!<>"",'Datos Generales Edificio'!#REF!,"") ->  | CG104: 0 | CH104: =+'Datos Generales Edificio'!#REF! ->  | CJ104: =IF('Datos Generales Edificio'!#REF!<>"",'Datos Generales Edificio'!#REF!,"") ->  | CK104: 0 | CL104: =+'Datos Generales Edificio'!#REF! ->  | CN104: 0 | CO104: 0 | CP104: 0 | DA104: Z | DB104: Ciudades | DC104: 1 | DD104: 60a | DE104: 60
AS105: RM | AT105: Padre Hurtado | AU105: RM - Región Metropolitana de Santiago | BR105: Recinto 100 | BS105: =+IFERROR(VLOOKUP('Datos Generales Edificio'!#REF!,$BO$5:$BP$32,2,FALSE),"") ->  | BT105: =+IF('Datos Generales Edificio'!#REF!<>"",'Datos Generales Edificio'!#REF!,"") ->  | BU105: 0 | BV105: =+'Datos Generales Edificio'!#REF! ->  | BX105: =+IF('Datos Generales Edificio'!#REF!<>"",'Datos Generales Edificio'!#REF!,"") ->  | BY105: 0 | BZ105: =+'Datos Generales Edificio'!#REF! ->  | CB105: =IF('Datos Generales Edificio'!#REF!<>"",'Datos Generales Edificio'!#REF!,"") ->  | CC105: 0 | CD105: =+'Datos Generales Edificio'!#REF! ->  | CF105: =IF('Datos Generales Edificio'!#REF!<>"",'Datos Generales Edificio'!#REF!,"") ->  | CG105: 0 | CH105: =+'Datos Generales Edificio'!#REF! ->  | CJ105: =IF('Datos Generales Edificio'!#REF!<>"",'Datos Generales Edificio'!#REF!,"") ->  | CK105: 0 | CL105: =+'Datos Generales Edificio'!#REF! ->  | CN105: 0 | CO105: 0 | CP105: 0 | DA105: Z | DB105: Ciudades | DC105: 2 | DD105: 60a | DE105: 60
AS106: RM | AT106: Paine | AU106: RM - Región Metropolitana de Santiago | DA106: Z | DB106: Ciudades | DC106: 3 | DD106: 60a | DE106: 60
AS107: RM | AT107: Pedro Aguirre Cerda | AU107: RM - Región Metropolitana de Santiago | DA107: Z | DB107: Ciudades | DC107: 4 | DD107: 60a | DE107: 60
AS108: RM | AT108: Peñaflor | AU108: RM - Región Metropolitana de Santiago | DA108: Z | DB108: Ciudades | DC108: 5 | DD108: 60a | DE108: 60
AS109: RM | AT109: Peñalolén | AU109: RM - Región Metropolitana de Santiago | DA109: Z | DB109: Ciudades | DC109: 6 | DD109: 30a | DE109: 30
AS110: RM | AT110: Pirque | AU110: RM - Región Metropolitana de Santiago | DA110: Z | DB110: Ciudades | DC110: 7 | DD110: 30a | DE110: 30
AS111: RM | AT111: Providencia | AU111: RM - Región Metropolitana de Santiago | DA111: Z | DB111: Ciudades | DC111: 8 | DD111: 30a | DE111: 30
AS112: RM | AT112: Pudahuel | AU112: RM - Región Metropolitana de Santiago | DA112: Z | DB112: Ciudades | DC112: 9 | DD112: 30a | DE112: 30
AS113: RM | AT113: Puente Alto | AU113: RM - Región Metropolitana de Santiago | DA113: Z | DB113: Ciudades | DC113: 10 | DD113: 30a | DE113: 30
AS114: RM | AT114: Quilicura | AU114: RM - Región Metropolitana de Santiago | DA114: Z | DB114: Ciudades | DC114: 11 | DD114: 30a | DE114: 30
AS115: RM | AT115: Quinta Normal | AU115: RM - Región Metropolitana de Santiago | DA115: Z | DB115: Ciudades | DC115: 12 | DD115: 30a | DE115: 30
AS116: RM | AT116: Recoleta | AU116: RM - Región Metropolitana de Santiago | DA116: Z | DB116: Ciudades | DC116: 13 | DD116: 30a | DE116: 30
AS117: RM | AT117: Renca | AU117: RM - Región Metropolitana de Santiago | DA117: Z | DB117: Ciudades | DC117: 14 | DD117: 30a | DE117: 30
AS118: RM | AT118: San Bernardo | AU118: RM - Región Metropolitana de Santiago | DA118: Z | DB118: Ciudades | DC118: 15 | DD118: 30a | DE118: 30
AS119: RM | AT119: San Joaquín | AU119: RM - Región Metropolitana de Santiago | DA119: Z | DB119: Ciudades | DC119: 16 | DD119: 30a | DE119: 30
AS120: RM | AT120: San José de Maipo | AU120: RM - Región Metropolitana de Santiago | DA120: Z | DB120: Ciudades | DC120: 17 | DD120: 30a | DE120: 30
AS121: RM | AT121: San Miguel | AU121: RM - Región Metropolitana de Santiago | DA121: Z | DB121: Ciudades | DC121: 18 | DD121: 30a | DE121: 30
AS122: RM | AT122: San Pedro | AU122: RM - Región Metropolitana de Santiago | DA122: Z | DB122: Ciudades | DC122: 19 | DD122: 30a | DE122: 30
AS123: RM | AT123: San Ramón | AU123: RM - Región Metropolitana de Santiago | DA123: Z | DB123: Ciudades | DC123: 20 | DD123: 30a | DE123: 30
AS124: RM | AT124: Santiago | AU124: RM - Región Metropolitana de Santiago
AS125: RM | AT125: Talagante | AU125: RM - Región Metropolitana de Santiago
AS126: RM | AT126: Tiltil | AU126: RM - Región Metropolitana de Santiago
AS127: RM | AT127: Vitacura | AU127: RM - Región Metropolitana de Santiago
AS128: V | AT128: Algarrobo | AU128: V - Región de Valparaíso
AS129: V | AT129: Cabildo | AU129: V - Región de Valparaíso
AS130: V | AT130: Calera | AU130: V - Región de Valparaíso
AS131: V | AT131: Calle Larga | AU131: V - Región de Valparaíso
AS132: V | AT132: Cartagena | AU132: V - Región de Valparaíso
AS133: V | AT133: Casablanca | AU133: V - Región de Valparaíso
AS134: V | AT134: Catemu | AU134: V - Región de Valparaíso
AS135: V | AT135: Concón | AU135: V - Región de Valparaíso
AS136: V | AT136: El Quisco | AU136: V - Región de Valparaíso
AS137: V | AT137: El Tabo | AU137: V - Región de Valparaíso
AS138: V | AT138: Hijuelas | AU138: V - Región de Valparaíso
AS139: V | AT139: Isla de Pascua | AU139: V - Región de Valparaíso
AS140: V | AT140: Juan Fernández | AU140: V - Región de Valparaíso
AS141: V | AT141: La Cruz | AU141: V - Región de Valparaíso
AS142: V | AT142: La Ligua | AU142: V - Región de Valparaíso
AS143: V | AT143: Limache | AU143: V - Región de Valparaíso
AS144: V | AT144: Llaillay | AU144: V - Región de Valparaíso
AS145: V | AT145: Los Andes | AU145: V - Región de Valparaíso
AS146: V | AT146: Nogales | AU146: V - Región de Valparaíso
AS147: V | AT147: Olmué | AU147: V - Región de Valparaíso
AS148: V | AT148: Panquehue | AU148: V - Región de Valparaíso
AS149: V | AT149: Papudo | AU149: V - Región de Valparaíso
AS150: V | AT150: Petorca | AU150: V - Región de Valparaíso
AS151: V | AT151: Puchuncaví | AU151: V - Región de Valparaíso
AS152: V | AT152: Putaendo | AU152: V - Región de Valparaíso
AS153: V | AT153: Quillota | AU153: V - Región de Valparaíso
AS154: V | AT154: Quilpué | AU154: V - Región de Valparaíso
AS155: V | AT155: Quintero | AU155: V - Región de Valparaíso
AS156: V | AT156: Rinconada | AU156: V - Región de Valparaíso
AS157: V | AT157: San Antonio | AU157: V - Región de Valparaíso
AS158: V | AT158: San Esteban | AU158: V - Región de Valparaíso
AS159: V | AT159: San Felipe | AU159: V - Región de Valparaíso
AS160: V | AT160: Santa María | AU160: V - Región de Valparaíso
AS161: V | AT161: Santo Domingo | AU161: V - Región de Valparaíso
AS162: V | AT162: Valparaíso | AU162: V - Región de Valparaíso
AS163: V | AT163: Villa Alemana | AU163: V - Región de Valparaíso
AS164: V | AT164: Viña del Mar | AU164: V - Región de Valparaíso
AS165: V | AT165: Zapallar | AU165: V - Región de Valparaíso
AS166: VI | AT166: Chépica | AU166: VI - Región de O'Higgins
AS167: VI | AT167: Chimbarongo | AU167: VI - Región de O'Higgins
AS168: VI | AT168: Codegua | AU168: VI - Región de O'Higgins
AS169: VI | AT169: Coinco | AU169: VI - Región de O'Higgins
AS170: VI | AT170: Coltauco | AU170: VI - Región de O'Higgins
AS171: VI | AT171: Doñihue | AU171: VI - Región de O'Higgins
AS172: VI | AT172: Graneros | AU172: VI - Región de O'Higgins
AS173: VI | AT173: La Estrella | AU173: VI - Región de O'Higgins
AS174: VI | AT174: Las Cabras | AU174: VI - Región de O'Higgins
AS175: VI | AT175: Litueche | AU175: VI - Región de O'Higgins
AS176: VI | AT176: Lolol | AU176: VI - Región de O'Higgins
AS177: VI | AT177: Machalí | AU177: VI - Región de O'Higgins
AS178: VI | AT178: Malloa | AU178: VI - Región de O'Higgins
AS179: VI | AT179: Marchigue | AU179: VI - Región de O'Higgins
AS180: VI | AT180: Mostazal | AU180: VI - Región de O'Higgins
AS181: VI | AT181: Nancagua | AU181: VI - Región de O'Higgins
AS182: VI | AT182: Navidad | AU182: VI - Región de O'Higgins
AS183: VI | AT183: Olivar | AU183: VI - Región de O'Higgins
AS184: VI | AT184: Palmilla | AU184: VI - Región de O'Higgins
AS185: VI | AT185: Paredones | AU185: VI - Región de O'Higgins
AS186: VI | AT186: Peralillo | AU186: VI - Región de O'Higgins
AS187: VI | AT187: Peumo | AU187: VI - Región de O'Higgins
AS188: VI | AT188: Pichidegua | AU188: VI - Región de O'Higgins
AS189: VI | AT189: Pichilemu | AU189: VI - Región de O'Higgins
AS190: VI | AT190: Placilla | AU190: VI - Región de O'Higgins
AS191: VI | AT191: Pumanque | AU191: VI - Región de O'Higgins
AS192: VI | AT192: Quinta de Tilcoco | AU192: VI - Región de O'Higgins
AS193: VI | AT193: Rancagua | AU193: VI - Región de O'Higgins
AS194: VI | AT194: Rengo | AU194: VI - Región de O'Higgins
AS195: VI | AT195: Requínoa | AU195: VI - Región de O'Higgins
AS196: VI | AT196: San Fernando | AU196: VI - Región de O'Higgins
AS197: VI | AT197: San Vicente | AU197: VI - Región de O'Higgins
AS198: VI | AT198: Santa Cruz | AU198: VI - Región de O'Higgins
AS199: VII | AT199: Cauquenes | AU199: VII - Región de Maule
AS200: VII | AT200: Chanco | AU200: VII - Región de Maule
... 148 more rows

Sheet Resumen Recintos
B1: Volver al índice
B2: RESUMEN RECINTOS | J2: RESUMEN GRUPOS
B3: Nº Recinto | C3: Nombre Recinto (requisito) | D3: Descripción | E3: Área útil [m²] | F3: Densidad uso utilizada [m2/p] | G3: Carga iluminación [W/m²] | H3: Cargas equipos [W/m²] | I3: ¿Regularmente ocupada? | J3: Energía | K3: Iluminación | L3: Ventilación
B4: 1
B5: 2
B6: 3
B7: 4
B8: 5
B9: 6
B10: 7
B11: 8
B12: 9
B13: 10
B14: 11
B15: 12
B16: 13
B17: 14
B18: 15
B19: 16
B20: 17
B21: 18
B22: 19
B23: 20
B24: 21
B25: 22
B26: 23
B27: 24
B28: 25
B29: 26
B30: 27
B31: 28
B32: 29
B33: 30
B34: 31
B35: 32
B36: 33
B37: 34
B38: 35
B39: 36
B40: 37
B41: 38
B42: 39
B43: 40
B44: 41
B45: 42
B46: 43
B47: 44
B48: 45
B49: 46
B50: 47
B51: 48
B52: 49
B53: 50
B54: 51
B55: 52
B56: 53
B57: 54
B58: 55
B59: 56
B60: 57
B61: 58
B62: 59
B63: 60
B64: 61
B65: 62
B66: 63
B67: 64
B68: 65
B69: 66
B70: 67
B71: 68
B72: 69
B73: 70
B74: 71
B75: 72
B76: 73
B77: 74
B78: 75
B79: 76
B80: 77
B81: 78
B82: 79
B83: 80
B84: 81
B85: 82
B86: 83
B87: 84
B88: 85
B89: 86
B90: 87
B91: 88
B92: 89
B93: 90
B94: 91
B95: 92
B96: 93
B97: 94
B98: 95
B99: 96
B100: 97
B101: 98
B102: 99
B103: 100
B104: Volver al índice
D106: Total superficie útil | E106: =+SUM(E4:E103) -> 0
D107: Total superficie regularmente ocupada | E107: =+SUMIF($M$4:$M$103,"si",$H$4:$H$103) -> 0

Sheet Ingreso de resultados previos
B1: Volver al índice | E1: 1 | F1: 2 | G1: 3 | H1: 4 | I1: 5 | J1: 6 | K1: 7 | L1: 8 | M1: 9 | N1: 10 | O1: 11 | P1: 12 | Q1: 13 | R1: 14 | S1: 15 | T1: 16
C2: Resultados - Energía
C4: Indicador / parámetro resultante | D4: Variable al cual aplica
C5: Reducción de la demanda anual de energía [%] | D5: ARQ.ENERGIA.5 - Opción 1 (solo referencial)
C6: Transmitancia térmica para cubierta [W/m2K] | D6: ARQ.ENERGIA.5 - Opción 2
C7: Área Cubierta [m2] | D7: ARQ.ENERGIA.5 - Opción 2
C8: Transmitancia térmica para pisos ventilados [W/m2K] | D8: ARQ.ENERGIA.5 - Opción 2
C9: Área Pisos Ventilados [m2] | D9: ARQ.ENERGIA.5 - Opción 2
C10: Transmitancia térmica para pisos en contacto con el terreno [W/m2K] | D10: ARQ.ENERGIA.5 - Opción 2
C11: Área pisos en contacto con el terreno [m2] | D11: ARQ.ENERGIA.5 - Opción 2
C12: Transmitancia térmica para muros [W/m2K] | D12: ARQ.ENERGIA.5 - Opción 2
C13: Área muros [m2] | D13: ARQ.ENERGIA.5 - Opción 2
C14: Transmitancia térmica para ventanas [W/m2K] | D14: ARQ.ENERGIA.5 - Opción 2
C15: Área ventanas [m2] | D15: ARQ.ENERGIA.5 - Opción 2
C17: Indicador / parámetro resultante | D17: Variable al cual aplica
C18: Reducción horas disconfort - TOTAL EDIFICIO | D18: ARQ.CAI.1 - Opción 1
C19: Demanda calefaccion - TOTAL EDIFICIO | D19: ARQ.ENERGIA.5 - Opción 1
C20: Demanda refrigeracion - TOTAL EDIFICIO | D20: ARQ.ENERGIA.5 - Opción 1
C21: Demanda equipos - TOTAL EDIFICIO | D21: ARQ.ENERGIA.5 - Opción 1
C22: Demanda iluminación - TOTAL EDIFICIO | D22: ARQ.ENERGIA.5 - Opción 1
C23: Reducción de la demanda anual de energía - TOTAL EDIFICIO | D23: ARQ.ENERGIA.5 - Opción 1
C24: Demanda calefacción con iluminación referencia - [kWh] - TOTAL EDIFICIO | D24: INST.ENERGIA 15 a 18 - Opción 1
C25: Demanda refrigeración con iluminación referencia - [kWh] - TOTAL EDIFICIO | D25: INST.ENERGIA 15 a 18 - Opción 1
C26: Demanda iluminación de referencia - [kWh] - TOTAL EDIFICIO | D26: INST.ENERGIA 15 a 18 - Opción 1
C29: Resultados - Iluminación
C31: Indicador / parámetro resultante | D31: Variable al cual aplica
C32: Factor Luz Día [FLD] | D32: ARQ.CAI.2.1 - Opción 1
C33: Iluminancia Útil [%] | D33: ARQ.CAI.2.1 - Opción 1
C34: Factor solar modificado (FSM) - N | D34: ARQ.ENERGIA.5 - Opción 2
C35: Área Ventana N [m2] | D35: ARQ.ENERGIA.5 - Opción 2
C36: Factor solar modificado (FSM) - NO | D36: ARQ.ENERGIA.5 - Opción 2
C37: Área Ventana NO [m2] | D37: ARQ.ENERGIA.5 - Opción 2
C38: Factor solar modificado (FSM) - NE | D38: ARQ.ENERGIA.5 - Opción 2
C39: Área Ventana NE [m2] | D39: ARQ.ENERGIA.5 - Opción 2
C40: Factor solar modificado (FSM) - O | D40: ARQ.ENERGIA.5 - Opción 2
C41: Área Ventana O [m2] | D41: ARQ.ENERGIA.5 - Opción 2
C42: Factor solar modificado (FSM) - E | D42: ARQ.ENERGIA.5 - Opción 2
C43: Área Ventana E [m2] | D43: ARQ.ENERGIA.5 - Opción 2
C46: Resultados - Ventilación
C48: Indicador / parámetro resultante | D48: Variable al cual aplica
C49: Requerimientos de ventilación natural | D49: ARQ.CAI.3R - Opción 2 / ARQ.CAI.3.1 - Opción 2
B51: Volver al índice

Sheet Evaluacion ARQ.CAI Obligat.
A1: Texto /Número | B1: Nº requisito | E1: Volver al índice
A2: N | B2: 8 | D2: ARQ.CAI 2R - FACTOR LUZ DÍA O ILUMINANCIA ÚTIL MÍNIMOS | S2: ARQ.CAI 2R - FACTOR LUZ DÍA O ILUMINANCIA ÚTIL MÍNIMOS
A3: N | B3: =+B2 -> 8 | F3: Tipo requerimiento | H3: =+IF(VLOOKUP(B2,TablaResumen[],4)="C","Voluntario","Obligatorio") -> Obligatorio | V3: Puntaje crédito numérico
A4: N | B4: =+B3 -> 8 | N4: =+IF(H3="Obligatorio","Cumple Requerimiento","Puntaje obtenido") -> Cumple Requerimiento | Q4: =+IF(H3="Obligatorio",X15,IF(A4="N",IF(Uso_Edificio="Oficinas",SUM(W5:W8),SUM(X5:X8)),IF(Uso_Edificio="Oficinas",SUM(X11:X14),SUM(Y11:Y14)))) -> NO | V4: Calificación | W4: Of. Y Serv. | X4: Ed. Y Salud
A5: N | B5: 8 | F5: Nombre Requerimiento | H5: =+VLOOKUP(B7,TablaResumen[],16,0) -> Factor luz día o iluminancia útil mínimos | Q5: =+IF(H2="Requisito",W14,IF(#REF!="N",IF(Uso_Edificio="Oficinas",SUM(W4:W7),SUM(X4:X7)),IF(Uso_Edificio="Oficinas",SUM(X10:X13),SUM(Y10:Y13)))) ->  | U5: =+CONCATENATE(B5,".",4) -> 8.4 | V5: =+AND(Q8>VLOOKUP(U5,MatrizRequerimientos,10,FALSE),Q8<=VLOOKUP(U5,MatrizRequerimientos,11,FALSE)) -> FALSE | W5: =+V5*VLOOKUP(U5,MatrizRequerimientos,8,FALSE) -> 0 | X5: =+V5*VLOOKUP(U5,MatrizRequerimientos,9,FALSE) -> 0
A6: N | B6: 8 | Q6: =+IF(H3="Requisito",W15,IF(A2="N",IF(Uso_Edificio="Oficinas",SUM(W5:W8),SUM(X5:X8)),IF(Uso_Edificio="Oficinas",SUM(X11:X14),SUM(Y11:Y14)))) -> 0 | U6: =+CONCATENATE(B6,".",5) -> 8.5 | V6: =+AND(Q8>VLOOKUP(U6,MatrizRequerimientos,10,FALSE),Q8<=VLOOKUP(U6,MatrizRequerimientos,11,FALSE)) -> FALSE | W6: =+V6*VLOOKUP(U6,MatrizRequerimientos,8,FALSE) -> 0 | X6: =+V6*VLOOKUP(U6,MatrizRequerimientos,9,FALSE) -> 0
A7: N | B7: 8 | F7: Indicador | H7: =+VLOOKUP(B8,TablaResumen[],21,0) -> Factor Luz Día [FLD] | U7: =+CONCATENATE(B7,".",6) -> 8.6 | V7: =+AND(Q8>VLOOKUP(U7,MatrizRequerimientos,10,FALSE),Q8<=VLOOKUP(U7,MatrizRequerimientos,11,FALSE)) -> FALSE | W7: =+V7*VLOOKUP(U7,MatrizRequerimientos,8,FALSE) -> 0 | X7: =+V7*VLOOKUP(U7,MatrizRequerimientos,9,FALSE) -> 0
A8: N | B8: 8 | N8: =+IF(A7="N",CONCATENATE("Valor obtenido en proyecto para ",H7),"Seleccione Nivel de Cumplimiento") -> Valor obtenido en proyecto para Factor Luz Día [FLD] | U8: =+CONCATENATE(B8,".",7) -> 8.7 | V8: =+AND(Q8>VLOOKUP(U8,MatrizRequerimientos,10,FALSE),Q8<=VLOOKUP(U8,MatrizRequerimientos,11,FALSE)) -> FALSE | W8: =+V8*VLOOKUP(U8,MatrizRequerimientos,8,FALSE) -> 0 | X8: =+V8*VLOOKUP(U8,MatrizRequerimientos,9,FALSE) -> 0
A9: N | B9: 8
A10: N | B10: 8 | F10: OPCIÓN | H10: =CONCATENATE(VLOOKUP(B10,'Resumen requerimientos'!$T$5:$AB$96,5,FALSE), " de ",VLOOKUP(B10,'Resumen requerimientos'!$T$5:$AB$96,6,FALSE)) -> 1 de 2 | X10: Of. Y Serv. | Y10: Ed. Y Salud
A11: N | B11: 8 | U11: =+CONCATENATE(B11,".",4) -> 8.4 | V11: =+VLOOKUP(U11,MatrizRequerimientos,6,FALSE) -> 1,999999-100 | W11: =+IF(A8="T",Q8=V11,V5) -> FALSE | X11: =+W11*VLOOKUP(U11,MatrizRequerimientos,8,FALSE) -> 0 | Y11: =+W11*VLOOKUP(U11,MatrizRequerimientos,9,FALSE) -> 0
A12: N | B12: 8 | F12: =+IF(H12="No","¿OTROS REQUERIMIENTOS SIMULTÁNEOS?","REQUERIMIENTOS SIMULTANEOS PARA LA OPCION") -> ¿OTROS REQUERIMIENTOS SIMULTÁNEOS? | H12: =IF(VLOOKUP(B12,'Resumen requerimientos'!$T$5:$AB$96,7,FALSE)=0,"No",CONCATENATE(VLOOKUP(B12,'Resumen requerimientos'!$T$5:$AB$96,7,FALSE), " de ",VLOOKUP(B12,'Resumen requerimientos'!$T$5:$AB$96,8,FALSE))) -> No | U12: =+CONCATENATE(B12,".",5) -> 8.5 | V12: =+VLOOKUP(U12,MatrizRequerimientos,6,FALSE) -> 1,999999-100 | W12: =+IF(A9="T",Q8=V12,V6) -> FALSE | X12: =+W12*VLOOKUP(U12,MatrizRequerimientos,8,FALSE) -> 0 | Y12: =+W12*VLOOKUP(U12,MatrizRequerimientos,9,FALSE) -> 0
A13: N | B13: 8 | U13: =+CONCATENATE(B13,".",6) -> 8.6 | V13: =+VLOOKUP(U13,MatrizRequerimientos,6,FALSE) -> 1,999999-100 | W13: =+IF(A10="T",Q8=V13,V7) -> FALSE | X13: =+W13*VLOOKUP(U13,MatrizRequerimientos,8,FALSE) -> 0 | Y13: =+W13*VLOOKUP(U13,MatrizRequerimientos,9,FALSE) -> 0
A14: N | B14: 8 | F14: REQUERIMIENTO ADICIONAL | H14: =VLOOKUP(B14,'Resumen requerimientos'!$T$5:$AB$96,9,FALSE) -> No | U14: =+CONCATENATE(B14,".",7) -> 8.7 | V14: =+VLOOKUP(U14,MatrizRequerimientos,6,FALSE) -> 1,999999-100 | W14: =+IF(A11="T",Q8=V14,V8) -> FALSE | X14: =+W14*VLOOKUP(U14,MatrizRequerimientos,8,FALSE) -> 0 | Y14: =+W14*VLOOKUP(U14,MatrizRequerimientos,9,FALSE) -> 0
A15: N | B15: 8 | W15: =+IF(AND(A11="N",H3="Voluntario"),SUMIF($W$11:$W$14,TRUE,IF(Uso_Edificio="Oficinas",X11:X14,Y11:Y14)),IF(AND(A11="T",H3="Obligatorio"),VLOOKUP(Q8,V11:X14,3,FALSE)=1,W11)) -> FALSE | X15: =+IF(W15,"SI","NO") -> NO
A16: N | B16: 8
A17: N | B17: 9
A18: N | B18: =+B17 -> 9 | F18: Tipo requerimiento | H18: =+IF(VLOOKUP(B17,TablaResumen[],4)="C","Voluntario","Obligatorio") -> Obligatorio | V18: Puntaje crédito numérico
A19: N | B19: =+B18 -> 9 | N19: =+IF(H18="Obligatorio","Cumple Requerimiento","Puntaje obtenido") -> Cumple Requerimiento | Q19: =+IF(H18="Obligatorio",X30,IF(A19="N",IF(Uso_Edificio="Oficinas",SUM(W20:W23),SUM(X20:X23)),IF(Uso_Edificio="Oficinas",SUM(X26:X29),SUM(Y26:Y29)))) -> NO | V19: Calificación | W19: Of. Y Serv. | X19: Ed. Y Salud
A20: N | B20: 9 | F20: Nombre Requerimiento | H20: =+VLOOKUP(B22,TablaResumen[],16,0) -> Factor luz día o iluminancia útil mínimos | Q20: =+IF(H17="Requisito",W29,IF(#REF!="N",IF(Uso_Edificio="Oficinas",SUM(W19:W22),SUM(X19:X22)),IF(Uso_Edificio="Oficinas",SUM(X25:X28),SUM(Y25:Y28)))) ->  | U20: =+CONCATENATE(B20,".",4) -> 9.4 | V20: =+AND(Q23>VLOOKUP(U20,MatrizRequerimientos,10,FALSE),Q23<=VLOOKUP(U20,MatrizRequerimientos,11,FALSE)) -> FALSE | W20: =+V20*VLOOKUP(U20,MatrizRequerimientos,8,FALSE) -> 0 | X20: =+V20*VLOOKUP(U20,MatrizRequerimientos,9,FALSE) -> 0
A21: N | B21: 9 | Q21: =+IF(H18="Requisito",W30,IF(A17="N",IF(Uso_Edificio="Oficinas",SUM(W20:W23),SUM(X20:X23)),IF(Uso_Edificio="Oficinas",SUM(X26:X29),SUM(Y26:Y29)))) -> 0 | U21: =+CONCATENATE(B21,".",5) -> 9.5 | V21: =+AND(Q23>VLOOKUP(U21,MatrizRequerimientos,10,FALSE),Q23<=VLOOKUP(U21,MatrizRequerimientos,11,FALSE)) -> FALSE | W21: =+V21*VLOOKUP(U21,MatrizRequerimientos,8,FALSE) -> 0 | X21: =+V21*VLOOKUP(U21,MatrizRequerimientos,9,FALSE) -> 0
A22: N | B22: 9 | F22: Indicador | H22: =+VLOOKUP(B23,TablaResumen[],21,0) -> Iluminancia útil [%] | U22: =+CONCATENATE(B22,".",6) -> 9.6 | V22: =+AND(Q23>VLOOKUP(U22,MatrizRequerimientos,10,FALSE),Q23<=VLOOKUP(U22,MatrizRequerimientos,11,FALSE)) -> FALSE | W22: =+V22*VLOOKUP(U22,MatrizRequerimientos,8,FALSE) -> 0 | X22: =+V22*VLOOKUP(U22,MatrizRequerimientos,9,FALSE) -> 0
A23: N | B23: 9 | N23: =+IF(A22="N",CONCATENATE("Valor obtenido en proyecto para ",H22),"Seleccione Nivel de Cumplimiento") -> Valor obtenido en proyecto para Iluminancia útil [%] | U23: =+CONCATENATE(B23,".",7) -> 9.7 | V23: =+AND(Q23>VLOOKUP(U23,MatrizRequerimientos,10,FALSE),Q23<=VLOOKUP(U23,MatrizRequerimientos,11,FALSE)) -> FALSE | W23: =+V23*VLOOKUP(U23,MatrizRequerimientos,8,FALSE) -> 0 | X23: =+V23*VLOOKUP(U23,MatrizRequerimientos,9,FALSE) -> 0
A24: N | B24: 9
A25: N | B25: 9 | F25: OPCIÓN | H25: =CONCATENATE(VLOOKUP(B25,'Resumen requerimientos'!$T$5:$AB$96,5,FALSE), " de ",VLOOKUP(B25,'Resumen requerimientos'!$T$5:$AB$96,6,FALSE)) -> 2 de 2 | X25: Of. Y Serv. | Y25: Ed. Y Salud
A26: N | B26: 9 | U26: =+CONCATENATE(B26,".",4) -> 9.4 | V26: =+VLOOKUP(U26,MatrizRequerimientos,6,FALSE) -> 49,999%-100% | W26: =+IF(A23="T",Q23=V26,V20) -> FALSE | X26: =+W26*VLOOKUP(U26,MatrizRequerimientos,8,FALSE) -> 0 | Y26: =+W26*VLOOKUP(U26,MatrizRequerimientos,9,FALSE) -> 0
A27: N | B27: 9 | F27: =+IF(H27="No","¿OTROS REQUERIMIENTOS SIMULTÁNEOS?","REQUERIMIENTOS SIMULTANEOS PARA LA OPCION") -> ¿OTROS REQUERIMIENTOS SIMULTÁNEOS? | H27: =IF(VLOOKUP(B27,'Resumen requerimientos'!$T$5:$AB$96,7,FALSE)=0,"No",CONCATENATE(VLOOKUP(B27,'Resumen requerimientos'!$T$5:$AB$96,7,FALSE), " de ",VLOOKUP(B27,'Resumen requerimientos'!$T$5:$AB$96,8,FALSE))) -> No | U27: =+CONCATENATE(B27,".",5) -> 9.5 | V27: =+VLOOKUP(U27,MatrizRequerimientos,6,FALSE) -> 49,999%-100% | W27: =+IF(A24="T",Q23=V27,V21) -> FALSE | X27: =+W27*VLOOKUP(U27,MatrizRequerimientos,8,FALSE) -> 0 | Y27: =+W27*VLOOKUP(U27,MatrizRequerimientos,9,FALSE) -> 0
A28: N | B28: 9 | U28: =+CONCATENATE(B28,".",6) -> 9.6 | V28: =+VLOOKUP(U28,MatrizRequerimientos,6,FALSE) -> 49,999%-100% | W28: =+IF(A25="T",Q23=V28,V22) -> FALSE | X28: =+W28*VLOOKUP(U28,MatrizRequerimientos,8,FALSE) -> 0 | Y28: =+W28*VLOOKUP(U28,MatrizRequerimientos,9,FALSE) -> 0
A29: N | B29: 9 | F29: REQUERIMIENTO ADICIONAL | H29: =VLOOKUP(B29,'Resumen requerimientos'!$T$5:$AB$96,9,FALSE) -> No | U29: =+CONCATENATE(B29,".",7) -> 9.7 | V29: =+VLOOKUP(U29,MatrizRequerimientos,6,FALSE) -> 49,999%-100% | W29: =+IF(A26="T",Q23=V29,V23) -> FALSE | X29: =+W29*VLOOKUP(U29,MatrizRequerimientos,8,FALSE) -> 0 | Y29: =+W29*VLOOKUP(U29,MatrizRequerimientos,9,FALSE) -> 0
A30: N | B30: 9 | W30: =+IF(AND(A26="N",H18="Voluntario"),SUMIF($W$26:$W$29,TRUE,IF(Uso_Edificio="Oficinas",X26:X29,Y26:Y29)),IF(AND(A26="T",H18="Obligatorio"),VLOOKUP(Q23,V26:X29,3,FALSE)=1,W26)) -> FALSE | X30: =+IF(W30,"SI","NO") -> NO
A31: N | B31: 9
A32: N | B32: 9 | E32: Volver al índice
A33: T | B33: 14 | D33: ARQ.CAI 3R - SUPERFICIE MÍNIMA DE VENTANA O CAUDAL MÍNIMO DE AIRE | S33: ARQ.CAI 3R - SUPERFICIE MÍNIMA DE VENTANA O CAUDAL MÍNIMO DE AIRE
A34: T | B34: =+B33 -> 14 | F34: Tipo requerimiento | H34: =+IF(VLOOKUP(B33,TablaResumen[],4)="C","Voluntario","Obligatorio") -> Obligatorio | V34: Puntaje crédito numérico
A35: T | B35: =+B34 -> 14 | N35: =+IF(H34="Obligatorio","Cumple Requerimiento","Puntaje obtenido") -> Cumple Requerimiento | Q35: =+IF(H34="Obligatorio",X46,IF(A35="N",IF(Uso_Edificio="Oficinas",SUM(W36:W39),SUM(X36:X39)),IF(Uso_Edificio="Oficinas",SUM(X42:X45),SUM(Y42:Y45)))) -> SI | V35: Calificación | W35: Of. Y Serv. | X35: Ed. Y Salud
A36: T | B36: 14 | F36: Nombre Requerimiento | H36: =+VLOOKUP(B38,TablaResumen[],16,0) -> Superficie mínima de ventana o caudal mínimo de aire | Q36: =+IF(H33="Requisito",W45,IF(#REF!="N",IF(Uso_Edificio="Oficinas",SUM(W35:W38),SUM(X35:X38)),IF(Uso_Edificio="Oficinas",SUM(X41:X44),SUM(Y41:Y44)))) ->  | U36: =+CONCATENATE(B36,".",4) -> 14.4 | V36: =+AND(Q39>VLOOKUP(U36,MatrizRequerimientos,10,FALSE),Q39<=VLOOKUP(U36,MatrizRequerimientos,11,FALSE)) -> FALSE | W36: =+V36*VLOOKUP(U36,MatrizRequerimientos,8,FALSE) -> 0 | X36: =+V36*VLOOKUP(U36,MatrizRequerimientos,9,FALSE) -> 0
A37: T | B37: 14 | Q37: =+IF(H34="Requisito",W46,IF(A33="N",IF(Uso_Edificio="Oficinas",SUM(W36:W39),SUM(X36:X39)),IF(Uso_Edificio="Oficinas",SUM(X42:X45),SUM(Y42:Y45)))) -> 1 | U37: =+CONCATENATE(B37,".",5) -> 14.5 | V37: =+AND(Q39>VLOOKUP(U37,MatrizRequerimientos,10,FALSE),Q39<=VLOOKUP(U37,MatrizRequerimientos,11,FALSE)) -> FALSE | W37: =+V37*VLOOKUP(U37,MatrizRequerimientos,8,FALSE) -> 0 | X37: =+V37*VLOOKUP(U37,MatrizRequerimientos,9,FALSE) -> 0
A38: T | B38: 14 | F38: Indicador | H38: =+VLOOKUP(B39,TablaResumen[],21,0) -> Superficie practicable de las ventanas | U38: =+CONCATENATE(B38,".",6) -> 14.6 | V38: =+AND(Q39>VLOOKUP(U38,MatrizRequerimientos,10,FALSE),Q39<=VLOOKUP(U38,MatrizRequerimientos,11,FALSE)) -> FALSE | W38: =+V38*VLOOKUP(U38,MatrizRequerimientos,8,FALSE) -> 0 | X38: =+V38*VLOOKUP(U38,MatrizRequerimientos,9,FALSE) -> 0
A39: T | B39: 14 | N39: =+IF(A38="N",CONCATENATE("Valor obtenido en proyecto para ",H38),"Seleccione Nivel de Cumplimiento") -> Seleccione Nivel de Cumplimiento | Q39: No Aplica | U39: =+CONCATENATE(B39,".",7) -> 14.7 | V39: =+AND(Q39>VLOOKUP(U39,MatrizRequerimientos,10,FALSE),Q39<=VLOOKUP(U39,MatrizRequerimientos,11,FALSE)) -> FALSE | W39: =+V39*VLOOKUP(U39,MatrizRequerimientos,8,FALSE) -> 0 | X39: =+V39*VLOOKUP(U39,MatrizRequerimientos,9,FALSE) -> 0
A40: T | B40: 14
A41: T | B41: 14 | F41: OPCIÓN | H41: =CONCATENATE(VLOOKUP(B41,'Resumen requerimientos'!$T$5:$AB$96,5,FALSE), " de ",VLOOKUP(B41,'Resumen requerimientos'!$T$5:$AB$96,6,FALSE)) -> 1 de 2 | X41: Of. Y Serv. | Y41: Ed. Y Salud | AA41: =+IF('Datos Generales Edificio'!$F$36="sI","$V$42","$V$42:$V$43") -> $V$42:$V$43
A42: T | B42: 14 | U42: =+CONCATENATE(B42,".",4) -> 14.4 | V42: =+VLOOKUP(U42,MatrizRequerimientos,6,FALSE) -> No Aplica | W42: =+IF(A39="T",Q39=V42,V36) -> TRUE | X42: =+W42*VLOOKUP(U42,MatrizRequerimientos,8,FALSE) -> 1 | Y42: =+W42*VLOOKUP(U42,MatrizRequerimientos,9,FALSE) -> 1
A43: T | B43: 14 | F43: =+IF(H43="No","¿OTROS REQUERIMIENTOS SIMULTÁNEOS?","REQUERIMIENTOS SIMULTANEOS PARA LA OPCION") -> ¿OTROS REQUERIMIENTOS SIMULTÁNEOS? | H43: =IF(VLOOKUP(B43,'Resumen requerimientos'!$T$5:$AB$96,7,FALSE)=0,"No",CONCATENATE(VLOOKUP(B43,'Resumen requerimientos'!$T$5:$AB$96,7,FALSE), " de ",VLOOKUP(B43,'Resumen requerimientos'!$T$5:$AB$96,8,FALSE))) -> No | U43: =+CONCATENATE(B43,".",5) -> 14.5 | V43: =+VLOOKUP(U43,MatrizRequerimientos,6,FALSE) ->  | W43: =+IF(A40="T",Q39=V43,V37) -> FALSE | X43: =+W43*VLOOKUP(U43,MatrizRequerimientos,8,FALSE) -> 0 | Y43: =+W43*VLOOKUP(U43,MatrizRequerimientos,9,FALSE) -> 0
A44: T | B44: 14 | U44: =+CONCATENATE(B44,".",6) -> 14.6 | V44: =+VLOOKUP(U44,MatrizRequerimientos,6,FALSE) -> 0 | W44: =+IF(A41="T",Q39=V44,V38) -> FALSE | X44: =+W44*VLOOKUP(U44,MatrizRequerimientos,8,FALSE) -> 0 | Y44: =+W44*VLOOKUP(U44,MatrizRequerimientos,9,FALSE) -> 0
A45: T | B45: 14 | F45: REQUERIMIENTO ADICIONAL | H45: =VLOOKUP(B45,'Resumen requerimientos'!$T$5:$AB$96,9,FALSE) -> No | U45: =+CONCATENATE(B45,".",7) -> 14.7 | V45: =+VLOOKUP(U45,MatrizRequerimientos,6,FALSE) -> 0 | W45: =+IF(A42="T",Q39=V45,V39) -> FALSE | X45: =+W45*VLOOKUP(U45,MatrizRequerimientos,8,FALSE) -> 0 | Y45: =+W45*VLOOKUP(U45,MatrizRequerimientos,9,FALSE) -> 0
A46: T | B46: 14 | W46: =+IF(AND(A42="N",H34="Voluntario"),SUMIF($W$42:$W$45,TRUE,IF(Uso_Edificio="Oficinas",X42:X45,Y42:Y45)),IF(AND(A42="T",H34="Obligatorio"),VLOOKUP(Q39,V42:X45,3,FALSE)=1,W42)) -> TRUE | X46: =+IF(W46,"SI","NO") -> SI
A47: T | B47: 14
A48: T | B48: 15
A49: T | B49: =+B48 -> 15 | F49: Tipo requerimiento | H49: =+IF(VLOOKUP(B48,TablaResumen[],4)="C","Voluntario","Obligatorio") -> Obligatorio | V49: Puntaje crédito numérico
A50: T | B50: =+B49 -> 15 | N50: =+IF(H49="Obligatorio","Cumple Requerimiento","Puntaje obtenido") -> Cumple Requerimiento | Q50: =+IF(H49="Obligatorio",X61,IF(A50="N",IF(Uso_Edificio="Oficinas",SUM(W51:W54),SUM(X51:X54)),IF(Uso_Edificio="Oficinas",SUM(X57:X60),SUM(Y57:Y60)))) -> SI | V50: Calificación | W50: Of. Y Serv. | X50: Ed. Y Salud
A51: T | B51: 15 | F51: Nombre Requerimiento | H51: =+VLOOKUP(B53,TablaResumen[],16,0) -> Superficie mínima de ventana o caudal mínimo de aire | Q51: =+IF(H48="Requisito",W60,IF(#REF!="N",IF(Uso_Edificio="Oficinas",SUM(W50:W53),SUM(X50:X53)),IF(Uso_Edificio="Oficinas",SUM(X56:X59),SUM(Y56:Y59)))) ->  | U51: =+CONCATENATE(B51,".",4) -> 15.4 | V51: =+AND(Q54>VLOOKUP(U51,MatrizRequerimientos,10,FALSE),Q54<=VLOOKUP(U51,MatrizRequerimientos,11,FALSE)) -> FALSE | W51: =+V51*VLOOKUP(U51,MatrizRequerimientos,8,FALSE) -> 0 | X51: =+V51*VLOOKUP(U51,MatrizRequerimientos,9,FALSE) -> 0
A52: T | B52: 15 | Q52: =+IF(H49="Requisito",W61,IF(A48="N",IF(Uso_Edificio="Oficinas",SUM(W51:W54),SUM(X51:X54)),IF(Uso_Edificio="Oficinas",SUM(X57:X60),SUM(Y57:Y60)))) -> 1 | U52: =+CONCATENATE(B52,".",5) -> 15.5 | V52: =+AND(Q54>VLOOKUP(U52,MatrizRequerimientos,10,FALSE),Q54<=VLOOKUP(U52,MatrizRequerimientos,11,FALSE)) -> FALSE | W52: =+V52*VLOOKUP(U52,MatrizRequerimientos,8,FALSE) -> 0 | X52: =+V52*VLOOKUP(U52,MatrizRequerimientos,9,FALSE) -> 0
A53: T | B53: 15 | F53: Indicador | H53: =+VLOOKUP(B54,TablaResumen[],21,0) -> Renovaciones de aire hora [RAH] | U53: =+CONCATENATE(B53,".",6) -> 15.6 | V53: =+AND(Q54>VLOOKUP(U53,MatrizRequerimientos,10,FALSE),Q54<=VLOOKUP(U53,MatrizRequerimientos,11,FALSE)) -> FALSE | W53: =+V53*VLOOKUP(U53,MatrizRequerimientos,8,FALSE) -> 0 | X53: =+V53*VLOOKUP(U53,MatrizRequerimientos,9,FALSE) -> 0
A54: T | B54: 15 | N54: =+IF(A53="N",CONCATENATE("Valor obtenido en proyecto para ",H53),"Seleccione Nivel de Cumplimiento") -> Seleccione Nivel de Cumplimiento | Q54: No Aplica | U54: =+CONCATENATE(B54,".",7) -> 15.7 | V54: =+AND(Q54>VLOOKUP(U54,MatrizRequerimientos,10,FALSE),Q54<=VLOOKUP(U54,MatrizRequerimientos,11,FALSE)) -> FALSE | W54: =+V54*VLOOKUP(U54,MatrizRequerimientos,8,FALSE) -> 0 | X54: =+V54*VLOOKUP(U54,MatrizRequerimientos,9,FALSE) -> 0
A55: T | B55: 15
A56: T | B56: 15 | F56: OPCIÓN | H56: =CONCATENATE(VLOOKUP(B56,'Resumen requerimientos'!$T$5:$AB$96,5,FALSE), " de ",VLOOKUP(B56,'Resumen requerimientos'!$T$5:$AB$96,6,FALSE)) -> 2 de 2 | X56: Of. Y Serv. | Y56: Ed. Y Salud | AA56: =+IF('Datos Generales Edificio'!$F$36="sI","$V$57","$V$57:$V$58") -> $V$57:$V$58
A57: T | B57: 15 | U57: =+CONCATENATE(B57,".",4) -> 15.4 | V57: =+VLOOKUP(U57,MatrizRequerimientos,6,FALSE) -> No Aplica | W57: =+IF(A54="T",Q54=V57,V51) -> TRUE | X57: =+W57*VLOOKUP(U57,MatrizRequerimientos,8,FALSE) -> 1 | Y57: =+W57*VLOOKUP(U57,MatrizRequerimientos,9,FALSE) -> 1
A58: T | B58: 15 | F58: =+IF(H58="No","¿OTROS REQUERIMIENTOS SIMULTÁNEOS?","REQUERIMIENTOS SIMULTANEOS PARA LA OPCION") -> ¿OTROS REQUERIMIENTOS SIMULTÁNEOS? | H58: =IF(VLOOKUP(B58,'Resumen requerimientos'!$T$5:$AB$96,7,FALSE)=0,"No",CONCATENATE(VLOOKUP(B58,'Resumen requerimientos'!$T$5:$AB$96,7,FALSE), " de ",VLOOKUP(B58,'Resumen requerimientos'!$T$5:$AB$96,8,FALSE))) -> No | U58: =+CONCATENATE(B58,".",5) -> 15.5 | V58: =+VLOOKUP(U58,MatrizRequerimientos,6,FALSE) ->  | W58: =+IF(A55="T",Q54=V58,V52) -> FALSE | X58: =+W58*VLOOKUP(U58,MatrizRequerimientos,8,FALSE) -> 0 | Y58: =+W58*VLOOKUP(U58,MatrizRequerimientos,9,FALSE) -> 0
A59: T | B59: 15 | U59: =+CONCATENATE(B59,".",6) -> 15.6 | V59: =+VLOOKUP(U59,MatrizRequerimientos,6,FALSE) -> 0 | W59: =+IF(A56="T",Q54=V59,V53) -> FALSE | X59: =+W59*VLOOKUP(U59,MatrizRequerimientos,8,FALSE) -> 0 | Y59: =+W59*VLOOKUP(U59,MatrizRequerimientos,9,FALSE) -> 0
A60: T | B60: 15 | F60: REQUERIMIENTO ADICIONAL | H60: =VLOOKUP(B60,'Resumen requerimientos'!$T$5:$AB$96,9,FALSE) -> No | U60: =+CONCATENATE(B60,".",7) -> 15.7 | V60: =+VLOOKUP(U60,MatrizRequerimientos,6,FALSE) -> 0 | W60: =+IF(A57="T",Q54=V60,V54) -> FALSE | X60: =+W60*VLOOKUP(U60,MatrizRequerimientos,8,FALSE) -> 0 | Y60: =+W60*VLOOKUP(U60,MatrizRequerimientos,9,FALSE) -> 0
A61: T | B61: 15 | W61: =+IF(AND(A57="N",H49="Voluntario"),SUMIF(W57:W60,TRUE,IF(Uso_Edificio="Oficinas",X57:X60,Y57:Y60)),IF(AND(A57="T",H49="Obligatorio"),VLOOKUP(Q54,V57:X60,3,FALSE)=1,W57)) -> TRUE | X61: =+IF(W61,"SI","NO") -> SI
A62: T | B62: 15
A63: T | B63: 15 | E63: Volver al índice
A64: N | B64: 21 | D64: ARQ.CAI 4R - AISLACIÓN ACÚSTICA MÍNIMA DE FACHADAS EXTERIORES | S64: ARQ.CAI 4R - AISLACIÓN ACÚSTICA MÍNIMA DE FACHADAS EXTERIORES
A65: N | B65: =+B64 -> 21 | F65: Tipo requerimiento | H65: =+IF(VLOOKUP(B64,TablaResumen[],4)="C","Voluntario","Obligatorio") -> Obligatorio | V65: Puntaje crédito numérico
A66: N | B66: =+B65 -> 21 | N66: =+IF(H65="Obligatorio","Cumple Requerimiento","Puntaje obtenido") -> Cumple Requerimiento | Q66: =+IF(H65="Obligatorio",X77,IF(A66="N",IF(Uso_Edificio="Oficinas",SUM(W67:W70),SUM(X67:X70)),IF(Uso_Edificio="Oficinas",SUM(X73:X76),SUM(Y73:Y76)))) -> NO | V66: Calificación | W66: Of. Y Serv. | X66: Ed. Y Salud
A67: N | B67: 21 | F67: Nombre Requerimiento | H67: =+VLOOKUP(B69,TablaResumen[],16,0) -> Aislación acústica mínima de fachadas exteriores | Q67: =+IF(H64="Requisito",W76,IF(#REF!="N",IF(Uso_Edificio="Oficinas",SUM(W66:W69),SUM(X66:X69)),IF(Uso_Edificio="Oficinas",SUM(X72:X75),SUM(Y72:Y75)))) ->  | U67: =+CONCATENATE(B67,".",4) -> 21.4 | V67: =+AND(Q70>VLOOKUP(U67,MatrizRequerimientos,10,FALSE),Q70<=VLOOKUP(U67,MatrizRequerimientos,11,FALSE)) -> FALSE | W67: =+V67*VLOOKUP(U67,MatrizRequerimientos,8,FALSE) -> 0 | X67: =+V67*VLOOKUP(U67,MatrizRequerimientos,9,FALSE) -> 0
A68: N | B68: 21 | Q68: =+IF(H65="Requisito",W77,IF(A64="N",IF(Uso_Edificio="Oficinas",SUM(W67:W70),SUM(X67:X70)),IF(Uso_Edificio="Oficinas",SUM(X73:X76),SUM(Y73:Y76)))) -> 0 | U68: =+CONCATENATE(B68,".",5) -> 21.5 | V68: =+AND(Q70>VLOOKUP(U68,MatrizRequerimientos,10,FALSE),Q70<=VLOOKUP(U68,MatrizRequerimientos,11,FALSE)) -> FALSE | W68: =+V68*VLOOKUP(U68,MatrizRequerimientos,8,FALSE) -> 0 | X68: =+V68*VLOOKUP(U68,MatrizRequerimientos,9,FALSE) -> 0
A69: N | B69: 21 | F69: Indicador | H69: =+VLOOKUP(B70,TablaResumen[],21,0) -> Aislamiento acústico de fachada [dB(A)] | U69: =+CONCATENATE(B69,".",6) -> 21.6 | V69: =+AND(Q70>VLOOKUP(U69,MatrizRequerimientos,10,FALSE),Q70<=VLOOKUP(U69,MatrizRequerimientos,11,FALSE)) -> FALSE | W69: =+V69*VLOOKUP(U69,MatrizRequerimientos,8,FALSE) -> 0 | X69: =+V69*VLOOKUP(U69,MatrizRequerimientos,9,FALSE) -> 0
A70: N | B70: 21 | N70: =+IF(A69="N",CONCATENATE("Valor obtenido en proyecto para ",H69),"Seleccione Nivel de Cumplimiento") -> Valor obtenido en proyecto para Aislamiento acústico de fachada [dB(A)] | U70: =+CONCATENATE(B70,".",7) -> 21.7 | V70: =+AND(Q70>VLOOKUP(U70,MatrizRequerimientos,10,FALSE),Q70<=VLOOKUP(U70,MatrizRequerimientos,11,FALSE)) -> FALSE | W70: =+V70*VLOOKUP(U70,MatrizRequerimientos,8,FALSE) -> 0 | X70: =+V70*VLOOKUP(U70,MatrizRequerimientos,9,FALSE) -> 0
A71: N | B71: 21
A72: N | B72: 21 | F72: OPCIÓN | H72: =CONCATENATE(VLOOKUP(B72,'Resumen requerimientos'!$T$5:$AB$96,5,FALSE), " de ",VLOOKUP(B72,'Resumen requerimientos'!$T$5:$AB$96,6,FALSE)) -> 1 de 1 | X72: Of. Y Serv. | Y72: Ed. Y Salud
A73: N | B73: 21 | U73: =+CONCATENATE(B73,".",4) -> 21.4 | V73: =+VLOOKUP(U73,MatrizRequerimientos,6,FALSE) -> 24,999999-100 | W73: =+IF(A70="T",Q70=V73,V67) -> FALSE | X73: =+W73*VLOOKUP(U73,MatrizRequerimientos,8,FALSE) -> 0 | Y73: =+W73*VLOOKUP(U73,MatrizRequerimientos,9,FALSE) -> 0
A74: N | B74: 21 | F74: =+IF(H74="No","¿OTROS REQUERIMIENTOS SIMULTÁNEOS?","REQUERIMIENTOS SIMULTANEOS PARA LA OPCION") -> ¿OTROS REQUERIMIENTOS SIMULTÁNEOS? | H74: =IF(VLOOKUP(B74,'Resumen requerimientos'!$T$5:$AB$96,7,FALSE)=0,"No",CONCATENATE(VLOOKUP(B74,'Resumen requerimientos'!$T$5:$AB$96,7,FALSE), " de ",VLOOKUP(B74,'Resumen requerimientos'!$T$5:$AB$96,8,FALSE))) -> No | U74: =+CONCATENATE(B74,".",5) -> 21.5 | V74: =+VLOOKUP(U74,MatrizRequerimientos,6,FALSE) -> 0 | W74: =+IF(A71="T",Q70=V74,V68) -> FALSE | X74: =+W74*VLOOKUP(U74,MatrizRequerimientos,8,FALSE) -> 0 | Y74: =+W74*VLOOKUP(U74,MatrizRequerimientos,9,FALSE) -> 0
A75: N | B75: 21 | U75: =+CONCATENATE(B75,".",6) -> 21.6 | V75: =+VLOOKUP(U75,MatrizRequerimientos,6,FALSE) -> 0 | W75: =+IF(A72="T",Q70=V75,V69) -> FALSE | X75: =+W75*VLOOKUP(U75,MatrizRequerimientos,8,FALSE) -> 0 | Y75: =+W75*VLOOKUP(U75,MatrizRequerimientos,9,FALSE) -> 0
A76: N | B76: 21 | F76: REQUERIMIENTO ADICIONAL | H76: =VLOOKUP(B76,'Resumen requerimientos'!$T$5:$AB$96,9,FALSE) -> No | U76: =+CONCATENATE(B76,".",7) -> 21.7 | V76: =+VLOOKUP(U76,MatrizRequerimientos,6,FALSE) -> 0 | W76: =+IF(A73="T",Q70=V76,V70) -> FALSE | X76: =+W76*VLOOKUP(U76,MatrizRequerimientos,8,FALSE) -> 0 | Y76: =+W76*VLOOKUP(U76,MatrizRequerimientos,9,FALSE) -> 0
A77: N | B77: 21 | W77: =+IF(AND(A73="N",H65="Voluntario"),SUMIF(W73:W76,TRUE,IF(Uso_Edificio="Oficinas",X73:X76,Y73:Y76)),IF(AND(A73="T",H65="Obligatorio"),VLOOKUP(Q70,V73:X76,3,FALSE)=1,W73)) -> FALSE | X77: =+IF(W77,"SI","NO") -> NO
A78: N | B78: 21
A79: N | B79: 21 | E79: Volver al índice

Sheet Evaluacion INST.CAI Obligat.
A1: Texto/Número | B1: Nº requisito | E1: Volver al índice
A2: T | B2: 50 | D2: INST.CAI 11R1 - CUMPLIR CON LAS TASAS MÍNIMAS DE VENTILACIÓN | S2: INST.CAI 11R1 - CUMPLIR CON LAS TASAS MÍNIMAS DE VENTILACIÓN
A3: T | B3: =+B2 -> 50 | F3: Tipo requerimiento | H3: =+IF(VLOOKUP(B2,TablaResumen[],4)="C","Voluntario","Obligatorio") -> Obligatorio | V3: Puntaje crédito numérico
A4: T | B4: 50 | N4: =+IF(H3="Obligatorio","Cumple Requerimiento","Puntaje obtenido") -> Cumple Requerimiento | Q4: =+IF(H3="Obligatorio",X15,IF(A4="N",IF(Uso_Edificio="Oficinas",SUM(W5:W8),SUM(X5:X8)),IF(Uso_Edificio="Oficinas",SUM(X11:X14),SUM(Y11:Y14)))) -> SI | V4: Calificación | W4: Of. Y Serv. | X4: Ed. Y Salud
A5: T | B5: 50 | F5: Nombre Requerimiento | H5: =+VLOOKUP(B7,TablaResumen[],16,0) -> Cumplir con las tasas mínimas de ventilación indicadas | Q5: =+IF(H2="Requisito",W14,IF(#REF!="N",IF(Uso_Edificio="Oficinas",SUM(W4:W7),SUM(X4:X7)),IF(Uso_Edificio="Oficinas",SUM(X10:X13),SUM(Y10:Y13)))) ->  | U5: =+CONCATENATE(B5,".",4) -> 50.4 | V5: =+AND(Q8>VLOOKUP(U5,MatrizRequerimientos,10,FALSE),Q8<=VLOOKUP(U5,MatrizRequerimientos,11,FALSE)) -> FALSE | W5: =+V5*VLOOKUP(U5,MatrizRequerimientos,8,FALSE) -> 0 | X5: =+V5*VLOOKUP(U5,MatrizRequerimientos,9,FALSE) -> 0
A6: T | B6: 50 | Q6: =+IF(H3="Requisito",W15,IF(A2="N",IF(Uso_Edificio="Oficinas",SUM(W5:W8),SUM(X5:X8)),IF(Uso_Edificio="Oficinas",SUM(X11:X14),SUM(Y11:Y14)))) -> 1 | U6: =+CONCATENATE(B6,".",5) -> 50.5 | V6: =+AND(Q8>VLOOKUP(U6,MatrizRequerimientos,10,FALSE),Q8<=VLOOKUP(U6,MatrizRequerimientos,11,FALSE)) -> FALSE | W6: =+V6*VLOOKUP(U6,MatrizRequerimientos,8,FALSE) -> 0 | X6: =+V6*VLOOKUP(U6,MatrizRequerimientos,9,FALSE) -> 0
A7: T | B7: 50 | F7: Indicador | H7: =+VLOOKUP(B8,TablaResumen[],21,0) -> Caudal de diseño del sistema de ventilación mecánica | U7: =+CONCATENATE(B7,".",6) -> 50.6 | V7: =+AND(Q8>VLOOKUP(U7,MatrizRequerimientos,10,FALSE),Q8<=VLOOKUP(U7,MatrizRequerimientos,11,FALSE)) -> FALSE | W7: =+V7*VLOOKUP(U7,MatrizRequerimientos,8,FALSE) -> 0 | X7: =+V7*VLOOKUP(U7,MatrizRequerimientos,9,FALSE) -> 0
A8: T | B8: 50 | N8: =+IF(A7="N",CONCATENATE("Valor obtenido en proyecto para ",H7),"Seleccione Nivel de Cumplimiento") -> Seleccione Nivel de Cumplimiento | Q8: No Aplica | U8: =+CONCATENATE(B8,".",7) -> 50.7 | V8: =+AND(Q8>VLOOKUP(U8,MatrizRequerimientos,10,FALSE),Q8<=VLOOKUP(U8,MatrizRequerimientos,11,FALSE)) -> FALSE | W8: =+V8*VLOOKUP(U8,MatrizRequerimientos,8,FALSE) -> 0 | X8: =+V8*VLOOKUP(U8,MatrizRequerimientos,9,FALSE) -> 0
A9: T | B9: 50
A10: T | B10: 50 | F10: OPCIÓN | H10: =CONCATENATE(VLOOKUP(B10,'Resumen requerimientos'!$T$5:$AB$96,5,FALSE), " de ",VLOOKUP(B10,'Resumen requerimientos'!$T$5:$AB$96,6,FALSE)) -> 1 de 1 | X10: Of. Y Serv. | Y10: Ed. Y Salud
A11: T | B11: 50 | U11: =+CONCATENATE(B11,".",4) -> 50.4 | V11: =+VLOOKUP(U11,MatrizRequerimientos,6,FALSE) -> No Aplica | W11: =+IF(A8="T",Q8=V11,V5) -> TRUE | X11: =+W11*VLOOKUP(U11,MatrizRequerimientos,8,FALSE) -> 1 | Y11: =+W11*VLOOKUP(U11,MatrizRequerimientos,9,FALSE) -> 1
A12: T | B12: 50 | F12: =+IF(H12="No","¿OTROS REQUERIMIENTOS SIMULTÁNEOS?","REQUERIMIENTOS SIMULTANEOS PARA LA OPCION") -> ¿OTROS REQUERIMIENTOS SIMULTÁNEOS? | H12: =IF(VLOOKUP(B12,'Resumen requerimientos'!$T$5:$AB$96,7,FALSE)=0,"No",CONCATENATE(VLOOKUP(B12,'Resumen requerimientos'!$T$5:$AB$96,7,FALSE), " de ",VLOOKUP(B12,'Resumen requerimientos'!$T$5:$AB$96,8,FALSE))) -> No | U12: =+CONCATENATE(B12,".",5) -> 50.5 | V12: =+VLOOKUP(U12,MatrizRequerimientos,6,FALSE) ->  | W12: =+IF(A9="T",Q8=V12,V6) -> FALSE | X12: =+W12*VLOOKUP(U12,MatrizRequerimientos,8,FALSE) -> 0 | Y12: =+W12*VLOOKUP(U12,MatrizRequerimientos,9,FALSE) -> 0
A13: T | B13: 50 | U13: =+CONCATENATE(B13,".",6) -> 50.6 | V13: =+VLOOKUP(U13,MatrizRequerimientos,6,FALSE) -> 0 | W13: =+IF(A10="T",Q8=V13,V7) -> FALSE | X13: =+W13*VLOOKUP(U13,MatrizRequerimientos,8,FALSE) -> 0 | Y13: =+W13*VLOOKUP(U13,MatrizRequerimientos,9,FALSE) -> 0
A14: T | B14: 50 | F14: REQUERIMIENTO ADICIONAL | H14: =VLOOKUP(B14,'Resumen requerimientos'!$T$5:$AB$96,9,FALSE) -> No | U14: =+CONCATENATE(B14,".",7) -> 50.7 | V14: =+VLOOKUP(U14,MatrizRequerimientos,6,FALSE) -> 0 | W14: =+IF(A11="T",Q8=V14,V8) -> FALSE | X14: =+W14*VLOOKUP(U14,MatrizRequerimientos,8,FALSE) -> 0 | Y14: =+W14*VLOOKUP(U14,MatrizRequerimientos,9,FALSE) -> 0
A15: T | B15: 50 | W15: =+IF(AND(A11="N",H3="Voluntario"),SUMIF(W11:W14,TRUE,IF(Uso_Edificio="Oficinas",X11:X14,Y11:Y14)),IF(AND(A11="T",H3="Obligatorio"),VLOOKUP(Q8,V11:X14,3,FALSE)=1,W11)) -> TRUE | X15: =+IF(W15,"SI","NO") -> SI
A16: T | B16: 50
A17: T | B17: 50 | E17: Volver al índice
A18: T | B18: 48 | D18: INST.CAI 11R2 - EFICIENCIA PROMEDIO MÍNIMA DE FILTRAJE | S18: INST.CAI 11R2 - EFICIENCIA PROMEDIO MÍNIMA DE FILTRAJE
A19: T | B19: =+B18 -> 48 | F19: Tipo requerimiento | H19: =+IF(VLOOKUP(B18,TablaResumen[],4)="C","Voluntario","Obligatorio") -> Obligatorio | V19: Puntaje crédito numérico
A20: T | B20: 48 | N20: =+IF(H19="Obligatorio","Cumple Requerimiento","Puntaje obtenido") -> Cumple Requerimiento | Q20: =+IF(H19="Obligatorio",X31,IF(A20="N",IF(Uso_Edificio="Oficinas",SUM(W21:W24),SUM(X21:X24)),IF(Uso_Edificio="Oficinas",SUM(X27:X30),SUM(Y27:Y30)))) -> SI | V20: Calificación | W20: Of. Y Serv. | X20: Ed. Y Salud
A21: T | B21: 48 | F21: Nombre Requerimiento | H21: =+VLOOKUP(B23,TablaResumen[],16,0) -> Eficiencia promedio de filtraje | Q21: =+IF(H18="Requisito",W30,IF(#REF!="N",IF(Uso_Edificio="Oficinas",SUM(W20:W23),SUM(X20:X23)),IF(Uso_Edificio="Oficinas",SUM(X26:X29),SUM(Y26:Y29)))) ->  | U21: =+CONCATENATE(B21,".",4) -> 48.4 | V21: =+AND(Q24>VLOOKUP(U21,MatrizRequerimientos,10,FALSE),Q24<=VLOOKUP(U21,MatrizRequerimientos,11,FALSE)) -> FALSE | W21: =+V21*VLOOKUP(U21,MatrizRequerimientos,8,FALSE) -> 0 | X21: =+V21*VLOOKUP(U21,MatrizRequerimientos,9,FALSE) -> 0
A22: T | B22: 48 | Q22: =+IF(H19="Requisito",W31,IF(A18="N",IF(Uso_Edificio="Oficinas",SUM(W21:W24),SUM(X21:X24)),IF(Uso_Edificio="Oficinas",SUM(X27:X30),SUM(Y27:Y30)))) -> 1 | U22: =+CONCATENATE(B22,".",5) -> 48.5 | V22: =+AND(Q24>VLOOKUP(U22,MatrizRequerimientos,10,FALSE),Q24<=VLOOKUP(U22,MatrizRequerimientos,11,FALSE)) -> FALSE | W22: =+V22*VLOOKUP(U22,MatrizRequerimientos,8,FALSE) -> 0 | X22: =+V22*VLOOKUP(U22,MatrizRequerimientos,9,FALSE) -> 0
A23: T | B23: 48 | F23: Indicador | H23: =+VLOOKUP(B24,TablaResumen[],21,0) -> Requisito Eficiencia promedio filtraje [% o MERV] | U23: =+CONCATENATE(B23,".",6) -> 48.6 | V23: =+AND(Q24>VLOOKUP(U23,MatrizRequerimientos,10,FALSE),Q24<=VLOOKUP(U23,MatrizRequerimientos,11,FALSE)) -> FALSE | W23: =+V23*VLOOKUP(U23,MatrizRequerimientos,8,FALSE) -> 0 | X23: =+V23*VLOOKUP(U23,MatrizRequerimientos,9,FALSE) -> 0
A24: T | B24: 48 | N24: =+IF(A23="N",CONCATENATE("Valor obtenido en proyecto para ",H23),"Seleccione Nivel de Cumplimiento") -> Seleccione Nivel de Cumplimiento | Q24: No Aplica | U24: =+CONCATENATE(B24,".",7) -> 48.7 | V24: =+AND(Q24>VLOOKUP(U24,MatrizRequerimientos,10,FALSE),Q24<=VLOOKUP(U24,MatrizRequerimientos,11,FALSE)) -> FALSE | W24: =+V24*VLOOKUP(U24,MatrizRequerimientos,8,FALSE) -> 0 | X24: =+V24*VLOOKUP(U24,MatrizRequerimientos,9,FALSE) -> 0
A25: T | B25: 48
A26: T | B26: 48 | F26: OPCIÓN | H26: =CONCATENATE(VLOOKUP(B26,'Resumen requerimientos'!$T$5:$AB$96,5,FALSE), " de ",VLOOKUP(B26,'Resumen requerimientos'!$T$5:$AB$96,6,FALSE)) -> 1 de 1 | X26: Of. Y Serv. | Y26: Ed. Y Salud
A27: T | B27: 48 | U27: =+CONCATENATE(B27,".",4) -> 48.4 | V27: =+VLOOKUP(U27,MatrizRequerimientos,6,FALSE) -> No Aplica | W27: =+IF(A24="T",Q24=V27,V21) -> TRUE | X27: =+W27*VLOOKUP(U27,MatrizRequerimientos,8,FALSE) -> 1 | Y27: =+W27*VLOOKUP(U27,MatrizRequerimientos,9,FALSE) -> 1
A28: T | B28: 48 | F28: =+IF(H28="No","¿OTROS REQUERIMIENTOS SIMULTÁNEOS?","REQUERIMIENTOS SIMULTANEOS PARA LA OPCION") -> ¿OTROS REQUERIMIENTOS SIMULTÁNEOS? | H28: =IF(VLOOKUP(B28,'Resumen requerimientos'!$T$5:$AB$96,7,FALSE)=0,"No",CONCATENATE(VLOOKUP(B28,'Resumen requerimientos'!$T$5:$AB$96,7,FALSE), " de ",VLOOKUP(B28,'Resumen requerimientos'!$T$5:$AB$96,8,FALSE))) -> No | U28: =+CONCATENATE(B28,".",5) -> 48.5 | V28: =+VLOOKUP(U28,MatrizRequerimientos,6,FALSE) ->  | W28: =+IF(A25="T",Q24=V28,V22) -> FALSE | X28: =+W28*VLOOKUP(U28,MatrizRequerimientos,8,FALSE) -> 0 | Y28: =+W28*VLOOKUP(U28,MatrizRequerimientos,9,FALSE) -> 0
A29: T | B29: 48 | U29: =+CONCATENATE(B29,".",6) -> 48.6 | V29: =+VLOOKUP(U29,MatrizRequerimientos,6,FALSE) -> 0 | W29: =+IF(A26="T",Q24=V29,V23) -> FALSE | X29: =+W29*VLOOKUP(U29,MatrizRequerimientos,8,FALSE) -> 0 | Y29: =+W29*VLOOKUP(U29,MatrizRequerimientos,9,FALSE) -> 0
A30: T | B30: 48 | F30: REQUERIMIENTO ADICIONAL | H30: =VLOOKUP(B30,'Resumen requerimientos'!$T$5:$AB$96,9,FALSE) -> No | U30: =+CONCATENATE(B30,".",7) -> 48.7 | V30: =+VLOOKUP(U30,MatrizRequerimientos,6,FALSE) -> 0 | W30: =+IF(A27="T",Q24=V30,V24) -> FALSE | X30: =+W30*VLOOKUP(U30,MatrizRequerimientos,8,FALSE) -> 0 | Y30: =+W30*VLOOKUP(U30,MatrizRequerimientos,9,FALSE) -> 0
A31: T | B31: 48 | W31: =+IF(AND(A27="N",H19="Voluntario"),SUMIF(W27:W30,TRUE,IF(Uso_Edificio="Oficinas",X27:X30,Y27:Y30)),IF(AND(A27="T",H19="Obligatorio"),VLOOKUP(Q24,V27:X30,3,FALSE)=1,W27)) -> TRUE | X31: =+IF(W31,"SI","NO") -> SI
A32: T | B32: 48
A33: T | B33: 48 | E33: Volver al índice
A34: T | B34: 47 | D34: INST.CAI 11R3 - NO UTILIZAR SISTEMAS DE CALEFACCIÓN DE LLAMA ABIERTA | S34: INST.CAI 11R3 - NO UTILIZAR SISTEMAS DE CALEFACCIÓN DE LLAMA ABIERTA
A35: T | B35: =+B34 -> 47 | F35: Tipo requerimiento | H35: =+IF(VLOOKUP(B34,TablaResumen[],4)="C","Voluntario","Obligatorio") -> Obligatorio | V35: Puntaje crédito numérico
A36: T | B36: 47 | N36: =+IF(H35="Obligatorio","Cumple Requerimiento","Puntaje obtenido") -> Cumple Requerimiento | Q36: =+IF(H35="Obligatorio",X47,IF(A36="N",IF(Uso_Edificio="Oficinas",SUM(W37:W40),SUM(X37:X40)),IF(Uso_Edificio="Oficinas",SUM(X43:X46),SUM(Y43:Y46)))) -> NO | V36: Calificación | W36: Of. Y Serv. | X36: Ed. Y Salud
A37: T | B37: 47 | F37: Nombre Requerimiento | H37: =+VLOOKUP(B39,TablaResumen[],16,0) -> No utlizar sistemas de calefacción de combustión en base a llama abierta | Q37: =+IF(H34="Requisito",W46,IF(#REF!="N",IF(Uso_Edificio="Oficinas",SUM(W36:W39),SUM(X36:X39)),IF(Uso_Edificio="Oficinas",SUM(X42:X45),SUM(Y42:Y45)))) ->  | U37: =+CONCATENATE(B37,".",4) -> 47.4 | V37: =+AND(Q40>VLOOKUP(U37,MatrizRequerimientos,10,FALSE),Q40<=VLOOKUP(U37,MatrizRequerimientos,11,FALSE)) -> FALSE | W37: =+V37*VLOOKUP(U37,MatrizRequerimientos,8,FALSE) -> 0 | X37: =+V37*VLOOKUP(U37,MatrizRequerimientos,9,FALSE) -> 0
A38: T | B38: 47 | Q38: =+IF(H35="Requisito",W47,IF(A34="N",IF(Uso_Edificio="Oficinas",SUM(W37:W40),SUM(X37:X40)),IF(Uso_Edificio="Oficinas",SUM(X43:X46),SUM(Y43:Y46)))) -> 0 | U38: =+CONCATENATE(B38,".",5) -> 47.5 | V38: =+AND(Q40>VLOOKUP(U38,MatrizRequerimientos,10,FALSE),Q40<=VLOOKUP(U38,MatrizRequerimientos,11,FALSE)) -> FALSE | W38: =+V38*VLOOKUP(U38,MatrizRequerimientos,8,FALSE) -> 0 | X38: =+V38*VLOOKUP(U38,MatrizRequerimientos,9,FALSE) -> 0
A39: T | B39: 47 | F39: Indicador | H39: =+VLOOKUP(B40,TablaResumen[],21,0) -> Sistemas de calefacción utilizados | U39: =+CONCATENATE(B39,".",6) -> 47.6 | V39: =+AND(Q40>VLOOKUP(U39,MatrizRequerimientos,10,FALSE),Q40<=VLOOKUP(U39,MatrizRequerimientos,11,FALSE)) -> FALSE | W39: =+V39*VLOOKUP(U39,MatrizRequerimientos,8,FALSE) -> 0 | X39: =+V39*VLOOKUP(U39,MatrizRequerimientos,9,FALSE) -> 0
A40: T | B40: 47 | N40: =+IF(A39="N",CONCATENATE("Valor obtenido en proyecto para ",H39),"Seleccione Nivel de Cumplimiento") -> Seleccione Nivel de Cumplimiento | U40: =+CONCATENATE(B40,".",7) -> 47.7 | V40: =+AND(Q40>VLOOKUP(U40,MatrizRequerimientos,10,FALSE),Q40<=VLOOKUP(U40,MatrizRequerimientos,11,FALSE)) -> FALSE | W40: =+V40*VLOOKUP(U40,MatrizRequerimientos,8,FALSE) -> 0 | X40: =+V40*VLOOKUP(U40,MatrizRequerimientos,9,FALSE) -> 0
A41: T | B41: 47
A42: T | B42: 47 | F42: OPCIÓN | H42: =CONCATENATE(VLOOKUP(B42,'Resumen requerimientos'!$T$5:$AB$96,5,FALSE), " de ",VLOOKUP(B42,'Resumen requerimientos'!$T$5:$AB$96,6,FALSE)) -> 1 de 1 | X42: Of. Y Serv. | Y42: Ed. Y Salud
A43: T | B43: 47 | U43: =+CONCATENATE(B43,".",4) -> 47.4 | V43: =+VLOOKUP(U43,MatrizRequerimientos,6,FALSE) -> NO presenta combustión llama abierta en calefacción | W43: =+IF(A40="T",Q40=V43,V37) -> FALSE | X43: =+W43*VLOOKUP(U43,MatrizRequerimientos,8,FALSE) -> 0 | Y43: =+W43*VLOOKUP(U43,MatrizRequerimientos,9,FALSE) -> 0
A44: T | B44: 47 | F44: =+IF(H44="No","¿OTROS REQUERIMIENTOS SIMULTÁNEOS?","REQUERIMIENTOS SIMULTANEOS PARA LA OPCION") -> ¿OTROS REQUERIMIENTOS SIMULTÁNEOS? | H44: =IF(VLOOKUP(B44,'Resumen requerimientos'!$T$5:$AB$96,7,FALSE)=0,"No",CONCATENATE(VLOOKUP(B44,'Resumen requerimientos'!$T$5:$AB$96,7,FALSE), " de ",VLOOKUP(B44,'Resumen requerimientos'!$T$5:$AB$96,8,FALSE))) -> No | U44: =+CONCATENATE(B44,".",5) -> 47.5 | V44: =+VLOOKUP(U44,MatrizRequerimientos,6,FALSE) -> Presenta combustión llama abierta en calefacción | W44: =+IF(A41="T",Q40=V44,V38) -> FALSE | X44: =+W44*VLOOKUP(U44,MatrizRequerimientos,8,FALSE) -> 0 | Y44: =+W44*VLOOKUP(U44,MatrizRequerimientos,9,FALSE) -> 0
A45: T | B45: 47 | U45: =+CONCATENATE(B45,".",6) -> 47.6 | V45: =+VLOOKUP(U45,MatrizRequerimientos,6,FALSE) -> 0 | W45: =+IF(A42="T",Q40=V45,V39) -> TRUE | X45: =+W45*VLOOKUP(U45,MatrizRequerimientos,8,FALSE) -> 0 | Y45: =+W45*VLOOKUP(U45,MatrizRequerimientos,9,FALSE) -> 0
A46: T | B46: 47 | F46: REQUERIMIENTO ADICIONAL | H46: =VLOOKUP(B46,'Resumen requerimientos'!$T$5:$AB$96,9,FALSE) -> No | U46: =+CONCATENATE(B46,".",7) -> 47.7 | V46: =+VLOOKUP(U46,MatrizRequerimientos,6,FALSE) -> 0 | W46: =+IF(A43="T",Q40=V46,V40) -> TRUE | X46: =+W46*VLOOKUP(U46,MatrizRequerimientos,8,FALSE) -> 0 | Y46: =+W46*VLOOKUP(U46,MatrizRequerimientos,9,FALSE) -> 0
A47: T | B47: 47 | W47: =+IF(AND(A43="N",H35="Voluntario"),SUMIF(W43:W46,TRUE,IF(Uso_Edificio="Oficinas",X43:X46,Y43:Y46)),IF(AND(A43="T",H35="Obligatorio"),VLOOKUP(Q40,V43:X46,3,FALSE)=1,W43)) -> FALSE | X47: =+IF(W47,"SI","NO") -> NO
A48: T | B48: 47
A49: T | B49: 47 | E49: Volver al índice
A50: T | B50: 57 | D50: INST.CAI 13R - CONDICIONES DE DISEÑO MÍNIMAS | S50: INST.CAI 13R - CONDICIONES DE DISEÑO MÍNIMAS
A51: T | B51: =+B50 -> 57 | F51: Tipo requerimiento | H51: =+IF(VLOOKUP(B50,TablaResumen[],4)="C","Voluntario","Obligatorio") -> Obligatorio | V51: Puntaje crédito numérico
A52: T | B52: 57 | N52: =+IF(H51="Obligatorio","Cumple Requerimiento","Puntaje obtenido") -> Cumple Requerimiento | Q52: =+IF(H51="Obligatorio",X63,IF(A52="N",IF(Uso_Edificio="Oficinas",SUM(W53:W56),SUM(X53:X56)),IF(Uso_Edificio="Oficinas",SUM(X59:X62),SUM(Y59:Y62)))) -> NO | V52: Calificación | W52: Of. Y Serv. | X52: Ed. Y Salud
A53: T | B53: 57 | F53: Nombre Requerimiento | H53: =+VLOOKUP(B55,TablaResumen[],16,0) -> Nivel mínimo de Iluminancia, rendimiento cromático y deslumbramiento | Q53: =+IF(H50="Requisito",W62,IF(#REF!="N",IF(Uso_Edificio="Oficinas",SUM(W52:W55),SUM(X52:X55)),IF(Uso_Edificio="Oficinas",SUM(X58:X61),SUM(Y58:Y61)))) ->  | U53: =+CONCATENATE(B53,".",4) -> 57.4 | V53: =+AND(Q56>VLOOKUP(U53,MatrizRequerimientos,10,FALSE),Q56<=VLOOKUP(U53,MatrizRequerimientos,11,FALSE)) -> FALSE | W53: =+V53*VLOOKUP(U53,MatrizRequerimientos,8,FALSE) -> 0 | X53: =+V53*VLOOKUP(U53,MatrizRequerimientos,9,FALSE) -> 0
A54: T | B54: 57 | Q54: =+IF(H51="Requisito",W63,IF(A50="N",IF(Uso_Edificio="Oficinas",SUM(W53:W56),SUM(X53:X56)),IF(Uso_Edificio="Oficinas",SUM(X59:X62),SUM(Y59:Y62)))) -> 0 | U54: =+CONCATENATE(B54,".",5) -> 57.5 | V54: =+AND(Q56>VLOOKUP(U54,MatrizRequerimientos,10,FALSE),Q56<=VLOOKUP(U54,MatrizRequerimientos,11,FALSE)) -> FALSE | W54: =+V54*VLOOKUP(U54,MatrizRequerimientos,8,FALSE) -> 0 | X54: =+V54*VLOOKUP(U54,MatrizRequerimientos,9,FALSE) -> 0
A55: T | B55: 57 | F55: Indicador | H55: =+VLOOKUP(B56,TablaResumen[],21,0) -> Iluminancia mínima [lux] | U55: =+CONCATENATE(B55,".",6) -> 57.6 | V55: =+AND(Q56>VLOOKUP(U55,MatrizRequerimientos,10,FALSE),Q56<=VLOOKUP(U55,MatrizRequerimientos,11,FALSE)) -> FALSE | W55: =+V55*VLOOKUP(U55,MatrizRequerimientos,8,FALSE) -> 0 | X55: =+V55*VLOOKUP(U55,MatrizRequerimientos,9,FALSE) -> 0
A56: T | B56: 57 | N56: =+IF(A55="N",CONCATENATE("Valor obtenido en proyecto para ",H55),"Seleccione Nivel de Cumplimiento") -> Seleccione Nivel de Cumplimiento | U56: =+CONCATENATE(B56,".",7) -> 57.7 | V56: =+AND(Q56>VLOOKUP(U56,MatrizRequerimientos,10,FALSE),Q56<=VLOOKUP(U56,MatrizRequerimientos,11,FALSE)) -> FALSE | W56: =+V56*VLOOKUP(U56,MatrizRequerimientos,8,FALSE) -> 0 | X56: =+V56*VLOOKUP(U56,MatrizRequerimientos,9,FALSE) -> 0
A57: T | B57: 57
A58: T | B58: 57 | F58: OPCIÓN | H58: =CONCATENATE(VLOOKUP(B58,'Resumen requerimientos'!$T$5:$AB$92,5,FALSE), " de ",VLOOKUP(B58,'Resumen requerimientos'!$T$5:$AB$92,6,FALSE)) -> 1 de 1 | X58: Of. Y Serv. | Y58: Ed. Y Salud
A59: T | B59: 57 | U59: =+CONCATENATE(B59,".",4) -> 57.4 | V59: =+VLOOKUP(U59,MatrizRequerimientos,6,FALSE) -> Cumple mínimo de lux para todos los recintos | W59: =+IF(A56="T",Q56=V59,V53) -> FALSE | X59: =+W59*VLOOKUP(U59,MatrizRequerimientos,8,FALSE) -> 0 | Y59: =+W59*VLOOKUP(U59,MatrizRequerimientos,9,FALSE) -> 0
A60: T | B60: 57 | F60: =+IF(H60="No","¿OTROS REQUERIMIENTOS SIMULTÁNEOS?","REQUERIMIENTOS SIMULTANEOS PARA LA OPCION") -> REQUERIMIENTOS SIMULTANEOS PARA LA OPCION | H60: =IF(VLOOKUP(B60,'Resumen requerimientos'!$T$5:$AB$92,7,FALSE)=0,"No",CONCATENATE(VLOOKUP(B60,'Resumen requerimientos'!$T$5:$AB$92,7,FALSE), " de ",VLOOKUP(B60,'Resumen requerimientos'!$T$5:$AB$92,8,FALSE))) -> 1 de 3 | U60: =+CONCATENATE(B60,".",5) -> 57.5 | V60: =+VLOOKUP(U60,MatrizRequerimientos,6,FALSE) -> NO cumple mínimo de lux para todos los recintos | W60: =+IF(A57="T",Q56=V60,V54) -> FALSE | X60: =+W60*VLOOKUP(U60,MatrizRequerimientos,8,FALSE) -> 0 | Y60: =+W60*VLOOKUP(U60,MatrizRequerimientos,9,FALSE) -> 0
A61: T | B61: 57 | U61: =+CONCATENATE(B61,".",6) -> 57.6 | V61: =+VLOOKUP(U61,MatrizRequerimientos,6,FALSE) -> 0 | W61: =+IF(A58="T",Q56=V61,V55) -> TRUE | X61: =+W61*VLOOKUP(U61,MatrizRequerimientos,8,FALSE) -> 0 | Y61: =+W61*VLOOKUP(U61,MatrizRequerimientos,9,FALSE) -> 0
A62: T | B62: 57 | F62: REQUERIMIENTO ADICIONAL | H62: =VLOOKUP(B62,'Resumen requerimientos'!$T$5:$AB$92,9,FALSE) -> No | U62: =+CONCATENATE(B62,".",7) -> 57.7 | V62: =+VLOOKUP(U62,MatrizRequerimientos,6,FALSE) -> 0 | W62: =+IF(A59="T",Q56=V62,V56) -> TRUE | X62: =+W62*VLOOKUP(U62,MatrizRequerimientos,8,FALSE) -> 0 | Y62: =+W62*VLOOKUP(U62,MatrizRequerimientos,9,FALSE) -> 0
A63: T | B63: 57 | W63: =+IF(AND(A59="N",H51="Voluntario"),SUMIF(W59:W62,TRUE,IF(Uso_Edificio="Oficinas",X59:X62,Y59:Y62)),IF(AND(A59="T",H51="Obligatorio"),VLOOKUP(Q56,V59:X62,3,FALSE)=1,W59)) -> FALSE | X63: =+IF(W63,"SI","NO") -> NO
A64: T | B64: 57
A65: N | B65: 58
A66: N | B66: =+B65 -> 58 | F66: Tipo requerimiento | H66: =+IF(VLOOKUP(B65,TablaResumen[],4)="C","Voluntario","Obligatorio") -> Obligatorio | V66: Puntaje crédito numérico
A67: N | B67: 58 | N67: =+IF(H66="Obligatorio","Cumple Requerimiento","Puntaje obtenido") -> Cumple Requerimiento | Q67: =+IF(H66="Obligatorio",X78,IF(A67="N",IF(Uso_Edificio="Oficinas",SUM(W68:W71),SUM(X68:X71)),IF(Uso_Edificio="Oficinas",SUM(X74:X77),SUM(Y74:Y77)))) -> NO | V67: Calificación | W67: Of. Y Serv. | X67: Ed. Y Salud
A68: N | B68: 58 | F68: Nombre Requerimiento | H68: =+VLOOKUP(B70,TablaResumen[],16,0) -> Nivel mínimo de Iluminancia, rendimiento cromático y deslumbramiento | Q68: =+IF(H65="Requisito",W77,IF(#REF!="N",IF(Uso_Edificio="Oficinas",SUM(W67:W70),SUM(X67:X70)),IF(Uso_Edificio="Oficinas",SUM(X73:X76),SUM(Y73:Y76)))) ->  | U68: =+CONCATENATE(B68,".",4) -> 58.4 | V68: =+AND(Q71>VLOOKUP(U68,MatrizRequerimientos,10,FALSE),Q71<=VLOOKUP(U68,MatrizRequerimientos,11,FALSE)) -> FALSE | W68: =+V68*VLOOKUP(U68,MatrizRequerimientos,8,FALSE) -> 0 | X68: =+V68*VLOOKUP(U68,MatrizRequerimientos,9,FALSE) -> 0
A69: N | B69: 58 | Q69: =+IF(H66="Requisito",W78,IF(A65="N",IF(Uso_Edificio="Oficinas",SUM(W68:W71),SUM(X68:X71)),IF(Uso_Edificio="Oficinas",SUM(X74:X77),SUM(Y74:Y77)))) -> 0 | U69: =+CONCATENATE(B69,".",5) -> 58.5 | V69: =+AND(Q71>VLOOKUP(U69,MatrizRequerimientos,10,FALSE),Q71<=VLOOKUP(U69,MatrizRequerimientos,11,FALSE)) -> FALSE | W69: =+V69*VLOOKUP(U69,MatrizRequerimientos,8,FALSE) -> 0 | X69: =+V69*VLOOKUP(U69,MatrizRequerimientos,9,FALSE) -> 0
A70: N | B70: 58 | F70: Indicador | H70: =+VLOOKUP(B71,TablaResumen[],21,0) -> Índice de rendimiento cromático [IRC] | U70: =+CONCATENATE(B70,".",6) -> 58.6 | V70: =+AND(Q71>VLOOKUP(U70,MatrizRequerimientos,10,FALSE),Q71<=VLOOKUP(U70,MatrizRequerimientos,11,FALSE)) -> FALSE | W70: =+V70*VLOOKUP(U70,MatrizRequerimientos,8,FALSE) -> 0 | X70: =+V70*VLOOKUP(U70,MatrizRequerimientos,9,FALSE) -> 0
A71: N | B71: 58 | N71: =+IF(A70="N",CONCATENATE("Valor obtenido en proyecto para ",H70),"Seleccione Nivel de Cumplimiento") -> Valor obtenido en proyecto para Índice de rendimiento cromático [IRC] | U71: =+CONCATENATE(B71,".",7) -> 58.7 | V71: =+AND(Q71>VLOOKUP(U71,MatrizRequerimientos,10,FALSE),Q71<=VLOOKUP(U71,MatrizRequerimientos,11,FALSE)) -> FALSE | W71: =+V71*VLOOKUP(U71,MatrizRequerimientos,8,FALSE) -> 0 | X71: =+V71*VLOOKUP(U71,MatrizRequerimientos,9,FALSE) -> 0
A72: N | B72: 58
A73: N | B73: 58 | F73: OPCIÓN | H73: =CONCATENATE(VLOOKUP(B73,'Resumen requerimientos'!$T$5:$AB$92,5,FALSE), " de ",VLOOKUP(B73,'Resumen requerimientos'!$T$5:$AB$92,6,FALSE)) -> 1 de 1 | X73: Of. Y Serv. | Y73: Ed. Y Salud
A74: N | B74: 58 | U74: =+CONCATENATE(B74,".",4) -> 58.4 | V74: =+VLOOKUP(U74,MatrizRequerimientos,6,FALSE) -> 79,99999-100 | W74: =+IF(A71="T",Q71=V74,V68) -> FALSE | X74: =+W74*VLOOKUP(U74,MatrizRequerimientos,8,FALSE) -> 0 | Y74: =+W74*VLOOKUP(U74,MatrizRequerimientos,9,FALSE) -> 0
A75: N | B75: 58 | F75: =+IF(H75="No","¿OTROS REQUERIMIENTOS SIMULTÁNEOS?","REQUERIMIENTOS SIMULTANEOS PARA LA OPCION") -> REQUERIMIENTOS SIMULTANEOS PARA LA OPCION | H75: =IF(VLOOKUP(B75,'Resumen requerimientos'!$T$5:$AB$92,7,FALSE)=0,"No",CONCATENATE(VLOOKUP(B75,'Resumen requerimientos'!$T$5:$AB$92,7,FALSE), " de ",VLOOKUP(B75,'Resumen requerimientos'!$T$5:$AB$92,8,FALSE))) -> 2 de 3 | U75: =+CONCATENATE(B75,".",5) -> 58.5 | V75: =+VLOOKUP(U75,MatrizRequerimientos,6,FALSE) -> 79,99999-100 | W75: =+IF(A72="T",Q71=V75,V69) -> FALSE | X75: =+W75*VLOOKUP(U75,MatrizRequerimientos,8,FALSE) -> 0 | Y75: =+W75*VLOOKUP(U75,MatrizRequerimientos,9,FALSE) -> 0
A76: N | B76: 58 | U76: =+CONCATENATE(B76,".",6) -> 58.6 | V76: =+VLOOKUP(U76,MatrizRequerimientos,6,FALSE) -> 79,99999-100 | W76: =+IF(A73="T",Q71=V76,V70) -> FALSE | X76: =+W76*VLOOKUP(U76,MatrizRequerimientos,8,FALSE) -> 0 | Y76: =+W76*VLOOKUP(U76,MatrizRequerimientos,9,FALSE) -> 0
A77: N | B77: 58 | F77: REQUERIMIENTO ADICIONAL | H77: =VLOOKUP(B77,'Resumen requerimientos'!$T$5:$AB$92,9,FALSE) -> No | U77: =+CONCATENATE(B77,".",7) -> 58.7 | V77: =+VLOOKUP(U77,MatrizRequerimientos,6,FALSE) -> 79,99999-100 | W77: =+IF(A74="T",Q71=V77,V71) -> FALSE | X77: =+W77*VLOOKUP(U77,MatrizRequerimientos,8,FALSE) -> 0 | Y77: =+W77*VLOOKUP(U77,MatrizRequerimientos,9,FALSE) -> 0
A78: N | B78: 58 | W78: =+IF(AND(A74="N",H66="Voluntario"),SUMIF(W74:W77,TRUE,IF(Uso_Edificio="Oficinas",X74:X77,Y74:Y77)),IF(AND(A74="T",H66="Obligatorio"),VLOOKUP(Q71,V74:X77,3,FALSE)=1,W74)) -> FALSE | X78: =+IF(W78,"SI","NO") -> NO
A79: N | B79: 58
A80: N | B80: 59
A81: N | B81: =+B80 -> 59 | F81: Tipo requerimiento | H81: =+IF(VLOOKUP(B80,TablaResumen[],4)="C","Voluntario","Obligatorio") -> Obligatorio | V81: Puntaje crédito numérico
A82: N | B82: 59 | N82: =+IF(H81="Obligatorio","Cumple Requerimiento","Puntaje obtenido") -> Cumple Requerimiento | Q82: =+IF(H81="Obligatorio",X93,IF(A82="N",IF(Uso_Edificio="Oficinas",SUM(W83:W86),SUM(X83:X86)),IF(Uso_Edificio="Oficinas",SUM(X89:X92),SUM(Y89:Y92)))) -> NO | V82: Calificación | W82: Of. Y Serv. | X82: Ed. Y Salud
A83: N | B83: 59 | F83: Nombre Requerimiento | H83: =+VLOOKUP(B85,TablaResumen[],16,0) -> Nivel mínimo de Iluminancia, rendimiento cromático y deslumbramiento | Q83: =+IF(H80="Requisito",W92,IF(#REF!="N",IF(Uso_Edificio="Oficinas",SUM(W82:W85),SUM(X82:X85)),IF(Uso_Edificio="Oficinas",SUM(X88:X91),SUM(Y88:Y91)))) ->  | U83: =+CONCATENATE(B83,".",4) -> 59.4 | V83: =+AND(Q86>VLOOKUP(U83,MatrizRequerimientos,10,FALSE),Q86<=VLOOKUP(U83,MatrizRequerimientos,11,FALSE)) -> FALSE | W83: =+V83*VLOOKUP(U83,MatrizRequerimientos,8,FALSE) -> 0 | X83: =+V83*VLOOKUP(U83,MatrizRequerimientos,9,FALSE) -> 0
A84: N | B84: 59 | Q84: =+IF(H81="Requisito",W93,IF(A80="N",IF(Uso_Edificio="Oficinas",SUM(W83:W86),SUM(X83:X86)),IF(Uso_Edificio="Oficinas",SUM(X89:X92),SUM(Y89:Y92)))) -> 0 | U84: =+CONCATENATE(B84,".",5) -> 59.5 | V84: =+AND(Q86>VLOOKUP(U84,MatrizRequerimientos,10,FALSE),Q86<=VLOOKUP(U84,MatrizRequerimientos,11,FALSE)) -> FALSE | W84: =+V84*VLOOKUP(U84,MatrizRequerimientos,8,FALSE) -> 0 | X84: =+V84*VLOOKUP(U84,MatrizRequerimientos,9,FALSE) -> 0
A85: N | B85: 59 | F85: Indicador | H85: =+VLOOKUP(B86,TablaResumen[],21,0) -> Índice de deslumbramiento unificado [UGR] | U85: =+CONCATENATE(B85,".",6) -> 59.6 | V85: =+AND(Q86>VLOOKUP(U85,MatrizRequerimientos,10,FALSE),Q86<=VLOOKUP(U85,MatrizRequerimientos,11,FALSE)) -> FALSE | W85: =+V85*VLOOKUP(U85,MatrizRequerimientos,8,FALSE) -> 0 | X85: =+V85*VLOOKUP(U85,MatrizRequerimientos,9,FALSE) -> 0
A86: N | B86: 59 | N86: =+IF(A85="N",CONCATENATE("Valor obtenido en proyecto para ",H85),"Seleccione Nivel de Cumplimiento") -> Valor obtenido en proyecto para Índice de deslumbramiento unificado [UGR] | U86: =+CONCATENATE(B86,".",7) -> 59.7 | V86: =+AND(Q86>VLOOKUP(U86,MatrizRequerimientos,10,FALSE),Q86<=VLOOKUP(U86,MatrizRequerimientos,11,FALSE)) -> FALSE | W86: =+V86*VLOOKUP(U86,MatrizRequerimientos,8,FALSE) -> 0 | X86: =+V86*VLOOKUP(U86,MatrizRequerimientos,9,FALSE) -> 0
A87: N | B87: 59
A88: N | B88: 59 | F88: OPCIÓN | H88: =CONCATENATE(VLOOKUP(B88,'Resumen requerimientos'!$T$5:$AB$92,5,FALSE), " de ",VLOOKUP(B88,'Resumen requerimientos'!$T$5:$AB$92,6,FALSE)) -> 1 de 1 | X88: Of. Y Serv. | Y88: Ed. Y Salud
A89: N | B89: 59 | U89: =+CONCATENATE(B89,".",4) -> 59.4 | V89: =+VLOOKUP(U89,MatrizRequerimientos,6,FALSE) -> 0-22 | W89: =+IF(A86="T",Q86=V89,V83) -> FALSE | X89: =+W89*VLOOKUP(U89,MatrizRequerimientos,8,FALSE) -> 0 | Y89: =+W89*VLOOKUP(U89,MatrizRequerimientos,9,FALSE) -> 0
A90: N | B90: 59 | F90: =+IF(H90="No","¿OTROS REQUERIMIENTOS SIMULTÁNEOS?","REQUERIMIENTOS SIMULTANEOS PARA LA OPCION") -> REQUERIMIENTOS SIMULTANEOS PARA LA OPCION | H90: =IF(VLOOKUP(B90,'Resumen requerimientos'!$T$5:$AB$92,7,FALSE)=0,"No",CONCATENATE(VLOOKUP(B90,'Resumen requerimientos'!$T$5:$AB$92,7,FALSE), " de ",VLOOKUP(B90,'Resumen requerimientos'!$T$5:$AB$92,8,FALSE))) -> 3 de 3 | U90: =+CONCATENATE(B90,".",5) -> 59.5 | V90: =+VLOOKUP(U90,MatrizRequerimientos,6,FALSE) -> 0-22 | W90: =+IF(A87="T",Q86=V90,V84) -> FALSE | X90: =+W90*VLOOKUP(U90,MatrizRequerimientos,8,FALSE) -> 0 | Y90: =+W90*VLOOKUP(U90,MatrizRequerimientos,9,FALSE) -> 0
A91: N | B91: 59 | U91: =+CONCATENATE(B91,".",6) -> 59.6 | V91: =+VLOOKUP(U91,MatrizRequerimientos,6,FALSE) -> 0-22 | W91: =+IF(A88="T",Q86=V91,V85) -> FALSE | X91: =+W91*VLOOKUP(U91,MatrizRequerimientos,8,FALSE) -> 0 | Y91: =+W91*VLOOKUP(U91,MatrizRequerimientos,9,FALSE) -> 0
A92: N | B92: 59 | F92: REQUERIMIENTO ADICIONAL | H92: =VLOOKUP(B92,'Resumen requerimientos'!$T$5:$AB$92,9,FALSE) -> No | U92: =+CONCATENATE(B92,".",7) -> 59.7 | V92: =+VLOOKUP(U92,MatrizRequerimientos,6,FALSE) -> 0-22 | W92: =+IF(A89="T",Q86=V92,V86) -> FALSE | X92: =+W92*VLOOKUP(U92,MatrizRequerimientos,8,FALSE) -> 0 | Y92: =+W92*VLOOKUP(U92,MatrizRequerimientos,9,FALSE) -> 0
A93: N | B93: 59 | W93: =+IF(AND(A89="N",H81="Voluntario"),SUMIF(W89:W92,TRUE,IF(Uso_Edificio="Oficinas",X89:X92,Y89:Y92)),IF(AND(A89="T",H81="Obligatorio"),VLOOKUP(Q86,V89:X92,3,FALSE)=1,W89)) -> FALSE | X93: =+IF(W93,"SI","NO") -> NO
A94: N | B94: 59
A95: N | B95: 59 | E95: Volver al índice
A96: T | B96: 61 | D96: INST.CAI 14R -DEFINIR CONDICIONES DE DISEÑO DEL PROYECTO DE CLIMATIZACIÓN | S96: INST.CAI 14R -DEFINIR CONDICIONES DE DISEÑO DEL PROYECTO DE CLIMATIZACIÓN
A97: T | B97: =+B96 -> 61 | F97: Tipo requerimiento | H97: =+IF(VLOOKUP(B96,TablaResumen[],4)="C","Voluntario","Obligatorio") -> Obligatorio | V97: Puntaje crédito numérico
A98: T | B98: 61 | N98: =+IF(H97="Obligatorio","Cumple Requerimiento","Puntaje obtenido") -> Cumple Requerimiento | Q98: =+IF(H97="Obligatorio",X109,IF(A98="N",IF(Uso_Edificio="Oficinas",SUM(W99:W102),SUM(X99:X102)),IF(Uso_Edificio="Oficinas",SUM(X105:X108),SUM(Y105:Y108)))) -> NO | V98: Calificación | W98: Of. Y Serv. | X98: Ed. Y Salud
A99: T | B99: 61 | F99: Nombre Requerimiento | H99: =+VLOOKUP(B101,TablaResumen[],16,0) -> Definir condiciones de diseño del proyecto de climatización | Q99: =+IF(H96="Requisito",W108,IF(#REF!="N",IF(Uso_Edificio="Oficinas",SUM(W98:W101),SUM(X98:X101)),IF(Uso_Edificio="Oficinas",SUM(X104:X107),SUM(Y104:Y107)))) ->  | U99: =+CONCATENATE(B99,".",4) -> 61.4 | V99: =+AND(Q102>VLOOKUP(U99,MatrizRequerimientos,10,FALSE),Q102<=VLOOKUP(U99,MatrizRequerimientos,11,FALSE)) -> FALSE | W99: =+V99*VLOOKUP(U99,MatrizRequerimientos,8,FALSE) -> 0 | X99: =+V99*VLOOKUP(U99,MatrizRequerimientos,9,FALSE) -> 0
A100: T | B100: 61 | Q100: =+IF(H97="Requisito",W109,IF(A96="N",IF(Uso_Edificio="Oficinas",SUM(W99:W102),SUM(X99:X102)),IF(Uso_Edificio="Oficinas",SUM(X105:X108),SUM(Y105:Y108)))) -> 0 | U100: =+CONCATENATE(B100,".",5) -> 61.5 | V100: =+AND(Q102>VLOOKUP(U100,MatrizRequerimientos,10,FALSE),Q102<=VLOOKUP(U100,MatrizRequerimientos,11,FALSE)) -> FALSE | W100: =+V100*VLOOKUP(U100,MatrizRequerimientos,8,FALSE) -> 0 | X100: =+V100*VLOOKUP(U100,MatrizRequerimientos,9,FALSE) -> 0
A101: T | B101: 61 | F101: Indicador | H101: =+VLOOKUP(B102,TablaResumen[],21,0) -> Declaración de condiciones de diseño del proyeto de climatización | U101: =+CONCATENATE(B101,".",6) -> 61.6 | V101: =+AND(Q102>VLOOKUP(U101,MatrizRequerimientos,10,FALSE),Q102<=VLOOKUP(U101,MatrizRequerimientos,11,FALSE)) -> FALSE | W101: =+V101*VLOOKUP(U101,MatrizRequerimientos,8,FALSE) -> 0 | X101: =+V101*VLOOKUP(U101,MatrizRequerimientos,9,FALSE) -> 0
A102: T | B102: 61 | N102: =+IF(A101="N",CONCATENATE("Valor obtenido en proyecto para ",H101),"Seleccione Nivel de Cumplimiento") -> Seleccione Nivel de Cumplimiento | U102: =+CONCATENATE(B102,".",7) -> 61.7 | V102: =+AND(Q102>VLOOKUP(U102,MatrizRequerimientos,10,FALSE),Q102<=VLOOKUP(U102,MatrizRequerimientos,11,FALSE)) -> FALSE | W102: =+V102*VLOOKUP(U102,MatrizRequerimientos,8,FALSE) -> 0 | X102: =+V102*VLOOKUP(U102,MatrizRequerimientos,9,FALSE) -> 0
A103: T | B103: 61
A104: T | B104: 61 | F104: OPCIÓN | H104: =CONCATENATE(VLOOKUP(B104,'Resumen requerimientos'!$T$5:$AB$92,5,FALSE), " de ",VLOOKUP(B104,'Resumen requerimientos'!$T$5:$AB$92,6,FALSE)) -> 1 de 1 | X104: Of. Y Serv. | Y104: Ed. Y Salud
A105: T | B105: 61 | U105: =+CONCATENATE(B105,".",4) -> 61.4 | V105: =+VLOOKUP(U105,MatrizRequerimientos,6,FALSE) -> Se declaran condiciones de diseño del proyecto de climatización | W105: =+IF(A102="T",Q102=V105,V99) -> FALSE | X105: =+W105*VLOOKUP(U105,MatrizRequerimientos,8,FALSE) -> 0 | Y105: =+W105*VLOOKUP(U105,MatrizRequerimientos,9,FALSE) -> 0
A106: T | B106: 61 | F106: =+IF(H106="No","¿OTROS REQUERIMIENTOS SIMULTÁNEOS?","REQUERIMIENTOS SIMULTANEOS PARA LA OPCION") -> ¿OTROS REQUERIMIENTOS SIMULTÁNEOS? | H106: =IF(VLOOKUP(B106,'Resumen requerimientos'!$T$5:$AB$92,7,FALSE)=0,"No",CONCATENATE(VLOOKUP(B106,'Resumen requerimientos'!$T$5:$AB$92,7,FALSE), " de ",VLOOKUP(B106,'Resumen requerimientos'!$T$5:$AB$92,8,FALSE))) -> No | U106: =+CONCATENATE(B106,".",5) -> 61.5 | V106: =+VLOOKUP(U106,MatrizRequerimientos,6,FALSE) -> NO se declaran condiciones de diseño del proyecto de climatización | W106: =+IF(A103="T",Q102=V106,V100) -> FALSE | X106: =+W106*VLOOKUP(U106,MatrizRequerimientos,8,FALSE) -> 0 | Y106: =+W106*VLOOKUP(U106,MatrizRequerimientos,9,FALSE) -> 0
A107: T | B107: 61 | U107: =+CONCATENATE(B107,".",6) -> 61.6 | V107: =+VLOOKUP(U107,MatrizRequerimientos,6,FALSE) -> 0 | W107: =+IF(A104="T",Q102=V107,V101) -> TRUE | X107: =+W107*VLOOKUP(U107,MatrizRequerimientos,8,FALSE) -> 0 | Y107: =+W107*VLOOKUP(U107,MatrizRequerimientos,9,FALSE) -> 0
A108: T | B108: 61 | F108: REQUERIMIENTO ADICIONAL | H108: =VLOOKUP(B108,'Resumen requerimientos'!$T$5:$AB$92,9,FALSE) -> No | U108: =+CONCATENATE(B108,".",7) -> 61.7 | V108: =+VLOOKUP(U108,MatrizRequerimientos,6,FALSE) -> 0 | W108: =+IF(A105="T",Q102=V108,V102) -> TRUE | X108: =+W108*VLOOKUP(U108,MatrizRequerimientos,8,FALSE) -> 0 | Y108: =+W108*VLOOKUP(U108,MatrizRequerimientos,9,FALSE) -> 0
A109: T | B109: 61 | W109: =+IF(AND(A105="N",H97="Voluntario"),SUMIF(W105:W108,TRUE,IF(Uso_Edificio="Oficinas",X105:X108,Y105:Y108)),IF(AND(A105="T",H97="Obligatorio"),VLOOKUP(Q102,V105:X108,3,FALSE)=1,W105)) -> FALSE | X109: =+IF(W109,"SI","NO") -> NO
A110: T | B110: 61
A111: T | B111: 61 | E111: Volver al índice

Sheet Evaluacion ARQ.Energia Obligat.
A1: Texto /Número | B1: Nº requisito | E1: Volver al índice
A2: N | B2: 28 | D2: ARQ. ENERGIA 5R - TRANSMITANCIA TÉRMICA DE LA ENVOLVENTE Y FACTOR SOLAR MODIFICADO ARQ. ENERGIA 5R - TRANSMITANCIA TÉRMICA DE LA ENVOLVENTE Y FACTOR SOLAR MODIFICADO | S2: ARQ. ENERGIA 5R - TRANSMITANCIA TÉRMICA DE LA ENVOLVENTE Y FACTOR SOLAR MODIFICADO ARQ. ENERGIA 5R - TRANSMITANCIA TÉRMICA DE LA ENVOLVENTE Y FACTOR SOLAR MODIFICADO
A3: N | B3: =+B2 -> 28 | F3: Tipo requerimiento | H3: =+IF(VLOOKUP(B2,TablaResumen[],4)="C","Voluntario","Obligatorio") -> Obligatorio | V3: Puntaje crédito numérico
A4: N | B4: 28 | N4: =+IF(H3="Obligatorio","Cumple Requerimiento","Puntaje obtenido") -> Cumple Requerimiento | Q4: =+IF(H3="Obligatorio",X15,IF(A4="N",IF(Uso_Edificio="Oficinas",SUM(W5:W8),SUM(X5:X8)),IF(Uso_Edificio="Oficinas",SUM(X11:X14),SUM(Y11:Y14)))) -> NO | V4: Calificación | W4: Of. Y Serv. | X4: Ed. Y Salud
A5: N | B5: 28 | F5: Nombre Requerimiento | H5: =+VLOOKUP(B7,TablaResumen[],16,0) -> Transmitancia térmica de la envolvente y Factor Solar Modificado | Q5: =+IF(H2="Requisito",W14,IF(#REF!="N",IF(Uso_Edificio="Oficinas",SUM(W4:W7),SUM(X4:X7)),IF(Uso_Edificio="Oficinas",SUM(X10:X13),SUM(Y10:Y13)))) ->  | U5: =+CONCATENATE(B5,".",4) -> 28.4 | V5: =+AND(Q8>VLOOKUP(U5,MatrizRequerimientos,10,FALSE),Q8<=VLOOKUP(U5,MatrizRequerimientos,11,FALSE)) -> FALSE | W5: =+V5*VLOOKUP(U5,MatrizRequerimientos,8,FALSE) -> 0 | X5: =+V5*VLOOKUP(U5,MatrizRequerimientos,9,FALSE) -> 0
A6: N | B6: 28 | Q6: =+IF(H3="Requisito",W15,IF(A2="N",IF(Uso_Edificio="Oficinas",SUM(W5:W8),SUM(X5:X8)),IF(Uso_Edificio="Oficinas",SUM(X11:X14),SUM(Y11:Y14)))) -> 0 | U6: =+CONCATENATE(B6,".",5) -> 28.5 | V6: =+AND(Q8>VLOOKUP(U6,MatrizRequerimientos,10,FALSE),Q8<=VLOOKUP(U6,MatrizRequerimientos,11,FALSE)) -> FALSE | W6: =+V6*VLOOKUP(U6,MatrizRequerimientos,8,FALSE) -> 0 | X6: =+V6*VLOOKUP(U6,MatrizRequerimientos,9,FALSE) -> 0
A7: N | B7: 28 | F7: Indicador | H7: =+VLOOKUP(B8,TablaResumen[],21,0) -> Transmitancia Térmica Cubierta [W/m2K] | U7: =+CONCATENATE(B7,".",6) -> 28.6 | V7: =+AND(Q8>VLOOKUP(U7,MatrizRequerimientos,10,FALSE),Q8<=VLOOKUP(U7,MatrizRequerimientos,11,FALSE)) -> FALSE | W7: =+V7*VLOOKUP(U7,MatrizRequerimientos,8,FALSE) -> 0 | X7: =+V7*VLOOKUP(U7,MatrizRequerimientos,9,FALSE) -> 0
A8: N | B8: 28 | N8: =+IF(A7="N",CONCATENATE("Valor obtenido en proyecto para ",H7),"Seleccione Nivel de Cumplimiento") -> Valor obtenido en proyecto para Transmitancia Térmica Cubierta [W/m2K] | U8: =+CONCATENATE(B8,".",7) -> 28.7 | V8: =+AND(Q8>VLOOKUP(U8,MatrizRequerimientos,10,FALSE),Q8<=VLOOKUP(U8,MatrizRequerimientos,11,FALSE)) -> FALSE | W8: =+V8*VLOOKUP(U8,MatrizRequerimientos,8,FALSE) -> 0 | X8: =+V8*VLOOKUP(U8,MatrizRequerimientos,9,FALSE) -> 0
A9: N | B9: 28
A10: N | B10: 28 | F10: OPCIÓN | H10: =CONCATENATE(VLOOKUP(B10,'Resumen requerimientos'!$T$5:$AB$96,5,FALSE), " de ",VLOOKUP(B10,'Resumen requerimientos'!$T$5:$AB$96,6,FALSE)) -> 1 de 1 | X10: Of. Y Serv. | Y10: Ed. Y Salud
A11: N | B11: 28 | U11: =+CONCATENATE(B11,".",4) -> 28.4 | V11: =+VLOOKUP(U11,MatrizRequerimientos,6,FALSE) -> 0-0,8 | W11: =+IF(A8="T",Q8=V11,V5) -> FALSE | X11: =+W11*VLOOKUP(U11,MatrizRequerimientos,8,FALSE) -> 0 | Y11: =+W11*VLOOKUP(U11,MatrizRequerimientos,9,FALSE) -> 0
A12: N | B12: 28 | F12: =+IF(H12="No","¿OTROS REQUERIMIENTOS SIMULTÁNEOS?","REQUERIMIENTOS SIMULTANEOS PARA LA OPCION") -> REQUERIMIENTOS SIMULTANEOS PARA LA OPCION | H12: =IF(VLOOKUP(B12,'Resumen requerimientos'!$T$5:$AB$96,7,FALSE)=0,"No",CONCATENATE(VLOOKUP(B12,'Resumen requerimientos'!$T$5:$AB$96,7,FALSE), " de ",VLOOKUP(B12,'Resumen requerimientos'!$T$5:$AB$96,8,FALSE))) -> 1 de 9 | U12: =+CONCATENATE(B12,".",5) -> 28.5 | V12: =+VLOOKUP(U12,MatrizRequerimientos,6,FALSE) -> 0-0,8 | W12: =+IF(A9="T",Q8=V12,V6) -> FALSE | X12: =+W12*VLOOKUP(U12,MatrizRequerimientos,8,FALSE) -> 0 | Y12: =+W12*VLOOKUP(U12,MatrizRequerimientos,9,FALSE) -> 0
A13: N | B13: 28 | U13: =+CONCATENATE(B13,".",6) -> 28.6 | V13: =+VLOOKUP(U13,MatrizRequerimientos,6,FALSE) -> 0-0,8 | W13: =+IF(A10="T",Q8=V13,V7) -> FALSE | X13: =+W13*VLOOKUP(U13,MatrizRequerimientos,8,FALSE) -> 0 | Y13: =+W13*VLOOKUP(U13,MatrizRequerimientos,9,FALSE) -> 0
A14: N | B14: 28 | F14: REQUERIMIENTO ADICIONAL | H14: =VLOOKUP(B14,'Resumen requerimientos'!$T$5:$AB$96,9,FALSE) -> No | U14: =+CONCATENATE(B14,".",7) -> 28.7 | V14: =+VLOOKUP(U14,MatrizRequerimientos,6,FALSE) -> 0-0,8 | W14: =+IF(A11="T",Q8=V14,V8) -> FALSE | X14: =+W14*VLOOKUP(U14,MatrizRequerimientos,8,FALSE) -> 0 | Y14: =+W14*VLOOKUP(U14,MatrizRequerimientos,9,FALSE) -> 0
A15: N | B15: 28 | W15: =+IF(AND(A11="N",H3="Voluntario"),SUMIF(W11:W14,TRUE,IF(Uso_Edificio="Oficinas",X11:X14,Y11:Y14)),IF(AND(A11="T",H3="Obligatorio"),VLOOKUP(Q8,V11:X14,3,FALSE)=1,W11)) -> FALSE | X15: =+IF(W15,"SI","NO") -> NO
A16: N | B16: 28
A17: N | B17: 28
A18: N | B18: 89 | F18: Tipo requerimiento | H18: =+IF(VLOOKUP(B16,TablaResumen[],4)="C","Voluntario","Obligatorio") -> Obligatorio | V18: Puntaje crédito numérico
A19: N | B19: 89 | N19: =+IF(H18="Obligatorio","Cumple Requerimiento","Puntaje obtenido") -> Cumple Requerimiento | Q19: =IF(Q23="","SI",IF(H18="Obligatorio",X30,IF(A19="N",IF(Uso_Edificio="Oficinas",SUM(W20:W23),SUM(X20:X23)),IF(Uso_Edificio="Oficinas",SUM(X26:X29),SUM(Y26:Y29))))) -> SI | V19: Calificación | W19: Of. Y Serv. | X19: Ed. Y Salud
A20: N | B20: 89 | F20: Nombre Requerimiento | H20: =+VLOOKUP(B21,TablaResumen[],16,0) -> Transmitancia térmica de la envolvente y Factor Solar Modificado | Q20: =+IF(H17="Requisito",W29,IF(#REF!="N",IF(Uso_Edificio="Oficinas",SUM(W19:W22),SUM(X19:X22)),IF(Uso_Edificio="Oficinas",SUM(X25:X28),SUM(Y25:Y28)))) ->  | U20: =+CONCATENATE(B20,".",4) -> 89.4 | V20: =+AND(Q23>VLOOKUP(U20,MatrizRequerimientos,10,FALSE),Q23<=VLOOKUP(U20,MatrizRequerimientos,11,FALSE)) -> FALSE | W20: =+V20*VLOOKUP(U20,MatrizRequerimientos,8,FALSE) -> 0 | X20: =+V20*VLOOKUP(U20,MatrizRequerimientos,9,FALSE) -> 0
A21: N | B21: 89 | Q21: =+IF(H18="Requisito",W30,IF(A17="N",IF(Uso_Edificio="Oficinas",SUM(W20:W23),SUM(X20:X23)),IF(Uso_Edificio="Oficinas",SUM(X26:X29),SUM(Y26:Y29)))) -> 0 | U21: =+CONCATENATE(B21,".",5) -> 89.5 | V21: =+AND(Q23>VLOOKUP(U21,MatrizRequerimientos,10,FALSE),Q23<=VLOOKUP(U21,MatrizRequerimientos,11,FALSE)) -> FALSE | W21: =+V21*VLOOKUP(U21,MatrizRequerimientos,8,FALSE) -> 0 | X21: =+V21*VLOOKUP(U21,MatrizRequerimientos,9,FALSE) -> 0
A22: N | B22: 89 | F22: Indicador | H22: =+VLOOKUP(B22,TablaResumen[],21,0) -> Transmitancia Térmica Piso Ventilado [W/m2K] | U22: =+CONCATENATE(B22,".",6) -> 89.6 | V22: =+AND(Q23>VLOOKUP(U22,MatrizRequerimientos,10,FALSE),Q23<=VLOOKUP(U22,MatrizRequerimientos,11,FALSE)) -> FALSE | W22: =+V22*VLOOKUP(U22,MatrizRequerimientos,8,FALSE) -> 0 | X22: =+V22*VLOOKUP(U22,MatrizRequerimientos,9,FALSE) -> 0
A23: N | B23: 89 | N23: =+IF(A21="N",CONCATENATE("Valor obtenido en proyecto para ",H22),"Seleccione Nivel de Cumplimiento") -> Valor obtenido en proyecto para Transmitancia Térmica Piso Ventilado [W/m2K] | U23: =+CONCATENATE(B23,".",7) -> 89.7 | V23: =+AND(Q23>VLOOKUP(U23,MatrizRequerimientos,10,FALSE),Q23<=VLOOKUP(U23,MatrizRequerimientos,11,FALSE)) -> FALSE | W23: =+V23*VLOOKUP(U23,MatrizRequerimientos,8,FALSE) -> 0 | X23: =+V23*VLOOKUP(U23,MatrizRequerimientos,9,FALSE) -> 0
A24: N | B24: 89
A25: N | B25: 89 | F25: OPCIÓN | H25: =CONCATENATE(VLOOKUP(B24,'Resumen requerimientos'!$T$5:$AB$96,5,FALSE), " de ",VLOOKUP(B24,'Resumen requerimientos'!$T$5:$AB$96,6,FALSE)) -> 1 de 1 | X25: Of. Y Serv. | Y25: Ed. Y Salud
A26: N | B26: 89 | U26: =+CONCATENATE(B26,".",4) -> 89.4 | V26: =+VLOOKUP(U26,MatrizRequerimientos,6,FALSE) -> 0-0,8 | W26: =+IF(A23="T",Q23=V26,V20) -> FALSE | X26: =+W26*VLOOKUP(U26,MatrizRequerimientos,8,FALSE) -> 0 | Y26: =+W26*VLOOKUP(U26,MatrizRequerimientos,9,FALSE) -> 0
A27: N | B27: 89 | F27: =+IF(H27="No","¿OTROS REQUERIMIENTOS SIMULTÁNEOS?","REQUERIMIENTOS SIMULTANEOS PARA LA OPCION") -> REQUERIMIENTOS SIMULTANEOS PARA LA OPCION | H27: =IF(VLOOKUP(B26,'Resumen requerimientos'!$T$5:$AB$96,7,FALSE)=0,"No",CONCATENATE(VLOOKUP(B26,'Resumen requerimientos'!$T$5:$AB$96,7,FALSE), " de ",VLOOKUP(B26,'Resumen requerimientos'!$T$5:$AB$96,8,FALSE))) -> 2 de 9 | U27: =+CONCATENATE(B27,".",5) -> 89.5 | V27: =+VLOOKUP(U27,MatrizRequerimientos,6,FALSE) -> 0-0,8 | W27: =+IF(A24="T",Q23=V27,V21) -> FALSE | X27: =+W27*VLOOKUP(U27,MatrizRequerimientos,8,FALSE) -> 0 | Y27: =+W27*VLOOKUP(U27,MatrizRequerimientos,9,FALSE) -> 0
A28: N | B28: 89 | U28: =+CONCATENATE(B28,".",6) -> 89.6 | V28: =+VLOOKUP(U28,MatrizRequerimientos,6,FALSE) -> 0-0,8 | W28: =+IF(A25="T",Q23=V28,V22) -> FALSE | X28: =+W28*VLOOKUP(U28,MatrizRequerimientos,8,FALSE) -> 0 | Y28: =+W28*VLOOKUP(U28,MatrizRequerimientos,9,FALSE) -> 0
A29: N | B29: 89 | F29: REQUERIMIENTO ADICIONAL | H29: =VLOOKUP(B28,'Resumen requerimientos'!$T$5:$AB$96,9,FALSE) -> no | U29: =+CONCATENATE(B29,".",7) -> 89.7 | V29: =+VLOOKUP(U29,MatrizRequerimientos,6,FALSE) -> 0-0,8 | W29: =+IF(A26="T",Q23=V29,V23) -> FALSE | X29: =+W29*VLOOKUP(U29,MatrizRequerimientos,8,FALSE) -> 0 | Y29: =+W29*VLOOKUP(U29,MatrizRequerimientos,9,FALSE) -> 0
A30: N | B30: 89 | W30: =+IF(AND(A26="N",H18="Voluntario"),SUMIF(W26:W29,TRUE,IF(Uso_Edificio="Oficinas",X26:X29,Y26:Y29)),IF(AND(A26="T",H18="Obligatorio"),VLOOKUP(Q23,V26:X29,3,FALSE)=1,W26)) -> FALSE | X30: =+IF(W30,"SI","NO") -> NO
A31: N | B31: 89
A32: N | B32: 29
A33: N | B33: =+B32 -> 29 | F33: Tipo requerimiento | H33: =+IF(VLOOKUP(B32,TablaResumen[],4)="C","Voluntario","Obligatorio") -> Obligatorio | V33: Puntaje crédito numérico
A34: N | B34: 29 | N34: =+IF(H33="Obligatorio","Cumple Requerimiento","Puntaje obtenido") -> Cumple Requerimiento | Q34: =+IF(H33="Obligatorio",X45,IF(A34="N",IF(Uso_Edificio="Oficinas",SUM(W35:W38),SUM(X35:X38)),IF(Uso_Edificio="Oficinas",SUM(X41:X44),SUM(Y41:Y44)))) -> NO | V34: Calificación | W34: Of. Y Serv. | X34: Ed. Y Salud
A35: N | B35: 29 | F35: Nombre Requerimiento | H35: =+VLOOKUP(B37,TablaResumen[],16,0) -> Transmitancia térmica de la envolvente y Factor Solar Modificado | Q35: =+IF(H32="Requisito",W44,IF(#REF!="N",IF(Uso_Edificio="Oficinas",SUM(W34:W37),SUM(X34:X37)),IF(Uso_Edificio="Oficinas",SUM(X40:X43),SUM(Y40:Y43)))) ->  | U35: =+CONCATENATE(B35,".",4) -> 29.4 | V35: =+AND(Q38>VLOOKUP(U35,MatrizRequerimientos,10,FALSE),Q38<=VLOOKUP(U35,MatrizRequerimientos,11,FALSE)) -> FALSE | W35: =+V35*VLOOKUP(U35,MatrizRequerimientos,8,FALSE) -> 0 | X35: =+V35*VLOOKUP(U35,MatrizRequerimientos,9,FALSE) -> 0
A36: N | B36: 29 | Q36: =+IF(H33="Requisito",W45,IF(A32="N",IF(Uso_Edificio="Oficinas",SUM(W35:W38),SUM(X35:X38)),IF(Uso_Edificio="Oficinas",SUM(X41:X44),SUM(Y41:Y44)))) -> 0 | U36: =+CONCATENATE(B36,".",5) -> 29.5 | V36: =+AND(Q38>VLOOKUP(U36,MatrizRequerimientos,10,FALSE),Q38<=VLOOKUP(U36,MatrizRequerimientos,11,FALSE)) -> FALSE | W36: =+V36*VLOOKUP(U36,MatrizRequerimientos,8,FALSE) -> 0 | X36: =+V36*VLOOKUP(U36,MatrizRequerimientos,9,FALSE) -> 0
A37: N | B37: 29 | F37: Indicador | H37: =+VLOOKUP(B38,TablaResumen[],21,0) -> Transmitancia Térmica Muro [W/m2K] | U37: =+CONCATENATE(B37,".",6) -> 29.6 | V37: =+AND(Q38>VLOOKUP(U37,MatrizRequerimientos,10,FALSE),Q38<=VLOOKUP(U37,MatrizRequerimientos,11,FALSE)) -> FALSE | W37: =+V37*VLOOKUP(U37,MatrizRequerimientos,8,FALSE) -> 0 | X37: =+V37*VLOOKUP(U37,MatrizRequerimientos,9,FALSE) -> 0
A38: N | B38: 29 | N38: =+IF(A37="N",CONCATENATE("Valor obtenido en proyecto para ",H37),"Seleccione Nivel de Cumplimiento") -> Valor obtenido en proyecto para Transmitancia Térmica Muro [W/m2K] | U38: =+CONCATENATE(B38,".",7) -> 29.7 | V38: =+AND(Q38>VLOOKUP(U38,MatrizRequerimientos,10,FALSE),Q38<=VLOOKUP(U38,MatrizRequerimientos,11,FALSE)) -> FALSE | W38: =+V38*VLOOKUP(U38,MatrizRequerimientos,8,FALSE) -> 0 | X38: =+V38*VLOOKUP(U38,MatrizRequerimientos,9,FALSE) -> 0
A39: N | B39: 29
A40: N | B40: 29 | F40: OPCIÓN | H40: =CONCATENATE(VLOOKUP(B40,'Resumen requerimientos'!$T$5:$AB$96,5,FALSE), " de ",VLOOKUP(B40,'Resumen requerimientos'!$T$5:$AB$96,6,FALSE)) -> 1 de 1 | X40: Of. Y Serv. | Y40: Ed. Y Salud
A41: N | B41: 29 | U41: =+CONCATENATE(B41,".",4) -> 29.4 | V41: =+VLOOKUP(U41,MatrizRequerimientos,6,FALSE) -> 0-2,9 | W41: =+IF(A38="T",Q38=V41,V35) -> FALSE | X41: =+W41*VLOOKUP(U41,MatrizRequerimientos,8,FALSE) -> 0 | Y41: =+W41*VLOOKUP(U41,MatrizRequerimientos,9,FALSE) -> 0
A42: N | B42: 29 | F42: =+IF(H42="No","¿OTROS REQUERIMIENTOS SIMULTÁNEOS?","REQUERIMIENTOS SIMULTANEOS PARA LA OPCION") -> REQUERIMIENTOS SIMULTANEOS PARA LA OPCION | H42: =IF(VLOOKUP(B42,'Resumen requerimientos'!$T$5:$AB$96,7,FALSE)=0,"No",CONCATENATE(VLOOKUP(B42,'Resumen requerimientos'!$T$5:$AB$96,7,FALSE), " de ",VLOOKUP(B42,'Resumen requerimientos'!$T$5:$AB$96,8,FALSE))) -> 3 de 9 | U42: =+CONCATENATE(B42,".",5) -> 29.5 | V42: =+VLOOKUP(U42,MatrizRequerimientos,6,FALSE) -> 0-2,9 | W42: =+IF(A39="T",Q38=V42,V36) -> FALSE | X42: =+W42*VLOOKUP(U42,MatrizRequerimientos,8,FALSE) -> 0 | Y42: =+W42*VLOOKUP(U42,MatrizRequerimientos,9,FALSE) -> 0
A43: N | B43: 29 | U43: =+CONCATENATE(B43,".",6) -> 29.6 | V43: =+VLOOKUP(U43,MatrizRequerimientos,6,FALSE) -> 0-2,9 | W43: =+IF(A40="T",Q38=V43,V37) -> FALSE | X43: =+W43*VLOOKUP(U43,MatrizRequerimientos,8,FALSE) -> 0 | Y43: =+W43*VLOOKUP(U43,MatrizRequerimientos,9,FALSE) -> 0
A44: N | B44: 29 | F44: REQUERIMIENTO ADICIONAL | H44: =VLOOKUP(B44,'Resumen requerimientos'!$T$5:$AB$96,9,FALSE) -> No | U44: =+CONCATENATE(B44,".",7) -> 29.7 | V44: =+VLOOKUP(U44,MatrizRequerimientos,6,FALSE) -> 0-2,9 | W44: =+IF(A41="T",Q38=V44,V38) -> FALSE | X44: =+W44*VLOOKUP(U44,MatrizRequerimientos,8,FALSE) -> 0 | Y44: =+W44*VLOOKUP(U44,MatrizRequerimientos,9,FALSE) -> 0
A45: N | B45: 29 | W45: =+IF(AND(A41="N",H33="Voluntario"),SUMIF(W41:W44,TRUE,IF(Uso_Edificio="Oficinas",X41:X44,Y41:Y44)),IF(AND(A41="T",H33="Obligatorio"),VLOOKUP(Q38,V41:X44,3,FALSE)=1,W41)) -> FALSE | X45: =+IF(W45,"SI","NO") -> NO
A46: N | B46: 29
A47: N | B47: 30
A48: N | B48: =+B47 -> 30 | F48: Tipo requerimiento | H48: =+IF(VLOOKUP(B47,TablaResumen[],4)="C","Voluntario","Obligatorio") -> Obligatorio | V48: Puntaje crédito numérico
A49: N | B49: 30 | N49: =+IF(H48="Obligatorio","Cumple Requerimiento","Puntaje obtenido") -> Cumple Requerimiento | Q49: =+IF(H48="Obligatorio",X60,IF(A49="N",IF(Uso_Edificio="Oficinas",SUM(W50:W53),SUM(X50:X53)),IF(Uso_Edificio="Oficinas",SUM(X56:X59),SUM(Y56:Y59)))) -> NO | V49: Calificación | W49: Of. Y Serv. | X49: Ed. Y Salud
A50: N | B50: 30 | F50: Nombre Requerimiento | H50: =+VLOOKUP(B52,TablaResumen[],16,0) -> Transmitancia térmica de la envolvente y Factor Solar Modificado | Q50: =+IF(H47="Requisito",W59,IF(#REF!="N",IF(Uso_Edificio="Oficinas",SUM(W49:W52),SUM(X49:X52)),IF(Uso_Edificio="Oficinas",SUM(X55:X58),SUM(Y55:Y58)))) ->  | U50: =+CONCATENATE(B50,".",4) -> 30.4 | V50: =+AND(Q53>VLOOKUP(U50,MatrizRequerimientos,10,FALSE),Q53<=VLOOKUP(U50,MatrizRequerimientos,11,FALSE)) -> FALSE | W50: =+V50*VLOOKUP(U50,MatrizRequerimientos,8,FALSE) -> 0 | X50: =+V50*VLOOKUP(U50,MatrizRequerimientos,9,FALSE) -> 0
A51: N | B51: 30 | Q51: =+IF(H48="Requisito",W60,IF(A47="N",IF(Uso_Edificio="Oficinas",SUM(W50:W53),SUM(X50:X53)),IF(Uso_Edificio="Oficinas",SUM(X56:X59),SUM(Y56:Y59)))) -> 0 | U51: =+CONCATENATE(B51,".",5) -> 30.5 | V51: =+AND(Q53>VLOOKUP(U51,MatrizRequerimientos,10,FALSE),Q53<=VLOOKUP(U51,MatrizRequerimientos,11,FALSE)) -> FALSE | W51: =+V51*VLOOKUP(U51,MatrizRequerimientos,8,FALSE) -> 0 | X51: =+V51*VLOOKUP(U51,MatrizRequerimientos,9,FALSE) -> 0
A52: N | B52: 30 | F52: Indicador | H52: =+VLOOKUP(B53,TablaResumen[],21,0) -> Transmitancia Térmica Ventana [W/m2K] | U52: =+CONCATENATE(B52,".",6) -> 30.6 | V52: =+AND(Q53>VLOOKUP(U52,MatrizRequerimientos,10,FALSE),Q53<=VLOOKUP(U52,MatrizRequerimientos,11,FALSE)) -> FALSE | W52: =+V52*VLOOKUP(U52,MatrizRequerimientos,8,FALSE) -> 0 | X52: =+V52*VLOOKUP(U52,MatrizRequerimientos,9,FALSE) -> 0
A53: N | B53: 30 | N53: =+IF(A52="N",CONCATENATE("Valor obtenido en proyecto para ",H52),"Seleccione Nivel de Cumplimiento") -> Valor obtenido en proyecto para Transmitancia Térmica Ventana [W/m2K] | U53: =+CONCATENATE(B53,".",7) -> 30.7 | V53: =+AND(Q53>VLOOKUP(U53,MatrizRequerimientos,10,FALSE),Q53<=VLOOKUP(U53,MatrizRequerimientos,11,FALSE)) -> FALSE | W53: =+V53*VLOOKUP(U53,MatrizRequerimientos,8,FALSE) -> 0 | X53: =+V53*VLOOKUP(U53,MatrizRequerimientos,9,FALSE) -> 0
A54: N | B54: 30
A55: N | B55: 30 | F55: OPCIÓN | H55: =CONCATENATE(VLOOKUP(B55,'Resumen requerimientos'!$T$5:$AB$96,5,FALSE), " de ",VLOOKUP(B55,'Resumen requerimientos'!$T$5:$AB$96,6,FALSE)) -> 1 de 1 | X55: Of. Y Serv. | Y55: Ed. Y Salud
A56: N | B56: 30 | U56: =+CONCATENATE(B56,".",4) -> 30.4 | V56: =+VLOOKUP(U56,MatrizRequerimientos,6,FALSE) -> 0-3,4 | W56: =+IF(A53="T",Q53=V56,V50) -> FALSE | X56: =+W56*VLOOKUP(U56,MatrizRequerimientos,8,FALSE) -> 0 | Y56: =+W56*VLOOKUP(U56,MatrizRequerimientos,9,FALSE) -> 0
A57: N | B57: 30 | F57: =+IF(H57="No","¿OTROS REQUERIMIENTOS SIMULTÁNEOS?","REQUERIMIENTOS SIMULTANEOS PARA LA OPCION") -> REQUERIMIENTOS SIMULTANEOS PARA LA OPCION | H57: =IF(VLOOKUP(B57,'Resumen requerimientos'!$T$5:$AB$96,7,FALSE)=0,"No",CONCATENATE(VLOOKUP(B57,'Resumen requerimientos'!$T$5:$AB$96,7,FALSE), " de ",VLOOKUP(B57,'Resumen requerimientos'!$T$5:$AB$96,8,FALSE))) -> 4 de 9 | U57: =+CONCATENATE(B57,".",5) -> 30.5 | V57: =+VLOOKUP(U57,MatrizRequerimientos,6,FALSE) -> 0-3,4 | W57: =+IF(A54="T",Q53=V57,V51) -> FALSE | X57: =+W57*VLOOKUP(U57,MatrizRequerimientos,8,FALSE) -> 0 | Y57: =+W57*VLOOKUP(U57,MatrizRequerimientos,9,FALSE) -> 0
A58: N | B58: 30 | U58: =+CONCATENATE(B58,".",6) -> 30.6 | V58: =+VLOOKUP(U58,MatrizRequerimientos,6,FALSE) -> 0-3,4 | W58: =+IF(A55="T",Q53=V58,V52) -> FALSE | X58: =+W58*VLOOKUP(U58,MatrizRequerimientos,8,FALSE) -> 0 | Y58: =+W58*VLOOKUP(U58,MatrizRequerimientos,9,FALSE) -> 0
A59: N | B59: 30 | F59: REQUERIMIENTO ADICIONAL | H59: =VLOOKUP(B59,'Resumen requerimientos'!$T$5:$AB$96,9,FALSE) -> No | U59: =+CONCATENATE(B59,".",7) -> 30.7 | V59: =+VLOOKUP(U59,MatrizRequerimientos,6,FALSE) -> 0-3,4 | W59: =+IF(A56="T",Q53=V59,V53) -> FALSE | X59: =+W59*VLOOKUP(U59,MatrizRequerimientos,8,FALSE) -> 0 | Y59: =+W59*VLOOKUP(U59,MatrizRequerimientos,9,FALSE) -> 0
A60: N | B60: 30 | W60: =+IF(AND(A56="N",H48="Voluntario"),SUMIF(W56:W59,TRUE,IF(Uso_Edificio="Oficinas",X56:X59,Y56:Y59)),IF(AND(A56="T",H48="Obligatorio"),VLOOKUP(Q53,V56:X59,3,FALSE)=1,W56)) -> FALSE | X60: =+IF(W60,"SI","NO") -> NO
A61: N | B61: 30
A62: =+IF(OR(Zona_Climatica_Edificio="SL - Sur Litoral",Zona_Climatica_Edificio="SE - Sur Extremo",Zona_Climatica_Edificio="An - Andino"),"T","N") -> N | B62: 31
A63: N | B63: =+B62 -> 31 | F63: Tipo requerimiento | H63: =+IF(VLOOKUP(B62,TablaResumen[],4)="C","Voluntario","Obligatorio") -> Obligatorio | V63: Puntaje crédito numérico
A64: N | B64: 31 | N64: =+IF(H63="Obligatorio","Cumple Requerimiento","Puntaje obtenido") -> Cumple Requerimiento | Q64: =+IF(H63="Obligatorio",X75,IF(A64="N",IF(Uso_Edificio="Oficinas",SUM(W65:W68),SUM(X65:X68)),IF(Uso_Edificio="Oficinas",SUM(X71:X74),SUM(Y71:Y74)))) -> NO | V64: Calificación | W64: Of. Y Serv. | X64: Ed. Y Salud
A65: N | B65: 31 | F65: Nombre Requerimiento | H65: =+VLOOKUP(B67,TablaResumen[],16,0) -> Transmitancia térmica de la envolvente y Factor Solar Modificado | Q65: =+IF(H62="Requisito",W74,IF(#REF!="N",IF(Uso_Edificio="Oficinas",SUM(W64:W67),SUM(X64:X67)),IF(Uso_Edificio="Oficinas",SUM(X70:X73),SUM(Y70:Y73)))) ->  | U65: =+CONCATENATE(B65,".",4) -> 31.4 | V65: =+AND(Q68>VLOOKUP(U65,MatrizRequerimientos,10,FALSE),Q68<=VLOOKUP(U65,MatrizRequerimientos,11,FALSE)) -> FALSE | W65: =+V65*VLOOKUP(U65,MatrizRequerimientos,8,FALSE) -> 0 | X65: =+V65*VLOOKUP(U65,MatrizRequerimientos,9,FALSE) -> 0
A66: N | B66: 31 | Q66: =+IF(H63="Requisito",W75,IF(A62="N",IF(Uso_Edificio="Oficinas",SUM(W65:W68),SUM(X65:X68)),IF(Uso_Edificio="Oficinas",SUM(X71:X74),SUM(Y71:Y74)))) -> 0 | U66: =+CONCATENATE(B66,".",5) -> 31.5 | V66: =+AND(Q68>VLOOKUP(U66,MatrizRequerimientos,10,FALSE),Q68<=VLOOKUP(U66,MatrizRequerimientos,11,FALSE)) -> FALSE | W66: =+V66*VLOOKUP(U66,MatrizRequerimientos,8,FALSE) -> 0 | X66: =+V66*VLOOKUP(U66,MatrizRequerimientos,9,FALSE) -> 0
A67: N | B67: 31 | F67: Indicador | H67: =+VLOOKUP(B68,TablaResumen[],21,0) -> FSM - Norte | U67: =+CONCATENATE(B67,".",6) -> 31.6 | V67: =+AND(Q68>VLOOKUP(U67,MatrizRequerimientos,10,FALSE),Q68<=VLOOKUP(U67,MatrizRequerimientos,11,FALSE)) -> FALSE | W67: =+V67*VLOOKUP(U67,MatrizRequerimientos,8,FALSE) -> 0 | X67: =+V67*VLOOKUP(U67,MatrizRequerimientos,9,FALSE) -> 0
A68: N | B68: 31 | N68: =+IF(A67="N",CONCATENATE("Valor obtenido en proyecto para ",H67),"Seleccione Nivel de Cumplimiento") -> Valor obtenido en proyecto para FSM - Norte | U68: =+CONCATENATE(B68,".",7) -> 31.7 | V68: =+AND(Q68>VLOOKUP(U68,MatrizRequerimientos,10,FALSE),Q68<=VLOOKUP(U68,MatrizRequerimientos,11,FALSE)) -> FALSE | W68: =+V68*VLOOKUP(U68,MatrizRequerimientos,8,FALSE) -> 0 | X68: =+V68*VLOOKUP(U68,MatrizRequerimientos,9,FALSE) -> 0
A69: N | B69: 31
A70: N | B70: 31 | F70: OPCIÓN | H70: =CONCATENATE(VLOOKUP(B70,'Resumen requerimientos'!$T$5:$AB$96,5,FALSE), " de ",VLOOKUP(B70,'Resumen requerimientos'!$T$5:$AB$96,6,FALSE)) -> 1 de 1 | X70: Of. Y Serv. | Y70: Ed. Y Salud
A71: N | B71: 31 | U71: =+CONCATENATE(B71,".",4) -> 31.4 | V71: =+VLOOKUP(U71,MatrizRequerimientos,6,FALSE) -> 0-0,75 | W71: =+IF(A68="T",Q68=V71,V65) -> FALSE | X71: =+W71*VLOOKUP(U71,MatrizRequerimientos,8,FALSE) -> 0 | Y71: =+W71*VLOOKUP(U71,MatrizRequerimientos,9,FALSE) -> 0
A72: N | B72: 31 | F72: =+IF(H72="No","¿OTROS REQUERIMIENTOS SIMULTÁNEOS?","REQUERIMIENTOS SIMULTANEOS PARA LA OPCION") -> REQUERIMIENTOS SIMULTANEOS PARA LA OPCION | H72: =IF(VLOOKUP(B72,'Resumen requerimientos'!$T$5:$AB$96,7,FALSE)=0,"No",CONCATENATE(VLOOKUP(B72,'Resumen requerimientos'!$T$5:$AB$96,7,FALSE), " de ",VLOOKUP(B72,'Resumen requerimientos'!$T$5:$AB$96,8,FALSE))) -> 5 de 9 | U72: =+CONCATENATE(B72,".",5) -> 31.5 | V72: =+VLOOKUP(U72,MatrizRequerimientos,6,FALSE) -> 0-0,75 | W72: =+IF(A69="T",Q68=V72,V66) -> FALSE | X72: =+W72*VLOOKUP(U72,MatrizRequerimientos,8,FALSE) -> 0 | Y72: =+W72*VLOOKUP(U72,MatrizRequerimientos,9,FALSE) -> 0
A73: N | B73: 31 | U73: =+CONCATENATE(B73,".",6) -> 31.6 | V73: =+VLOOKUP(U73,MatrizRequerimientos,6,FALSE) -> 0-0,75 | W73: =+IF(A70="T",Q68=V73,V67) -> FALSE | X73: =+W73*VLOOKUP(U73,MatrizRequerimientos,8,FALSE) -> 0 | Y73: =+W73*VLOOKUP(U73,MatrizRequerimientos,9,FALSE) -> 0
A74: N | B74: 31 | F74: REQUERIMIENTO ADICIONAL | H74: =VLOOKUP(B74,'Resumen requerimientos'!$T$5:$AB$96,9,FALSE) -> No | U74: =+CONCATENATE(B74,".",7) -> 31.7 | V74: =+VLOOKUP(U74,MatrizRequerimientos,6,FALSE) -> 0-0,75 | W74: =+IF(A71="T",Q68=V74,V68) -> FALSE | X74: =+W74*VLOOKUP(U74,MatrizRequerimientos,8,FALSE) -> 0 | Y74: =+W74*VLOOKUP(U74,MatrizRequerimientos,9,FALSE) -> 0
A75: N | B75: 31 | W75: =+IF(AND(A71="N",H63="Voluntario"),SUMIF(W71:W74,TRUE,IF(Uso_Edificio="Oficinas",X71:X74,Y71:Y74)),IF(AND(A71="T",H63="Obligatorio"),VLOOKUP(Q68,V71:X74,3,FALSE)=1,W71)) -> FALSE | X75: =+IF(W75,"SI","NO") -> NO
A76: N | B76: 31
A77: N | B77: 90
A78: N | B78: 90 | F78: Tipo requerimiento | H78: =+IF(VLOOKUP(B77,TablaResumen[],4)="C","Voluntario","Obligatorio") -> Obligatorio | V78: Puntaje crédito numérico
A79: N | B79: 90 | N79: =+IF(H78="Obligatorio","Cumple Requerimiento","Puntaje obtenido") -> Cumple Requerimiento | Q79: =+IF(H78="Obligatorio",X90,IF(A79="N",IF(Uso_Edificio="Oficinas",SUM(W80:W83),SUM(X80:X83)),IF(Uso_Edificio="Oficinas",SUM(X86:X89),SUM(Y86:Y89)))) -> NO | V79: Calificación | W79: Of. Y Serv. | X79: Ed. Y Salud
A80: N | B80: 90 | F80: Nombre Requerimiento | H80: =+VLOOKUP(B82,TablaResumen[],16,0) -> Transmitancia térmica de la envolvente y Factor Solar Modificado | Q80: =+IF(H77="Requisito",W89,IF(#REF!="N",IF(Uso_Edificio="Oficinas",SUM(W79:W82),SUM(X79:X82)),IF(Uso_Edificio="Oficinas",SUM(X85:X88),SUM(Y85:Y88)))) ->  | U80: =+CONCATENATE(B80,".",4) -> 90.4 | V80: =+AND(Q83>VLOOKUP(U80,MatrizRequerimientos,10,FALSE),Q83<=VLOOKUP(U80,MatrizRequerimientos,11,FALSE)) -> FALSE | W80: =+V80*VLOOKUP(U80,MatrizRequerimientos,8,FALSE) -> 0 | X80: =+V80*VLOOKUP(U80,MatrizRequerimientos,9,FALSE) -> 0
A81: N | B81: 90 | Q81: =+IF(H78="Requisito",W90,IF(A77="N",IF(Uso_Edificio="Oficinas",SUM(W80:W83),SUM(X80:X83)),IF(Uso_Edificio="Oficinas",SUM(X86:X89),SUM(Y86:Y89)))) -> 0 | U81: =+CONCATENATE(B81,".",5) -> 90.5 | V81: =+AND(Q83>VLOOKUP(U81,MatrizRequerimientos,10,FALSE),Q83<=VLOOKUP(U81,MatrizRequerimientos,11,FALSE)) -> FALSE | W81: =+V81*VLOOKUP(U81,MatrizRequerimientos,8,FALSE) -> 0 | X81: =+V81*VLOOKUP(U81,MatrizRequerimientos,9,FALSE) -> 0
A82: N | B82: 90 | F82: Indicador | H82: =+VLOOKUP(B83,TablaResumen[],21,0) -> FSM - NorEste | U82: =+CONCATENATE(B82,".",6) -> 90.6 | V82: =+AND(Q83>VLOOKUP(U82,MatrizRequerimientos,10,FALSE),Q83<=VLOOKUP(U82,MatrizRequerimientos,11,FALSE)) -> FALSE | W82: =+V82*VLOOKUP(U82,MatrizRequerimientos,8,FALSE) -> 0 | X82: =+V82*VLOOKUP(U82,MatrizRequerimientos,9,FALSE) -> 0
A83: N | B83: 90 | N83: =+IF(A82="N",CONCATENATE("Valor obtenido en proyecto para ",H82),"Seleccione Nivel de Cumplimiento") -> Valor obtenido en proyecto para FSM - NorEste | U83: =+CONCATENATE(B83,".",7) -> 90.7 | V83: =+AND(Q83>VLOOKUP(U83,MatrizRequerimientos,10,FALSE),Q83<=VLOOKUP(U83,MatrizRequerimientos,11,FALSE)) -> FALSE | W83: =+V83*VLOOKUP(U83,MatrizRequerimientos,8,FALSE) -> 0 | X83: =+V83*VLOOKUP(U83,MatrizRequerimientos,9,FALSE) -> 0
A84: N | B84: 90
A85: N | B85: 90 | F85: OPCIÓN | H85: =CONCATENATE(VLOOKUP(B85,'Resumen requerimientos'!$T$5:$AB$96,5,FALSE), " de ",VLOOKUP(B85,'Resumen requerimientos'!$T$5:$AB$96,6,FALSE)) -> 1 de 1 | X85: Of. Y Serv. | Y85: Ed. Y Salud
A86: N | B86: 90 | U86: =+CONCATENATE(B86,".",4) -> 90.4 | V86: =+VLOOKUP(U86,MatrizRequerimientos,6,FALSE) -> 0-0,75 | W86: =+IF(A83="T",Q83=V86,V80) -> FALSE | X86: =+W86*VLOOKUP(U86,MatrizRequerimientos,8,FALSE) -> 0 | Y86: =+W86*VLOOKUP(U86,MatrizRequerimientos,9,FALSE) -> 0
A87: N | B87: 90 | F87: =+IF(H87="No","¿OTROS REQUERIMIENTOS SIMULTÁNEOS?","REQUERIMIENTOS SIMULTANEOS PARA LA OPCION") -> REQUERIMIENTOS SIMULTANEOS PARA LA OPCION | H87: =IF(VLOOKUP(B87,'Resumen requerimientos'!$T$5:$AB$96,7,FALSE)=0,"No",CONCATENATE(VLOOKUP(B87,'Resumen requerimientos'!$T$5:$AB$96,7,FALSE), " de ",VLOOKUP(B87,'Resumen requerimientos'!$T$5:$AB$96,8,FALSE))) -> 6 de 9 | U87: =+CONCATENATE(B87,".",5) -> 90.5 | V87: =+VLOOKUP(U87,MatrizRequerimientos,6,FALSE) -> 0-0,75 | W87: =+IF(A84="T",Q83=V87,V81) -> FALSE | X87: =+W87*VLOOKUP(U87,MatrizRequerimientos,8,FALSE) -> 0 | Y87: =+W87*VLOOKUP(U87,MatrizRequerimientos,9,FALSE) -> 0
A88: N | B88: 90 | U88: =+CONCATENATE(B88,".",6) -> 90.6 | V88: =+VLOOKUP(U88,MatrizRequerimientos,6,FALSE) -> 0-0,75 | W88: =+IF(A85="T",Q83=V88,V82) -> FALSE | X88: =+W88*VLOOKUP(U88,MatrizRequerimientos,8,FALSE) -> 0 | Y88: =+W88*VLOOKUP(U88,MatrizRequerimientos,9,FALSE) -> 0
A89: N | B89: 90 | F89: REQUERIMIENTO ADICIONAL | H89: =VLOOKUP(B89,'Resumen requerimientos'!$T$5:$AB$96,9,FALSE) -> no | U89: =+CONCATENATE(B89,".",7) -> 90.7 | V89: =+VLOOKUP(U89,MatrizRequerimientos,6,FALSE) -> 0-0,75 | W89: =+IF(A86="T",Q83=V89,V83) -> FALSE | X89: =+W89*VLOOKUP(U89,MatrizRequerimientos,8,FALSE) -> 0 | Y89: =+W89*VLOOKUP(U89,MatrizRequerimientos,9,FALSE) -> 0
A90: N | B90: 90 | W90: =+IF(AND(A86="N",H78="Voluntario"),SUMIF(W86:W89,TRUE,IF(Uso_Edificio="Oficinas",X86:X89,Y86:Y89)),IF(AND(A86="T",H78="Obligatorio"),VLOOKUP(Q83,V86:X89,3,FALSE)=1,W86)) -> FALSE | X90: =+IF(W90,"SI","NO") -> NO
A91: N | B91: 90
A92: N | B92: 91
A93: N | B93: 91 | F93: Tipo requerimiento | H93: =+IF(VLOOKUP(B92,TablaResumen[],4)="C","Voluntario","Obligatorio") -> Obligatorio | V93: Puntaje crédito numérico
A94: =+IF(OR(Zona_Climatica_Edificio="SL - Sur Litoral",Zona_Climatica_Edificio="SE - Sur Extremo",Zona_Climatica_Edificio="An - Andino"),"T","N") -> N | B94: 91 | N94: =+IF(H93="Obligatorio","Cumple Requerimiento","Puntaje obtenido") -> Cumple Requerimiento | Q94: =+IF(H93="Obligatorio",X105,IF(A94="N",IF(Uso_Edificio="Oficinas",SUM(W95:W98),SUM(X95:X98)),IF(Uso_Edificio="Oficinas",SUM(X101:X104),SUM(Y101:Y104)))) -> NO | V94: Calificación | W94: Of. Y Serv. | X94: Ed. Y Salud
A95: N | B95: 91 | F95: Nombre Requerimiento | H95: =+VLOOKUP(B97,TablaResumen[],16,0) -> Transmitancia térmica de la envolvente y Factor Solar Modificado | Q95: =+IF(H92="Requisito",W104,IF(#REF!="N",IF(Uso_Edificio="Oficinas",SUM(W94:W97),SUM(X94:X97)),IF(Uso_Edificio="Oficinas",SUM(X100:X103),SUM(Y100:Y103)))) ->  | U95: =+CONCATENATE(B95,".",4) -> 91.4 | V95: =+AND(Q98>VLOOKUP(U95,MatrizRequerimientos,10,FALSE),Q98<=VLOOKUP(U95,MatrizRequerimientos,11,FALSE)) -> FALSE | W95: =+V95*VLOOKUP(U95,MatrizRequerimientos,8,FALSE) -> 0 | X95: =+V95*VLOOKUP(U95,MatrizRequerimientos,9,FALSE) -> 0
A96: N | B96: 91 | Q96: =+IF(H93="Requisito",W105,IF(A92="N",IF(Uso_Edificio="Oficinas",SUM(W95:W98),SUM(X95:X98)),IF(Uso_Edificio="Oficinas",SUM(X101:X104),SUM(Y101:Y104)))) -> 0 | U96: =+CONCATENATE(B96,".",5) -> 91.5 | V96: =+AND(Q98>VLOOKUP(U96,MatrizRequerimientos,10,FALSE),Q98<=VLOOKUP(U96,MatrizRequerimientos,11,FALSE)) -> FALSE | W96: =+V96*VLOOKUP(U96,MatrizRequerimientos,8,FALSE) -> 0 | X96: =+V96*VLOOKUP(U96,MatrizRequerimientos,9,FALSE) -> 0
